Workbook

Sheet stones
A1: pair | B1: where | C1: note 1 | D1: note 2 | E1: alias 1 | F1: alias 2 | H1: NWA plot | I1: first DXXX | J1: Fau | K1: last DXXX | L1: Na2O | M1: K2O | N1: CaO | O1: Sc | P1: Cr | Q1: FeO | R1: Co | S1: Ni | T1: Zn | U1: As | V1: Se | W1: Br | X1: Rb | Y1: Sr | Z1: Zr | AA1: Ag | AB1: Sb | AC1: Cs | AD1: Ba | AE1: La | AF1: Ce | AG1: Nd | AH1: Sm | AI1: Eu | AJ1: Tb | AK1: Yb | AL1: Lu | AM1: Hf | AN1: Ta | AO1: W | AP1: Ir | AQ1: Au | AR1: Th | AS1: U | AT1: mg | AV1: INAA | AW1: INAA | AX1: INAA | AY1: Cr/Sc | AZ1: Sm/Th CI | BA1: Sm/Th | BB1: Sm/Eu CI | BC1: Eu/Sm CI | BD1: Na/Eu | BE1: Eu/Na | BF1: Na/Sm | BG1: Ni/Co | BH1: Fe/Sc g/mg | BI1: Ce/La CI | BJ1: Ce/Ce* | BK1: La/Sm CI | BL1: La/Yb | BM1: Ce/Yb | BO1: 0 | BP1: Sm/Hf | BQ1: Sm/Ta CI | BR1: U/Th/ CI | BS1: Sm/Eu | BT1: ? | BU1: Eu/Sm CI | BV1: Eu/Sm transform | BY1: through D398 NWA | BZ1: through D398 not NWA | CB1: INAA NWA | CC1: INAA ALL | CD1: TYP FLM NWA stones | CE1: TYP FLM ALL stones | CF1: NWA mets | CG1: all mets | CH1: TYP FLM NWA mets | CI1: TYP FLM ALL mets | CQ1: lithic clasts | CR1: North Africa named stone | CS1: North Africa unnamed stone | CT1: NWA INAA named | CU1: NWA AJI named | CV1: NWA AJI unnamed | CW1: ALL named | CX1: All w/unnamed | CY1: typ FLM NWA | CZ1: NWA meteorite | DA1: typ FLM | DB1: Ir | DC1: Ni NWA Brx | DD1: Ir NWA Brx | DE1: log Ni | DF1: log Ir | DG1: Ni-min | DH1: Ir-min | DI1: (Ir,Ni)-min | DJ1: SEI | DK1: Ba excess | DL1: BaI | DO1: maf fac | DP1: K fac | DR1: Sigma Plot | DW1: La/Sm | DX1: Sm/Yb | DY1: Sm/Eu | DZ1: Sm/Na mg/g | EA1: Sm/Sc | EB1: Fe/Sc | EC1: Cs/K | ED1: K/Sm | EE1: Th/U | EF1: Na/Sc | EG1: Sc/Co | EH1: Yb/Tb | EI1: Yb/La | EJ1: La/Th | EK1: La/Lu | EL1: Ni/Co | EM1: Sc/Co | EN1: Th/La | EO1: U/La | EP1: Ir/Ni/CM | EQ1: Ni/Ir | ER1: Au/Ir /CM | EU1: SiO2 | EV1: TiO2 | EW1: Al2O3 | EX1: Cr2O3 | EY1: FeO | EZ1: MnO | FA1: MgO | FB1: CaO | FC1: Na2O | FD1: K2O | FE1: P2O5 | FF1: SO2 | FG1: S | FH1: FeO+MgO | FI1: MgO/FeO | FJ1: Mg' | FK1: CaO/Al2O3 | FM1: CaO/Al2O3 | FN1: 36 | FO1: CaO+Al2O3 | FP1: (CaO+Al2O3)/(TiO2+FeO+MgO) | FQ1: alphabetic order | FR1: MR order | FS1: Al | FT1: Ca | FU1: molar Ca/Al | FV1: est MgO | FW1: error | FX1: est MgO+FeO | FY1: est Al2O3 | FZ1: error | GA1: est norm plag | GB1: est Mg' | GC1: error | GD1: Darryl Pitt | GI1: Sm | GJ1: Cs | GK1: =GI1 -> Sm | GL1: =GJ1 -> Cs | GM1: Ant | GN1: Oman | GO1: Africa | GP1: Aust
A2: NWA 00773 | B2: 0 | C2: SMWM | D2: 773 | H2: C | I2: 336 | J2: NWA 00773 | K2: D336 | L2: 0.186467212 | M2: 0.1124722235 | N2: 8.959387263 | O2: 29.84989362 | P2: 3207.070682 | Q2: 18.96968654 | R2: 72.23309536 | S2: 162.5511796 | T2: 0 | U2: 0 | V2: 0 | W2: 0 | X2: 0.779774006 | Y2: 75.27398232 | Z2: 165.0744646 | AA2: 0 | AB2: 0 | AC2: 0.09837832727 | AD2: 162.245473 | AE2: 11.73561723 | AF2: 30.5708288 | AG2: 17.73145478 | AH2: 5.304217295 | AI2: 0.4636232329 | AJ2: 1.064776606 | AK2: 3.647766536 | AL2: 0.5003829606 | AM2: 4.017462531 | AN2: 0.4816353837 | AO2: 0.2422580493 | AP2: 0.1085527871 | AQ2: 1.275258853 | AR2: 1.815228594 | AS2: 0.4564351567 | AT2: 211.51 | AV2: 1 | AW2: 1 | AX2: 1 | AY2: =P2/O2 -> 107.4399367 | AZ2: =(AH2/AR2)/(147.1/29.4) -> 0.5840158593 | BA2: =AH2/AR2 -> 2.922065745 | BB2: =(AH2/AI2)/(147.1/56) -> 4.355434335 | BC2: =1/BB2 -> 0.2295982267 | BD2: =L2*7419/1000/AI2 -> 2.983888958 | BE2: =1/BD2 -> 0.3351331146 | BF2: =L2*7419/AH2 -> 260.8113825 | BH2: =Q2*7773/O2/1000 -> 4.939762109 | BI2: =(AF2/603.2)/(AE2/234.7) -> 1.013568334 | BJ2: =(AF2/0.6032)/10^((1*LOG10(AH2/0.1471)+4*LOG10(AE2/0.2347))/5) -> 1.082056345 | BK2: =(AE2/AH2)/(234.7/147.1) -> 1.386705416 | BL2: =AE2/AK2 -> 3.217206231 | BM2: =AF2/AK2 -> 8.380697751 | BO2: =(AL2/AH2)/(24.3/147.1) -> 0.5710677098 | BP2: =AH2/AM2 -> 1.32029042 | BQ2: =(AH2/AN2)/(147.1/14.2) -> 1.063110956 | BR2: =(AS2/AR2)/(8.1/29.4) -> 0.9126622256 | BS2: =AH2/AI2 -> 11.44079269 | BY2: 10 | CB2: 1 | CC2: 1 | CF2: 1 | CG2: 1 | CR2: 1 | CT2: 1 | CU2: 0 | CW2: 1 | CZ2: 1 | DJ2: 0 | DK2: =MAX(10,AD2-(3.2+25.3*AH2)) -> 24.84877547 | DL2: =IF(DK2<20,0,IF(DK2<40,1,IF(DK2<80,2,IF(DK2<160,3,IF(DK2<320,4,IF(DK2<640,5,IF(DK2<1280,6,IF(DK2<2560,7,IF(DK2<5120,8,9))))))))) -> 1 | DO2: 7.659465209 | DP2: 0.07094888889 | DQ2: =100*DP2 -> 7.094888889 | DW2: =AE2/AH2 -> 2.212506875 | DX2: =AH2/AK2 -> 1.454099993 | DY2: =AH2/AI2 -> 11.44079269 | DZ2: =AH2/(L2*0.7419*1000) -> 0.03834188487 | EA2: =AH2/O2 -> 0.177696355 | EB2: =Q2*7773/O2 -> 4939.762109 | ED2: =(FD2*8301)/AH2 -> 0 | EE2: =AR2/AS2 -> 3.976969275 | EF2: =L2*7419/O2 -> 46.34523201 | EG2: =O2/R2 -> 0.413244005 | EH2: =AK2/AJ2 -> 3.425851502 | EI2: =AK2/AE2 -> 0.3108286905 | EJ2: =AE2/AR2 -> 6.465090548 | EK2: =AE2/AL2 -> 23.4532711 | EL2: =S2/R2 -> 2.250369845 | EM2: =O2/R2 -> 0.413244005 | EN2: =AR2/AE2 -> 0.1546768746 | EO2: =AS2/AE2 -> 0.03889315303 | EP2: =(AP2/S2)/(595/12300) -> 0.01380508226 | EQ2: =S2/AP2 -> 1497.439024 | ER2: =(AQ2/AP2)/(165/595) -> 42.3633592
A3: NWA 00773 | B3: 0 | D3: 773 | H3: C | I3: 357 | J3: NWA 02700 | K3: D357 | L3: 0.26 | M3: 0.16 | N3: 9.2 | O3: 37.3 | P3: 3870 | Q3: 19.43 | R3: 60.8 | S3: 110 | T3: 8 | U3: 0 | V3: 0 | W3: 0 | X3: 2 | Y3: 80 | Z3: 190 | AA3: 3.5 | AB3: 0.07 | AC3: 0.06 | AD3: 175 | AE3: 11.09 | AF3: 28.9 | AG3: 22 | AH3: 5.27 | AI3: 0.641 | AJ3: 1.19 | AK3: 4.11 | AL3: 0.587 | AM3: 4.51 | AN3: 0.55 | AO3: 0 | AP3: 0 | AQ3: 130 | AR3: 1.75 | AS3: 0.44 | AT3: 25.08 | AV3: 1 | AW3: 1 | AY3: 103.7533512 | AZ3: 0.6018762746 | BA3: 3.011428571 | BB3: 3.129881823 | BC3: 0.319500881 | BD3: 3.009266771 | BE3: 0.3323068628 | BF3: 366.0227704 | BH3: 4.049045308 | BI3: 1.013953534 | BJ3: 1.071672672 | BK3: 1.318926257 | BL3: 2.698296837 | BM3: 7.03163017 | BO3: 0.6742700744 | BP3: 1.168514412 | BQ3: 0.9249613745 | BR3: 0.9125925926 | BS3: 8.221528861 | BY3: 1 | CB3: 1 | CC3: 1 | CR3: 1 | CT3: 1 | CU3: 0 | CW3: 1 | DJ3: 0 | DK3: 38.469 | DL3: 1 | DO3: 8.048639798 | DP3: 0.07123144654 | DQ3: =100*DP3 -> 7.123144654 | DR3: 773ss | DW3: 2.104364326 | DX3: 1.282238443 | DY3: 8.221528861 | DZ3: 0.02732070464 | EA3: 0.1412868633 | EB3: 4049.045308 | ED3: 0 | EE3: 3.977272727 | EF3: 51.71420912 | EG3: 0.6134868421 | EH3: 3.453781513 | EI3: 0.3706041479 | EJ3: 6.337142857 | EK3: 18.89267462 | EL3: 1.809210526 | EM3: 0.6134868421 | EN3: 0.1577998197 | EO3: 0.03967538323 | EP3: 0
A4: NWA 00773 | B4: 0 | D4: 773 | H4: C | I4: 349 | J4: NWA 02727, no Heitz | K4: D349 | L4: 0.2090965786 | M4: 0.1357011305 | N4: 10.11770607 | O4: 34.7811522 | P4: 3450.050161 | Q4: 19.70752901 | R4: 66.40401288 | S4: 119.4841282 | T4: 5.188477952 | U4: 0.2087557086 | V4: 0.39607322 | W4: 0.1437111627 | X4: 0.6401512316 | Y4: 59.16388411 | Z4: 174.3568915 | AA4: 0.07742007936 | AB4: 0.008074043573 | AC4: 0.09073706671 | AD4: 157.9248709 | AE4: 10.70281351 | AF4: 28.29748821 | AG4: 17.3859699 | AH4: 5.214860373 | AI4: 0.5101697237 | AJ4: 1.076955566 | AK4: 3.83110167 | AL4: 0.5335513588 | AM4: 4.24436363 | AN4: 0.5199127798 | AO4: 0.5035299843 | AP4: 0.7010930598 | AQ4: 0.3550198398 | AR4: 1.699929251 | AS4: 0.4328456989 | AT4: 267.14 | AV4: 1 | AW4: 1 | AY4: 99.19309575 | AZ4: 0.6131214295 | BA4: 3.067692594 | BB4: 3.891377446 | BC4: 0.2569784129 | BD4: 3.040728299 | BE4: 0.3288685807 | BF4: 297.4744107 | BH4: 4.404299837 | BI4: 1.028730666 | BJ4: 1.08186397 | BK4: 1.28633728 | BL4: 2.793664703 | BM4: 7.386253524 | BO4: 0.6193554231 | BP4: 1.228655419 | BQ4: 0.968250798 | BR4: 0.9241970354 | BS4: 10.22181468 | BY4: =11+4 -> 15 | CB4: 1 | CC4: 1 | CR4: 1 | CT4: 1 | CU4: 1 | CW4: 1 | DJ4: 0 | DK4: 22.78890342 | DL4: 1 | DO4: 7.914073807 | DP4: 0.06870062893 | DQ4: =10*DP4 -> 0.6870062893 | DR4: 773ss | DW4: 2.052368183 | DX4: 1.361190807 | DY4: 10.22181468 | DZ4: 0.03361633687 | EA4: 0.1499335141 | EB4: 4404.299837 | ED4: 0 | EE4: 3.927333123 | EF4: 44.60138374 | EG4: 0.5237808786 | EH4: 3.55734423 | EI4: 0.3579527633 | EJ4: 6.296034675 | EK4: 20.05957501 | EL4: 1.799351018 | EM4: 0.5237808786 | EN4: 0.1588301291 | EO4: 0.04044223499 | EP4: 0.1212979873 | EQ4: 170.4254899 | ER4: 1.826038699
A5: NWA 00773 | B5: 0 | D5: 773 | H5: C | I5: 352 | J5: NWA 02977 | K5: D352 | L5: 0.1127080881 | M5: 0.08039490356 | N5: 9.128459806 | O5: 25.69728988 | P5: 3559.895115 | Q5: 18.64419471 | R5: 81.4392299 | S5: 185.2463748 | T5: 5.254955653 | U5: 0.5518013515 | V5: 0 | W5: 0.4352879065 | X5: 0 | Y5: 44.1269182 | Z5: 98.27762917 | AA5: 0 | AB5: 0.0150429396 | AC5: 0.07605941152 | AD5: 81.86646487 | AE5: 6.282791778 | AF5: 16.15197804 | AG5: 10.26741518 | AH5: 3.146303675 | AI5: 0.2342930452 | AJ5: 0.6761450092 | AK5: 2.452021681 | AL5: 0.3441876672 | AM5: 2.391125581 | AN5: 0.2322539772 | AO5: 0.08374630438 | AP5: 0.4369702942 | AQ5: 0.1939814163 | AR5: 0.864443193 | AS5: 0.2802358159 | AT5: 142.06 | AV5: 1 | AW5: 1 | AY5: 138.5319281 | AZ5: 0.7274427776 | BA5: 3.639688183 | BB5: 5.112303102 | BC5: 0.1956065554 | BD5: 3.568954875 | BE5: 0.2801940722 | BF5: 265.7662427 | BH5: 5.639556784 | BI5: 1.000287416 | BJ5: 1.046200993 | BK5: 1.251559821 | BL5: 2.562290467 | BM5: 6.587208491 | BO5: 0.6622181298 | BP5: 1.315825359 | BQ5: 1.307715133 | BR5: 1.176655943 | BS5: 13.42892475 | BY5: 6 | CB5: 1 | CC5: 1 | CR5: 1 | CT5: 1 | CU5: 1 | CW5: 1 | DJ5: 0 | DK5: 10 | DL5: 0 | DO5: 8.271419067 | DP5: 0.03833899371 | DQ5: 0.3833899371 | DW5: 1.996880285 | DX5: 1.28314676 | DY5: 13.42892475 | DZ5: 0.03762705113 | EA5: 0.1224371788 | EB5: 5639.556784 | ED5: 0 | EE5: 3.084699186 | EF5: 32.53966896 | EG5: 0.3155394508 | EH5: 3.626473091 | EI5: 0.3902758149 | EJ5: 7.268021576 | EK5: 18.25397124 | EL5: 2.274657742 | EM5: 0.3155394508 | EN5: 0.1375890247 | EO5: 0.04460370895 | EP5: 0.04876299166 | EQ5: 423.9335653 | ER5: 1.600815325
A6: NWA 00773 | B6: 0 | D6: 773 | H6: C | I6: 349 | J6: NWA 03160 | K6: D352 | L6: 0.1532716899 | M6: 0.07519054541 | N6: 11.4413354 | O6: 40.23481641 | P6: 3563.778993 | Q6: 20.85559312 | R6: 64.35368135 | S6: 114.5686659 | T6: 5.318277191 | U6: 0.2684162295 | V6: 0.1445395943 | W6: 0.1318586867 | X6: 0.905738482 | Y6: 57.83015231 | Z6: 187.0318524 | AA6: 0 | AB6: 0.0147135183 | AC6: 0.09212570309 | AD6: 162.8884535 | AE6: 14.75438539 | AF6: 38.847333 | AG6: 23.96913354 | AH6: 6.860981483 | AI6: 0.6108172913 | AJ6: 1.345939455 | AK6: 4.139972824 | AL6: 0.5586405233 | AM6: 4.924453327 | AN6: 0.6244346837 | AO6: 0.4937717247 | AP6: 0.1977343108 | AQ6: 0.5187259053 | AR6: 2.175934715 | AS6: 0.6001203944 | AT6: 316.46 | AV6: 1 | AW6: 1 | AY6: 88.57450613 | AZ6: 0.6301951316 | BA6: 3.153119179 | BB6: 4.276123884 | BC6: 0.2338566485 | BD6: 1.861641253 | BE6: 0.5371604213 | BF6: 165.7376092 | BH6: 4.029110602 | BI6: 1.024452536 | BJ6: 1.087473628 | BK6: 1.347827953 | BL6: 3.563884599 | BM6: 9.383475362 | BO6: 0.4928929289 | BP6: 1.393247337 | BQ6: 1.06065685 | BR6: 1.001047848 | BS6: 11.23246113 | BY6: 16 | CB6: 1 | CC6: 1 | CR6: 1 | CT6: 1 | CU6: 1 | CW6: 1 | DJ6: 0 | DK6: 10 | DL6: 0 | DO6: 8.081635164 | DP6: 0.08653998952 | DQ6: 0.8653998952 | DR6: 773ss | DW6: 2.150477366 | DX6: 1.657252782 | DY6: 11.23246113 | DZ6: 0.06033633554 | EA6: 0.1705234942 | EB6: 4029.110602 | ED6: 0 | EE6: 3.62583031 | EF6: 28.26215624 | EG6: 0.6252139048 | EH6: 3.075898257 | EI6: 0.2805926994 | EJ6: 6.780711427 | EK6: 26.41123365 | EL6: 1.780297 | EM6: 0.6252139048 | EN6: 0.1474771506 | EO6: 0.04067403545 | EP6: 0.03567831409 | EQ6: 579.4071115 | ER6: 9.459951815
A7: NWA 00773 | B7: 0 | D7: 773 | H7: C | I7: 374 | J7: NWA 03170 | K7: D374 | L7: 0.2597477802 | M7: 0.05489080874 | N7: 11.52913367 | O7: 39.64562035 | P7: 2817.715383 | Q7: 20.6924934 | R7: 55.85653948 | S7: 107.5905928 | T7: 3.679865611 | U7: 0.1068394528 | V7: 0.2320134389 | W7: 0.3417326614 | X7: 9.348932085 | Y7: 52.87736981 | Z7: 420.6071514 | AA7: 0 | AB7: 0.02079193665 | AC7: 0.1535229182 | AD7: 243.8368131 | AE7: 24.28916727 | AF7: 64.80095992 | AG7: 34.6112311 | AH7: 11.19261819 | AI7: 0.7558963283 | AJ7: 2.269301656 | AK7: 8.139983201 | AL7: 1.151913847 | AM7: 10.18475162 | AN7: 0.9627981761 | AO7: 0 | AP7: 1.385937125 | AQ7: 0 | AR7: 4.291509479 | AS7: 1.149882409 | AT7: 41.67 | AV7: 1 | AW7: 1 | AY7: 71.07255121 | AZ7: 0.5212622456 | BA7: 2.608084229 | BB7: 5.636958112 | BC7: 0.1774006441 | BD7: 2.549382381 | BE7: 0.3922518675 | BF7: 172.1731903 | BH7: 4.057011841 | BI7: 1.038055492 | BJ7: 1.103917643 | BK7: 1.360130313 | BL7: 2.983933341 | BM7: 7.960822316 | BO7: 0.6230095571 | BP7: 1.098958385 | BQ7: 1.122204748 | BR7: 0.9725359536 | BS7: 14.80708104 | BY7: 3 | CB7: 1 | CC7: 1 | CR7: 1 | CT7: 1 | CU7: 1 | CW7: 1 | DJ7: 0 | DK7: 10 | DL7: 0 | DO7: 7.238190759 | DP7: 0.1634648498 | DQ7: 1.634648498 | DR7: 773ss | DW7: 2.170105944 | DX7: 1.375017357 | DY7: 14.80708104 | DZ7: 0.05808105191 | EA7: 0.2823166365 | EB7: 4057.011841 | ED7: 0 | EE7: 3.732128993 | EF7: 48.60735597 | EG7: 0.7097758064 | EH7: 3.58699919 | EI7: 0.3351281298 | EJ7: 5.659819088 | EK7: 21.08592351 | EL7: 1.926195102 | EM7: 0.7097758064 | EN7: 0.1766840926 | EO7: 0.04734136814 | EP7: 0.2662915428 | EQ7: 77.63021194 | ER7: 0
A8: NWA 00773 | B8: 0 | D8: 773 | H8: C | I8: 352 | J8: NWA 03333 w/sawdust | K8: D353 | L8: 0.1542339539 | M8: 0.06179001044 | N8: 8.900689584 | O8: 32.65693606 | P8: 3601.289163 | Q8: 20.90513663 | R8: 78.1479629 | S8: 153.9342243 | T8: 5.966051231 | U8: 0.1274789959 | V8: 0.1276826201 | W8: 0.1478243014 | X8: 0.4977669787 | Y8: 59.27927311 | Z8: 137.9163943 | AA8: 0 | AB8: 0.1034085659 | AC8: 0.08897931247 | AD8: 132.5296282 | AE8: 10.20521124 | AF8: 24.62982324 | AG8: 14.65783269 | AH8: 4.481702914 | AI8: 0.4094668811 | AJ8: 0.9204900327 | AK8: 3.186570216 | AL8: 0.4453754043 | AM8: 3.610642528 | AN8: 0.4205910234 | AO8: 0.2134699954 | AP8: 0.2916462757 | AQ8: 20.72129327 | AR8: 1.434017898 | AS8: 0.3745144676 | AT8: 584.41 | AV8: 1 | AW8: 1 | AY8: 110.2763945 | AZ8: 0.6246304477 | BA8: 3.125276832 | BB8: 4.16677105 | BC8: 0.2399939877 | BD8: 2.794515886 | BE8: 0.3578437343 | BF8: 255.3185086 | BH8: 4.975838112 | BI8: 0.9390550513 | BJ8: 1.00829301 | BK8: 1.427179232 | BL8: 3.202569078 | BM8: 7.72925797 | BO8: 0.6015747016 | BP8: 1.241248027 | BQ8: 1.028628935 | BR8: 0.9479301547 | BS8: 10.94521467 | BY8: 15 | CB8: 1 | CC8: 1 | CR8: 1 | CT8: 1 | CU8: 0 | CW8: 1 | DJ8: 0 | DK8: 15.94254445 | DL8: 0 | DO8: 8.370430193 | DP8: 0.05821570929 | DQ8: 0.5821570929 | DR8: 773ss | DW8: 2.277083384 | DX8: 1.406434696 | DY8: 10.94521467 | DZ8: 0.0391667649 | EA8: 0.1372358664 | EB8: 4975.838112 | ED8: 0 | EE8: 3.829005346 | EF8: 35.03885674 | EG8: 0.4178859543 | EH8: 3.46181936 | EI8: 0.3122493147 | EJ8: 7.116515945 | EK8: 22.91372883 | EL8: 1.969779103 | EM8: 0.4178859543 | EN8: 0.1405181985 | EO8: 0.03669835526 | EP8: 0.03916601566 | EQ8: 527.8113834 | ER8: 256.208447
A9: NWA 00773 | B9: 0 | D9: 773 | E9: #104A | H9: C | I9: 374 | J9: NWA 06950 | K9: D374 | L9: 0.133181436 | M9: 0.06734558275 | N9: 7.660526137 | O9: 24.65915655 | P9: 3065.870907 | Q9: 19.44655773 | R9: 84.67328632 | S9: 191.2617805 | T9: 0 | U9: 0.359102312 | V9: 0 | W9: 0.3748999932 | X9: 6.166587565 | Y9: 90.98555834 | Z9: 91.54993559 | AA9: 0 | AB9: 0.02778764662 | AC9: 0.02309241304 | AD9: 141.8149705 | AE9: 6.547983592 | AF9: 18.16006509 | AG9: 11.72787308 | AH9: 3.350866228 | AI9: 0.2697052004 | AJ9: 0.6981328904 | AK9: 2.627340159 | AL9: 0.3744881687 | AM9: 2.516576039 | AN9: 0.2838911113 | AO9: 0.08647365923 | AP9: 0.2144009763 | AQ9: 0 | AR9: 0.9452159468 | AS9: 0.3707939521 | AT9: 147.49 | AV9: 1 | AW9: 1 | AY9: 124.3299178 | AZ9: 0.7085340209 | BA9: 3.545080084 | BB9: 4.729803783 | BC9: 0.2114252611 | BD9: 3.663529931 | BE9: 0.2729607834 | BF9: 294.8709398 | BH9: 6.129897141 | BI9: 1.079099708 | BJ9: 1.123754878 | BK9: 1.224757408 | BL9: 2.492248128 | BM9: 6.911958099 | BO9: 0.6765305459 | BP9: 1.331517974 | BQ9: 1.139412468 | BR9: 1.423848931 | BS9: 12.42418101 | BY9: 6 | CB9: 1 | CC9: 1 | CR9: 1 | CT9: 1 | CU9: 1 | CW9: 1 | DJ9: 0 | DK9: 53.83805493 | DL9: 2 | DO9: 8.076164917 | DP9: 0.04129480084 | DQ9: 0.4129480084 | DR9: 773ss | DW9: 1.954116681 | DX9: 1.275383478 | DY9: 12.42418101 | DZ9: 0.03391314182 | EA9: 0.135887301 | EB9: 6129.897141 | ED9: 0 | EE9: 2.549167648 | EF9: 40.06921615 | EG9: 0.291227111 | EH9: 3.763381148 | EI9: 0.4012441573 | EJ9: 6.927500127 | EK9: 17.48515478 | EL9: 2.258820801 | EM9: 0.291227111 | EN9: 0.1443522168 | EO9: 0.05662719628 | EP9: 0.02317323736 | EQ9: 892.0751376 | ER9: 0
A10: NWA 00773 | B10: 0 | D10: 773 | H10: C | I10: 374 | J10: NWA 07007 | K10: D374 | L10: 0.2458370556 | M10: 0.0834546215 | N10: 11.65343371 | O10: 39.17248013 | P10: 3039.778335 | Q10: 19.19102133 | R10: 58.45823505 | S10: 141.5909661 | T10: 0.3269761606 | U10: 0.0356838143 | V10: 0.4558176495 | W10: 2.00363028 | X10: 9.855207026 | Y10: 74.96863237 | Z10: 203.1208699 | AA10: 0 | AB10: 0.02185027185 | AC10: 0.1590648264 | AD10: 268.0610623 | AE10: 15.44839481 | AF10: 41.62606441 | AG10: 23.54169803 | AH10: 7.400797992 | AI10: 0.5994258469 | AJ10: 1.48223923 | AK10: 4.942306985 | AL10: 0.6949108323 | AM10: 5.23967545 | AN10: 0.631861146 | AO10: 0.1114429109 | AP10: 0.4895190297 | AQ10: 1.207611878 | AR10: 2.403554998 | AS10: 0.6811568381 | AT10: 119.55 | AV10: 1 | AW10: 1 | AY10: 77.59984369 | AZ10: 0.6154023407 | BA10: 3.079104909 | BB10: 4.700222735 | BC10: 0.2127558749 | BD10: 3.042686806 | BE10: 0.3286568956 | BF10: 246.4416834 | BH10: 3.808076698 | BI10: 1.048416261 | BJ10: 1.106304368 | BK10: 1.308291119 | BL10: 3.125745702 | BM10: 8.422395561 | BO10: 0.5684037448 | BP10: 1.412453512 | BQ10: 1.130661413 | BR10: 1.028620957 | BS10: 12.34647793 | BY10: 6 | CB10: 1 | CC10: 1 | CR10: 1 | CT10: 1 | CU10: 1 | CW10: 1 | DJ10: 0 | DK10: 77.62087311 | DL10: 2 | DO10: 7.505735238 | DP10: 0.09254919637 | DQ10: 0.9254919637 | DW10: 2.087395823 | DX10: 1.497437941 | DY10: 12.34647793 | DZ10: 0.0405775511 | EA10: 0.188928502 | EB10: 3808.076698 | ED10: 0 | EE10: 3.528636671 | EF10: 46.55985808 | EG10: 0.6700934454 | EH10: 3.334351758 | EI10: 0.3199236584 | EJ10: 6.427310724 | EK10: 22.23075839 | EL10: 2.422087598 | EM10: 0.6700934454 | EN10: 0.1555860675 | EO10: 0.04409240224 | EP10: 0.07146973634 | EQ10: 289.2450702 | ER10: 8.895918965
A11: NWA 00773 | B11: 0 | D11: 773 | H11: C | I11: 379 | J11: NWA 08127 | K11: D379 | L11: 0.1112178908 | M11: 0 | N11: 6.078718126 | O11: 29.4450388 | P11: 3692.087029 | Q11: 18.24744873 | R11: 78.88787417 | S11: 128.7949002 | T11: 3.747394678 | U11: 0 | V11: 0.07425166297 | W11: 0.02792682927 | X11: 1.747366962 | Y11: 19.04517738 | Z11: 84.49362528 | AA11: 0 | AB11: 0.01398281596 | AC11: 0.06811945676 | AD11: 69.25346452 | AE11: 4.761105876 | AF11: 13.10365854 | AG11: 4.839162971 | AH11: 2.610749169 | AI11: 0.229989745 | AJ11: 0.5747056541 | AK11: 2.251293514 | AL11: 0.325976857 | AM11: 1.873413248 | AN11: 0.1036067073 | AO11: 0 | AP11: 0 | AQ11: 0 | AR11: 0.6411568736 | AS11: 0.2000807927 | AT11: 72.16 | AV11: 1 | AW11: 1 | AY11: 125.3891039 | AZ11: 0.8138333888 | BA11: 4.071935085 | BB11: 4.321475258 | BC11: 0.2314024587 | BD11: 3.587662275 | BE11: 0.2787330365 | BF11: 316.0493324 | BH11: 4.817022653 | BI11: 1.070869341 | BJ11: 1.099879075 | BK11: 1.142989588 | BL11: 2.114831249 | BM11: 5.820502059 | BO11: 0.7558367754 | BP11: 1.393578897 | BQ11: 2.432500556 | BR11: 1.132670027 | BS11: 11.35158947 | BY11: 3 | CB11: 1 | CC11: 1 | CR11: 1 | CT11: 1 | CU11: 1 | CW11: 1 | DJ11: 0 | DK11: 10 | DL11: 0 | DO11: 8.423223765 | DP11: 0.03090746331 | DQ11: 0.3090746331 | DW11: 1.823655039 | DX11: 1.159666277 | DY11: 11.35158947 | DZ11: 0.03164063004 | EA11: 0.08866516312 | EB11: 4817.022653 | ED11: 0 | EE11: 3.204489871 | EF11: 28.02256561 | EG11: 0.3732517717 | EH11: 3.917298357 | EI11: 0.4728509664 | EJ11: 7.425804934 | EK11: 14.60565612 | EL11: 1.632632411 | EM11: 0.3732517717 | EN11: 0.1346655358 | EO11: 0.04202401667 | EP11: 0
A12: NWA 00773 | B12: 0 | D12: 773 | E12: MCVICH 32 | H12: C | I12: 389 | J12: NWA 10656 gabbro | K12: D389 | L12: 0.1838373835 | M12: 0.02277003336 | N12: 7.636241767 | O12: 34.30928764 | P12: 3185.205692 | Q12: 19.71309429 | R12: 69.13417701 | S12: 126.6668836 | T12: 4.719644292 | U12: 0.1118666212 | V12: 1.395317093 | W12: 0.1611512793 | X12: 4.80774485 | Y12: 56 | Z12: 182.369993 | AA12: 0 | AB12: 0.0864406886 | AC12: 0.08510444375 | AD12: 150.4583232 | AE12: 12.35900636 | AF12: 32.09381509 | AG12: 20.50887914 | AH12: 5.904788743 | AI12: 0.4333732649 | AJ12: 1.19474995 | AK12: 4.023497881 | AL12: 0.5849794115 | AM12: 4.311516711 | AN12: 0.4320128757 | AO12: 0 | AP12: 0.2066510655 | AQ12: 6.567731885 | AR12: 1.875879541 | AS12: 0.5677978776 | AT12: 19.5 | AV12: 1 | AW12: 1 | AY12: 92.83800133 | AZ12: 0.629120845 | BA12: 3.147744092 | BB12: 5.187016181 | BC12: 0.1927890651 | BD12: 3.14714741 | BE12: 0.3177480651 | BF12: 230.9802446 | BH12: 4.466134171 | BI12: 1.010391182 | BJ12: 1.06675651 | BK12: 1.311833673 | BL12: 3.071706939 | BM12: 7.9765955 | BO12: 0.5997118302 | BP12: 1.369538642 | BQ12: 1.319420858 | BR12: 1.098629179 | BS12: 13.62518 | BY12: 1 | CB12: 1 | CC12: 1 | CR12: 1 | CT12: 1 | CU12: 1 | CW12: 1 | DJ12: 0 | DK12: 10 | DL12: 0 | DO12: 7.865573817 | DP12: 0.07420306884 | DQ12: 0.7420306884 | DR12: 773ss | DW12: 2.093048015 | DX12: 1.467575954 | DY12: 13.62518 | DZ12: 0.04329374583 | EA12: 0.1721046734 | EB12: 4466.134171 | ED12: 0 | EE12: 3.303780475 | EF12: 39.75277954 | EG12: 0.496271007 | EH12: 3.367648504 | EI12: 0.3255518902 | EJ12: 6.588379523 | EK12: 21.12725015 | EL12: 1.832189071 | EM12: 0.496271007 | EN12: 0.1517823915 | EO12: 0.04594203297 | EP12: 0.03372583484 | EQ12: 612.9505468 | ER12: 114.6069059
A13: NWA 00773 | B13: 0 | D13: 773 | H13: C | I13: 395 | J13: NWA 10985 sodic gabbro | K13: D395 | L13: 0.3242247322 | M13: 0.1251742552 | N13: 9.441190602 | O13: 48.68618955 | P13: 4204.282848 | Q13: 18.40115696 | R13: 48.84894552 | S13: 32.34240563 | T13: 6.364895755 | U13: 0.3976501212 | V13: 0 | W13: 0.4170149387 | X13: 3.105135602 | Y13: 144.6670852 | Z13: 139.3338752 | AA13: 0.1835959273 | AB13: 0.03074738256 | AC13: 0.1030673825 | AD13: 590.4984766 | AE13: 6.971515548 | AF13: 17.82841526 | AG13: 13.25088668 | AH13: 4.074385729 | AI13: 0.8327162576 | AJ13: 0.9340286744 | AK13: 3.465687895 | AL13: 0.5011170534 | AM13: 2.924285615 | AN13: 0.454241413 | AO13: 0.7704666482 | AP13: 0.5322125789 | AQ13: 18.85850959 | AR13: 1.111156479 | AS13: 0.3164949199 | AT13: 106.7 | AV13: 1 | AW13: 1 | AY13: 86.35473195 | AZ13: 0.7328609427 | BA13: 3.666797438 | BB13: 1.86268944 | BC13: 0.5368581462 | BD13: 2.888646962 | BE13: 0.3461828368 | BF13: 590.3769176 | BH13: 2.937839136 | BI13: 0.9950325722 | BJ13: 1.009044282 | BK13: 1.07241935 | BL13: 2.011582047 | BM13: 5.144264515 | BO13: 0.7445321217 | BP13: 1.393292676 | BQ13: 0.8658667995 | BR13: 1.033841193 | BS13: 4.892886012 | BY13: 4 | CB13: 1 | CC13: 1 | CR13: 1 | CT13: 1 | CU13: 0 | CW13: 1 | DJ13: 0 | DK13: 484.2165177 | DL13: 5 | DO13: 8.171901651 | DP13: 0.04904864174 | DQ13: 0.4904864174 | DR13: 773ss | DW13: 1.711059289 | DX13: 1.175635502 | DY13: 4.892886012 | DZ13: 0.0169383316 | EA13: 0.08368668336 | EB13: 2937.839136 | ED13: 0 | EE13: 3.510819317 | EF13: 49.40668617 | EG13: 0.9966681784 | EH13: 3.710472697 | EI13: 0.4971211598 | EJ13: 6.274107817 | EK13: 13.91195031 | EL13: 0.6620901492 | EM13: 0.9966681784 | EN13: 0.1593852113 | EO13: 0.04539829507 | EP13: 0.340173878 | EQ13: 60.76971292 | ER13: 127.777755
A14: NWA 00773 | B14: 0 | D14: 773 | H14: C | I14: 398 | J14: NWA 11616 brx | K14: D398 | L14: 0.2467562181 | M14: 0.1271476408 | N14: 8.800459174 | O14: 41.49835643 | P14: 3100.864281 | Q14: 19.04136608 | R14: 58.45225297 | S14: 137.9435955 | T14: 2.766396988 | U14: 0.3201901176 | V14: 0.09173094879 | W14: 0.2413716677 | X14: 4.361444601 | Y14: 87.64548638 | Z14: 241.8595162 | AA14: 0 | AB14: 0.01115569923 | AC14: 0.1542323545 | AD14: 171.018654 | AE14: 13.10376504 | AF14: 32.92758874 | AG14: 21.9381652 | AH14: 6.544722023 | AI14: 0.5754392816 | AJ14: 1.323576936 | AK14: 4.636717906 | AL14: 0.6487687962 | AM14: 5.099282285 | AN14: 0.5506872521 | AO14: 0.1119449666 | AP14: 1.312548452 | AQ14: 1.020925681 | AR14: 2.026231269 | AS14: 0.6716554394 | AT14: 99 | AV14: 1 | AW14: 1 | AY14: 74.72258054 | AZ14: 0.6455603522 | BA14: 3.229997544 | BB14: 4.329792207 | BC14: 0.2309579657 | BD14: 3.181368462 | BE14: 0.3143301419 | BF14: 279.719196 | BH14: 3.56661206 | BI14: 0.9777224521 | BJ14: 1.023143344 | BK14: 1.254886581 | BL14: 2.826086319 | BM14: 7.101486311 | BO14: 0.600074466 | BP14: 1.283459447 | BQ14: 1.147260005 | BR14: 1.203150164 | BS14: 11.37343632 | BY14: 3 | CB14: 1 | CC14: 1 | CR14: 1 | CT14: 1 | CU14: 1 | CW14: 1 | DJ14: 0 | DK14: 10 | DL14: 0 | ED14: 0 | ER14: 2.804863981
A15: NWA 00773 | B15: 0 | D15: 773 | H15: C | I15: 398 | J15: NWA 11616 sodic gabbro | K15: D398 | L15: 0.3600933519 | M15: 0.09428176075 | N15: 10.11975138 | O15: 46.12870554 | P15: 3201.520188 | Q15: 18.75923368 | R15: 43.1186849 | S15: 24.25208695 | T15: 0.8301663345 | U15: 0.2667999031 | V15: 0 | W15: 0.2264972016 | X15: 2.993213988 | Y15: 113.515892 | Z15: 221.1763913 | AA15: 0 | AB15: 0.01654180431 | AC15: 0.0782549081 | AD15: 89.84765203 | AE15: 7.802970003 | AF15: 21.2054641 | AG15: 14.70988715 | AH15: 4.921414328 | AI15: 0.9146072594 | AJ15: 1.161887966 | AK15: 4.273855949 | AL15: 0.6083266076 | AM15: 4.099723499 | AN15: 0.624239867 | AO15: 0 | AP15: 0.3422663589 | AQ15: 1.154772514 | AR15: 1.380655768 | AS15: 0.3893452336 | AT15: 65.64200235 | AY15: 69.40407608 | AZ15: 0.71242504 | BA15: 3.564548415 | BB15: 2.048474865 | BC15: 0.4881680597 | BD15: 2.920961484 | BE15: 0.3423530251 | BF15: 542.8383793 | BH15: 3.161058212 | BI15: 1.057400719 | BJ15: 1.056071979 | BK15: 0.9937327233 | BL15: 1.825744736 | BM15: 4.961670294 | BO15: 0.7482612969 | BP15: 1.200425914 | BQ15: 0.7610515934 | BR15: 1.023556363 | BS15: 5.380904511 | BY15: 3 | DJ15: 0 | DK15: 10 | DL15: 0 | ED15: 0 | ER15: 12.16648836
A16: NWA 00773 | B16: 0 | D16: 773 | H16: C | I16: 398 | J16: NWA 11703 | K16: D398 | L16: 0.1322205071 | M16: 0.2276784904 | N16: 5.70514841 | O16: 24.92931202 | P16: 2926.044907 | Q16: 19.46709344 | R16: 85.21010289 | S16: 196.5856176 | T16: 11.42886773 | U16: 0.6560527005 | V16: 0 | W16: 0.06024751694 | X16: 0.3696500454 | Y16: 67.27002798 | Z16: 123.8000807 | AA16: 0 | AB16: 0.1691578488 | AC16: 0.003143548128 | AD16: 92.69782006 | AE16: 8.803106698 | AF16: 23.05141033 | AG16: 14.71638291 | AH16: 4.159459927 | AI16: 0.2904238212 | AJ16: 0.8495221701 | AK16: 2.843198395 | AL16: 0.4168289338 | AM16: 3.044246043 | AN16: 0.3294760694 | AO16: 0 | AP16: 0.1097001314 | AQ16: 4.63915848 | AR16: 1.325722689 | AS16: 0.5717022306 | AT16: 29.18 | AV16: 1 | AW16: 1 | AY16: 117.3736726 | AZ16: 0.6270741718 | BA16: 3.137503764 | BB16: 5.452304014 | BC16: 0.1834087016 | BD16: 3.377629074 | BE16: 0.2960656656 | BF16: 235.8344495 | BH16: 6.069871368 | BI16: 1.018857138 | BJ16: 1.078085024 | BK16: 1.32647358 | BL16: 3.096198532 | BM16: 8.107563077 | BO16: 0.6066347884 | BP16: 1.366335003 | BQ16: 1.218677351 | BR16: 1.565234851 | BS16: 14.32203429 | BY16: 1 | CB16: 1 | CC16: 1 | CR16: 1 | CT16: 1 | CU16: 1 | CW16: 1 | DJ16: 9 | DK16: 10 | DL16: 0 | ED16: 0 | ER16: 152.4983282
A17: NWA 00773 | B17: 0 | D17: 773 | H17: C | I17: 369 | J17: NWA Anoual | K17: D369 | L17: 0.1915513234 | M17: 0.0910079602 | N17: 12.69694527 | O17: 41.76274627 | P17: 3191.312438 | Q17: 20.96387065 | R17: 59.66759204 | S17: 59.50149254 | T17: 0.3204975124 | U17: 0.2185950249 | V17: 0.1340895522 | W17: 0.3078825871 | X17: 0 | Y17: 95.84378109 | Z17: 142.9671642 | AA17: 0.4807462687 | AB17: 0.03368059701 | AC17: 0.05338606965 | AD17: 157.4712438 | AE17: 10.26241692 | AF17: 26.96082587 | AG17: 17.68179104 | AH17: 4.849707463 | AI17: 0.576761194 | AJ17: 0.9940318408 | AK17: 3.24360199 | AL17: 0.4559695522 | AM17: 3.663160199 | AN17: 0.4269422886 | AO17: 0 | AP17: 0.6647761194 | AQ17: 27.19472637 | AR17: 1.576512438 | AS17: 0.3763422886 | AT17: 100.5 | AV17: 1 | AW17: 1 | AY17: 76.41529169 | AZ17: 0.6148268125 | BA17: 3.07622531 | BB17: 3.201067739 | BC17: 0.3123957634 | BD17: 2.463964779 | BE17: 0.4058499571 | BF17: 293.0319569 | BH17: 3.901854669 | BI17: 1.022198629 | BJ17: 1.08158843 | BK17: 1.32627534 | BL17: 3.163895246 | BM17: 8.31200189 | BO17: 0.5691499472 | BP17: 1.323913561 | BQ17: 1.096533844 | BR17: 0.8664588294 | BS17: 8.408519007 | BY17: 3 | CB17: 1 | CC17: 1 | CR17: 1 | CT17: 1 | CU17: 0 | CW17: 1 | DK17: 31.57364498 | DL17: 1 | DO17: 7.722059029 | DP17: 0.06211390636 | DQ17: =10*DP17 -> 0.6211390636 | DR17: 773ss | DW17: =AE17/AH17 -> 2.116089887 | DX17: =AH17/AK17 -> 1.495161083 | DY17: =AH17/AI17 -> 8.408519007 | DZ17: =AH17/(L17*0.7419*1000) -> 0.03412597078 | EA17: =AH17/O17 -> 0.1161252048 | EB17: =Q17*7773/O17 -> 3901.854669 | ED17: 0 | EE17: =AR17/AS17 -> 4.189038771 | EF17: =L17*7419/O17 -> 34.028396 | EG17: =O17/R17 -> 0.6999234399 | EH17: =AK17/AJ17 -> 3.26307655 | EI17: =AK17/AE17 -> 0.3160660902 | EJ17: =AE17/AR17 -> 6.509569268 | EK17: =AE17/AL17 -> 22.50680306 | EL17: =S17/R17 -> 0.9972162526 | EM17: =O17/R17 -> 0.6999234399 | EN17: =AR17/AE17 -> 0.1536199953 | EO17: =AS17/AE17 -> 0.03667189627 | EP17: =(AP17/S17)/(595/12300) -> 0.2309594284 | EQ17: =S17/AP17 -> 89.50606197 | ER17: 147.5170792
A18: NWA 00773 | B18: 0 | D18: 773 | E18: MA180 | F18: 99 | H18: C | I18: 387 | J18: NWA MA180 | K18: D387 | L18: 0.1329424553 | M18: 0.09395832586 | N18: 5.459661563 | O18: 24.10974108 | P18: 2785.939989 | Q18: 18.57529538 | R18: 84.71975815 | S18: 210.2356737 | T18: 0 | U18: 0.1483346609 | V18: 0 | W18: 0.2605413557 | X18: 3.553745605 | Y18: 71.48388767 | Z18: 120.3094144 | AA18: 0 | AB18: 0.01528156273 | AC18: 0.05508111058 | AD18: 63.6923739 | AE18: 8.090817564 | AF18: 20.19565116 | AG18: 13.03478169 | AH18: 3.688617993 | AI18: 0.2566031463 | AJ18: 0.7560220733 | AK18: 2.556615153 | AL18: 0.3685639469 | AM18: 2.609056338 | AN18: 0.2851638579 | AO18: 0.2345447747 | AP18: 0.3025861427 | AQ18: 0.7043841428 | AR18: 1.267680726 | AS18: 0.3985976941 | AT18: 45.2 | AV18: 1 | AY18: 115.552464 | AZ18: 0.5815518622 | BA18: 2.909737378 | BB18: 5.472390215 | BC18: 0.1827355069 | BD18: 3.843678811 | BE18: 0.2601674201 | BF18: 267.3901385 | BH18: 5.988690236 | BI18: 0.9712190865 | BJ18: 1.035053673 | BK18: 1.374764507 | BL18: 3.164659942 | BM18: 7.899370827 | BO18: 0.60486098 | BP18: 1.413774758 | BQ18: 1.248661929 | BR18: 1.141266859 | BS18: 14.37479644 | BY18: 2 | CB18: 1 | CC18: 1 | CR18: 0 | CS18: 1 | CT18: 0 | CV18: 1 | CW18: 0 | DB18: =AP18 -> 0.3025861427 | DK18: 10 | DL18: 0 | DO18: 7.908930864 | DP18: 0.04681044826 | DQ18: 0.4681044826 | DR18: 773ss | DW18: 2.193454995 | DX18: 1.442774048 | DY18: 14.37479644 | DZ18: 0.03739853704 | EA18: 0.1529928497 | EB18: 5988.690236 | ED18: 0 | EE18: 3.18035138 | EF18: 40.90877927 | EG18: 0.2845822699 | EH18: 3.381667339 | EI18: 0.3159897171 | EJ18: 6.382377988 | EK18: 21.95227621 | EL18: 2.481542421 | EM18: 0.2845822699 | EN18: 0.1566814128 | EO18: 0.04926544085 | EP18: 0.02975300052 | EQ18: 694.7961062 | ER18: 8.394475327
A19: Dho 1627 | B19: 2 | D19: A16 like | E19: Smula | F19: 24 | J19: Dho 1627 | L19: 0.5703335705 | M19: 0.1671545108 | N19: 14.3734587 | O19: 9.598587039 | P19: 847.8013723 | Q19: 5.736359848 | R19: 33.34033037 | S19: 525.9316645 | T19: 6.780038119 | U19: 0.5983634053 | V19: 0.2659982211 | W19: 0.1909321474 | X19: 3.594060991 | Y19: 1363.206531 | Z19: 234.453418 | AA19: 0 | AB19: 0.02745029225 | AC19: 0.1867418297 | AD19: 290.9409911 | AE19: 16.85587751 | AF19: 44.31118679 | AG19: 25.41374333 | AH19: 7.748405845 | AI19: 1.293298069 | AJ19: 1.5152923 | AK19: 5.200931131 | AL19: 0.7142899619 | AM19: 5.810997713 | AN19: 0.6772439644 | AO19: 35.7858399 | AP19: 14.16408386 | AQ19: 10.85745108 | AR19: 2.699174079 | AS19: 0.9513867853 | AT19: 393.5 | AV19: 1 | AW19: 1 | AX19: 1 | AY19: 88.32564302 | AZ19: 0.5737413133 | BA19: 2.870658068 | BB19: 2.280809879 | BC19: 0.4384407527 | BD19: 3.2717166 | BE19: 0.3056499454 | BF19: 546.0871364 | BH19: 4.645342581 | BI19: 1.022854292 | BJ19: 1.08828211 | BK19: 1.363448033 | BL19: 3.240934572 | BM19: 8.519856478 | BO19: 0.5580441837 | BP19: 1.333403699 | BQ19: 1.104441936 | BR19: 1.27934752 | BS19: 5.991198806 | BZ19: 13 | CC19: 1 | CG19: 1 | CW19: 1 | DB19: 14.16408386 | DK19: 91.70632323 | DL19: 3 | DO19: 1.610810158 | DP19: 0.1008767941 | DQ19: 1.008767941 | DW19: 2.175399411 | DX19: 1.489811276 | DY19: 5.991198806 | DZ19: 0.01831209588 | EA19: 0.8072444218 | EB19: 4645.342581 | ED19: 197.7143125 | EE19: 2.837094356 | EF19: 440.8257947 | EG19: 0.2878971784 | EH19: 3.432295625 | EI19: 0.3085529738 | EJ19: 6.244827869 | EK19: 23.59808818 | EL19: 15.77463867 | EM19: 0.2878971784 | EN19: 0.1601325162 | EO19: 0.05644243586 | EP19: 0.5567334507 | EQ19: 37.13135771 | ER19: 2.76421878 | ES19: 2013-12-17 | EU19: 45.21006262 | EV19: 0.6078018362 | EW19: 24.25096252 | EX19: 0.1239146486 | EY19: 5.736359848 | EZ19: 0.07463794372 | FA19: 7.887336099 | FB19: 14.13335455 | FC19: 0.5703335705 | FD19: 0.184552552 | FE19: 0.2384937134 | FG19: =SUM(EU19:FE19) -> 99.0178099 | FH19: =EY19+FA19 -> 13.62369595 | FI19: =FA19/EY19 -> 1.374972336 | FJ19: =100*(FA19/40.304)/(FA19/40.304+EY19/71.846) -> 71.02313326 | FK19: =FB19/EW19 -> 0.582795612 | FM19: =FB19/EW19 -> 0.582795612 | FN19: =EW19/FN$1 -> 0.6736378478 | FO19: =EW19+FB19 -> 38.38431707 | FP19: =FO19/(FH19+EV19) -> 2.697138253 | FQ19: 43 | FR19: 71 | FS19: =EW19*0.5293 -> 12.83603446 | FT19: =FB19*0.7147 -> 10.10110849 | FU19: =(FT19/40.078)/(FS19/26.981) -> 0.5297734169 | FV19: =Q19*(AY19*0.01414)-0.1393 -> 7.024980884 | FW19: =FV19-FA19 -> -0.8623552156 | FX19: =Q19+FV19 -> 12.76134073 | FY19: =(FX19-40.455)/-1.0924 -> 25.35120768 | FZ19: =FY19-EW19 -> 1.100245157 | GA19: =100*FY19/36 -> 70.42002133 | GB19: =(FV19/40.302)/(FV19/40.302+Q19/71.846) -> 0.6858463664 | GC19: =GB19-FJ19 -> -70.33728689 | GI19: 7.748405845 | GJ19: 0.1867418297 | GK19: =GI19 -> 7.748405845 | GL19: 0.1867418297 | GN19: =GL19 -> 0.1867418297
A20: Dho 1627 | B20: 2 | D20: A16 like | E20: Smula C63 | F20: 70 | J20: Dho 1980 | L20: 0.5605446773 | M20: 0.08913551271 | N20: 14.23837385 | O20: 10.08308522 | P20: 828.5100866 | Q20: 5.799765856 | R20: 33.49770327 | S20: 475.0824253 | T20: 9.4487734 | U20: 0.9108248114 | V20: 0.1788153115 | W20: 0.3768505169 | X20: 3.468354289 | Y20: 780.7417714 | Z20: 231.0743783 | AA20: 0.1934635373 | AB20: 0.03058362671 | AC20: 0.141019335 | AD20: 350.0710254 | AE20: 16.37368092 | AF20: 40.66801341 | AG20: 25.18833194 | AH20: 7.296154233 | AI20: 1.300368371 | AJ20: 1.441390612 | AK20: 4.892260967 | AL20: 0.6660313495 | AM20: 5.568606315 | AN20: 0.6746772842 | AO20: 195.2834367 | AP20: 12.80351495 | AQ20: 13.38770606 | AR20: 2.514072087 | AS20: 0.877927354 | AT20: 178.95 | AV20: 1 | AW20: 1 | AY20: 82.16831144 | AZ20: 0.5800306423 | BA20: 2.902126105 | BB20: 2.136008431 | BC20: 0.468162946 | BD20: 3.198079139 | BE20: 0.3126876967 | BF20: 569.9826001 | BH20: 4.471010511 | BI20: 0.9664032728 | BJ20: 1.034638827 | BK20: 1.406539393 | BL20: 3.346853536 | BM20: 8.312723644 | BO20: 0.5525951447 | BP20: 1.310229853 | BQ20: 1.043935315 | BR20: 1.267485985 | BS20: 5.610836433 | BZ20: 5 | CC20: 1 | CW20: 1 | DB20: 12.80351495 | DK20: 162.2783233 | DL20: 4 | DO20: 1.618202631 | DP20: 0.09529375262 | DQ20: 0.9529375262 | DW20: 2.244152247 | DX20: 1.491366524 | DY20: 5.610836433 | DZ20: 0.01754439521 | EA20: 0.723603349 | EB20: 4471.010511 | ED20: 0 | EE20: 2.863644783 | EF20: 412.4413183 | EG20: 0.3010082554 | EH20: 3.394125733 | EI20: 0.2987880973 | EJ20: 6.512812819 | EK20: 24.58394928 | EL20: 14.18253728 | EM20: 0.3010082554 | EN20: 0.1535434885 | EO20: 0.05361820341 | EP20: 0.5571195437 | EQ20: 37.10562507 | ER20: 3.770595781 | FH20: =EY20+FA20 -> 0 | FI20: =FA20/EY20 ->  | FJ20: =100*(FA20/40.304)/(FA20/40.304+EY20/71.846) ->  | FK20: =FB20/EW20 ->  | FM20: =FB20/EW20 ->  | FN20: =EW20/FN$1 -> 0 | FO20: =EW20+FB20 -> 0 | FP20: =FO20/(FH20+EV20) ->  | GI20: 7.296154233 | GJ20: 0.141019335 | GK20: 7.296154233 | GL20: 0.141019335 | GN20: =GL20 -> 0.141019335
A21: JaH 838 | B21: 2 | D21: A16 like | J21: JaH 838 | L21: 0.4338327969 | M21: 0.2593663784 | N21: 15.02793887 | O21: 8.98943383 | P21: 726.6878233 | Q21: 4.827497355 | R21: 20.33064792 | S21: 228.682663 | T21: 10.366696 | U21: 0.3071065847 | V21: 0.1854643167 | W21: 0.5018939844 | X21: 3.078424687 | Y21: 566.4038408 | Z21: 137.8899571 | AA21: 0 | AB21: 0.01228050203 | AC21: 0.08787604177 | AD21: 152.3670585 | AE21: 9.806546152 | AF21: 24.47459095 | AG21: 14.93687063 | AH21: 4.433347718 | AI21: 0.9858814628 | AJ21: 0.9040186979 | AK21: 3.476782697 | AL21: 0.4764813224 | AM21: 3.407783122 | AN21: 0.4473955645 | AO21: 0.1869976449 | AP21: 9.407292605 | AQ21: 7.408375395 | AR21: 2.036594107 | AS21: 0.6408529765 | AT21: 126.12 | AV21: 1 | AW21: 1 | AX21: 1 | AY21: 80.83799681 | AZ21: 0.4350728376 | BA21: 2.176844028 | BB21: 1.711915992 | BC21: 0.5841408135 | BD21: 3.264698284 | BE21: 0.3063070192 | BF21: 725.9988896 | BH21: 4.174249196 | BI21: 0.9710713077 | BJ21: 1.036639839 | BK21: 1.386385043 | BL21: 2.820580694 | BM21: 7.03943648 | BO21: 0.6506096269 | BP21: 1.30094773 | BQ21: 0.9565678778 | BR21: 1.142131829 | BS21: 4.496836471 | BZ21: 5 | CC21: 1 | CG21: 1 | CW21: 1 | DB21: 9.407292605 | DK21: 37.0033612 | DL21: 1 | DO21: 1.415301869 | DP21: 0.06433147317 | DQ21: 0.6433147317 | DW21: 2.211995714 | DX21: 1.275129367 | DY21: 4.496836471 | DZ21: 0.01377412575 | EA21: 0.4931731855 | EB21: 4174.249196 | ED21: 0 | EE21: 3.177942806 | EF21: 358.043185 | EG21: 0.4421616992 | EH21: 3.845919011 | EI21: 0.3545369229 | EJ21: 4.81516966 | EK21: 20.58117641 | EL21: 11.24817389 | EM21: 0.4421616992 | EN21: 0.2076770022 | EO21: 0.06534950905 | EP21: 0.8503927663 | EQ21: 24.30908367 | ER21: 2.839823506 | GI21: 4.433347718 | GJ21: 0.08787604177 | GK21: 4.433347718 | GL21: 0.08787604177 | GN21: =GL21 -> 0.08787604177
A22: MIL 090036 | B22: 1 | D22: A16 like | J22: MIL 090036 | L22: 0.6183351135 | M22: 0.0883144532 | N22: 15.53015608 | O22: 9.766781925 | P22: 657.7064768 | Q22: 5.011338512 | R22: 17.77775021 | S22: 217.5894919 | U22: 0.1111213004 | V22: 0.1359057072 | W22: 0.07867641241 | X22: 2.050204984 | Y22: 198.0005394 | Z22: 153.0150861 | AA22: 0 | AB22: 0.003508900637 | AC22: 0.1000037221 | AD22: 130.7632071 | AE22: 11.11446794 | AF22: 28.98511526 | AG22: 17.16257058 | AH22: 5.043246305 | AI22: 1.376637519 | AJ22: 0.9764356996 | AK22: 3.248000144 | AL22: 0.4490734707 | AM22: 3.857816197 | AN22: 0.4446624231 | AO22: 0.1663915561 | AP22: 8.665379221 | AQ22: 1.785766174 | AR22: 1.649327148 | AS22: 0.4612650771 | AT22: 556.14 | AV22: 1 | AW22: 1 | AX22: 1 | AY22: 67.34116537 | AZ22: 0.6111362278 | BA22: 3.057759833 | BB22: 1.394652249 | BC22: 0.7170246208 | BD22: 3.332342859 | BE22: 0.3000891692 | BF22: 909.6181169 | BH22: 3.988328454 | BI22: 1.014701053 | BJ22: 1.082414814 | BK22: 1.381268417 | BL22: 3.421941948 | BM22: 8.923988293 | BO22: 0.5390308477 | BP22: 1.30728009 | BQ22: 1.094852011 | BR22: 1.015093575 | BS22: 3.663452604 | CC22: 1 | CG22: 1 | CW22: 1 | DB22: 8.665379221 | DK22: 10 | DL22: 0 | DO22: 1.056836235 | DP22: 0.06613011006 | DQ22: 0.6613011006 | DW22: 2.203832069 | DX22: 1.552723547 | DY22: 3.663452604 | DZ22: 0.01099362448 | EA22: 0.516367248 | EB22: 3988.328454 | ED22: 169.444041 | EE22: 3.575660135 | EF22: 469.6970038 | EG22: 0.5493823353 | EH22: 3.326384057 | EI22: 0.2922317255 | EJ22: 6.738789181 | EK22: 24.74977629 | EL22: 12.2394279 | EM22: 0.5493823353 | EN22: 0.1483946111 | EO22: 0.04150131879 | EP22: 0.8232614908 | EQ22: 25.11020999 | ER22: 0.7431389772 | ES22: 2011-02-28 | ET22: WU | EU22: 45.42867352 | EV22: 0.5650362923 | EW22: 27.09125041 | EX22: 0.09613037865 | EY22: 5.011338512 | EZ22: 0.06520111068 | FA22: 5.182426138 | FB22: 15.42960069 | FC22: 0.6183351135 | FD22: 0.1029451914 | FE22: 0.1020446358 | FG22: =SUM(EU22:FE22) -> 99.692982 | FH22: =EY22+FA22 -> 10.19376465 | FI22: =FA22/EY22 -> 1.034140106 | FJ22: =100*(FA22/40.304)/(FA22/40.304+EY22/71.846) -> 64.83158401 | FK22: =FB22/EW22 -> 0.5695418432 | FM22: =FB22/EW22 -> 0.5695418432 | FN22: =EW22/FN$1 -> 0.7525347337 | FO22: =EW22+FB22 -> 42.52085111 | FP22: =FO22/(FH22+EV22) -> 3.95219238 | FQ22: 69 | FR22: 54 | FS22: =EW22*0.5293 -> 14.33939884 | FT22: =FB22*0.7147 -> 11.02753562 | FU22: =(FT22/40.078)/(FS22/26.981) -> 0.5177254634 | FV22: =Q22*(AY22*0.01414)-0.1393 -> 4.632516969 | FW22: =FV22-FA22 -> -0.5499091694 | FX22: =Q22+FV22 -> 9.643855481 | FY22: =(FX22-40.455)/-1.0924 -> 28.20500231 | FZ22: =FY22-EW22 -> 1.113751894 | GA22: =100*FY22/36 -> 78.34722863 | GB22: =(FV22/40.302)/(FV22/40.302+Q22/71.846) -> 0.6223467904 | GC22: =GB22-FJ22 -> -64.20923722 | GI22: 5.043246305 | GJ22: 0.1000037221 | GK22: 5.043246305 | GL22: 0.1000037221 | GM22: =GL22 -> 0.1000037221
A23: NWA 04936 | B23: 0 | D23: A16 like | H23: O | I23: 362 | J23: NWA 04936 | K23: D363 | L23: 0.511917194 | M23: 0.1254048445 | N23: 14.39068517 | O23: 8.893587467 | P23: 776.9286929 | Q23: 5.938397972 | R23: 42.50129618 | S23: 602.1631626 | T23: 5.3460264 | U23: 0.2169425733 | V23: 0.2335776009 | W23: 0.1629716949 | X23: 1.129315507 | Y23: 197.7743757 | Z23: 179.6727223 | AA23: 0.03732734572 | AB23: 0.006911376471 | AC23: 0.1262364428 | AD23: 171.7604613 | AE23: 13.25964074 | AF23: 34.95285773 | AG23: 20.48959992 | AH23: 6.139928557 | AI23: 1.394140437 | AJ23: 1.174270123 | AK23: 3.958843982 | AL23: 0.5474498197 | AM23: 4.709361094 | AN23: 0.5894141662 | AO23: 0.1964176363 | AP23: 19.11586718 | AQ23: 12.1480132 | AR23: 1.944608423 | AS23: 0.4797955365 | AT23: 293.94 | AV23: 1 | AW23: 1 | AX23: 1 | AY23: 87.35830123 | AZ23: 0.6310529668 | BA23: 3.157411272 | BB23: 1.67661037 | BC23: 0.5964414975 | BD23: 2.724197335 | BE23: 0.3670806029 | BF23: 618.5599111 | BH23: 5.190162869 | BI23: 1.025658276 | BJ23: 1.089673258 | BK23: 1.353530426 | BL23: 3.349371888 | BM23: 8.829056635 | BO23: 0.539743472 | BP23: 1.303771028 | BQ23: 1.005584151 | BR23: 0.8955428118 | BS23: 4.404096169 | BY23: 10 | CB23: 1 | CC23: 1 | CF23: 1 | CG23: 1 | CQ23: sparse | CR23: 1 | CT23: 1 | CU23: 1 | CW23: 1 | CZ23: 1 | DB23: 19.11586718 | DC23: =S23 -> 602.1631626 | DD23: =DB23 -> 19.11586718 | DE23: =LOG(S23) -> 2.779714184 | DF23: =LOG(DB23) -> 1.281394004 | DG23: =DE23-DE$411 -> 1.388393022 | DH23: =DF23-DF$411 -> 1.804821621 | DI23: =AVERAGE(DG23:DH23) -> 1.596607322 | DJ23: =IF(DH23<DI$416,0,IF(DI23<DI$417,1,IF(DI23<DI$418,2,IF(DI23<DI$419,3,IF(DI23<DI$420,4,IF(DI23<DI$421,5,IF(DI23<DI$422,6,IF(DI23<DI$423,7,IF(#REF!<DI140,8,9))))))))) ->  | DK23: 13.22026883 | DL23: 0 | DO23: =AVERAGE(DO24:DO382) -> 2.354010696 | DP23: =AVERAGE(DP24:DP382) -> 0.04284852947 | DQ23: 0.4284852947 | DR23: 4936m | DS23: 4936ss | DT23: 7022bal | DW23: 2.159575738 | DX23: 1.550939766 | DY23: 4.404096169 | DZ23: 0.01616658277 | EA23: 0.6903770362 | EB23: 5190.162869 | EC23: =(FD23*8301)/AC23 -> 9250.097725 | ED23: 190.1812736 | EE23: 4.052993985 | EF23: 427.0395581 | EG23: 0.2092544996 | EH23: 3.371323091 | EI23: 0.2985634421 | EJ23: 6.818668778 | EK23: 24.22074182 | EL23: 14.1681129 | EM23: 0.2092544996 | EN23: 0.1466561924 | EO23: 0.03618465581 | EP23: 0.6562479597 | EQ23: 31.50069818 | ER23: 2.291628804 | ET23: WU | EU23: 44.60153463 | EV23: 0.7485068095 | EW23: 25.08946137 | EX23: 0.1135558978 | EY23: 5.938397972 | EZ23: 0.07945622728 | FA23: 8.004924263 | FB23: 14.34636027 | FC23: 0.511917194 | FD23: 0.1406697305 | FE23: 0.1630675928 | FG23: =SUM(EU23:FE23) -> 99.73785195 | FH23: 13.94332224 | FI23: =FA23/EY23 -> 1.347993904 | FJ23: =100*(FA23/40.304)/(FA23/40.304+EY23/71.846) -> 70.61361933 | FK23: =FB23/EW23 -> 0.5718082209 | FM23: =FB23/EW23 -> 0.5718082209 | FN23: =EW23/FN$1 -> 0.6969294824 | FO23: =EW23+FB23 -> 39.43582164 | FP23: =FO23/(FH23+EV23) -> 2.684200961 | FQ23: 105 | FR23: 60 | FS23: =EW23*0.5293 -> 13.2798519 | FT23: =FB23*0.7147 -> 10.25334368 | FU23: =(FT23/40.078)/(FS23/26.981) -> 0.5197856482 | FV23: =Q23*(AY23*0.01414)-0.1393 -> 7.196084595 | FW23: =FV23-FA23 -> -0.8088396688 | FX23: =Q23+FV23 -> 13.13448257 | FY23: =(FX23-40.455)/-1.0924 -> 25.00962782 | FZ23: =FY23-EW23 -> -0.0798335456 | GA23: =100*FY23/36 -> 69.4711884 | GB23: =(FV23/40.302)/(FV23/40.302+Q23/71.846) -> 0.6835688111 | GC23: =GB23-FJ23 -> -69.93005052 | GE23: =FN23 -> 0.6969294824 | GF23: =FJ23 -> 70.61361933 | GG23: =AR23 -> 1.944608423 | GI23: 6.139928557 | GJ23: 0.1262364428 | GK23: 6.139928557 | GL23: 0.1262364428 | GO23: =GL23 -> 0.1262364428
A24: NWA 04936 | B24: 0 | D24: A16 like | H24: O | I24: 365 | J24: NWA 05406 | K24: D365 | L24: 0.5457311405 | M24: 0.1216810732 | N24: 14.42535249 | O24: 9.076489111 | P24: 768.015211 | Q24: 5.815181298 | R24: 34.57146385 | S24: 521.0909856 | T24: 0 | U24: 0.1125426583 | V24: 0.09011169735 | W24: 0.01204872025 | X24: 0 | Y24: 197.9682869 | Z24: 198.3028177 | AA24: 0 | AB24: 0.007217388864 | AC24: 0.1306270768 | AD24: 158.9594746 | AE24: 13.65218231 | AF24: 35.73448024 | AG24: 21.47781769 | AH24: 6.344857432 | AI24: 1.442095757 | AJ24: 1.252712618 | AK24: 4.151962281 | AL24: 0.5728716884 | AM24: 4.920080265 | AN24: 0.6219365177 | AO24: 0.1021643467 | AP24: 12.43243714 | AQ24: 11.77580826 | AR24: 1.969299506 | AS24: 0.515513022 | AT24: 178.16 | AV24: 1 | AW24: 1 | AY24: 84.61589075 | AZ24: 0.6439390369 | BA24: 3.221885453 | BB24: 1.674954922 | BC24: 0.5970309929 | BD24: 2.80756622 | BE24: 0.3561803789 | BF24: 638.1198278 | BH24: 4.980053815 | BI24: 1.018443984 | BJ24: 1.081217599 | BK24: 1.348589563 | BL24: 3.288127729 | BM24: 8.606648573 | BO24: 0.5465650922 | BP24: 1.289584131 | BQ24: 0.9848078051 | BR24: 0.9501456398 | BS24: 4.399747661 | BY24: 6 | CB24: 1 | CC24: 1 | CR24: 1 | CT24: 1 | CU24: 1 | CW24: 1 | DB24: 12.43243714 | DC24: 521.0909856 | DD24: 12.43243714 | DE24: 2.71691356 | DF24: 1.094556272 | DG24: 1.325592399 | DH24: 1.617983889 | DI24: 1.471788144 | DJ24: =IF(DH24<DI$416,0,IF(DI24<DI$417,1,IF(DI24<DI$418,2,IF(DI24<DI$419,3,IF(DI24<DI$420,4,IF(DI24<DI$421,5,IF(DI24<DI$422,6,IF(DI24<DI$423,7,IF(#REF!<DI141,8,9))))))))) ->  | DK24: 10 | DL24: 0 | DO24: 1.23566651 | DP24: 0.08118406709 | DQ24: 0.8118406709 | DR24: 4936m | DS24: 4936ss | EC24: =(FD24*8301)/AC24 -> 7591.422495 | ED24: 156.2911917 | ER24: 3.4156037 | EU24: 44.90883558 | EV24: 0.7165586101 | EW24: 25.4454011 | EX24: 0.1122531032 | EY24: 5.815181298 | EZ24: 0.07091809025 | FA24: 7.723089428 | FB24: 14.4920281 | FC24: 0.5457311405 | FD24: 0.119460948 | FE24: 0.1333633197 | FH24: 13.53827073
A25: NWA 04936 | B25: 0 | D25: A16 like | F25: 25 | H25: O | I25: 371 | J25: NWA 06221 | K25: D371 | L25: 0.5191797001 | M25: 0.1606203668 | N25: 14.63253999 | O25: 9.744605094 | P25: 776.3874366 | Q25: 6.612556156 | R25: 81.79039073 | S25: 1189.871412 | T25: 8.624274009 | U25: 0.4085898222 | V25: 0.1014430634 | W25: 0.3713806365 | X25: 0 | Y25: 208.8985564 | Z25: 162.7436598 | AA25: 0.09818850677 | AB25: 0.01905891533 | AC25: 0.1267460008 | AD25: 204.4927262 | AE25: 12.17854523 | AF25: 32.29935344 | AG25: 19.01333259 | AH25: 5.684821916 | AI25: 1.346787804 | AJ25: 1.08275347 | AK25: 3.643845939 | AL25: 0.5052506549 | AM25: 4.223531576 | AN25: 0.5365354774 | AO25: 0.2472994816 | AP25: 40.45518644 | AQ25: 24.08872415 | AR25: 1.691229028 | AS25: 0.4903656429 | AT25: 179.41 | AV25: 1 | AW25: 1 | AY25: 79.67356594 | AZ25: 0.6718140741 | BA25: 3.361355452 | BB25: 1.606915514 | BC25: 0.622310253 | BD25: 2.859985948 | BE25: 0.3496520676 | BF25: 677.5575826 | BH25: 5.274651821 | BI25: 1.031929843 | BJ25: 1.09457569 | BK25: 1.342697351 | BL25: 3.342222869 | BM25: 8.864083162 | BO25: 0.5380175219 | BP25: 1.345987786 | BQ25: 1.022807943 | BR25: 1.052397775 | BS25: 4.221022716 | BY25: 6 | CB25: 1 | CC25: 1 | CQ25: rare | CR25: 1 | CT25: 1 | CU25: 0 | CW25: 1 | DB25: 40.45518644 | DC25: 1189.871412 | DD25: 40.45518644 | DE25: 3.07550003 | DF25: 1.606974207 | DG25: 1.684178869 | DH25: 2.130401824 | DI25: 1.907290346 | DJ25: =IF(DH25<DI$416,0,IF(DI25<DI$417,1,IF(DI25<DI$418,2,IF(DI25<DI$419,3,IF(DI25<DI$420,4,IF(DI25<DI$421,5,IF(DI25<DI$422,6,IF(DI25<DI$423,7,IF(#REF!<DI147,8,9))))))))) ->  | DK25: 57.46673168 | DL25: 2 | DO25: 1.263468026 | DP25: 0.07058099231 | DQ25: 0.7058099231 | DR25: 4936m | DS25: 4936ss | DW25: =AE25/AH25 -> 2.142291423 | DX25: =AH25/AK25 -> 1.560115881 | DY25: =AH25/AI25 -> 4.221022716 | DZ25: =AH25/(L25*0.7419*1000) -> 0.0147588932 | EA25: =AH25/O25 -> 0.5833814568 | EB25: =Q25*7773/O25 -> 5274.651821 | ED25: 0 | EE25: =AR25/AS25 -> 3.448914199 | EF25: =L25*7419/O25 -> 395.2745296 | EG25: =O25/R25 -> 0.1191411975 | EH25: =AK25/AJ25 -> 3.365351432 | EI25: =AK25/AE25 -> 0.2992020697 | EJ25: =AE25/AR25 -> 7.201002955 | EK25: =AE25/AL25 -> 24.10396723 | EL25: =S25/R25 -> 14.54781425 | EM25: =O25/R25 -> 0.1191411975 | EN25: =AR25/AE25 -> 0.1388695445 | EO25: =AS25/AE25 -> 0.04026471419 | EP25: =(AP25/S25)/(595/12300) -> 0.7028494714 | EQ25: =S25/AP25 -> 29.41208573 | ER25: 2.147200566 | FG25: =SUM(EU25:FE25) -> 0 | FH25: 0 | FI25: =FA25/EY25 ->  | FJ25: =100*(FA25/40.304)/(FA25/40.304+EY25/71.846) ->  | FK25: =FB25/EW25 ->  | FM25: =FB25/EW25 ->  | FN25: =EW25/FN$1 -> 0 | FO25: =EW25+FB25 -> 0 | FP25: =FO25/(FH25+EV25) ->  | FQ25: 113 | FR25: 67 | FV25: =Q25*(AY25*0.01414)-0.1393 -> 7.310301436 | FW25: =FV25-FA25 -> 7.310301436 | FX25: =Q25+FV25 -> 13.92285759 | FY25: =(FX25-40.455)/-1.0924 -> 24.28793703 | FZ25: =FY25-EW25 -> 24.28793703 | GA25: =100*FY25/36 -> 67.46649174 | GB25: =(FV25/40.302)/(FV25/40.302+Q25/71.846) -> 0.6633900002 | GC25: =GB25-FJ25 ->  | GE25: =FN25 -> 0 | GF25: =FJ25 ->  | GG25: =AR25 -> 1.691229028 | GI25: 5.684821916 | GJ25: 0.1267460008 | GK25: =GI25 -> 5.684821916 | GL25: 0.1267460008 | GO25: =GL25 -> 0.1267460008
A26: NWA 04936 | B26: 0 | D26: A16 like | F26: 27 | H26: O | I26: 371 | J26: NWA 06355 | K26: D372 | L26: 0.5197335725 | M26: 0.1152978021 | N26: 14.81100672 | O26: 10.04090195 | P26: 855.5867783 | Q26: 5.833298599 | R26: 31.05321148 | S26: 442.9653798 | T26: 4.030987359 | U26: 0.1761439472 | V26: 0.2249914588 | W26: 0.2503706867 | X26: 1.151816422 | Y26: 194.5564287 | Z26: 184.7414304 | AA26: 0 | AB26: 0.01490963444 | AC26: 0.1213358387 | AD26: 175.3592985 | AE26: 13.04708234 | AF26: 34.06954219 | AG26: 20.62409748 | AH26: 6.126465665 | AI26: 1.413075048 | AJ26: 1.176550791 | AK26: 3.952875527 | AL26: 0.5454194283 | AM26: 4.597780435 | AN26: 0.5850478305 | AO26: 0.1624473295 | AP26: 11.83716547 | AQ26: 9.396213415 | AR26: 1.867885776 | AS26: 0.4739534222 | AT26: 175.62 | AV26: 1 | AW26: 1 | AY26: 85.21015171 | AZ26: 0.655532679 | BA26: 3.279893098 | BB26: 1.650517488 | BC26: 0.6058705873 | BD26: 2.728732192 | BE26: 0.3664705547 | BF26: 629.384638 | BH26: 4.515752693 | BI26: 1.016025602 | BJ26: 1.076428649 | BK26: 1.334759383 | BL26: 3.300656003 | BM26: 8.618926137 | BO26: 0.538923348 | BP26: 1.332483304 | BQ26: 1.010867659 | BR26: 0.9209746153 | BS26: 4.335555759 | BY26: 6 | CB26: 1 | CC26: 1 | CQ26: GN | CR26: 1 | CT26: 1 | CU26: 1 | CW26: 1 | DB26: 11.83716547 | DC26: 442.9653798 | DD26: 11.83716547 | DE26: 2.646369785 | DF26: 1.073247719 | DG26: 1.255048623 | DH26: 1.596675335 | DI26: 1.425861979 | DJ26: =IF(DH26<DI$416,0,IF(DI26<DI$417,1,IF(DI26<DI$418,2,IF(DI26<DI$419,3,IF(DI26<DI$420,4,IF(DI26<DI$421,5,IF(DI26<DI$422,6,IF(DI26<DI$423,7,IF(#REF!<DI149,8,9))))))))) ->  | DK26: 17.15971717 | DL26: 0 | DO26: 1.323209745 | DP26: 0.07669881202 | DQ26: 0.7669881202 | DR26: 4936m | DS26: 4936ss | DW26: =AE26/AH26 -> 2.129626289 | DX26: =AH26/AK26 -> 1.549875685 | DY26: =AH26/AI26 -> 4.335555759 | DZ26: =AH26/(L26*0.7419*1000) -> 0.01588853524 | EA26: =AH26/O26 -> 0.6101509303 | EB26: =Q26*7773/O26 -> 4515.752693 | ED26: 0 | EE26: =AR26/AS26 -> 3.941074563 | EF26: =L26*7419/O26 -> 384.0196224 | EG26: =O26/R26 -> 0.3233450413 | EH26: =AK26/AJ26 -> 3.359715157 | EI26: =AK26/AE26 -> 0.302970076 | EJ26: =AE26/AR26 -> 6.984946566 | EK26: =AE26/AL26 -> 23.92119103 | EL26: =S26/R26 -> 14.26472042 | EM26: =O26/R26 -> 0.3233450413 | EN26: =AR26/AE26 -> 0.1431650179 | EO26: =AS26/AE26 -> 0.0363263916 | EP26: =(AP26/S26)/(595/12300) -> 0.5524157843 | EQ26: =S26/AP26 -> 37.42157537 | ER26: 2.862451752 | FG26: =SUM(EU26:FE26) -> 0 | FH26: 0 | FI26: =FA26/EY26 ->  | FJ26: =100*(FA26/40.304)/(FA26/40.304+EY26/71.846) ->  | FK26: =FB26/EW26 ->  | FM26: =FB26/EW26 ->  | FN26: =EW26/FN$1 -> 0 | FO26: =EW26+FB26 -> 0 | FP26: =FO26/(FH26+EV26) ->  | FQ26: 116 | FR26: 73 | FV26: =Q26*(AY26*0.01414)-0.1393 -> 6.889075497 | FW26: =FV26-FA26 -> 6.889075497 | FX26: =Q26+FV26 -> 12.7223741 | FY26: =(FX26-40.455)/-1.0924 -> 25.38687834 | FZ26: =FY26-EW26 -> 25.38687834 | GA26: =100*FY26/36 -> 70.51910651 | GB26: =(FV26/40.302)/(FV26/40.302+Q26/71.846) -> 0.6779743166 | GC26: =GB26-FJ26 ->  | GE26: =FN26 -> 0 | GF26: =FJ26 ->  | GG26: =AR26 -> 1.867885776 | GI26: 6.126465665 | GJ26: 0.1213358387 | GK26: 6.126465665 | GL26: 0.1213358387 | GO26: =GL26 -> 0.1213358387
A27: NWA 04936 | B27: 0 | D27: A16 like | E27: M09-55 | F27: 30 | H27: O | I27: 371 | J27: NWA 06470 | K27: D372 | L27: 0.5100786224 | M27: 0.1638518183 | N27: 15.01043956 | O27: 9.59014501 | P27: 884.516087 | Q27: 5.586313583 | R27: 27.54951852 | S27: 378.2901892 | T27: 13.52417582 | U27: 0.3008836524 | V27: 0.1502888864 | W27: 0.1978191911 | X27: 1.974917866 | Y27: 191.4784751 | Z27: 147.8146029 | AA27: 0 | AB27: 0.02239775688 | AC27: 0.1489787017 | AD27: 193.681262 | AE27: 11.0738133 | AF27: 28.47174578 | AG27: 17.16382689 | AH27: 4.973545372 | AI27: 1.31843231 | AJ27: 0.9720317209 | AK27: 3.244102753 | AL27: 0.4460376119 | AM27: 3.799063668 | AN27: 0.4702707602 | AO27: 0.5406536762 | AP27: 10.60186926 | AQ27: 8.125393678 | AR27: 1.633179449 | AS27: 0.4308785544 | AT27: 176.54 | AV27: 1 | AW27: 1 | AY27: 92.23177398 | AZ27: 0.6086488916 | BA27: 3.045314692 | BB27: 1.436096425 | BC27: 0.6963320726 | BD27: 2.870282586 | BE27: 0.3483977518 | BF27: 760.8804216 | BH27: 4.527816361 | BI27: 1.000388422 | BJ27: 1.069337497 | BK27: 1.395502748 | BL27: 3.413521132 | BM27: 8.776462384 | BO27: 0.5428899434 | BP27: 1.309150308 | BQ27: 1.02092486 | BR27: 0.9575981185 | BS27: 3.772317573 | BY27: 6 | CB27: 1 | CC27: 1 | CQ27: sparse | CR27: 1 | CT27: 1 | CU27: 1 | CW27: 1 | DB27: 10.60186926 | DC27: 378.2901892 | DD27: 10.60186926 | DE27: 2.577825078 | DF27: 1.025382444 | DG27: 1.186503917 | DH27: 1.548810061 | DI27: 1.367656989 | DJ27: =IF(DH27<DI$416,0,IF(DI27<DI$417,1,IF(DI27<DI$418,2,IF(DI27<DI$419,3,IF(DI27<DI$420,4,IF(DI27<DI$421,5,IF(DI27<DI$422,6,IF(DI27<DI$423,7,IF(#REF!<DI145,8,9))))))))) ->  | DK27: 64.65056412 | DL27: 2 | DO27: 1.329515088 | DP27: 0.06407596087 | DQ27: 0.6407596087 | DR27: 4936m | DS27: 4936ss | DW27: =AE27/AH27 -> 2.226543134 | DX27: =AH27/AK27 -> 1.533103527 | DY27: =AH27/AI27 -> 3.772317573 | DZ27: =AH27/(L27*0.7419*1000) -> 0.01314266962 | EA27: =AH27/O27 -> 0.518610028 | EB27: =Q27*7773/O27 -> 4527.816361 | ED27: 0 | EE27: =AR27/AS27 -> 3.790347495 | EF27: =L27*7419/O27 -> 394.6002168 | EG27: =O27/R27 -> 0.348105721 | EH27: =AK27/AJ27 -> 3.337445356 | EI27: =AK27/AE27 -> 0.292952632 | EJ27: =AE27/AR27 -> 6.780524519 | EK27: =AE27/AL27 -> 24.8270841 | EL27: =S27/R27 -> 13.73128132 | EM27: =O27/R27 -> 0.348105721 | EN27: =AR27/AE27 -> 0.1474812158 | EO27: =AS27/AE27 -> 0.03890968204 | EP27: =(AP27/S27)/(595/12300) -> 0.579356004 | EQ27: =S27/AP27 -> 35.68146142 | ER27: 2.76372603 | FG27: =SUM(EU27:FE27) -> 0 | FH27: 0 | FI27: =FA27/EY27 ->  | FJ27: =100*(FA27/40.304)/(FA27/40.304+EY27/71.846) ->  | FK27: =FB27/EW27 ->  | FM27: =FB27/EW27 ->  | FN27: =EW27/FN$1 -> 0 | FO27: =EW27+FB27 -> 0 | FP27: =FO27/(FH27+EV27) ->  | FQ27: 117 | FR27: 74 | FV27: =Q27*(AY27*0.01414)-0.1393 -> 7.146131551 | FW27: =FV27-FA27 -> 7.146131551 | FX27: =Q27+FV27 -> 12.73244513 | FY27: =(FX27-40.455)/-1.0924 -> 25.37765916 | FZ27: =FY27-EW27 -> 25.37765916 | GA27: =100*FY27/36 -> 70.49349766 | GB27: =(FV27/40.302)/(FV27/40.302+Q27/71.846) -> 0.6951643279 | GC27: =GB27-FJ27 ->  | GE27: =FN27 -> 0 | GF27: =FJ27 ->  | GG27: =AR27 -> 1.633179449 | GI27: 4.973545372 | GJ27: 0.1489787017 | GK27: 4.973545372 | GL27: 0.1489787017 | GO27: =GL27 -> 0.1489787017
A28: NWA 04936 | B28: 0 | D28: A16 like | F28: 33 | H28: O | I28: 373 | J28: NWA 06570 | K28: D373 | L28: 0.5188019453 | M28: 0.1566186707 | N28: 14.50999333 | O28: 9.161618194 | P28: 778.4247163 | Q28: 5.825391437 | R28: 33.92880709 | S28: 475.530657 | T28: 2.140640793 | U28: 0.1888004196 | V28: 0.1273672166 | W28: 0.2318232097 | X28: 4.169876991 | Y28: 195.8032803 | Z28: 202.5559264 | AA28: 0 | AB28: 0.005717459712 | AC28: 0.1192943645 | AD28: 164.2429675 | AE28: 14.13322113 | AF28: 37.18465719 | AG28: 21.90690379 | AH28: 6.626899971 | AI28: 1.418865262 | AJ28: 1.292734147 | AK28: 4.269518451 | AL28: 0.5905425765 | AM28: 5.019252408 | AN28: 0.6613778964 | AO28: 0.07841136645 | AP28: 11.24296748 | AQ28: 9.483541528 | AR28: 2.048967293 | AS28: 0.5267187947 | AT28: 104.87 | AV28: 1 | AW28: 1 | AY28: 84.96585427 | AZ28: 0.646412948 | BA28: 3.234263424 | BB28: 1.778052637 | BC28: 0.5624130462 | BD28: 2.712725257 | BE28: 0.3686329817 | BF28: 580.8132986 | BH28: 4.942442119 | BI28: 1.023703963 | BJ28: 1.084876868 | BK28: 1.336688839 | BL28: 3.310261167 | BM28: 8.709332825 | BO28: 0.5394450327 | BP28: 1.320296218 | BQ28: 0.9672448152 | BR28: 0.9330525433 | BS28: 4.670563266 | BY28: 4 | CB28: 1 | CC28: 1 | CQ28: sparse | CR28: 1 | CT28: 1 | CU28: 1 | CW28: 1 | DB28: 11.24296748 | DC28: 475.530657 | DD28: 11.24296748 | DE28: 2.677178521 | DF28: 1.050880955 | DG28: 1.285857359 | DH28: 1.574308571 | DI28: 1.430082965 | DJ28: =IF(DH28<DI$416,0,IF(DI28<DI$417,1,IF(DI28<DI$418,2,IF(DI28<DI$419,3,IF(DI28<DI$420,4,IF(DI28<DI$421,5,IF(DI28<DI$422,6,IF(DI28<DI$423,7,IF(#REF!<DI146,8,9))))))))) ->  | DK28: 10 | DL28: 0 | DO28: 1.248740905 | DP28: 0.08415272537 | DQ28: 0.8415272537 | DR28: 4936m | DS28: 4936ss | DW28: =AE28/AH28 -> 2.132704763 | DX28: =AH28/AK28 -> 1.552142249 | DY28: =AH28/AI28 -> 4.670563266 | DZ28: =AH28/(L28*0.7419*1000) -> 0.01721723663 | EA28: =AH28/O28 -> 0.7233329125 | EB28: =Q28*7773/O28 -> 4942.442119 | ED28: 0 | EE28: =AR28/AS28 -> 3.890059199 | EF28: =L28*7419/O28 -> 420.1213749 | EG28: =O28/R28 -> 0.2700247659 | EH28: =AK28/AJ28 -> 3.302704165 | EI28: =AK28/AE28 -> 0.3020909679 | EJ28: =AE28/AR28 -> 6.897729007 | EK28: =AE28/AL28 -> 23.93260316 | EL28: =S28/R28 -> 14.01554307 | EM28: =O28/R28 -> 0.2700247659 | EN28: =AR28/AE28 -> 0.1449752518 | EO28: =AS28/AE28 -> 0.03726813511 | EP28: =(AP28/S28)/(595/12300) -> 0.4887542868 | EQ28: =S28/AP28 -> 42.29583139 | ER28: 3.0417437 | FG28: =SUM(EU28:FE28) -> 0 | FH28: 0 | FI28: =FA28/EY28 ->  | FJ28: =100*(FA28/40.304)/(FA28/40.304+EY28/71.846) ->  | FK28: =FB28/EW28 ->  | FM28: =FB28/EW28 ->  | FN28: =EW28/FN$1 -> 0 | FO28: =EW28+FB28 -> 0 | FP28: =FO28/(FH28+EV28) ->  | FQ28: 121 | FR28: 62 | FV28: =Q28*(AY28*0.01414)-0.1393 -> 6.859425349 | FW28: =FV28-FA28 -> 6.859425349 | FX28: =Q28+FV28 -> 12.68481679 | FY28: =(FX28-40.455)/-1.0924 -> 25.42125889 | FZ28: =FY28-EW28 -> 25.42125889 | GA28: =100*FY28/36 -> 70.61460803 | GB28: =(FV28/40.302)/(FV28/40.302+Q28/71.846) -> 0.6773284368 | GC28: =GB28-FJ28 ->  | GE28: =FN28 -> 0 | GF28: =FJ28 ->  | GG28: =AR28 -> 2.048967293 | GI28: 6.626899971 | GJ28: 0.1192943645 | GK28: 6.626899971 | GL28: 0.1192943645 | GO28: =GL28 -> 0.1192943645
A29: NWA 04936 | B29: 0 | D29: A16 like | H29: O | I29: 375 | J29: NWA 07190 | K29: D375 | L29: 0.5198513501 | M29: 0.1080407284 | N29: 14.45742352 | O29: 9.40949224 | P29: 808.4608415 | Q29: 5.95 | R29: 33.56233964 | S29: 474.4925989 | T29: 7.513967884 | U29: 0.3328366377 | V29: 0.113777698 | W29: 0.1715654436 | X29: 5.165192428 | Y29: 196.3160492 | Z29: 189.8055979 | AA29: 0.09527227057 | AB29: 0.009966089531 | AC29: 0.146006818 | AD29: 200.2906612 | AE29: 14.46338297 | AF29: 38.19793666 | AG29: 20.58168117 | AH29: 6.35282677 | AI29: 1.419852068 | AJ29: 1.225660626 | AK29: 4.127182201 | AL29: 0.5685323405 | AM29: 4.841761909 | AN29: 0.6339212344 | AO29: 0 | AP29: 12.37942047 | AQ29: 11.04490894 | AR29: 2.062719117 | AS29: 0.5571463174 | AT29: 111.47 | AV29: 1 | AW29: 1 | AY29: 85.91970968 | AZ29: 0.6155475075 | BA29: 3.079831237 | BB29: 1.703331857 | BC29: 0.5870846575 | BD29: 2.716323238 | BE29: 0.3681446987 | BF29: 607.0962276 | BH29: 4.915180205 | BI29: 1.027594509 | BJ29: 1.10332197 | BK29: 1.426929301 | BL29: 3.504420757 | BM29: 9.255209681 | BO29: 0.5417445617 | BP29: 1.312089873 | BQ29: 0.9674029005 | BR29: 0.9803733163 | BS29: 4.474287789 | BY29: 4 | CB29: 1 | CC29: 1 | CR29: 1 | CT29: 1 | CU29: 1 | CW29: 1 | DB29: 12.37942047 | DC29: 474.4925989 | DD29: 12.37942047 | DE29: 2.676229443 | DF29: 1.092700314 | DG29: 1.284908281 | DH29: 1.616127931 | DI29: 1.450518106 | DJ29: =IF(DH29<DI$416,0,IF(DI29<DI$417,1,IF(DI29<DI$418,2,IF(DI29<DI$419,3,IF(DI29<DI$420,4,IF(DI29<DI$421,5,IF(DI29<DI$422,6,IF(DI29<DI$423,7,IF(#REF!<DI147,8,9))))))))) ->  | DK29: 36.3641439 | DL29: 1 | DO29: 1.272218786 | DP29: 0.08181792453 | DQ29: 0.8181792453 | DR29: 4936m | DS29: 4936ss | DW29: =AE29/AH29 -> 2.276684616 | DX29: =AH29/AK29 -> 1.539264917 | DY29: =AH29/AI29 -> 4.474287789 | DZ29: =AH29/(L29*0.7419*1000) -> 0.0164718533 | EA29: =AH29/O29 -> 0.6751508591 | EB29: =Q29*7773/O29 -> 4915.180205 | ED29: 0 | EE29: =AR29/AS29 -> 3.70229337 | EF29: =L29*7419/O29 -> 409.8815396 | EG29: =O29/R29 -> 0.2803586502 | EH29: =AK29/AJ29 -> 3.367312381 | EI29: =AK29/AE29 -> 0.2853538629 | EJ29: =AE29/AR29 -> 7.011804395 | EK29: =AE29/AL29 -> 25.43985969 | EL29: =S29/R29 -> 14.13764964 | EM29: =O29/R29 -> 0.2803586502 | EN29: =AR29/AE29 -> 0.1426166424 | EO29: =AS29/AE29 -> 0.03852116192 | EP29: =(AP29/S29)/(595/12300) -> 0.5393355123 | EQ29: =S29/AP29 -> 38.32914473 | ER29: 3.21732436
A30: NWA 04936 | B30: 0 | D30: A16 like | H30: O | I30: 378 | J30: NWA 07986 | K30: D378 | L30: 0.5138905046 | M30: 0.00563751926 | N30: 14.67639638 | O30: 9.093046032 | P30: 742.1105547 | Q30: 5.65401772 | R30: 30.71309707 | S30: 427.709168 | T30: 4.354661017 | U30: 0 | V30: 0.08378177966 | W30: 0.1327137904 | X30: 2.167632897 | Y30: 177.7190871 | Z30: 181.9232473 | AA30: 0 | AB30: 0 | AC30: 0.1024882512 | AD30: 185.4329738 | AE30: 13.25841968 | AF30: 34.38327234 | AG30: 19.33998459 | AH30: 6.230076079 | AI30: 1.409829642 | AJ30: 1.196173247 | AK30: 3.987285247 | AL30: 0.5527039676 | AM30: 4.653237673 | AN30: 0.6426791217 | AO30: 0 | AP30: 10.25123267 | AQ30: 10.1575886 | AR30: 1.899689908 | AS30: 0.4173593991 | AT30: 103.84 | AV30: 1 | AW30: 1 | AY30: 81.61297678 | AZ30: 0.6554586396 | BA30: 3.279522649 | BB30: 1.682294662 | BC30: 0.5944261861 | BD30: 2.704265495 | BE30: 0.3697861774 | BF30: 611.9594056 | BH30: 4.833218657 | BI30: 1.009037256 | BJ30: 1.068874708 | BK30: 1.333822365 | BL30: 3.325174615 | BM30: 8.623228642 | BO30: 0.5370387598 | BP30: 1.338869088 | BQ30: 0.9357823082 | BR30: 0.7974249034 | BS30: 4.419027586 | BY30: 4 | CB30: 1 | CC30: 1 | CR30: 1 | CT30: 1 | CU30: 1 | CW30: 1 | DB30: 10.25123267 | DC30: 427.709168 | DD30: 10.25123267 | DE30: 2.631148559 | DF30: 1.010776091 | DG30: 1.239827398 | DH30: 1.534203707 | DI30: 1.387015553 | DJ30: =IF(DH30<DI$416,0,IF(DI30<DI$417,1,IF(DI30<DI$418,2,IF(DI30<DI$419,3,IF(DI30<DI$420,4,IF(DI30<DI$421,5,IF(DI30<DI$422,6,IF(DI30<DI$423,7,IF(#REF!<DI148,8,9))))))))) ->  | DK30: 24.61204902 | DL30: 1 | DO30: 1.226569716 | DP30: 0.07729171908 | DQ30: 0.7729171908 | DR30: 4936m | DS30: 4936ss | ED30: 0 | ER30: 3.573119574
A31: NWA 04936 | B31: 0 | D31: A16 like | F31: 56 | H31: O | I31: 380 | J31: NWA 08181 | K31: D385 | L31: 0.5402554068 | M31: 0.07193377975 | N31: 13.91925878 | O31: 10.30082565 | P31: 861.8058831 | Q31: 6.672641587 | R31: 40.830565 | S31: 607.47428 | T31: 2.915044778 | U31: 0.2907625496 | V31: 0.1293049915 | W31: 0.2368826169 | X31: 2.304444831 | Y31: 209.2311939 | Z31: 228.0258657 | AA31: 0 | AB31: 0.01652209609 | AC31: 0.07209483334 | AD31: 228.8696197 | AE31: 16.82831535 | AF31: 41.94388186 | AG31: 27.10641224 | AH31: 7.724072236 | AI31: 1.563414597 | AJ31: 1.502371294 | AK31: 4.989327963 | AL31: 0.6937710694 | AM31: 5.966368628 | AN31: 0.7515937795 | AO31: 0.2044944551 | AP31: 16.61057292 | AQ31: 14.10647302 | AR31: 2.400354579 | AS31: 0.676726344 | AT31: 248.81 | AV31: 1 | AW31: 1 | AY31: 83.66376756 | AZ31: 0.643140093 | BA31: 3.217888017 | BB31: 1.880821231 | BC31: 0.5316826413 | BD31: 2.56371846 | BE31: 0.3900584309 | BF31: 518.9173199 | BH31: 5.035173374 | BI31: 0.9697945436 | BJ31: 1.032139778 | BK31: 1.365506898 | BL31: 3.372862133 | BM31: 8.406719737 | BO31: 0.5437211891 | BP31: 1.294601912 | BQ31: 0.992062015 | BR31: 1.02329298 | BS31: 4.940514341 | BY31: 8 | CB31: 1 | CC31: 1 | CR31: 1 | CT31: 1 | CU31: 1 | CW31: 1 | DB31: 16.61057292 | DC31: 607.47428 | DD31: 16.61057292 | DE31: 2.783527895 | DF31: 1.220384612 | DG31: 1.392206733 | DH31: 1.743812229 | DI31: 1.568009481 | DJ31: =IF(DH31<DI$416,0,IF(DI31<DI$417,1,IF(DI31<DI$418,2,IF(DI31<DI$419,3,IF(DI31<DI$420,4,IF(DI31<DI$421,5,IF(DI31<DI$422,6,IF(DI31<DI$423,7,IF(#REF!<DI152,8,9))))))))) ->  | DK31: 30.25059213 | DL31: 1 | DO31: 1.317781591 | DP31: 0.09843679996 | DQ31: 0.9843679996 | DR31: 4936m | DS31: 4936ss | DW31: =AE31/AH31 -> 2.178684357 | DX31: =AH31/AK31 -> 1.548118763 | DY31: =AH31/AI31 -> 4.940514341 | DZ31: =AH31/(L31*0.7419*1000) -> 0.01927089272 | EA31: =AH31/O31 -> 0.7498498175 | EB31: =Q31*7773/O31 -> 5035.173374 | ED31: 0 | EE31: =AR31/AS31 -> 3.547009216 | EF31: =L31*7419/O31 -> 389.1100576 | EG31: =O31/R31 -> 0.2522822217 | EH31: =AK31/AJ31 -> 3.320968647 | EI31: =AK31/AE31 -> 0.2964841018 | EJ31: =AE31/AR31 -> 7.010762285 | EK31: =AE31/AL31 -> 24.25629447 | EL31: =S31/R31 -> 14.87792981 | EM31: =O31/R31 -> 0.2522822217 | EN31: =AR31/AE31 -> 0.1426378416 | EO31: =AS31/AE31 -> 0.04021355256 | EP31: =(AP31/S31)/(595/12300) -> 0.5652555858 | EQ31: =S31/AP31 -> 36.5715429 | ER31: 3.062434807
A32: NWA 07022 | B32: 0 | C32: brx | D32: A16 like | H32: Y | I32: 374 | J32: NWA 07022 brx | K32: D376 | L32: 0.6034867545 | M32: 0.1097990786 | N32: 15.20151011 | O32: 10.33034873 | P32: 676.1765421 | Q32: 5.307537753 | R32: 18.83430317 | S32: 212.135334 | T32: 2.24463783 | U32: 0.100307141 | V32: 0.1515772972 | W32: 0.1329760686 | X32: 4.707070642 | Y32: 199.9747249 | Z32: 169.6233043 | AA32: 0 | AB32: 0.007168927566 | AC32: 0.12940645 | AD32: 142.7256207 | AE32: 12.58696442 | AF32: 32.93432941 | AG32: 18.84153443 | AH32: 5.6087516 | AI32: 1.389890261 | AJ32: 1.077736947 | AK32: 3.511237522 | AL32: 0.4798358715 | AM32: 4.143937804 | AN32: 0.4893479652 | AO32: 0 | AP32: 9.354875864 | AQ32: 4.201017405 | AR32: 2.070255951 | AS32: 0.5290126696 | AT32: 156.28 | AV32: 1 | AW32: 1 | AX32: 1 | AY32: 65.45534518 | AZ32: 0.5414730207 | BA32: 2.709206848 | BB32: 1.536247004 | BC32: 0.6509369897 | BD32: 3.221310601 | BE32: 0.3104326543 | BF32: 798.2646677 | BH32: 3.993620353 | BI32: 1.018074541 | BJ32: 1.089959732 | BK32: 1.40654743 | BL32: 3.584765867 | BM32: 9.379692829 | BO32: 0.5178844898 | BP32: 1.353483538 | BQ32: 1.106430378 | BR32: 0.9274795511 | BS32: 4.035391683 | BY32: 5 | CB32: 1 | CC32: 1 | CF32: 1 | CG32: 1 | CR32: 1 | CT32: 1 | CU32: 1 | CW32: 1 | CZ32: 1 | DB32: 9.354875864 | DC32: 212.135334 | DD32: 9.354875864 | DE32: 2.326613012 | DF32: 0.9710380289 | DG32: 0.9352918506 | DH32: 1.494465646 | DI32: 1.214878748 | DJ32: =IF(DH32<DI$416,0,IF(DI32<DI$417,1,IF(DI32<DI$418,2,IF(DI32<DI$419,3,IF(DI32<DI$420,4,IF(DI32<DI$421,5,IF(DI32<DI$422,6,IF(DI32<DI$423,7,IF(#REF!<DI152,8,9))))))))) -> 7 | DK32: 10 | DL32: 0 | DO32: 1.321483908 | DP32: 0.07378297694 | DQ32: 0.7378297694 | DR32: 7022ss | DS32: 4936m | DW32: 2.244165069 | DX32: 1.597371743 | DY32: 4.035391683 | DZ32: 0.01252717351 | EA32: 0.5429392313 | EB32: 3993.620353 | EC32: =(FD32*8301)/AC32 -> 7120.28651 | ED32: 164.2809427 | EE32: 3.91343359 | EF32: 433.409205 | EG32: 0.5484858472 | EH32: 3.257972675 | EI32: 0.2789582464 | EJ32: 6.079907375 | EK32: 26.23181211 | EL32: 11.26324303 | EM32: 0.5484858472 | EN32: 0.1644761899 | EO32: 0.04202861403 | EP32: 0.9116185682 | EQ32: 22.67644564 | ER32: 1.619382618 | EU32: 45.08 | EV32: 0.57 | EW32: 26.75 | EX32: 0.103 | EY32: 5.14 | EZ32: 0.057 | FA32: 5.79 | FB32: 15.07 | FC32: 0.565 | FD32: 0.111 | FE32: 0.066 | FH32: =EY32+FA32 -> 10.93
A33: NWA 07022 | B33: 0 | C33: clast | D33: A16 like | H33: Y | I33: 374 | J33: NWA 07022 cl | K33: D376 | L33: 0.7114967587 | M33: 0.2149345738 | N33: 14.96107443 | O33: 13.67323229 | P33: 732.9818127 | Q33: 6.287696879 | R33: 16.11262005 | S33: 135.6092437 | T33: 1.67785114 | U33: 0.1303643457 | V33: 0.08773709484 | W33: 0.09205882353 | X33: 5.793043217 | Y33: 204.1951381 | Z33: 269.0512605 | AA33: 0 | AB33: 0.008930372149 | AC33: 0.1507911164 | AD33: 225.257503 | AE33: 20.17294718 | AF33: 52.96018007 | AG33: 31.3039976 | AH33: 9.221064226 | AI33: 1.601931212 | AJ33: 1.762542977 | AK33: 5.68677611 | AL33: 0.7826581032 | AM33: 6.682540216 | AN33: 0.821785114 | AO33: 0.02333733493 | AP33: 6.146896759 | AQ33: 4.669633854 | AR33: A | AS33: 0.850744898 | AT33: 166.6 | AV33: 1 | AW33: 1 | AY33: 53.60706211 | BB33: 2.191353985 | BC33: 0.4563388695 | BD33: 3.295144268 | BE33: 0.3034768492 | BF33: 572.4495919 | BH33: 3.574448732 | BI33: 1.021484682 | BJ33: 1.08805146 | BK33: 1.371159218 | BL33: 3.547343308 | BM33: 9.312865329 | BO33: 0.5138039495 | BP33: 1.379874109 | BQ33: 1.083174553 | BS33: 5.756217342 | BY33: 6 | DB33: 6.146896759 | DC33: 135.6092437 | DD33: 6.146896759 | DE33: 2.132289294 | DF33: 0.7886559189 | DG33: 0.7409681323 | DH33: 1.312083536 | DI33: 1.026525834 | DJ33: =IF(DH33<DI$416,0,IF(DI33<DI$417,1,IF(DI33<DI$418,2,IF(DI33<DI$419,3,IF(DI33<DI$420,4,IF(DI33<DI$421,5,IF(DI33<DI$422,6,IF(DI33<DI$423,7,IF(#REF!<DI65,8,9))))))))) -> 6 | DK33: 10 | DL33: 0 | DO33: 1.436576466 | DP33: 0.1166689727 | DQ33: 1.166689727 | DR33: 7022ss | DW33: 2.187702708 | DX33: 1.621492397 | DY33: 5.756217342 | DZ33: 0.01746878702 | EA33: 0.6743880326 | EB33: 3574.448732 | EC33: =(FD33*8301)/AC33 -> 6523.020936 | ED33: 106.6702916 | EF33: 386.0531541 | EG33: 0.848603905 | EH33: 3.226460962 | EI33: 0.2819011055 | EK33: 25.7749164 | EL33: 8.416337212 | EM33: 0.848603905 | EO33: 0.0421725636 | EP33: 0.9370327514 | EQ33: 22.06141554 | ER33: 2.739428259 | EU33: 45.86470998 | EV33: 0.8529471101 | EW33: 25.43753563 | EX33: 0.1071326217 | EY33: 6.287696879 | EZ33: 0.08985087961 | FA33: 4.907330089 | FB33: 14.77352053 | FC33: 0.7114967587 | FD33: 0.1184933875 | FE33: 0.1656433413 | FG33: =SUM(EU33:FE33) -> 99.3163572 | FH33: =EY33+FA33 -> 11.19502697 | FI33: =FA33/EY33 -> 0.7804654365 | FJ33: =100*(FA33/40.304)/(FA33/40.304+EY33/71.846) -> 58.18103253 | FK33: =FB33/EW33 -> 0.5807764064 | FM33: =FB33/EW33 -> 0.5807764064 | FN33: =EW33/FN$1 -> 0.7065982119 | FO33: =EW33+FB33 -> 40.21105616 | FP33: =FO33/(FH33+EV33) -> 3.337578243 | FQ33: 130 | FR33: 77 | FS33: =EW33*0.5293 -> 13.46408761 | FT33: =FB33*0.7147 -> 10.55863512 | FU33: =(FT33/40.078)/(FS33/26.981) -> 0.5279379167 | FV33: =Q33*(AY33*0.01414)-0.1393 -> 4.626798493 | FW33: =FV33-FA33 -> -0.2805315959 | FX33: =Q33+FV33 -> 10.91449537 | FY33: =(FX33-40.455)/-1.0924 -> 27.04183873 | FZ33: =FY33-EW33 -> 1.604303101 | GA33: =100*FY33/36 -> 75.11621869 | GB33: =(FV33/40.302)/(FV33/40.302+Q33/71.846) -> 0.5674351359 | GC33: =GB33-FJ33 -> -57.61359739 | GE33: =FN33 -> 0.7065982119 | GF33: =FJ33 -> 58.18103253 | GG33: =AR33 -> A | GI33: 9.221064226 | GJ33: 0.1507911164 | GK33: =GI33 -> 9.221064226 | GL33: =GJ33 -> 0.1507911164 | GO33: =GL33 -> 0.1507911164
A34: NWA 08010 | B34: 0 | D34: A16 like | H34: / | I34: 379 | J34: NWA 08010 | K34: D379 | L34: 0.4756325661 | M34: 0.09836003051 | N34: 14.98641809 | O34: 11.32321667 | P34: 854.2691704 | Q34: 5.828913717 | R34: 36.71020774 | S34: 384.2533315 | T34: 374.6500651 | U34: 1.726116122 | V34: 0.5051097052 | W34: 3.29881994 | X34: 6.022125006 | Y34: 268.7990757 | Z34: 173.1623817 | AA34: 2.877931978 | AB34: 0.08978871091 | AC34: 0.3322182438 | AD34: 1023.032396 | AE34: 14.32351819 | AF34: 36.0057289 | AG34: 21.25136178 | AH34: 6.421424597 | AI34: 1.118387849 | AJ34: 1.280900076 | AK34: 4.471853098 | AL34: 0.6088038767 | AM34: 5.075301745 | AN34: 0.6501665545 | AO34: 0.1434244178 | AP34: 7.48921434 | AQ34: 6.464701395 | AR34: 2.192289317 | AS34: 0.5218535469 | AT34: 222.87 | AV34: 1 | AW34: 1 | AX34: 1 | AY34: 75.44403636 | AZ34: 0.5854208386 | BA34: 2.92909542 | BB34: 2.185819527 | BC34: 0.4574943116 | BD34: 3.155182712 | BE34: 0.3169388563 | BF34: 549.5226105 | BH34: 4.001349407 | BI34: 0.9780783817 | BJ34: 1.045868878 | BK34: 1.398034536 | BL34: 3.203038624 | BM34: 8.051634995 | BO34: 0.5739214031 | BP34: 1.265230112 | BQ34: 0.9534159957 | BR34: 0.8639986893 | BS34: 5.741679508 | BY34: 7 | CB34: 1 | CC34: 1 | CF34: 1 | CG34: 1 | CR34: 1 | CT34: 1 | CU34: 0 | CW34: 1 | CZ34: 1 | DB34: 7.48921434 | DC34: 384.2533315 | DD34: 7.48921434 | DE34: 2.584617642 | DF34: 0.8744362602 | DG34: 1.19329648 | DH34: 1.397863877 | DI34: 1.295580178 | DJ34: =IF(DH34<DI$416,0,IF(DI34<DI$417,1,IF(DI34<DI$418,2,IF(DI34<DI$419,3,IF(DI34<DI$420,4,IF(DI34<DI$421,5,IF(DI34<DI$422,6,IF(DI34<DI$423,7,IF(#REF!<DI154,8,9))))))))) -> 7 | DK34: 857.3703533 | DL34: 6 | DO34: 2.214898473 | DP34: 0.08404097035 | DQ34: 0.8404097035 | DR34: 8010ss | DW34: 2.230582634 | DX34: 1.435965014 | DY34: 5.741679508 | DZ34: 0.01819761336 | EA34: 0.56710251 | EB34: 4001.349407 | EC34: =(FD34*8301)/AC34 -> 5500.604241 | ED34: 284.5787649 | EE34: 4.200966592 | EF34: 311.6356517 | EG34: 0.3084487223 | EH34: 3.491180289 | EI34: 0.3122035409 | EJ34: 6.533589379 | EK34: 23.52731108 | EL34: 10.46720667 | EM34: 0.3084487223 | EN34: 0.1530552262 | EO34: 0.03643333571 | EP34: 0.4029088105 | EQ34: 51.30756233 | ER34: 3.112757089 | EU34: 44.01743079 | EV34: 0.4928247592 | EW34: 24.98305068 | EX34: 0.1248599819 | EY34: 5.828913717 | EZ34: 0.09676070321 | FA34: 6.741048301 | FB34: 15.7542084 | FC34: 0.4756325661 | FD34: 0.2201422818 | FE34: 0.2028026452 | FF34: 0.2093128517 | FH34: =EY34+FA34 -> 12.56996202
A35: NWA 08455 | B35: 0 | D35: A16 like | E35: MA167 | H35: ± | I35: 380 | J35: NWA 08455 | K35: D384 | L35: 0.501943584 | M35: 0.1321296004 | N35: 14.61120182 | O35: 10.11868241 | P35: 787.1288555 | Q35: 5.970110916 | R35: 35.25660605 | S35: 487.0141091 | T35: 4.380428219 | U35: 0.6266082192 | V35: 0.1080531514 | W35: 0.7988660131 | X35: 3.474241838 | Y35: 262.0866816 | Z35: 214.9142062 | AA35: 0.08337793075 | AB35: 0.01781807793 | AC35: 0.138644069 | AD35: 1067.995697 | AE35: 16.22519848 | AF35: 40.32285457 | AG35: 25.31983698 | AH35: 7.435704175 | AI35: 1.321586841 | AJ35: 1.433789267 | AK35: 4.914628664 | AL35: 0.6679303209 | AM35: 5.610903909 | AN35: 0.6760518029 | AO35: 0.2484166582 | AP35: 12.31580517 | AQ35: 11.53275884 | AR35: 2.438907958 | AS35: 0.7036892107 | AT35: 196.42 | AV35: 1 | AW35: 1 | AX35: 1 | AY35: 77.78965915 | AZ35: 0.6093423319 | BA35: 3.048784253 | BB35: 2.141912631 | BC35: 0.466872451 | BD35: 2.817763718 | BE35: 0.3548913607 | BF35: 500.8159768 | BH35: 4.586137827 | BI35: 0.9669700172 | BJ35: 1.029452963 | BK35: 1.36762647 | BL35: 3.301408832 | BM35: 8.204659463 | BO35: 0.5437702641 | BP35: 1.325223938 | BQ35: 1.061739072 | BR35: 1.047243788 | BS35: 5.626345501 | BY35: 7 | CB35: 1 | CC35: 1 | CF35: 1 | CG35: 1 | CR35: 1 | CT35: 1 | CU35: 0 | CW35: 1 | CZ35: 1 | DB35: 12.31580517 | DC35: 487.0141091 | DD35: 12.31580517 | DE35: 2.687541543 | DF35: 1.09046281 | DG35: 1.296220382 | DH35: 1.613890427 | DI35: 1.455055404 | DJ35: =IF(DH35<DI$416,0,IF(DI35<DI$417,1,IF(DI35<DI$418,2,IF(DI35<DI$419,3,IF(DI35<DI$420,4,IF(DI35<DI$421,5,IF(DI35<DI$422,6,IF(DI35<DI$423,7,IF(#REF!<DI158,8,9))))))))) ->  | DK35: 876.6723813 | DL35: 6 | DO35: 1.859219315 | DP35: 0.0955945269 | DQ35: 0.955945269 | DR35: 4936m | DS35: 4936ss | DT35: 7022bal | DW35: 2.182066163 | DX35: 1.512973753 | DY35: 5.626345501 | DZ35: 0.01996741411 | EA35: 0.734849052 | EB35: 4586.137827 | ED35: 0 | EE35: 3.465887953 | EF35: 368.0241458 | EG35: 0.2870010345 | EH35: 3.427720361 | EI35: 0.3029009889 | EJ35: 6.652648956 | EK35: 24.29175315 | EL35: 13.81341438 | EM35: 0.2870010345 | EN35: 0.1503160631 | EO35: 0.043370145 | EP35: 0.5227685022 | EQ35: 39.54383024 | ER35: 3.376785093
A36: NWA 08455 | B36: 0 | D36: A16 like | H36: ± | I36: 385 | J36: NWA 08609 | K36: D387 | L36: 0.6331526213 | M36: 0.1575139908 | N36: 14.60943525 | O36: 10.11781839 | P36: 944.4072048 | Q36: 5.993833393 | R36: 41.3758496 | S36: 769.4876507 | T36: 1.090718003 | U36: 1.234099631 | V36: 2.929657611e-05 | W36: 0.3232140949 | X36: 4.572790198 | Y36: 312.9057302 | Z36: 268.8786734 | AA36: 0.2986034253 | AB36: 0.02415354671 | AC36: 0.1993928327 | AD36: 938.2556688 | AE36: 19.91602437 | AF36: 51.20860839 | AG36: 30.71778585 | AH36: 8.9747738 | AI36: 1.310546173 | AJ36: 1.775206149 | AK36: 6.111563602 | AL36: 0.8322616923 | AM36: 6.742755552 | AN36: 0.8027079668 | AO36: 0.2998349562 | AP36: 20.22838165 | AQ36: 17.15259025 | AR36: 3.192037649 | AS36: 1.239889621 | AT36: 261.92 | AV36: 1 | AW36: 1 | AY36: 93.34099193 | AZ36: 0.5619402807 | BA36: 2.811612765 | BB36: 2.607033063 | BC36: 0.3835777974 | BD36: 3.584276077 | BE36: 0.2789963659 | BF36: 523.3958428 | BH36: 4.604754223 | BI36: 1.000442382 | BJ36: 1.068680354 | BK36: 1.390844959 | BL36: 3.258744516 | BM36: 8.378970052 | BO36: 0.5613617183 | BP36: 1.331024643 | BQ36: 1.07929859 | BR36: 1.409864356 | BS36: 6.848117207 | BY36: 8 | CB36: 1 | CC36: 1 | CR36: 1 | CT36: 1 | CU36: 0 | CW36: 1 | DB36: 20.22838165 | DC36: 769.4876507 | DD36: 20.22838165 | DE36: 2.886201654 | DF36: 1.305961139 | DG36: 1.494880493 | DH36: 1.829388756 | DI36: 1.662134624 | DJ36: =IF(DH36<DI$416,0,IF(DI36<DI$417,1,IF(DI36<DI$418,2,IF(DI36<DI$419,3,IF(DI36<DI$420,4,IF(DI36<DI$421,5,IF(DI36<DI$422,6,IF(DI36<DI$423,7,IF(#REF!<DI159,8,9))))))))) ->  | DK36: 707.9938917 | DL36: 6 | DO36: 1.928783196 | DP36: 0.1179550684 | DQ36: 1.179550684 | DR36: 4936m | DS36: 4936ss | DW36: 2.21911157 | DX36: 1.468490616 | DY36: 6.848117207 | DZ36: 0.01910599814 | EA36: 0.8870265756 | EB36: 4604.754223 | ED36: 0 | EE36: 2.574453077 | EF36: 464.2660221 | EG36: 0.244534396 | EH36: 3.442734584 | EI36: 0.306866646 | EJ36: 6.239282416 | EK36: 23.9300025 | EL36: 18.59750695 | EM36: 0.244534396 | EN36: 0.1602748415 | EO36: 0.06225587986 | EP36: 0.5434350307 | EQ36: 38.04000063 | ER36: 3.05774733
A37: NWA 08455 | B37: 0 | D37: A16 like | E37: W Hsu | H37: ± | I37: 390 | J37: NWA 08651 | K37: D391 | L37: 0.4885902777 | M37: 0.1154413481 | N37: 13.62136257 | O37: 10.22841749 | P37: 817.3269277 | Q37: 6.094510179 | R37: 35.11260128 | S37: 480.99694 | T37: 2.164513506 | U37: 0.8258502237 | V37: 0 | W37: 0.4400114945 | X37: 4.607478555 | Y37: 228.7339106 | Z37: 252.354999 | AA37: 0.0508135493 | AB37: 0.02496793606 | AC37: 0.1809193808 | AD37: 491.430574 | AE37: 17.10412034 | AF37: 44.11356665 | AG37: 26.44322746 | AH37: 7.698051527 | AI37: 1.420306322 | AJ37: 1.508837765 | AK37: 5.061346266 | AL37: 0.6992452757 | AM37: 5.989944356 | AN37: 0.7091709179 | AO37: 0.2600252876 | AP37: 12.7729892 | AQ37: 9.700313702 | AR37: 2.689254249 | AS37: 0.8288838218 | AT37: 138.65 | AV37: 1 | AW37: 1 | AY37: 79.90746648 | AZ37: 0.5721153602 | BA37: 2.862522771 | BB37: 2.063355918 | BC37: 0.4846473608 | BD37: 2.552161611 | BE37: 0.3918247166 | BF37: 470.8790605 | BH37: 4.631471845 | BI37: 1.003513423 | BJ37: 1.072227863 | BK37: 1.392577945 | BL37: 3.379361822 | BM37: 8.715777253 | BO37: 0.5498637965 | BP37: 1.285162444 | BQ37: 1.047865563 | BR37: 1.118726978 | BS37: 5.419993849 | BY37: 4 | CB37: 1 | CC37: 1 | CR37: 1 | CT37: 1 | CU37: 0 | CW37: 1 | DB37: 12.7729892 | DC37: 480.99694 | DD37: 12.7729892 | DE37: 2.682142314 | DF37: 1.106292545 | DG37: 1.290821152 | DH37: 1.629720162 | DI37: 1.460270657 | DJ37: =IF(DH37<DI$416,0,IF(DI37<DI$417,1,IF(DI37<DI$418,2,IF(DI37<DI$419,3,IF(DI37<DI$420,4,IF(DI37<DI$421,5,IF(DI37<DI$422,6,IF(DI37<DI$423,7,IF(#REF!<DI158,8,9))))))))) ->  | DK37: 293.4698704 | DL37: 4 | DO37: 1.878619402 | DP37: 0.1018970365 | DQ37: 1.018970365 | DR37: 4936m | DS37: 4936ss | DW37: 2.221876572 | DX37: 1.520949392 | DY37: 5.419993849 | DZ37: 0.02123687554 | EA37: 0.7526141296 | EB37: 4631.471845 | ED37: 0 | EE37: 3.244428445 | EF37: 354.3902343 | EG37: 0.2913033246 | EH37: 3.354466851 | EI37: 0.2959138597 | EJ37: 6.360172283 | EK37: 24.46083074 | EL37: 13.69869854 | EM37: 0.2913033246 | EN37: 0.1572284453 | EO37: 0.04846106116 | EP37: 0.5489570632 | EQ37: 37.65735117 | ER37: 2.738585193
A38: NWA 08455 | B38: 0 | D38: A16 like | E38: K228 | H38: ± | I38: 381 | J38: NWA 08668 | K38: D384 | L38: 0.4925492257 | M38: 0.1042128968 | N38: 15.17959676 | O38: 9.385395382 | P38: 777.6413735 | Q38: 5.606382732 | R38: 33.50544298 | S38: 464.8417513 | T38: 1.671071508 | U38: 0.44527586 | V38: 0.1459638749 | W38: 0.3974602203 | X38: 2.799140864 | Y38: 251.0003474 | Z38: 198.2298971 | AA38: 0.02335512873 | AB38: 0.01442246806 | AC38: 0.09340145757 | AD38: 370.456831 | AE38: 14.53156139 | AF38: 35.40951551 | AG38: 22.5913525 | AH38: 6.611702547 | AI38: 1.31106963 | AJ38: 1.291898298 | AK38: 4.447060778 | AL38: 0.6027593158 | AM38: 5.06442168 | AN38: 0.6024870913 | AO38: 0.2855205585 | AP38: 12.92599562 | AQ38: 10.1574821 | AR38: 2.163122542 | AS38: 0.750327362 | AT38: 220.23 | AV38: 1 | AW38: 1 | AY38: 82.85653847 | AZ38: 0.6108953812 | BA38: 3.056554781 | BB38: 1.919830575 | BC38: 0.5208792968 | BD38: 2.787207196 | BE38: 0.3587820818 | BF38: 552.6901247 | BH38: 4.643215465 | BI38: 0.9481116002 | BJ38: 1.010832442 | BK38: 1.377522043 | BL38: 3.267677714 | BM38: 7.962453693 | BO38: 0.5518703015 | BP38: 1.305519754 | BQ38: 1.059354297 | BR38: 1.259018097 | BS38: 5.042983529 | BY38: 7 | CB38: 1 | CC38: 1 | CR38: 1 | CT38: 1 | CU38: 1 | CW38: 1 | DB38: 12.92599562 | DC38: 464.8417513 | DD38: 12.92599562 | DE38: 2.667305129 | DF38: 1.111464005 | DG38: 1.275983967 | DH38: 1.634891621 | DI38: 1.455437794 | DJ38: =IF(DH38<DI$416,0,IF(DI38<DI$417,1,IF(DI38<DI$418,2,IF(DI38<DI$419,3,IF(DI38<DI$420,4,IF(DI38<DI$421,5,IF(DI38<DI$422,6,IF(DI38<DI$423,7,IF(#REF!<DI156,8,9))))))))) ->  | DK38: 199.9807566 | DL38: 4 | DO38: 1.827577161 | DP38: 0.08509323068 | DQ38: 0.8509323068 | DR38: 4936m | DS38: 4936ss | DW38: 2.197854681 | DX38: 1.486757856 | DY38: 5.042983529 | DZ38: 0.01809332129 | EA38: 0.7044671299 | EB38: 4643.215465 | ED38: 0 | EE38: 2.882905051 | EF38: 389.3520259 | EG38: 0.2801155438 | EH38: 3.44226847 | EI38: 0.3060277321 | EJ38: 6.717863234 | EK38: 24.10839785 | EL38: 13.87361903 | EM38: 0.2801155438 | EN38: 0.148856856 | EO38: 0.05163432488 | EP38: 0.5748400541 | EQ38: 35.96177539 | ER38: 2.833707911
A39: NWA 08455 | B39: 0 | D39: A16 like | E39: MAC70 | H39: ± | I39: 385 | J39: NWA 08727 | K39: D386 | L39: 0.4855213837 | M39: 0.1396344278 | N39: 13.51481855 | O39: 10.62945288 | P39: 859.9254494 | Q39: 6.399996254 | R39: 36.61844139 | S39: 499.0436957 | T39: 0.3227760413 | U39: 0.6694856954 | V39: 0.0001535694837 | W39: 0.4969280962 | X39: 3.324811046 | Y39: 289.4353797 | Z39: 254.0888581 | AA39: 0.0001305866457 | AB39: 0.01297445302 | AC39: 0.1393448906 | AD39: 361.136125 | AE39: 18.12366665 | AF39: 45.87618081 | AG39: 28.06379108 | AH39: 8.320708145 | AI39: 1.472960773 | AJ39: 1.626924148 | AK39: 5.472394219 | AL39: 0.7521970234 | AM39: 6.432898479 | AN39: 0.8044627562 | AO39: 0.01123181717 | AP39: 13.01694941 | AQ39: 15.39192349 | AR39: 2.732629887 | AS39: 0.7242579551 | AT39: 210.77 | AV39: 1 | AW39: 1 | AY39: 80.90025511 | AZ39: 0.608575035 | BA39: 3.044945158 | BB39: 2.150524834 | BC39: 0.4650027677 | BD39: 2.445471197 | BE39: 0.4089191486 | BF39: 432.9058396 | BH39: 4.680125258 | BI39: 0.9849018359 | BJ39: 1.048165881 | BK39: 1.365165673 | BL39: 3.311834989 | BM39: 8.383201022 | BO39: 0.5472398567 | BP39: 1.293461753 | BQ39: 0.998458499 | BR39: 0.9619993346 | BS39: 5.648967913 | BY39: 6 | CB39: 1 | CC39: 1 | CR39: 1 | CT39: 1 | CU39: 0 | CW39: 1 | DB39: 13.01694941 | DC39: 499.0436957 | DD39: 13.01694941 | DE39: 2.698138574 | DF39: 1.114509217 | DG39: 1.306817412 | DH39: 1.637936834 | DI39: 1.472377123 | DJ39: =IF(DH39<DI$416,0,IF(DI39<DI$417,1,IF(DI39<DI$418,2,IF(DI39<DI$419,3,IF(DI39<DI$420,4,IF(DI39<DI$421,5,IF(DI39<DI$422,6,IF(DI39<DI$423,7,IF(#REF!<DI160,8,9))))))))) ->  | DK39: 147.422209 | DL39: 3 | DO39: 1.916677277 | DP39: 0.107763269 | DQ39: 1.07763269 | DR39: 4936m | DS39: 4936ss | DW39: 2.178139929 | DX39: 1.520487708 | DY39: 5.648967913 | DZ39: 0.0230997115 | EA39: 0.7827974066 | EB39: 4680.125258 | ED39: 0 | EE39: 3.773006383 | EF39: 338.8775686 | EG39: 0.2902759504 | EH39: 3.36364435 | EI39: 0.3019474108 | EJ39: 6.632316631 | EK39: 24.09430785 | EL39: 13.6282069 | EM39: 0.2902759504 | EN39: 0.1507768787 | EO39: 0.03996199937 | EP39: 0.5392110569 | EQ39: 38.33799148 | ER39: 4.263995134
A40: NWA 08455 | B40: 0 | D40: A16 like | E40: GF14-3 | H40: ± | I40: 383 | J40: NWA 08783 | K40: D385 | L40: 0.5271045034 | M40: 0.2439242038 | N40: 13.93374921 | O40: 9.832183139 | P40: 823.2655251 | Q40: 5.899436602 | R40: 33.44238008 | S40: 487.0448286 | T40: 3.342482712 | U40: 0.6961788022 | V40: 0.1566280005 | W40: 0.2896778134 | X40: 5.65342622 | Y40: 239.8806124 | Z40: 221.1939145 | AA40: 0.0219459415 | AB40: 0.02100310396 | AC40: 0.2448485453 | AD40: 555.6938068 | AE40: 16.20784225 | AF40: 41.37848136 | AG40: 24.99842107 | AH40: 7.36051545 | AI40: 1.349989781 | AJ40: 1.441166344 | AK40: 4.968287685 | AL40: 0.680025565 | AM40: 5.881253966 | AN40: 0.6508614218 | AO40: 0 | AP40: 13.77657692 | AQ40: 11.18392319 | AR40: 2.577407387 | AS40: 0.8858925851 | AT40: 314.9225 | AV40: 1 | AW40: 1 | AY40: 83.73171181 | AZ40: 0.5707682642 | BA40: 2.85578271 | BB40: 2.075645116 | BC40: 0.4817779264 | BD40: 2.89675401 | BE40: 0.3452139866 | BF40: 531.2927249 | BH40: 4.66390018 | BI40: 0.9933472715 | BJ40: 1.059459634 | BK40: 1.380119066 | BL40: 3.262259208 | BM40: 8.328519599 | BO40: 0.5592724296 | BP40: 1.251521443 | BQ40: 1.09168004 | BR40: 1.247556747 | BS40: 5.452274939 | BY40: 10 | CB40: 1 | CC40: 1 | CR40: 1 | CT40: 1 | CU40: 1 | CW40: 1 | DB40: 13.77657692 | DC40: 487.0448286 | DD40: 13.77657692 | DE40: 2.687568936 | DF40: 1.139141321 | DG40: 1.296247775 | DH40: 1.662568938 | DI40: 1.479408356 | DJ40: =IF(DH40<DI$416,0,IF(DI40<DI$417,1,IF(DI40<DI$418,2,IF(DI40<DI$419,3,IF(DI40<DI$420,4,IF(DI40<DI$421,5,IF(DI40<DI$422,6,IF(DI40<DI$423,7,IF(#REF!<DI164,8,9))))))))) ->  | DK40: 366.2727659 | DL40: 5 | DO40: 1.866612755 | DP40: 0.09864280411 | DQ40: 0.9864280411 | DR40: 4936m | DS40: 4936ss | DW40: 2.201998264 | DX40: 1.481499446 | DY40: 5.452274939 | DZ40: 0.01882201568 | EA40: 0.7486145596 | EB40: 4663.90018 | ED40: 0 | EE40: 2.909390405 | EF40: 397.7334693 | EG40: 0.2940036898 | EH40: 3.447407515 | EI40: 0.3065360342 | EJ40: 6.28842857 | EK40: 23.83416607 | EL40: 14.56370113 | EM40: 0.2940036898 | EN40: 0.1590222404 | EO40: 0.05465826799 | EP40: 0.5847369398 | EQ40: 35.35310924 | ER40: 2.927425665
A41: NWA 08455 | B41: 0 | D41: A16 like | E41: MAC125 SH27 | H41: ± | I41: 380 | J41: NWA 10130 | K41: D385 | L41: 0.6270341771 | M41: 0.2027718777 | N41: 13.78004348 | O41: 9.976121464 | P41: 890.4464379 | Q41: 6.671024599 | R41: 52.38751303 | S41: 887.6141719 | T41: 3.077104664 | U41: 0.7005146779 | V41: 0.2558830079 | W41: 1.877479057 | X41: 5.195384224 | Y41: 242.2541217 | Z41: 213.8347994 | AA41: 0 | AB41: 0.8999841674 | AC41: 0.1988481675 | AD41: 560.4778318 | AE41: 16.60318858 | AF41: 41.51734707 | AG41: 25.92580271 | AH41: 7.425455893 | AI41: 1.298541248 | AJ41: 1.467863353 | AK41: 5.142679775 | AL41: 0.7121052601 | AM41: 5.617063146 | AN41: 0.6382807737 | AO41: 0.4391861505 | AP41: 28.89128285 | AQ41: 22.53196176 | AR41: 2.593976514 | AS41: 0.9537189435 | AT41: 197.43 | AV41: 1 | AW41: 1 | AY41: 89.2577783 | AZ41: 0.5721260741 | BA41: 2.862576378 | BB41: 2.176921293 | BC41: 0.459364334 | BD41: 3.582455748 | BE41: 0.2791381304 | BF41: 626.4890165 | BH41: 5.197799004 | BI41: 0.9729484949 | BJ41: 1.04088666 | BK41: 1.401418871 | BL41: 3.228509126 | BM41: 8.073095912 | BO41: 0.5805337462 | BP41: 1.321946309 | BQ41: 1.123018813 | BR41: 1.33449417 | BS41: 5.718305754 | BY41: 6 | CB41: 1 | CC41: 1 | CR41: 1 | CT41: 1 | CU41: 1 | CW41: 1 | DB41: 28.89128285 | DC41: 887.6141719 | DD41: 28.89128285 | DE41: 2.948224228 | DF41: 1.460766826 | DG41: 1.556903066 | DH41: 1.984194443 | DI41: 1.770548754 | DJ41: =IF(DH41<DI$416,0,IF(DI41<DI$417,1,IF(DI41<DI$418,2,IF(DI41<DI$419,3,IF(DI41<DI$420,4,IF(DI41<DI$421,5,IF(DI41<DI$422,6,IF(DI41<DI$423,7,IF(#REF!<DI165,8,9))))))))) ->  | DK41: 369.4137977 | DL41: 5 | DO41: 1.864930628 | DP41: 0.09716858094 | DQ41: 0.9716858094 | DR41: 4936m | DS41: 4936ss | DW41: 2.235982386 | DX41: 1.443888443 | DY41: 5.718305754 | DZ41: 0.01596197178 | EA41: 0.7443229235 | EB41: 5197.799004 | ED41: 0 | EE41: 2.719854242 | EF41: 466.3101364 | EG41: 0.1904293769 | EH41: 3.503513979 | EI41: 0.3097404905 | EJ41: 6.400670358 | EK41: 23.31563817 | EL41: 16.94323935 | EM41: 0.1904293769 | EN41: 0.1562336355 | EO41: 0.05744191477 | EP41: 0.6728693469 | EQ41: 30.72256004 | ER41: 2.812323014
A42: NWA 08455 | B42: 0 | D42: A16 like | E42: JH15-4 | H42: ± | I42: 386 | J42: NWA 10228 | K42: D387 | L42: 0.4974788052 | M42: 0.163880647 | N42: 12.96303804 | O42: 10.16092817 | P42: 822.0912748 | Q42: 6.421157281 | R42: 39.47262129 | S42: 558.1763007 | T42: 9.996784201 | U42: 0.9334839087 | V42: 0.0001143807082 | W42: 0.856523452 | X42: 2.437991268 | Y42: 236.3984813 | Z42: 375.7972629 | AA42: 0.0001441351129 | AB42: 0.01390920721 | AC42: 0.1017864417 | AD42: 598.6056254 | AE42: 16.32934906 | AF42: 41.86497068 | AG42: 26.17866469 | AH42: 7.594257507 | AI42: 1.48848654 | AJ42: 1.471775218 | AK42: 5.147043026 | AL42: 0.7170749503 | AM42: 8.39365635 | AN42: 0.729439278 | AO42: 0.3972172315 | AP42: 14.30992865 | AQ42: 12.90712864 | AR42: 2.436828736 | AS42: 0.7361517365 | AT42: 195.16 | AV42: 1 | AW42: 1 | AY42: 80.90710427 | AZ42: 0.6228664941 | BA42: 3.116451064 | BB42: 1.942297547 | BC42: 0.5148541743 | BD42: 2.479562399 | BE42: 0.403296969 | BF42: 485.9981706 | BH42: 4.912115775 | BI42: 0.9975477088 | BJ42: 1.058888673 | BK42: 1.347668684 | BL42: 3.172568983 | BM42: 8.133790698 | BO42: 0.5715913284 | BP42: 0.9047615474 | BQ42: 1.005013385 | BR42: 1.096489924 | BS42: 5.10199945 | BY42: 6 | CB42: 1 | CC42: 1 | CR42: 1 | CT42: 1 | CU42: 1 | CW42: 1 | DB42: 14.30992865 | DC42: 558.1763007 | DD42: 14.30992865 | DE42: 2.746771393 | DF42: 1.155637468 | DG42: 1.355450231 | DH42: 1.679065085 | DI42: 1.517257658 | DJ42: =IF(DH42<DI$416,0,IF(DI42<DI$417,1,IF(DI42<DI$418,2,IF(DI42<DI$419,3,IF(DI42<DI$420,4,IF(DI42<DI$421,5,IF(DI42<DI$422,6,IF(DI42<DI$423,7,IF(#REF!<DI164,8,9))))))))) ->  | DK42: 403.2709104 | DL42: 5 | DO42: 1.875553534 | DP42: 0.1131308259 | DQ42: 1.131308259 | DR42: 4936m | DS42: 4936ss | DW42: 2.15022325 | DX42: 1.475460273 | DY42: 5.10199945 | DZ42: 0.02057620914 | EA42: 0.7473980115 | EB42: 4912.115775 | ED42: 0 | EE42: 3.310226161 | EF42: 363.2340663 | EG42: 0.2574171118 | EH42: 3.497166526 | EI42: 0.315201972 | EJ42: 6.701065536 | EK42: 22.77216496 | EL42: 14.14084706 | EM42: 0.2574171118 | EN42: 0.1492299985 | EO42: 0.04508151144 | EP42: 0.5299735811 | EQ42: 39.0062253 | ER42: 3.252559064
A43: NWA 08455 | B43: 0 | D43: A16 like | E43: MM16-1 | H43: ± | I43: 389 | J43: NWA 10621 | K43: D389 | L43: 0.5027909941 | M43: 0.03770849117 | N43: 13.28325592 | O43: 9.86662353 | P43: 860.4639306 | Q43: 6.67059962 | R43: 39.57587345 | S43: 585.9147595 | T43: 3.852009437 | U43: 0.6819404821 | V43: 0 | W43: 0.2265658965 | X43: 3.306868283 | Y43: 254.3122692 | Z43: 253.0580505 | AA43: 0.02400746717 | AB43: 0.01431401719 | AC43: 0.103454915 | AD43: 602.6426106 | AE43: 15.72920312 | AF43: 39.81553052 | AG43: 24.56239427 | AH43: 7.204654333 | AI43: 1.490602806 | AJ43: 1.380269055 | AK43: 4.723056445 | AL43: 0.6523201667 | AM43: 5.746528927 | AN43: 0.6854863276 | AO43: 0.3352233331 | AP43: 14.65332225 | AQ43: 10.98259419 | AR43: 2.365913472 | AS43: 0.8270435743 | AT43: 66.65 | AV43: 1 | AW43: 1 | AY43: 87.20956343 | AZ43: 0.6086238254 | BA43: 3.045189276 | BB43: 1.840037054 | BC43: 0.5434673164 | BD43: 2.502481795 | BE43: 0.3996033065 | BF43: 517.7495287 | BH43: 5.255148399 | BI43: 0.9849122588 | BJ43: 1.048663553 | BK43: 1.368337266 | BL43: 3.330301744 | BM43: 8.43003487 | BO43: 0.5480927473 | BP43: 1.253740201 | BQ43: 1.014588706 | BR43: 1.268796132 | BS43: 4.833383048 | BY43: 2 | CB43: 1 | CC43: 1 | CR43: 1 | CT43: 1 | CU43: 1 | CW43: 1 | DB43: 14.65332225 | DC43: 585.9147595 | DD43: 14.65332225 | DE43: 2.767834438 | DF43: 1.1659361 | DG43: 1.376513277 | DH43: 1.689363717 | DI43: 1.532938497 | DJ43: =IF(DH43<DI$416,0,IF(DI43<DI$417,1,IF(DI43<DI$418,2,IF(DI43<DI$419,3,IF(DI43<DI$420,4,IF(DI43<DI$421,5,IF(DI43<DI$422,6,IF(DI43<DI$423,7,IF(#REF!<DI167,8,9))))))))) ->  | DK43: 417.164856 | DL43: 5 | DO43: 1.88640988 | DP43: 0.09447068354 | DQ43: 0.9447068354 | DR43: 4936m | DS43: 4936ss | DW43: 2.183200247 | DX43: 1.525422026 | DY43: 4.833383048 | DZ43: 0.01931435848 | EA43: 0.730204645 | EB43: 5255.148399 | ED43: 0 | EE43: 2.860687811 | EF43: 378.0631108 | EG43: 0.249309053 | EH43: 3.421837523 | EI43: 0.3002730914 | EJ43: 6.648257979 | EK43: 24.11270404 | EL43: 14.80484721 | EM43: 0.249309053 | EN43: 0.1504153424 | EO43: 0.05258013188 | EP43: 0.5169991248 | EQ43: 39.98511393 | ER43: 2.702724992
A44: NWA 08455 | B44: 0 | D44: A16 like | E44: BH031 | H44: ± | I44: 392 | J44: NWA 10953 | K44: D393 | L44: 0.435091068 | M44: 0.163352514 | N44: 14.27034245 | O44: 10.18068843 | P44: 874.9261163 | Q44: 6.481053058 | R44: 45.17778927 | S44: 722.0176729 | T44: 2.75696359 | U44: 0.2577173176 | V44: 0 | W44: 0.32422238 | X44: 3.070249727 | Y44: 226.1149339 | Z44: 288.9825616 | AA44: 0.02238440456 | AB44: 0.00975157169 | AC44: 0.1081365034 | AD44: 901.6265692 | AE44: 18.80514661 | AF44: 47.51941589 | AG44: 29.81821649 | AH44: 8.434160937 | AI44: 1.17522471 | AJ44: 1.664155412 | AK44: 5.855548389 | AL44: 0.8024588889 | AM44: 6.486230811 | AN44: 0.7228609686 | AO44: 0.1375719956 | AP44: 19.00415884 | AQ44: 15.78868633 | AR44: 3.077279156 | AS44: 0.9252003274 | AT44: 175.44 | AV44: 1 | AW44: 1 | AY44: 85.93977923 | AZ44: 0.5477843827 | BA44: 2.740785126 | BB44: 2.732098317 | BC44: 0.3660190388 | BD44: 2.746658239 | BE44: 0.364078787 | BF44: 382.7222005 | BH44: 4.948312263 | BI44: 0.9832096372 | BJ44: 1.05126695 | BK44: 1.397444031 | BL44: 3.211509044 | BM44: 8.115280198 | BO44: 0.5759533484 | BP44: 1.300317732 | BQ44: 1.126322552 | BR44: 1.091267432 | BS44: 7.176636829 | BY44: 6 | CB44: 1 | CC44: 1 | CR44: 1 | CT44: 1 | CU44: 1 | CW44: 1 | DB44: 19.00415884 | DC44: 722.0176729 | DD44: 19.00415884 | DE44: 2.858547828 | DF44: 1.278848652 | DG44: 1.467226666 | DH44: 1.802276268 | DI44: 1.634751467 | DJ44: =IF(DH44<DI$416,0,IF(DI44<DI$417,1,IF(DI44<DI$418,2,IF(DI44<DI$419,3,IF(DI44<DI$420,4,IF(DI44<DI$421,5,IF(DI44<DI$422,6,IF(DI44<DI$423,7,IF(#REF!<DI166,8,9))))))))) ->  | DK44: 685.0422975 | DL44: 6 | DO44: 1.892677803 | DP44: 0.112512899 | DQ44: 1.12512899 | DR44: 4936m | DS44: 4936ss | DW44: 2.229640476 | DX44: 1.440370803 | DY44: 7.176636829 | DZ44: 0.02612861231 | EA44: 0.8284470144 | EB44: 4948.312263 | ED44: 0 | EE44: 3.326067949 | EF44: 317.0650644 | EG44: 0.2253472026 | EH44: 3.51863074 | EI44: 0.3113800977 | EJ44: 6.110965452 | EK44: 23.43440501 | EL44: 15.98169553 | EM44: 0.2253472026 | EN44: 0.163640264 | EO44: 0.04919931478 | EP44: 0.5441128336 | EQ44: 37.99261409 | ER44: 2.995921066
A45: NWA 08455 | B45: 0 | D45: A16 like | E45: AV02 | F45: 89 | H45: ± | I45: 386 | J45: NWA La'gad | K45: D391 | L45: 0.4497624394 | M45: 0.1194957418 | N45: 14.60409041 | O45: 11.80222186 | P45: 955.6140641 | Q45: 7.08460682 | R45: 38.16064192 | S45: 476.5467153 | T45: 6.621704037 | U45: 1.067197563 | V45: 0.0001112844731 | W45: 1.341317441 | X45: 2.227772326 | Y45: 367.9296471 | Z45: 295.4224025 | AA45: 0.2031200369 | AB45: 0 | AC45: 0.08196680552 | AD45: 1147.050902 | AE45: 19.14082824 | AF45: 49.69713771 | AG45: 30.31998992 | AH45: 8.732552388 | AI45: 1.326304247 | AJ45: 1.701244074 | AK45: 5.857662214 | AL45: 0.8332178318 | AM45: 6.883851434 | AN45: 0.770545239 | AP45: 12.47534445 | AQ45: 661.2062236 | AR45: 3.046158031 | AS45: 1.008198909 | AT45: 138.74 | AV45: 1 | AW45: 1 | AY45: 80.96899682 | AZ45: 0.5729588436 | BA45: 2.866743058 | BB45: 2.506532809 | BC45: 0.3989574749 | BD45: 2.515853768 | BE45: 0.3974793817 | BF45: 382.1090776 | BH45: 4.665956078 | BI45: 1.010234991 | BJ45: 1.076480653 | BK45: 1.373786074 | BL45: 3.26765654 | BM45: 8.484124877 | BO45: 0.577595439 | BP45: 1.268556196 | BQ45: 1.094003547 | BR45: 1.2013128 | BS45: 6.584124574 | BY45: 5 | CB45: 1 | CC45: 1 | CR45: 1 | CT45: 1 | CU45: 0 | CW45: 1 | DB45: 12.47534445 | DC45: 476.5467153 | DD45: 12.47534445 | DE45: 2.67810548 | DF45: 1.096052546 | DG45: 1.286784319 | DH45: 1.619480162 | DI45: 1.453132241 | DJ45: =IF(DH45<DI$416,0,IF(DI45<DI$417,1,IF(DI45<DI$418,2,IF(DI45<DI$419,3,IF(DI45<DI$420,4,IF(DI45<DI$421,5,IF(DI45<DI$422,6,IF(DI45<DI$423,7,IF(#REF!<DI167,8,9))))))))) ->  | DK45: 922.9173268 | DL45: 6 | DO45: 2.022147777 | DP45: 0.1150276215 | DQ45: 1.150276215 | DR45: 4936m | DS45: 4936ss | DW45: 2.191893892 | DX45: 1.490791389 | DY45: 6.584124574 | DZ45: 0.02617053765 | EA45: 0.7399074931 | EB45: 4665.956078 | ED45: 0 | EE45: 3.021385962 | EF45: 282.7253697 | EG45: 0.3092773409 | EH45: 3.443163919 | EI45: 0.3060297151 | EJ45: 6.283596598 | EK45: 22.97217788 | EL45: 12.4879114 | EM45: 0.3092773409 | EN45: 0.1591445256 | EO45: 0.05267268984 | EP45: 0.541171866 | EQ45: 38.19908278 | ER45: 191.1249605 | GI45: 9.020049181 | GJ45: 0.08955167835 | GK45: =GI45 -> 9.020049181 | GL45: =GJ45 -> 0.08955167835 | GO45: =GL45 -> 0.08955167835
A46: NWA 08455 | B46: 0 | D46: A16 like | E46: MA154 | H46: ± | I46: 380 | J46: NWA MA154 | K46: D380 | L46: 0.5567153232 | M46: 0.108152298 | N46: 13.59311339 | O46: 10.20120759 | P46: 843.2943251 | Q46: 5.877411557 | R46: 31.91912024 | S46: 463.7528789 | T46: 7.427118996 | U46: 0.4131631912 | V46: 0.09913683992 | W46: 0.4013424629 | X46: 4.063305322 | Y46: 221.7822388 | Z46: 229.6711277 | AA46: 0.09950202303 | AB46: 0.007744683058 | AC46: 0.1427550576 | AD46: 507.831829 | AE46: 15.66306982 | AF46: 38.89905592 | AG46: 25.80709617 | AH46: 7.059255109 | AI46: 1.318539683 | AJ46: 1.396893557 | AK46: 4.861134973 | AL46: 0.6673864509 | AM46: 5.420258326 | AN46: 0.6335200747 | AO46: 0.5068866065 | AP46: 13.10181554 | AQ46: 10.74784729 | AR46: 2.474012864 | AS46: 0.7725075215 | AT46: 96.39 | AV46: 1 | AW46: 1 | AY46: 82.66612726 | AZ46: 0.5702845172 | BA46: 2.853362329 | BB46: 2.038172917 | BC46: 0.4906355059 | BD46: 3.132458611 | BE46: 0.3192380568 | BF46: 585.0859501 | BH46: 4.478403131 | BI46: 0.9663043486 | BJ46: 1.032184783 | BK46: 1.3906492 | BL46: 3.222101404 | BM46: 8.002052224 | BO46: 0.572301531 | BP46: 1.302383519 | BQ46: 1.07565789 | BR46: 1.133347457 | BS46: 5.3538435 | BY46: 3 | CB46: 1 | CC46: 1 | CR46: 0 | CS46: 1 | CT46: 0 | CV46: 1 | CW46: 0 | DB46: 13.10181554 | DC46: 463.7528789 | DD46: 13.10181554 | DE46: 2.666286619 | DF46: 1.117331481 | DG46: 1.274965457 | DH46: 1.640759097 | DI46: 1.457862277 | DJ46: =IF(DH46<DI$416,0,IF(DI46<DI$417,1,IF(DI46<DI$418,2,IF(DI46<DI$419,3,IF(DI46<DI$420,4,IF(DI46<DI$421,5,IF(DI46<DI$422,6,IF(DI46<DI$423,7,IF(#REF!<DI168,8,9))))))))) ->  | DK46: 326.0326748 | DL46: 5 | DO46: 1.892455865 | DP46: 0.0930349406 | DQ46: 0.930349406 | DR46: 4936m | DS46: 4936ss | DW46: 2.218799233 | DX46: 1.452182494 | DY46: 5.3538435 | DZ46: 0.01709150596 | EA46: 0.6920019071 | EB46: 4478.403131 | ED46: 0 | EE46: 3.202574468 | EF46: 404.8805932 | EG46: 0.3195955126 | EH46: 3.479960908 | EI46: 0.3103564645 | EJ46: 6.331038147 | EK46: 23.46926552 | EL46: 14.5289994 | EM46: 0.3195955126 | EN46: 0.1579519783 | EO46: 0.04932031399 | EP46: 0.5840271109 | EQ46: 35.39607755 | ER46: 2.958169315
A47: NWA 08455 | B47: 0 | D47: A16 like | E47: MA155 | F47: 59 | H47: ± | I47: 380 | J47: NWA MA155 | K47: D380 | L47: 0.5093756449 | M47: 0.09600597339 | N47: 13.0908675 | O47: 10.57811159 | P47: 899.9129786 | Q47: 6.838028781 | R47: 46.44218029 | S47: 686.7390714 | T47: 8.740781971 | U47: 0.5429351072 | V47: 0.3218368178 | W47: 0.3172196579 | X47: 3.370648928 | Y47: 219.4284551 | Z47: 273.4609014 | AA47: 0.4945479229 | AB47: 0.004887320119 | AC47: 0.09976133587 | AD47: 528.9995927 | AE47: 17.83299484 | AF47: 44.69990497 | AG47: 28.38679066 | AH47: 8.243655987 | AI47: 1.393334781 | AJ47: 1.626724952 | AK47: 5.617863155 | AL47: 0.7689875102 | AM47: 6.619866956 | AN47: 0.7850149335 | AO47: 0.5589071409 | AP47: 19.45419495 | AQ47: 15.63746945 | AR47: 2.886919631 | AS47: 0.8090089601 | AT47: 73.66 | AV47: 1 | AW47: 1 | AY47: 85.07312204 | AZ47: 0.5707157056 | BA47: 2.855519738 | BB47: 2.252370009 | BC47: 0.4439767871 | BD47: 2.7122397 | BE47: 0.368698976 | BF47: 458.4201373 | BH47: 5.024715162 | BI47: 0.9752906768 | BJ47: 1.036513288 | BK47: 1.355826153 | BL47: 3.174337706 | BM47: 7.956745071 | BO47: 0.5646844456 | BP47: 1.245290282 | BQ47: 1.013719062 | BR47: 1.017140505 | BS47: 5.916493363 | BY47: 3 | CB47: 1 | CC47: 1 | CR47: 0 | CS47: 1 | CT47: 0 | CV47: 1 | CW47: 0 | DB47: 19.45419495 | DC47: 686.7390714 | DD47: 19.45419495 | DE47: 2.836791757 | DF47: 1.289013264 | DG47: 1.445470595 | DH47: 1.81244088 | DI47: 1.628955738 | DJ47: =IF(DH47<DI$416,0,IF(DI47<DI$417,1,IF(DI47<DI$418,2,IF(DI47<DI$419,3,IF(DI47<DI$420,4,IF(DI47<DI$421,5,IF(DI47<DI$422,6,IF(DI47<DI$423,7,IF(#REF!<DI169,8,9))))))))) ->  | DK47: 317.2350963 | DL47: 4 | DO47: 1.920159134 | DP47: 0.1102500349 | DQ47: 1.102500349 | DR47: 4936m | DS47: 4936ss | DW47: 2.163238601 | DX47: 1.46740064 | DY47: 5.916493363 | DZ47: 0.02181405045 | EA47: 0.7793126319 | EB47: 5024.715162 | ED47: 0 | EE47: 3.568464347 | EF47: 357.2526037 | EG47: 0.2277694873 | EH47: 3.453480655 | EI47: 0.3150263433 | EJ47: 6.177170522 | EK47: 23.1902269 | EL47: 14.78696881 | EM47: 0.2277694873 | EN47: 0.1618864165 | EO47: 0.0453658495 | EP47: 0.5856115752 | EQ47: 35.30030789 | ER47: 2.89858628
A48: NWA 08455 | B48: 0 | D48: A16 like | E48: RC192 | H48: ± | I48: 386 | J48: NWA RC192 | K48: D386 | L48: 0.5448670852 | M48: 0.1345179125 | N48: 14.6439624 | O48: 10.46061017 | P48: 854.9174987 | Q48: 6.036318019 | R48: 31.8201391 | S48: 454.3727947 | T48: 5.850713084 | U48: 0.3738179941 | V48: 0.0001630391577 | W48: 0.1200677835 | X48: 3.766055639 | Y48: 232.0329768 | Z48: 203.5520199 | AA48: 0.0002107035799 | AB48: 0.0126933499 | AC48: 0.1196550662 | AD48: 360.0301208 | AE48: 13.7068384 | AF48: 35.31218277 | AG48: 21.60283683 | AH48: 6.229307214 | AI48: 1.325431252 | AJ48: 1.214398533 | AK48: 4.192323114 | AL48: 0.5802520185 | AM48: 4.727440154 | AN48: 0.5568459736 | AO48: 0 | AP48: 13.56209377 | AQ48: 12.50630767 | AR48: 2.133788965 | AS48: 0.7326123165 | AT48: 91.66 | AV48: 1 | AW48: 1 | AY48: 81.72730702 | AZ48: 0.5834759269 | BA48: 2.919364246 | BB48: 1.789195914 | BC48: 0.5589102861 | BD48: 3.049851812 | BE48: 0.3278847831 | BF48: 648.9275238 | BH48: 4.485426683 | BI48: 1.002395314 | BJ48: 1.068952612 | BK48: 1.379104343 | BL48: 3.26950906 | BM48: 8.423058484 | BO48: 0.5638756092 | BP48: 1.317691396 | BQ48: 1.079892034 | BR48: 1.246192297 | BS48: 4.699834266 | BY48: 3 | CB48: 1 | CC48: 1 | CR48: 0 | CS48: 1 | CT48: 0 | CV48: 1 | CW48: 0 | DB48: 13.56209377 | DC48: 454.3727947 | DD48: 13.56209377 | DE48: 2.65741232 | DF48: 1.132326743 | DG48: 1.266091159 | DH48: 1.655754359 | DI48: 1.460922759 | DJ48: =IF(DH48<DI$416,0,IF(DI48<DI$417,1,IF(DI48<DI$418,2,IF(DI48<DI$419,3,IF(DI48<DI$420,4,IF(DI48<DI$421,5,IF(DI48<DI$422,6,IF(DI48<DI$423,7,IF(#REF!<DI170,8,9))))))))) ->  | DK48: 199.2286482 | DL48: 4 | DO48: 1.906432632 | DP48: 0.08113747089 | DQ48: 0.8113747089 | DR48: 4936m | DS48: 4936ss | DW48: 2.20037926 | DX48: 1.485884329 | DY48: 4.699834266 | DZ48: 0.01541004139 | EA48: 0.595501325 | EB48: 4485.426683 | ED48: 0 | EE48: 2.912575884 | EF48: 386.4372002 | EG48: 0.3287418114 | EH48: 3.452180646 | EI48: 0.3058563172 | EJ48: 6.423708541 | EK48: 23.6222158 | EL48: 14.27940944 | EM48: 0.3287418114 | EN48: 0.1556733145 | EO48: 0.05344867249 | EP48: 0.6170247262 | EQ48: 33.50314506 | ER48: 3.325334877
A49: NWA 10973 | B49: 0 | D49: A16 like | E49: JH16-9 | H49: Ê | I49: 392 | J49: NWA 10973 | K49: D397 | L49: 0.4869733615 | M49: 0.1447990194 | N49: 14.32478435 | O49: 11.14921949 | P49: 961.4138299 | Q49: 6.111727856 | R49: 29.51573942 | S49: 438.7427984 | T49: 2.850763029 | U49: 0.3763693475 | V49: 0.1083449125 | W49: 0.4408032354 | X49: 4.154235177 | Y49: 284.3076148 | Z49: 223.7677155 | AA49: 0.420091062 | AB49: 0.01913821369 | AC49: 0.1410697699 | AD49: 808.8979414 | AE49: 15.4070059 | AF49: 40.43047865 | AG49: 24.86129049 | AH49: 7.187754467 | AI49: 1.012437117 | AJ49: 1.426500693 | AK49: 4.800548429 | AL49: 0.6569085248 | AM49: 4.976313661 | AN49: 0.488272628 | AO49: 0 | AP49: 12.79961828 | AQ49: 11.24236888 | AR49: 2.182215409 | AS49: 0.75140639 | AT49: 179.75 | AV49: 1 | AW49: 1 | AX49: 1 | AY49: 86.23149189 | AZ49: 0.6583097282 | BA49: 3.29378779 | BB49: 2.702716725 | BC49: 0.3699980804 | BD49: 3.568473843 | BE49: 0.2802318425 | BF49: 502.6403427 | BH49: 4.260967386 | BI49: 1.021039141 | BJ49: 1.083146774 | BK49: 1.343459562 | BL49: 3.209426199 | BM49: 8.422054116 | BO49: 0.553245721 | BP49: 1.444393372 | BQ49: 1.42104073 | BR49: 1.249797287 | BS49: 7.099457683 | BY49: 6 | CB49: 1 | CC49: 1 | CF49: 1 | CG49: 1 | CR49: 1 | CT49: 1 | CU49: 1 | CW49: 1 | CZ49: 1 | DB49: 12.79961828 | DC49: 438.7427984 | DD49: 12.79961828 | DE49: 2.642210001 | DF49: 1.107197018 | DG49: 1.250888839 | DH49: 1.630624635 | DI49: 1.440756737 | DJ49: =IF(DH49<DI$416,0,IF(DI49<DI$417,1,IF(DI49<DI$418,2,IF(DI49<DI$419,3,IF(DI49<DI$420,4,IF(DI49<DI$421,5,IF(DI49<DI$422,6,IF(DI49<DI$423,7,IF(#REF!<DI167,8,9))))))))) ->  | DK49: 623.8477534 | DL49: 5 | DO49: 2.261249793 | DP49: 0.08784084214 | DQ49: 0.8784084214 | DR49: 8010ss | DS49: 4936m | DT49: 4936ss | DW49: 2.14350754 | DX49: 1.497277774 | DY49: 7.099457683 | DZ49: 0.01989494107 | EA49: 0.644686785 | EB49: 4260.967386 | ED49: 0 | EE49: 2.904174675 | EF49: 324.0455866 | EG49: 0.3777381054 | EH49: 3.365261897 | EI49: 0.3115821764 | EJ49: 7.060258963 | EK49: 23.45380721 | EL49: 14.86470632 | EM49: 0.3777381054 | EN49: 0.1416378642 | EO49: 0.04877043567 | EP49: 0.6030803288 | EQ49: 34.27780334 | ER49: 3.167333795
A52: Shişr 162 | B52: 2 | D52: atyp felds | F52: 19 | J52: Shişr 162 | L52: 0.4079199162 | M52: 0.1364899114 | N52: 15.34238973 | O52: 5.320685539 | P52: 428.1169848 | Q52: 3.146349867 | R52: 14.74189291 | S52: 150.6428999 | T52: 1.849657367 | U52: 0.2051707728 | V52: 0.04568499483 | W52: 0.1187390548 | X52: 0 | Y52: 960.7781857 | Z52: 15.0676293 | AA52: 0.08216430086 | AB52: 0.005318268342 | AC52: 0.03279822701 | AD52: 47.19065916 | AE52: 1.222315359 | AF52: 3.325906347 | AG52: 1.949749823 | AH52: 0.550369609 | AI52: 0.8883856257 | AJ52: 0.1190637407 | AK52: 0.475760918 | AL52: 0.06741349323 | AM52: 0.3715135422 | AN52: 0.05438826345 | AO52: 0.0563615598 | AP52: 6.770106597 | AQ52: 4.096114102 | AR52: 0.1649070811 | AS52: 0.05394313917 | AT52: 367.74 | AV52: 1 | AW52: 1 | AX52: 1 | AY52: =P52/O52 -> 80.46274897 | AZ52: =(AH52/AR52)/(147.1/29.4) -> 0.6670368049 | BA52: =AH52/AR52 -> 3.337452857 | BB52: =(AH52/AI52)/(147.1/56) -> 0.2358458701 | BC52: =1/BB52 -> 4.240057286 | BD52: =L52*7419/1000/AI52 -> 3.406581299 | BE52: =1/BD52 -> 0.2935494304 | BF52: =L52*7419/AH52 -> 5498.773568 | BH52: =Q52*7773/O52/1000 -> 4.596508727 | BI52: =(AF52/603.2)/(AE52/234.7) -> 1.058713629 | BJ52: =(AF52/0.6032)/10^((1*LOG10(AH52/0.1471)+4*LOG10(AE52/0.2347))/5) -> 1.13110829 | BK52: =(AE52/AH52)/(234.7/147.1) -> 1.391965295 | BL52: =AE52/AK52 -> 2.569179839 | BM52: =AF52/AK52 -> 6.990709453 | BO52: =(AL52/AH52)/(24.3/147.1) -> 0.7414788824 | BP52: =AH52/AM52 -> 1.48142543 | BQ52: =(AH52/AN52)/(147.1/14.2) -> 0.9768433483 | BR52: =(AS52/AR52)/(8.1/29.4) -> 1.187296597 | BS52: =AH52/AI52 -> 0.6195165624 | BZ52: 12 | CC52: 1 | CG52: 1 | CW52: 1 | DB52: =AP52 -> 6.770106597 | DK52: =MAX(10,AD52-(3.2+25.3*AH52)) -> 30.06630805 | DL52: =IF(DK52<20,0,IF(DK52<40,1,IF(DK52<80,2,IF(DK52<160,3,IF(DK52<320,4,IF(DK52<640,5,IF(DK52<1280,6,IF(DK52<2560,7,IF(DK52<5120,8,9))))))))) -> 1 | DO52: 0.4625911099 | DP52: 0.006609227813 | DQ52: =10*DP52 -> 0.06609227813 | DW52: =AE52/AH52 -> 2.220899081 | DX52: =AH52/AK52 -> 1.156819714 | DY52: =AH52/AI52 -> 0.6195165624 | DZ52: =AH52/(L52*0.7419*1000) -> 0.001818587341 | EA52: =AH52/O52 -> 0.1034396047 | EB52: =Q52*7773/O52 -> 4596.508727 | ED52: =(FD52*8301)/AH52 -> 2764.985302 | EE52: =AR52/AS52 -> 3.057053846 | EF52: =L52*7419/O52 -> 568.7909644 | EG52: =O52/R52 -> 0.3609228184 | EH52: =AK52/AJ52 -> 3.995850586 | EI52: =AK52/AE52 -> 0.3892292727 | EJ52: =AE52/AR52 -> 7.412145983 | EK52: =AE52/AL52 -> 18.13161283 | EL52: =S52/R52 -> 10.21869449 | EM52: =O52/R52 -> 0.3609228184 | EN52: =AR52/AE52 -> 0.1349136947 | EO52: =AS52/AE52 -> 0.04413193272 | EP52: =(AP52/S52)/(595/12300) -> 0.9290412241 | EQ52: =S52/AP52 -> 22.25118581 | ER52: =(AQ52/AP52)/(165/595) -> 2.181772988 | ES52: 2010-11-22 | EU52: 44.51071621 | EV52: 0.1606622042 | EW52: 30.75751864 | EX52: 0.06384943489 | EY52: 3.146349867 | EZ52: 0.03979100109 | FA52: 3.897450364 | FB52: 16.81557465 | FC52: 0.3936854734 | FD52: 0.1833229586 | FE52: 0.02099438696 | FG52: =SUM(EU52:FE52) -> 99.98991519 | FH52: =EY52+FA52 -> 7.043800231 | FI52: =FA52/EY52 -> 1.238721226 | FJ52: =100*(FA52/40.304)/(FA52/40.304+EY52/71.846) -> 68.82936056 | FK52: =FB52/EW52 -> 0.5467142799 | FM52: =FB52/EW52 -> 0.5467142799 | FN52: =EW52/FN$1 -> 0.8543755177 | FO52: =EW52+FB52 -> 47.57309329 | FP52: =FO52/(FH52+EV52) -> 6.603281469 | FQ52: 163 | FR52: 8 | FS52: =EW52*0.5293 -> 16.27995462 | FT52: =FB52*0.7147 -> 12.01809121 | FU52: =(FT52/40.078)/(FS52/26.981) -> 0.4969747303 | FV52: =Q52*(AY52*0.01414)-0.1393 -> 3.440438387 | FW52: =FV52-FA52 -> -0.457011977 | FX52: =Q52+FV52 -> 6.586788254 | FY52: =(FX52-40.455)/-1.0924 -> 31.00348933 | FZ52: =FY52-EW52 -> 0.2459706936 | GA52: =100*FY52/36 -> 86.1208037 | GB52: =(FV52/40.302)/(FV52/40.302+Q52/71.846) -> 0.6609386006 | GC52: =GB52-FJ52 -> -68.16842196 | GI52: 0.550369609 | GJ52: 0.03279822701 | GK52: =GI52 -> 0.550369609 | GL52: =GJ52 -> 0.03279822701 | GN52: =GL52 -> 0.03279822701
A53: Yamato 82192 | B53: 1 | D53: atyp felds | J53: Yamato 82193 | L53: 0.4291829972 | M53: 0.01290501537 | N53: 15.41730265 | O53: 8.372172577 | P53: 702.8855986 | Q53: 4.358130295 | R53: 15.44452133 | S53: 155.6411275 | T53: 0 | U53: 0.02772996476 | V53: 0.5248107055 | W53: 0.07161781243 | X53: 0.3053752155 | Y53: 165.628233 | Z53: 18.52132844 | AA53: 0 | AB53: 0.01014086513 | AC53: 0.02607916635 | AD53: 23.0374091 | AE53: 1.273721343 | AF53: 3.272148587 | AG53: 1.782727341 | AH53: 0.6348022341 | AI53: 0.8892639628 | AJ53: 0.1398897219 | AK53: 0.5944347402 | AL53: 0.08487307894 | AM53: 0.4368721044 | AN53: 0.06191738511 | AO53: 0.01523352575 | AP53: 5.228495389 | AQ53: 1.760701702 | AR53: 0.2016880576 | AS53: 0.04808831247 | AT53: 133.39 | AV53: 1 | AW53: 1 | AY53: 83.95498208 | AZ53: 0.6290612315 | BA53: 3.147445821 | BB53: 0.2717584819 | BC53: 3.679737954 | BD53: 3.58061137 | BE53: 0.2792819149 | BF53: 5015.906507 | BH53: 4.046231306 | BI53: 0.9995634033 | BJ53: 1.046447536 | BK53: 1.257579829 | BL53: 2.142743782 | BM53: 5.504638887 | BO53: 0.809352868 | BP53: 1.453061955 | BQ53: 0.9896953076 | BR53: 0.8654095134 | BS53: 0.7138512979 | CC53: 1 | CW53: 1 | DB53: 5.228495389 | DK53: 10 | DL53: 0 | DO53: 1.164399774 | DP53: 0.007841165618 | DQ53: =10*DP53 -> 0.07841165618 | DW53: =AE53/AH53 -> 2.006485288 | DX53: =AH53/AK53 -> 1.067909042 | DY53: =AH53/AI53 -> 0.7138512979 | DZ53: =AH53/(L53*0.7419*1000) -> 0.001993657574 | EA53: =AH53/O53 -> 0.07582287969 | EB53: =Q53*7773/O53 -> 4046.231306 | ED53: 0 | EE53: =AR53/AS53 -> 4.194118014 | EF53: =L53*7419/O53 -> 380.3204756 | EG53: =O53/R53 -> 0.5420804179 | EH53: =AK53/AJ53 -> 4.249309615 | EI53: =AK53/AE53 -> 0.4666913555 | EJ53: =AE53/AR53 -> 6.315303736 | EK53: =AE53/AL53 -> 15.00736581 | EL53: =S53/R53 -> 10.07743291 | EM53: =O53/R53 -> 0.5420804179 | EN53: =AR53/AE53 -> 0.1583455115 | EO53: =AS53/AE53 -> 0.03775418596 | EP53: =(AP53/S53)/(595/12300) -> 0.6944492397 | EQ53: =S53/AP53 -> 29.76786167 | ER53: 1.214344964 | FG53: =SUM(EU53:FE53) -> 0 | FH53: =EY53+FA53 -> 0 | FI53: =FA53/EY53 ->  | FJ53: =100*(FA53/40.304)/(FA53/40.304+EY53/71.846) ->  | FK53: =FB53/EW53 ->  | FM53: =FB53/EW53 ->  | FN53: =EW53/FN$1 -> 0 | FO53: =EW53+FB53 -> 0 | FP53: =FO53/(FH53+EV53) ->  | FQ53: 168 | FR53: 53 | FV53: =Q53*(AY53*0.01414)-0.1393 -> 5.034338656 | FW53: =FV53-FA53 -> 5.034338656 | FX53: =Q53+FV53 -> 9.392468951 | FY53: =(FX53-40.455)/-1.0924 -> 28.43512546 | FZ53: =FY53-EW53 -> 28.43512546 | GA53: =100*FY53/36 -> 78.9864596 | GB53: =(FV53/40.302)/(FV53/40.302+Q53/71.846) -> 0.6731271266 | GC53: =GB53-FJ53 ->  | GI53: 0.6348022341 | GJ53: 0.02607916635 | GK53: =GI53 -> 0.6348022341 | GL53: =GJ53 -> 0.02607916635 | GM53: =GL53 -> 0.02607916635
A54: NWA 11223 | B54: 0 | C54: neg Ce | D54: atyp felds | G54: 10 | H54: Ë | I54: 394 | J54: NWA 11223 | K54: D395 | L54: 0.3897509352 | M54: 0.06130380624 | N54: 14.94531286 | O54: 8.8081146 | P54: 695.3631275 | Q54: 4.422873271 | R54: 11.89554534 | S54: 115.796492 | T54: 1.549002632 | U54: 0.2766679869 | V54: 0.09674877627 | W54: 0.1702258359 | X54: 1.434012919 | Y54: 281.0298004 | Z54: 34.42226231 | AA54: 0.3219541572 | AB54: 0.01101767595 | AC54: 0.06272548795 | AD54: 2946.920815 | AE54: 2.747314526 | AF54: 4.430365796 | AG54: 5.984248014 | AH54: 1.348059399 | AI54: 1.053634516 | AJ54: 0.2154349969 | AK54: 0.6670806708 | AL54: 0.09847877302 | AM54: 0.3773156301 | AN54: 0.05511339673 | AO54: 0.05670905251 | AP54: 6.81659636 | AQ54: 1.824119572 | AR54: 0.1441267405 | AS54: 0.06955685344 | AT54: 172.29 | AV54: 1 | AW54: 1 | AX54: 1 | AY54: 78.94574027 | AZ54: 1.869386585 | BA54: 9.353291382 | BB54: 0.4870733791 | BC54: 2.053078741 | BD54: 2.744369271 | BE54: 0.3643824505 | BF54: 2144.981289 | BH54: 3.903104751 | BI54: 0.6274555425 | BJ54: 0.6589352596 | BK54: 1.277317719 | BL54: 4.118414228 | BM54: 6.641424329 | BO54: 0.4422216485 | BP54: 3.572763204 | BQ54: 2.361171445 | BR54: 1.751691708 | BS54: 1.279437394 | BY54: 5 | CB54: 1 | CC54: 1 | CF54: 1 | CG54: 1 | CR54: 1 | CT54: 1 | CU54: 0 | CW54: 1 | CZ54: 1 | DB54: 6.81659636 | DC54: =S54 -> 115.796492 | DD54: =DB54 -> 6.81659636 | DE54: =LOG(S54) -> 2.063695403 | DF54: =LOG(DB54) -> 0.8335675783 | DG54: =DE54-DE$411 -> 0.672374241 | DH54: =DF54-DF$411 -> 1.356995195 | DI54: =AVERAGE(DG54:DH54) -> 1.014684718 | DJ54: =IF(DH54<DI$416,0,IF(DI54<DI$417,1,IF(DI54<DI$418,2,IF(DI54<DI$419,3,IF(DI54<DI$420,4,IF(DI54<DI$421,5,IF(DI54<DI$422,6,IF(DI54<DI$423,7,IF(#REF!<DI170,8,9))))))))) -> 6 | DK54: 2909.614912 | DL54: 8 | DO54: 1.112449345 | DP54: 0.009955475309 | DQ54: =10*DP54 -> 0.09955475309 | DW54: =AE54/AH54 -> 2.037977353 | DX54: =AH54/AK54 -> 2.020834148 | DY54: =AH54/AI54 -> 1.279437394 | DZ54: =AH54/(L54*0.7419*1000) -> 0.004662045329 | EA54: =AH54/O54 -> 0.153047441 | EB54: =Q54*7773/O54 -> 3903.104751 | ED54: 0 | EE54: =AR54/AS54 -> 2.072071023 | EF54: =L54*7419/O54 -> 328.2838973 | EG54: =O54/R54 -> 0.74045488 | EH54: =AK54/AJ54 -> 3.096435957 | EI54: =AK54/AE54 -> 0.242811904 | EJ54: =AE54/AR54 -> 19.06179601 | EK54: =AE54/AL54 -> 27.89753001 | EL54: =S54/R54 -> 9.734441643 | EM54: =O54/R54 -> 0.74045488 | EN54: =AR54/AE54 -> 0.05246095381 | EO54: =AS54/AE54 -> 0.02531812531 | EP54: =(AP54/S54)/(595/12300) -> 1.216915216 | EQ54: =S54/AP54 -> 16.98743564 | ER54: 0.9649809643
A55: NWA 11223 | B55: 0 | C55: neg Ce | D55: atyp felds | F55: 140 | G55: 11 | H55: Ë | I55: 398 | J55: NWA 11809 | K55: D398 | L55: 0.4028072667 | M55: 0.02441282341 | N55: 15.88926646 | O55: 8.005931003 | P55: 765.6813353 | Q55: 3.988062685 | R55: 13.06035993 | S55: 79.97087697 | T55: 2.380313352 | U55: 2.347788372 | V55: 0.09586391964 | W55: 0.3573044799 | X55: 1.102992847 | Y55: 356.8138553 | Z55: 39.02577777 | AA55: 0 | AB55: 0.03416256633 | AC55: 0.03059093365 | AD55: 5756.109284 | AE55: 2.944059665 | AF55: 4.925166553 | AG55: 5.308939248 | AH55: 1.249267068 | AI55: 1.052417143 | AJ55: 0.2042932819 | AK55: 0.6685616554 | AL55: 0.09733834623 | AM55: 0.431269966 | AN55: 0.05440036411 | AO55: 0 | AP55: 3.210687517 | AQ55: 1.877156346 | AR55: 0.1718599409 | AS55: 0.1949104532 | AT55: 187.05 | AV55: 1 | AW55: 1 | AY55: 95.63926232 | AZ55: 1.452831646 | BA55: 7.269099836 | BB55: 0.4519004068 | BC55: 2.212876963 | BD55: 2.83958422 | BE55: 0.3521642334 | BF55: 2392.144312 | BH55: 3.872030778 | BI55: 0.6509176848 | BJ55: 0.7037270596 | BK55: 1.477035381 | BL55: 4.403572417 | BM55: 7.366809798 | BO55: 0.4716665424 | BP55: 2.896717061 | BQ55: 2.216813497 | BR55: 4.116449431 | BS55: 1.187045533 | BY55: 3 | CB55: 1 | CC55: 1 | CF55: 1 | CG55: 1 | CR55: 1 | CT55: 1 | CU55: 1 | CW55: 1 | CZ55: 1 | DB55: 3.210687517 | DC55: =S55 -> 79.97087697 | DD55: =DB55 -> 3.210687517 | DE55: =LOG(S55) -> 1.902931859 | DF55: =LOG(DB55) -> 0.5065980395 | DG55: =DE55-DE$411 -> 0.5116106969 | DH55: =DF55-DF$411 -> 1.030025656 | DI55: =AVERAGE(DG55:DH55) -> 0.7708181766 | DJ55: =IF(DH55<DI$416,0,IF(DI55<DI$417,1,IF(DI55<DI$418,2,IF(DI55<DI$419,3,IF(DI55<DI$420,4,IF(DI55<DI$421,5,IF(DI55<DI$422,6,IF(DI55<DI$423,7,IF(#REF!<DI169,8,9))))))))) -> 4 | DK55: 5721.302827 | DL55: 9 | DO55: 1.257003715 | DP55: 0.04131855804 | ED55: 0 | ER55: 2.108314657
A56: Yamato 82192 | B56: 1 | D56: atyp felds | J56: Yamato 86032 | L56: 0.4303850487 | M56: 0.02644374239 | N56: 15.43162036 | O56: 10.31933199 | P56: 873.5941687 | Q56: 5.016186434 | R56: 16.89983861 | S56: 157.2918316 | T56: 11.03794153 | U56: 0.03645972899 | V56: 0.4180446864 | W56: 0.09427793849 | X56: 0 | Y56: 164.5699224 | Z56: 12.30062424 | AA56: 0 | AB56: 0.004667783191 | AC56: 0.01111982339 | AD56: 23.23005481 | AE56: 1.279068666 | AF56: 3.351386267 | AG56: 2.071144184 | AH56: 0.658064327 | AI56: 0.8891885277 | AJ56: 0.1476077954 | AK56: 0.6770703791 | AL56: 0.09793383069 | AM56: 0.4859315621 | AN56: 0.06754171742 | AO56: 0.1524779233 | AP56: 5.62126218 | AQ56: 1.218327497 | AR56: 0.2047561282 | AS56: 0.04216504263 | AT56: 262.72 | AV56: 1 | AW56: 1 | AY56: 84.65607751 | AZ56: 0.6423416719 | BA56: 3.213893195 | BB56: 0.2817408706 | BC56: 3.549360793 | BD56: 3.590944526 | BE56: 0.2784782646 | BF56: 4852.149775 | BH56: 3.778424533 | BI56: 1.01948862 | BJ56: 1.06054085 | BK56: 1.21821823 | BL56: 1.889122174 | BM56: 4.949834419 | BO56: 0.9008879805 | BP56: 1.354232526 | BQ56: 0.9405284152 | BR56: 0.7474427721 | BS56: 0.740072894 | CC56: 1 | CW56: 1 | DB56: 5.62126218 | DK56: 10 | DL56: 0 | DO56: 1.406141238 | DP56: 0.008276184486 | DQ56: =10*DP56 -> 0.08276184486 | DW56: =AE56/AH56 -> 1.943683336 | DX56: =AH56/AK56 -> 0.971928986 | DY56: =AH56/AI56 -> 0.740072894 | DZ56: =AH56/(L56*0.7419*1000) -> 0.002060942152 | EA56: =AH56/O56 -> 0.06377005099 | EB56: =Q56*7773/O56 -> 3778.424533 | ED56: 287.7893869 | EE56: =AR56/AS56 -> 4.856063588 | EF56: =L56*7419/O56 -> 309.4218385 | EG56: =O56/R56 -> 0.6106171914 | EH56: =AK56/AJ56 -> 4.586955434 | EI56: =AK56/AE56 -> 0.5293463885 | EJ56: =AE56/AR56 -> 6.246790646 | EK56: =AE56/AL56 -> 13.06053952 | EL56: =S56/R56 -> 9.307297852 | EM56: =O56/R56 -> 0.6106171914 | EN56: =AR56/AE56 -> 0.1600822017 | EO56: =AS56/AE56 -> 0.03296542535 | EP56: =(AP56/S56)/(595/12300) -> 0.73878117 | EQ56: =S56/AP56 -> 27.98158609 | ER56: 0.7815616228 | ES56: lit data | EU56: 44.53434935 | EV56: 0.2181623229 | EW56: 28.03069679 | EX56: 0.1052118191 | EY56: 4.7 | EZ56: 0.06550679365 | FA56: 5.323759933 | FB56: 15.9684664 | FC56: 0.4453428499 | FD56: 0.02281459212 | FE56: 0.02589282 | FG56: =SUM(EU56:FE56) -> 99.44020367 | FH56: =EY56+FA56 -> 10.02375993 | FI56: =FA56/EY56 -> 1.132714879 | FJ56: =100*(FA56/40.304)/(FA56/40.304+EY56/71.846) -> 66.87842462 | FK56: =FB56/EW56 -> 0.5696778258 | FM56: =FB56/EW56 -> 0.5696778258 | FN56: =EW56/FN$1 -> 0.7786304664 | FO56: =EW56+FB56 -> 43.99916319 | FP56: =FO56/(FH56+EV56) -> 4.295986837 | FQ56: 169 | FR56: 75 | FS56: =EW56*0.5293 -> 14.83664781 | FT56: =FB56*0.7147 -> 11.41266294 | FU56: =(FT56/40.078)/(FS56/26.981) -> 0.5178490744 | FV56: =Q56*(AY56*0.01414)-0.1393 -> 5.86526044 | FW56: =FV56-FA56 -> 0.5415005072 | FX56: =Q56+FV56 -> 10.88144687 | FY56: =(FX56-40.455)/-1.0924 -> 27.07209184 | FZ56: =FY56-EW56 -> -0.9586049501 | GA56: =100*FY56/36 -> 75.20025511 | GB56: =(FV56/40.302)/(FV56/40.302+Q56/71.846) -> 0.6757921553 | GC56: =GB56-FJ56 -> -66.20263247 | GI56: 0.658064327 | GJ56: 0.01111982339 | GK56: =GI56 -> 0.658064327 | GL56: 0.01111982339 | GM56: =GL56 -> 0.01111982339
A57: Yamato 82192 | B57: 1 | D57: atyp felds | J57: Yamato 82192 | L57: 0.4749775816 | M57: 0.009772839996 | N57: 15.41373376 | O57: 9.998184704 | P57: 707.2616804 | Q57: 5.148060708 | R57: 14.05127269 | S57: 93.28429719 | T57: 0 | U57: 0.02793076084 | V57: 0.2993264557 | W57: 0.048891975 | X57: 0.3951592104 | Y57: 173.8054756 | Z57: 12.52217042 | AA57: 0 | AB57: 0.001466620375 | AC57: 0.02012062295 | AD57: 22.937407 | AE57: 1.118863605 | AF57: 2.903218927 | AG57: 1.899414741 | AH57: 0.6102580101 | AI57: 0.9719233211 | AJ57: 0.1451446285 | AK57: 0.6925797044 | AL57: 0.1000516814 | AM57: 0.4321709156 | AN57: 0.05575627418 | AO57: 0.02443209999 | AP57: 2.91705188 | AQ57: 1.383364746 | AR57: 0.1532200179 | AS57: 0.03936911021 | AT57: 100.81 | AV57: 1 | AW57: 1 | AX57: 1 | AY57: 70.73900926 | AZ57: 0.7960358697 | BA57: 3.982886953 | BB57: 0.2390324373 | BC57: 4.183532625 | BD57: 3.62565503 | BE57: 0.2758122303 | BF57: 5774.375132 | BH57: 4.002314127 | BI57: 1.00961175 | BJ57: 1.038070966 | BK57: 1.149114333 | BL57: 1.615501577 | BM57: 4.191891429 | BO57: 0.9924698035 | BP57: 1.412075612 | BQ57: 1.056563042 | BR57: 0.9326150127 | BS57: 0.6278869916 | CC57: 1 | CG57: 1 | CW57: 1 | DB57: 2.91705188 | DK57: 10 | DL57: 0 | DO57: 1.341946381 | DP57: 0.00716927673 | DQ57: =10*DP57 -> 0.0716927673 | DW57: 1.833427151 | DX57: 0.8811375878 | DY57: 0.6278869916 | DZ57: 0.001731789115 | EA57: 0.06103688101 | EB57: 4002.314127 | ED57: 345.1127384 | EE57: 3.891884197 | EF57: 352.4498479 | EG57: 0.7115501153 | EH57: 4.771652327 | EI57: 0.6190028002 | EJ57: 7.302333079 | EK57: 11.18285659 | EL57: 6.63885039 | EM57: 0.7115501153 | EN57: 0.1369425345 | EO57: 0.03518669303 | EP57: 0.6464333515 | EQ57: 31.97896405 | ER57: 1.710116007 | EU57: 45.21560997 | EV57: 0.2078048161 | EW57: 28.34824106 | EX57: 0.1227438449 | EY57: 4.342284517 | EZ57: 0.07994179009 | FA57: 5.155503432 | FB57: 16.16609136 | FC57: 0.4071181571 | FD57: 0.02537137851 | FE57: 0.02528299505 | FG57: =SUM(EU57:FE57) -> 100.0959933 | FH57: =EY57+FA57 -> 9.497787948 | FI57: =FA57/EY57 -> 1.187279049 | FJ57: =100*(FA57/40.304)/(FA57/40.304+EY57/71.846) -> 67.91216942 | FK57: =FB57/EW57 -> 0.5702678809 | FM57: =FB57/EW57 -> 0.5702678809 | FN57: =EW57/FN$1 -> 0.7874511405 | FO57: =EW57+FB57 -> 44.51433241 | FP57: =FO57/(FH57+EV57) -> 4.586462001 | FQ57: 167 | FR57: 58 | FS57: =EW57*0.5293 -> 15.00472399 | FT57: =FB57*0.7147 -> 11.55390549 | FU57: =(FT57/40.078)/(FS57/26.981) -> 0.5183854469 | FV57: =Q57*(AY57*0.01414)-0.1393 -> 5.010045618 | FW57: =FV57-FA57 -> -0.1454578138 | FX57: =Q57+FV57 -> 10.15810633 | FY57: =(FX57-40.455)/-1.0924 -> 27.73424906 | FZ57: =FY57-EW57 -> -0.6139919972 | GA57: =100*FY57/36 -> 77.03958072 | GB57: =(FV57/40.302)/(FV57/40.302+Q57/71.846) -> 0.6343556877 | GC57: =GB57-FJ57 -> -67.27781373 | GI57: 0.6102580101 | GJ57: 0.02012062295 | GK57: 0.6102580101 | GL57: 0.02012062295 | GM57: =GL57 -> 0.02012062295
A58: Kal 008 | B58: 0.5 | D58: atyp felds | H58: 8 | I58: 359 | J58: Kalahari 008 | K58: D359 | L58: 0.5607112159 | M58: 0.06873227269 | N58: 15.41216075 | O58: 10.89429631 | P58: 710.4325822 | Q58: 4.666652509 | R58: 10.81107624 | S58: 60.72086243 | T58: 3.008408322 | U58: 0.3152098481 | V58: 0 | W58: 0.489625297 | X58: 1.505341588 | Y58: 200.0696134 | Z58: 17.34259593 | AA58: 0 | AB58: 0.003676949104 | AC58: 0.03276545965 | AD58: 45.59005831 | AE58: 1.475692679 | AF58: 3.593043697 | AG58: 2.436941185 | AH58: 0.7468886689 | AI58: 1.014047729 | AJ58: 0.1825836513 | AK58: 0.747624793 | AL58: 0.1077506515 | AM58: 0.5319334101 | AN58: 0.06963537542 | AO58: 0.05808797063 | AP58: 1.835058671 | AQ58: 1.342250378 | AR58: 0.1721192139 | AS58: 0.1127075085 | AT58: 277.82 | AV58: 1 | AW58: 1 | AX58: 1 | AY58: 65.21142461 | AZ58: 0.8672836809 | BA58: 4.339368349 | BB58: 0.280396655 | BC58: 3.566376353 | BD58: 4.102288672 | BE58: 0.2437663655 | BF58: 5569.660759 | BH58: 3.329622119 | BI58: 0.9473671753 | BJ58: 0.9887494617 | BK58: 1.23833924 | BL58: 1.97384128 | BM58: 4.805945082 | BO58: 0.8733140216 | BP58: 1.404101819 | BQ58: 1.035384409 | BR58: 2.376762611 | BS58: 0.7365419277 | BZ58: 9 | CC58: 1 | CG58: 1 | CQ58: An GrBr IMB Sph | CW58: 1 | DB58: 1.835058671 | DC58: =S58 -> 60.72086243 | DD58: =DB58 -> 1.835058671 | DE58: =LOG(S58) -> 1.783337931 | DF58: =LOG(DB58) -> 0.2636499542 | DG58: =DE58-DE$411 -> 0.3920167697 | DH58: =DF58-DF$411 -> 0.7870775709 | DI58: =AVERAGE(DG58:DH58) -> 0.5895471703 | DJ58: =IF(DH58<DI$416,0,IF(DI58<DI$417,1,IF(DI58<DI$418,2,IF(DI58<DI$419,3,IF(DI58<DI$420,4,IF(DI58<DI$421,5,IF(DI58<DI$422,6,IF(DI58<DI$423,7,IF(#REF!<DI166,8,9))))))))) -> 4 | DK58: 23.49377499 | DL58: 1 | DO58: 1.314694711 | DP58: 0.008587058001 | DQ58: =100*DP58 -> 0.8587058001 | DR58: 008ss | DW58: 1.975786674 | DX58: 0.999015383 | DY58: 0.7365419277 | DZ58: 0.001795441488 | EA58: 0.06855777077 | EB58: 3329.622119 | EC58: =(FD58*8301)/AC58 -> 35638.12184 | ED58: 1563.41834 | EE58: 1.527131743 | EF58: 381.8435256 | EG58: 1.007697668 | EH58: 4.09469735 | EI58: 0.5066263483 | EJ58: 8.573666155 | EK58: 13.69544089 | EL58: 5.616541878 | EM58: 1.007697668 | EN58: 0.1166362186 | EO58: 0.076376003 | EP58: 0.6247412305 | EQ58: 33.08933027 | ER58: 2.637646571 | ET58: WU | EU58: 45.94987109 | EV58: 0.4365733052 | EW58: 28.73757143 | EX58: 0.1038368262 | EY58: 4.666652509 | EZ58: 0.074881477 | FA58: 4.575782691 | FB58: 15.09935314 | FC58: 0.5607112159 | FD58: 0.1406697317 | FE58: 0.03169242371 | FG58: =SUM(EU58:FE58) -> 100.3775959 | FH58: =EY58+FA58 -> 9.2424352 | FI58: =FA58/EY58 -> 0.9805278371 | FJ58: =100*(FA58/40.304)/(FA58/40.304+EY58/71.846) -> 63.60845598 | FK58: =FB58/EW58 -> 0.5254220308 | FM58: =FB58/EW58 -> 0.5254220308 | FN58: =EW58/FN$1 -> 0.7982658732 | FO58: =EW58+FB58 -> 43.83692458 | FP58: =FO58/(FH58+EV58) -> 4.529071811 | FQ58: 53 | FR58: 65 | FS58: =EW58*0.5293 -> 15.21079656 | FT58: =FB58*0.7147 -> 10.79150769 | FU58: =(FT58/40.078)/(FS58/26.981) -> 0.4776196299 | FV58: =Q58*(AY58*0.01414)-0.1393 -> 4.163771483 | FW58: =FV58-FA58 -> -0.4120112074 | FX58: =Q58+FV58 -> 8.830423992 | FY58: =(FX58-40.455)/-1.0924 -> 28.94963018 | FZ58: =FY58-EW58 -> 0.2120587445 | GA58: =100*FY58/36 -> 80.41563939 | GB58: =(FV58/40.302)/(FV58/40.302+Q58/71.846) -> 0.6139870946 | GC58: =GB58-FJ58 -> -62.99446889 | GI58: 0.7468886689 | GJ58: 0.03276545965 | GK58: 0.7468886689 | GL58: 0.03276545965 | GO58: =GL58 -> 0.03276545965
A59: Dho 1673 | B59: 2 | D59: atyp felds | E59: O-30 | J59: Dho 1983 | L59: 0.3689471439 | M59: 0.05165281899 | N59: 15.24199555 | O59: 11.72924258 | P59: 876.5155045 | Q59: 5.560247033 | R59: 19.48611981 | S59: 196.917322 | T59: 12.53077893 | U59: 0.4075830861 | V59: 0.3115489614 | W59: 0.2252956231 | X59: 2.635114985 | Y59: 867.4402077 | Z59: 31.32140208 | AA59: 0 | AB59: 0.02212563056 | AC59: 0.04054458457 | AD59: 471.9373145 | AE59: 2.345768546 | AF59: 6.347037834 | AG59: 3.828965134 | AH59: 1.174208086 | AI59: 0.7906031157 | AJ59: 0.2563432864 | AK59: 1.009996365 | AL59: 0.1443268175 | AM59: 0.8457469955 | AN59: 0.115060905 | AO59: 0.05521884273 | AP59: 8.697106825 | AQ59: 9.751235163 | AR59: 0.3738182864 | AS59: 0.1949113501 | AT59: 269.6 | AV59: 1 | AW59: 1 | AY59: 74.72907976 | AZ59: 0.6277969221 | BA59: 3.141119974 | BB59: 0.5654079355 | BC59: 1.768634533 | BD59: 3.462190834 | BE59: 0.2888344542 | BF59: 2331.119069 | BH59: 3.684790376 | BI59: 1.052780144 | BJ59: 1.101198523 | BK59: 1.252101901 | BL59: 2.322551474 | BM59: 6.284218492 | BO59: 0.744060702 | BP59: 1.388368025 | BQ59: 0.9851286569 | BR59: 1.892513121 | BS59: 1.485205488 | BZ59: 9 | CC59: 1 | CW59: 1 | DB59: 8.697106825 | DK59: 439.02985 | DL59: 5 | DO59: 1.55724312 | DP59: 0.01466850221 | DQ59: =10*DP59 -> 0.1466850221 | DW59: 1.997745182 | DX59: 1.162586448 | DY59: 1.485205488 | DZ59: 0.004289785164 | EA59: 0.1001094553 | EB59: 3684.790376 | ED59: 0 | EE59: 1.917888753 | EF59: 233.3670603 | EG59: 0.6019280748 | EH59: 3.940014889 | EI59: 0.4305609634 | EJ59: 6.275157293 | EK59: 16.2531717 | EL59: 10.10551736 | EM59: 0.6019280748 | EN59: 0.1593585552 | EO59: 0.08309061458 | EP59: 0.9130173477 | EQ59: 22.64170441 | ER59: 4.043131318 | FG59: =SUM(EU59:FE59) -> 0 | FH59: =EY59+FA59 -> 0 | FI59: =FA59/EY59 ->  | FJ59: =100*(FA59/40.304)/(FA59/40.304+EY59/71.846) ->  | FK59: =FB59/EW59 ->  | FM59: =FB59/EW59 ->  | FN59: =EW59/FN$1 -> 0 | FO59: =EW59+FB59 -> 0 | FP59: =FO59/(FH59+EV59) ->  | FQ59: 48 | FR59: 82 | FV59: =Q59*(AY59*0.01414)-0.1393 -> 5.736041716 | FW59: =FV59-FA59 -> 5.736041716 | FX59: =Q59+FV59 -> 11.29628875 | FY59: =(FX59-40.455)/-1.0924 -> 26.69233912 | FZ59: =FY59-EW59 -> 26.69233912 | GA59: =100*FY59/36 -> 74.14538644 | GB59: =(FV59/40.302)/(FV59/40.302+Q59/71.846) -> 0.6477698536 | GC59: =GB59-FJ59 ->  | GI59: 1.174208086 | GJ59: 0.04054458457 | GK59: 1.174208086 | GL59: 0.04054458457 | GN59: =GL59 -> 0.04054458457
A60: NWA SH17-1 | B60: 0 | D60: atyp felds | E60: SH17-1 | F60: 131 | G60: 14 | H60: Ç | I60: 394 | J60: NWA SH17-1 dark matrix | K60: D395 | L60: 0.3886973805 | M60: 0.07644216034 | N60: 16.44082357 | O60: 7.673983689 | P60: 531.5416617 | Q60: 3.988089451 | R60: 12.97448817 | S60: 119.5541462 | T60: 30.55177098 | U60: 0.3432043716 | V60: 0.2285278153 | W60: 0.5148171322 | X60: 1.355986417 | Y60: 214.1334943 | Z60: 54.59714353 | AA60: 0 | AC60: 0.06574674732 | AD60: 348.4138287 | AE60: 3.377301216 | AF60: 7.552471303 | AG60: 6.263847217 | AH60: 1.535786103 | AI60: 0.8673246785 | AJ60: 0.2905210018 | AK60: 1.028117051 | AL60: 0.1446787839 | AM60: 0.9546191716 | AN60: 0.1254058215 | AP60: 5.071982713 | AQ60: 4.639530082 | AR60: 0.4548205647 | AS60: 0.1812120359 | AT60: 102.19 | AV60: 1 | AY60: 69.26541458 | AZ60: 0.6748780422 | BA60: 3.376685715 | BB60: 0.6741000883 | BC60: 1.483459233 | BD60: 3.324874684 | BE60: 0.3007632152 | BF60: 1877.700195 | BH60: 4.039547197 | BI60: 0.8701037574 | BJ60: 0.9277666846 | BK60: 1.378283782 | BL60: 3.284938435 | BM60: 7.345925542 | BO60: 0.5702699868 | BP60: 1.608794532 | BQ60: 1.182193883 | BR60: 1.446136402 | BS60: 1.770716482 | BY60: 3 | CB60: 1 | CC60: 1 | CF60: 1 | CG60: 1 | CR60: 0 | CS60: 1 | CT60: 0 | CV60: 1 | CW60: 0 | CZ60: 1 | DB60: 5.071982713 | DC60: =S60 -> 119.5541462 | DD60: =DB60 -> 5.071982713 | DE60: =LOG(S60) -> 2.077564642 | DF60: =LOG(DB60) -> 0.7051777647 | DG60: =DE60-DE$411 -> 0.6862434805 | DH60: =DF60-DF$411 -> 1.228605381 | DI60: =AVERAGE(DG60:DH60) -> 0.957424431 | DJ60: =IF(DH60<DI$416,0,IF(DI60<DI$417,1,IF(DI60<DI$418,2,IF(DI60<DI$419,3,IF(DI60<DI$420,4,IF(DI60<DI$421,5,IF(DI60<DI$422,6,IF(DI60<DI$423,7,IF(#REF!<DI165,8,9))))))))) -> 5 | DK60: 306.3584403 | DL60: 4 | DO60: 0.9884896664 | DP60: 0.01787531946 | DQ60: 0.1787531946 | DW60: 2.199070046 | DX60: 1.493785267 | DY60: 1.770716482 | DZ60: 0.005325663823 | EA60: 0.2001289246 | EB60: 4039.547197 | ED60: 0 | EE60: 2.509880552 | EF60: 375.7821209 | EG60: 0.5914671616 | EH60: 3.538873419 | EI60: 0.3044197082 | EJ60: 7.425568408 | EK60: 23.34344487 | EL60: 9.214555875 | EM60: 0.5914671616 | EN60: 0.1346698253 | EO60: 0.05365587027 | EP60: 0.8770033823 | EQ60: 23.57148139 | ER60: 3.29859694
A61: Dho 1673 | B61: 2 | D61: atyp felds | E61: O-61 | J61: Dho 1673 | L61: 0.3750183455 | M61: 0.05318938013 | N61: 15.850866 | O61: 12.78509572 | P61: 918.6289312 | Q61: 5.615914995 | R61: 14.93970659 | S61: 99.79894029 | T61: 12.37991682 | U61: 0.4957993391 | V61: 0.3342906791 | W61: 0.3730463765 | X61: 2.970943482 | Y61: 690.4799453 | Z61: 31.03708979 | AA61: 0.2643117593 | AB61: 0.02654540793 | AC61: 0.04901509799 | AD61: 546.4758432 | AE61: 2.363391067 | AF61: 6.341028373 | AG61: 3.892240201 | AH61: 1.167399157 | AI61: 0.7633802985 | AJ61: 0.2548827484 | AK61: 1.063978236 | AL61: 0.1534054239 | AM61: 0.8530125912 | AN61: 0.1134801162 | AO61: 0.04797174111 | AP61: 3.736223792 | AQ61: 6.296308113 | AR61: 0.4207806518 | AS61: 0.268780196 | AT61: 175.52 | AV61: 1 | AW61: 1 | AX61: 1 | AY61: 71.85154899 | AZ61: 0.5544958128 | BA61: 2.774365104 | BB61: 0.5821753087 | BC61: 1.717695658 | BD61: 3.644659301 | BE61: 0.2743740683 | BF61: 2383.298882 | BH61: 3.414327763 | BI61: 1.043940781 | BJ61: 1.094861093 | BK61: 1.268866108 | BL61: 2.221277641 | BM61: 5.959735038 | BO61: 0.7954772045 | BP61: 1.368560287 | BQ61: 0.9930595106 | BR61: 2.318482466 | BS61: 1.529249784 | BZ61: 6 | CC61: 1 | CG61: 1 | CW61: 1 | DB61: 3.736223792 | DK61: 513.7406445 | DL61: 5 | DO61: 1.629562899 | DP61: 0.01516585604 | DQ61: 0.1516585604 | DW61: 2.024492696 | DX61: 1.097202102 | DY61: 1.529249784 | DZ61: 0.004195864848 | EA61: 0.09130937951 | EB61: 3414.327763 | ED61: 411.8233277 | EE61: 1.565519551 | EF61: 217.6175421 | EG61: 0.8557795725 | EH61: 4.174383095 | EI61: 0.450191359 | EJ61: 5.61668189 | EK61: 15.4061767 | EL61: 6.680113811 | EM61: 0.8557795725 | EN61: 0.1780410605 | EO61: 0.1137265008 | EP61: 0.7739182671 | EQ61: 26.71117841 | ER61: 6.076956283 | ES61: 2014-02-26 | EU61: 44.59731641 | EV61: 0.299495438 | EW61: 26.17611929 | EX61: 0.1342668046 | EY61: 5.615914995 | EZ61: 0.083848667 | FA61: 6.44507681 | FB61: 15.83011038 | FC61: 0.3750183455 | FD61: 0.05791617943 | FE61: 0.03537051225 | FG61: =SUM(EU61:FE61) -> 99.65045383 | FH61: =EY61+FA61 -> 12.06099181 | FI61: =FA61/EY61 -> 1.147645008 | FJ61: =100*(FA61/40.304)/(FA61/40.304+EY61/71.846) -> 67.16784451 | FK61: =FB61/EW61 -> 0.6047539059 | FM61: =FB61/EW61 -> 0.6047539059 | FN61: =EW61/FN$1 -> 0.7271144246 | FO61: =EW61+FB61 -> 42.00622967 | FP61: =FO61/(FH61+EV61) -> 3.398428301 | FQ61: 46 | FR61: 87 | FV61: =Q61*(AY61*0.01414)-0.1393 -> 5.566362387 | FW61: =FV61-FA61 -> -0.8787144228 | FX61: =Q61+FV61 -> 11.18227738 | FY61: =(FX61-40.455)/-1.0924 -> 26.7967069 | FZ61: =FY61-EW61 -> 0.6205876137 | GA61: =100*FY61/36 -> 74.43529694 | GB61: =(FV61/40.302)/(FV61/40.302+Q61/71.846) -> 0.6385926561 | GC61: =GB61-FJ61 -> -66.52925186 | GI61: 1.167399157 | GJ61: 0.04901509799 | GK61: =GI61 -> 1.167399157 | GL61: 0.04901509799 | GN61: =GL61 -> 0.04901509799
A62: NWA 08022 | B62: 0 | D62: atyp felds | E62: AD14-A | F62: 84 | G62: 5.01 | H62: $ | I62: 384 | J62: NWA 10082 | K62: D384 | L62: 0.4550523054 | M62: 0.08725925001 | N62: 16.83115536 | O62: 5.171665937 | P62: 446.9075486 | Q62: 3.468436404 | R62: 30.1133558 | S62: 487.0366497 | T62: 5.625970346 | U62: 0.2433898036 | V62: 0 | W62: 0.3775410488 | X62: 1.777097959 | Y62: 217.9033821 | Z62: 47.67945612 | AA62: 0.00506306113 | AB62: 0.01560088974 | AC62: 0.08702798854 | AD62: 113.8494096 | AE62: 2.803282117 | AF62: 6.845926982 | AG62: 4.038328492 | AH62: 1.150312288 | AI62: 0.9720643728 | AJ62: 0.2357900218 | AK62: 1.074527423 | AL62: 0.1495499912 | AM62: 0.9652057402 | AN62: 0.1472899212 | AO62: 0 | AP62: 23.11875124 | AQ62: 7.012954398 | AR62: 0.7018044304 | AS62: 0.2398604141 | AT62: 67.26 | AV62: 1 | AW62: 1 | AY62: 86.41462036 | AZ62: 0.3275927721 | BA62: 1.639078122 | BB62: 0.4505013401 | BC62: 2.219749224 | BD62: 3.473055024 | BE62: 0.2879309406 | BF62: 2934.883935 | BH62: 5.213050591 | BI62: 0.9502047845 | BJ62: 1.034206681 | BK62: 1.527392419 | BL62: 2.608851163 | BM62: 6.371104947 | BO62: 0.7870041674 | BP62: 1.191779369 | BQ62: 0.7539080852 | BR62: 1.240522898 | BS62: 1.183370484 | BY62: 3 | CB62: 1 | CC62: 1 | CR62: 1 | CT62: 1 | CU62: 1 | CW62: 1 | DB62: 23.11875124 | DC62: =S62 -> 487.0366497 | DD62: =DB62 -> 23.11875124 | DE62: =LOG(S62) -> 2.687561643 | DF62: =LOG(DB62) -> 1.363964372 | DG62: =DE62-DE$411 -> 1.296240482 | DH62: =DF62-DF$411 -> 1.887391989 | DI62: =AVERAGE(DG62:DH62) -> 1.591816235 | DJ62: =IF(DH62<DI$416,0,IF(DI62<DI$417,1,IF(DI62<DI$418,2,IF(DI62<DI$419,3,IF(DI62<DI$420,4,IF(DI62<DI$421,5,IF(DI62<DI$422,6,IF(DI62<DI$423,7,IF(#REF!<DI161,8,9))))))))) ->  | DK62: 81.54650874 | DL62: 3 | DO62: 0.6427164128 | DP62: 0.01896427017 | DQ62: 0.1896427017 | DW62: 2.436974852 | DX62: 1.070528553 | DY62: 1.183370484 | DZ62: 0.003407289767 | EA62: 0.2224258685 | EB62: 5213.050591 | ED62: 0 | EE62: 2.925886845 | EF62: 652.7941082 | EG62: 0.1717399406 | EH62: 4.55713696 | EI62: 0.3833104833 | EJ62: 3.994392164 | EK62: 18.74478289 | EL62: 16.1734432 | EM62: 0.1717399406 | EN62: 0.2503509818 | EO62: 0.08556413664 | EP62: 0.9812753161 | EQ62: 21.0667369 | ER62: 1.093879956 | GI62: 1.150312288 | GJ62: 0.08702798854 | GK62: 1.150312288 | GL62: 0.08702798854 | GO62: =GL62 -> 0.08702798854
A63: NWA 08022 | B63: 0 | D63: atyp felds | E63: M1558 | F63: 49 | G63: 5 | H63: $ | I63: 378 | J63: NWA 08022 | K63: D379 | L63: 0.4584217641 | M63: 0.02330800323 | N63: 16.37818647 | O63: 5.311587173 | P63: 476.8479745 | Q63: 3.706874607 | R63: 31.66592114 | S63: 518.60406 | T63: 1.987795742 | U63: 0.1389629929 | V63: 0.08492993802 | W63: 0.5113325249 | X63: 1.85976152 | Y63: 207.4867511 | Z63: 28.68642774 | AA63: 0.07176547202 | AB63: 0.003741129974 | AC63: 0.05592697386 | AD63: 66.27521333 | AE63: 2.717756669 | AF63: 6.834782179 | AG63: 4.221978353 | AH63: 1.14414704 | AI63: 0.9855308542 | AJ63: 0.2469883679 | AK63: 1.108630737 | AL63: 0.1576048235 | AM63: 0.9503155035 | AN63: 0.162392392 | AO63: 0 | AP63: 24.48199497 | AQ63: 8.191862032 | AR63: 0.7017723435 | AS63: 0.1962347076 | AT63: 222.66 | AV63: 1 | AW63: 1 | AX63: 1 | AY63: 89.77504443 | AZ63: 0.3258518945 | BA63: 1.630367812 | BB63: 0.4419640762 | BC63: 2.262627335 | BD63: 3.450963563 | BE63: 0.2897741404 | BF63: 2972.547189 | BH63: 5.424656582 | BI63: 0.9785113442 | BJ63: 1.059574572 | BK63: 1.48877241 | BL63: 2.451453471 | BM63: 6.165066463 | BO63: 0.8338617687 | BP63: 1.203965458 | BQ63: 0.6801298475 | BR63: 1.014943544 | BS63: 1.160944922 | BY63: 7 | CB63: 1 | CC63: 1 | CF63: 1 | CG63: 1 | CR63: 1 | CT63: 1 | CU63: 1 | CW63: 1 | CZ63: 1 | DB63: 24.48199497 | DC63: =S63 -> 518.60406 | DD63: =DB63 -> 24.48199497 | DE63: =LOG(S63) -> 2.714835912 | DF63: =LOG(DB63) -> 1.388846804 | DG63: =DE63-DE$411 -> 1.323514751 | DH63: =DF63-DF$411 -> 1.912274421 | DI63: =AVERAGE(DG63:DH63) -> 1.617894586 | DJ63: =IF(DH63<DI$416,0,IF(DI63<DI$417,1,IF(DI63<DI$418,2,IF(DI63<DI$419,3,IF(DI63<DI$420,4,IF(DI63<DI$421,5,IF(DI63<DI$422,6,IF(DI63<DI$423,7,IF(#REF!<DI161,8,9))))))))) ->  | DK63: 34.12829321 | DL63: 1 | DO63: 0.6617304282 | DP63: 0.01885124289 | DQ63: 0.1885124289 | DW63: 2.375356116 | DX63: 1.032036188 | DY63: 1.160944922 | DZ63: 0.003364118167 | EA63: 0.215405867 | EB63: 5424.656582 | EC63: =(FD63*8301)/AC63 -> 10779.25221 | ED63: 526.8998962 | EE63: 3.576188698 | EF63: 640.3041044 | EG63: 0.1677382809 | EH63: 4.488594936 | EI63: 0.4079212646 | EJ63: 3.872704153 | EK63: 17.24412114 | EL63: 16.37735589 | EM63: 0.1677382809 | EN63: 0.2582175039 | EO63: 0.07220466418 | EP63: 0.9758858876 | EQ63: 21.18308008 | ER63: 1.206615351 | ET63: WU | EU63: 43.93202902 | EV63: 0.2112915743 | EW63: 30.32080833 | EX63: 0.06969609995 | EY63: 3.706874607 | EZ63: 0.06772238655 | FA63: 4.00514599 | FB63: 17.11737533 | FC63: 0.4584217641 | FD63: 0.07262389553 | FE63: 0.1011057497 | FF63: 0.04745971144 | FG63: =SUM(EU63:FE63) -> 100.0630947 | FH63: =EY63+FA63 -> 7.712020597 | FI63: =FA63/EY63 -> 1.080464384 | FJ63: =100*(FA63/40.304)/(FA63/40.304+EY63/71.846) -> 65.82409637 | FK63: =FB63/EW63 -> 0.5645421833 | FM63: =FB63/EW63 -> 0.5645421833 | FN63: =EW63/FN$1 -> 0.8422446757 | FO63: =EW63+FB63 -> 47.43818366 | FP63: =FO63/(FH63+EV63) -> 5.987165801 | FQ63: 144 | FR63: 14 | FV63: =Q63*(AY63*0.01414)-0.1393 -> 4.566277532 | FW63: =FV63-FA63 -> 0.5611315426 | FX63: =Q63+FV63 -> 8.273152139 | FY63: =(FX63-40.455)/-1.0924 -> 29.45976553 | FZ63: =FY63-EW63 -> -0.8610427999 | GA63: =100*FY63/36 -> 81.83268202 | GB63: =(FV63/40.302)/(FV63/40.302+Q63/71.846) -> 0.6871079297 | GC63: =GB63-FJ63 -> -65.13698844 | GE63: =FN63 -> 0.8422446757 | GF63: =FJ63 -> 65.82409637 | GG63: =AR63 -> 0.7017723435 | GI63: 1.14414704 | GJ63: 0.05592697386 | GK63: 1.14414704 | GL63: 0.05592697386 | GO63: =GL63 -> 0.05592697386
A64: Dho 0025 | B64: 2 | D64: atyp felds | J64: Dho 0304 | L64: 0.3373389922 | M64: 0.04458636486 | N64: 15.63250876 | O64: 9.256187012 | P64: 747.1226085 | Q64: 4.569019132 | R64: 17.03928591 | S64: 115.6478038 | T64: 10.89210455 | U64: 1.027819995 | V64: 0.324925896 | W64: 0.379746699 | X64: 0.7102937214 | Y64: 3903.745621 | Z64: 35.06413366 | AA64: 0 | AB64: 0.05165534896 | AC64: 0.04147696039 | AD64: 1437.829157 | AE64: 3.113257882 | AF64: 7.948663433 | AG64: 4.80506602 | AH64: 1.382353742 | AI64: 0.8077232552 | AJ64: 0.2907184047 | AK64: 1.123115063 | AL64: 0.1599057397 | AM64: 0.9984117489 | AN64: 0.1161719213 | AO64: 0.1569118836 | AP64: 3.878738884 | AQ64: 6.509700889 | AR64: 0.4467849636 | AS64: 0.2823605497 | AT64: 74.22 | AV64: 1 | AW64: 1 | AY64: 80.71602351 | AZ64: 0.6183798099 | BA64: 3.094002382 | BB64: 0.6515263126 | BC64: 1.534857427 | BD64: 3.098484496 | BE64: 0.3227384231 | BF64: 1810.47579 | BH64: 3.836891548 | BI64: 0.9934151266 | BJ64: 1.064314223 | BK64: 1.411547467 | BL64: 2.771984798 | BM64: 7.07733668 | BO64: 0.700247004 | BP64: 1.384552759 | BQ64: 1.148665804 | BR64: 2.293864613 | BS64: 1.711420011 | BZ64: 3 | CC64: 1 | CW64: 1 | DB64: 3.878738884 | DK64: 1399.655607 | DL64: 7 | DO64: 1.086410896 | DP64: 0.01749745632 | DQ64: 0.1749745632 | DW64: 2.252142695 | DX64: 1.230821122 | DY64: 1.711420011 | DZ64: 0.005523409954 | EA64: 0.1493437568 | EB64: 3836.891548 | ED64: 0 | EE64: 1.582320774 | EF64: 270.3832561 | EG64: 0.543226228 | EH64: 3.863240321 | EI64: 0.3607523392 | EJ64: 6.968134865 | EK64: 19.46933167 | EL64: 6.787127375 | EM64: 0.543226228 | EN64: 0.1435104256 | EO64: 0.09069616473 | EP64: 0.6933320875 | EQ64: 29.81582604 | ER64: 6.052063991 | FG64: =SUM(EU64:FE64) -> 0 | FH64: =EY64+FA64 -> 0 | FI64: =FA64/EY64 ->  | FJ64: =100*(FA64/40.304)/(FA64/40.304+EY64/71.846) ->  | FK64: =FB64/EW64 ->  | FM64: =FB64/EW64 ->  | FN64: =EW64/FN$1 -> 0 | FO64: =EW64+FB64 -> 0 | FP64: =FO64/(FH64+EV64) ->  | FQ64: 18 | FR64: 59 | FV64: =Q64*(AY64*0.01414)-0.1393 -> 5.075433808 | FW64: =FV64-FA64 -> 5.075433808 | FX64: =Q64+FV64 -> 9.64445294 | FY64: =(FX64-40.455)/-1.0924 -> 28.20445538 | FZ64: =FY64-EW64 -> 28.20445538 | GA64: =100*FY64/36 -> 78.3457094 | GB64: =(FV64/40.302)/(FV64/40.302+Q64/71.846) -> 0.6644608446 | GC64: =GB64-FJ64 ->  | GI64: 1.382353742 | GJ64: 0.04147696039 | GK64: 1.382353742 | GL64: 0.04147696039 | GN64: =GL64 -> 0.04147696039
A65: Dho 1673 | B65: 2 | D65: atyp felds | E65: O-62 | J65: Dho 1984 | L65: 0.3815906719 | M65: 0.08323767245 | N65: 15.21061916 | O65: 11.59515445 | P65: 891.8565319 | Q65: 5.264802251 | R65: 16.77437668 | S65: 156.5451039 | T65: 35.64891899 | U65: 0.3573752742 | V65: 0.3691122775 | W65: 0.3965654908 | X65: 1.075262547 | Y65: 600.1254084 | Z65: 49.16705625 | AA65: 0.02648970065 | AB65: 0.02114232379 | AC65: 0.04333586258 | AD65: 254.1274932 | AE65: 2.905771108 | AF65: 7.345253973 | AG65: 4.792610192 | AH65: 1.412596892 | AI65: 0.8213769983 | AJ65: 0.3016541779 | AK65: 1.153229343 | AL65: 0.165084892 | AM65: 1.013048622 | AN65: 0.1491081522 | AO65: 0.09474337563 | AP65: 5.701569224 | AQ65: 3.498748104 | AR65: 0.450462469 | AS65: 0.2805635867 | AT65: 223.1 | AV65: 1 | AW65: 1 | AY65: 76.91631323 | AZ65: 0.6267499258 | BA65: 3.135881431 | BB65: 0.6547131501 | BC65: 1.527386459 | BD65: 3.446676984 | BE65: 0.290134528 | BF65: 2004.125318 | BH65: 3.529345647 | BI65: 0.983551652 | BJ65: 1.034822159 | BK65: 1.289266618 | BL65: 2.519681906 | BM65: 6.369291607 | BO65: 0.707449563 | BP65: 1.394401869 | BQ65: 0.9145185723 | BR65: 2.260658717 | BS65: 1.71979115 | BZ65: 8 | CC65: 1 | CW65: 1 | DB65: 5.701569224 | DK65: 215.1887918 | DL65: 4 | DO65: 1.579498276 | DP65: 0.01765100265 | DQ65: 0.1765100265 | DW65: 2.05704198 | DX65: 1.224905437 | DY65: 1.71979115 | DZ65: 0.004989707935 | EA65: 0.1218264835 | EB65: 3529.345647 | ED65: 0 | EE65: 1.60556284 | EF65: 244.1555399 | EG65: 0.6912420458 | EH65: 3.82301797 | EI65: 0.3968754935 | EJ65: 6.450639749 | EK65: 17.60167798 | EL65: 9.332394691 | EM65: 0.6912420458 | EN65: 0.1550233835 | EO65: 0.09655391846 | EP65: 0.7529099875 | EQ65: 27.45649447 | ER65: 2.212846536 | GI65: 1.412596892 | GJ65: 0.04333586258 | GK65: 1.412596892 | GL65: 0.04333586258 | GN65: =GL65 -> 0.04333586258
A66: QUE 93069 | B66: 1 | D66: atyp felds | J66: QUE 94269 | L66: 0.3442007843 | N66: 16.33693246 | O66: 7.599272331 | P66: 595.0247495 | Q66: 4.377200871 | R66: 22.58306754 | S66: 307.9329847 | T66: 12.89318519 | X66: 2.116095861 | Y66: 158.0481046 | Z66: 41.83904139 | AC66: 0.04311137255 | AD66: 39.8128976 | AE66: 3.186861874 | AF66: 8.302588235 | AG66: 4.957010893 | AH66: 1.495681307 | AI66: 0.8187550327 | AJ66: 0.3169296732 | AK66: 1.156128105 | AL66: 0.1627337691 | AM66: 1.118820566 | AN66: 0.1416436601 | AP66: 13.21690632 | AQ66: 4.651851852 | AR66: 0.5178552505 | AS66: 0.1303712418 | AT66: 114.75 | AV66: 1 | AW66: 1 | AY66: 78.30022712 | AZ66: 0.5772518583 | BA66: 2.888222733 | BB66: 0.6954412348 | BC66: 1.437936018 | BD66: 3.118912882 | BE66: 0.3206245374 | BF66: 1707.33271 | BH66: 4.477268466 | BI66: 1.013682656 | BJ66: 1.074055609 | BK66: 1.335438085 | BL66: 2.756495462 | BM66: 7.181373935 | BO66: 0.6586353199 | BP66: 1.336837516 | BQ66: 1.01933655 | BR66: 0.9137675474 | BS66: 1.826775101 | CC66: 1 | CW66: 1 | DB66: 13.21690632 | DK66: 10 | DL66: 0 | DO66: 1.012511823 | DP66: 0.01934950384 | DQ66: 0.1934950384 | DW66: 2.130709168 | DX66: 1.293698597 | DY66: 1.826775101 | DZ66: 0.005857089215 | EA66: 0.1968190166 | EB66: 4477.268466 | ED66: 0 | EE66: 3.972158609 | EF66: 336.0355449 | EG66: 0.3365031043 | EH66: 3.647901103 | EI66: 0.3627794835 | EJ66: 6.153962657 | EK66: 19.58328558 | EL66: 13.6355694 | EM66: 0.3365031043 | EN66: 0.1624969236 | EO66: 0.04090897158 | EP66: 0.8872821525 | EQ66: 23.29841624 | ER66: 1.269197141 | FH66: =EY66+FA66 -> 0 | FI66: =FA66/EY66 ->  | FJ66: =100*(FA66/40.304)/(FA66/40.304+EY66/71.846) ->  | FK66: =FB66/EW66 ->  | FM66: =FB66/EW66 ->  | FN66: =EW66/FN$1 -> 0 | FO66: =EW66+FB66 -> 0 | FP66: =FO66/(FH66+EV66) ->  | FQ66: 153 | FR66: 38.2 | FV66: =Q66*(AY66*0.01414)-0.1393 -> 4.706984528 | FW66: =FV66-FA66 -> 4.706984528 | FX66: =Q66+FV66 -> 9.0841854 | FY66: =(FX66-40.455)/-1.0924 -> 28.71733303 | FZ66: =FY66-EW66 -> 28.71733303 | GA66: =100*FY66/36 -> 79.77036952 | GB66: =(FV66/40.302)/(FV66/40.302+Q66/71.846) -> 0.6571821277 | GC66: =GB66-FJ66 ->  | GI66: 1.495681307 | GJ66: 0.04311137255 | GK66: 1.495681307 | GL66: 0.04311137255 | GM66: =GL66 -> 0.04311137255
A67: NWA 05000 | B67: 0 | D67: atyp felds | G67: 1.01 | H67: P | I67: 362 | J67: NWA 05000 chips | K67: D369 | L67: 0.4112056146 | M67: 0.05494515048 | N67: 15.31744136 | O67: 9.940445119 | P67: 861.4821067 | Q67: 5.755121712 | R67: 37.24482549 | S67: 529.7182126 | T67: 4.197066262 | U67: 0.5688609636 | V67: 0.1729024406 | W67: 0.3783345979 | X67: 0.2822837633 | Y67: 181.2856285 | Z67: 41.75918374 | AA67: 0 | AC67: 0.02787201252 | AD67: 196.5127086 | AE67: 3.257029369 | AF67: 8.571813354 | AG67: 5.057697901 | AH67: 1.497950857 | AI67: 0.9145390744 | AJ67: 0.3109860268 | AK67: 1.167796583 | AL67: 0.1633556572 | AM67: 1.100380864 | AN67: 0.1351625253 | AP67: 23.82614125 | AQ67: 9.246813354 | AR67: 0.4937666287 | AS67: 0.2014823438 | AT67: 632.64 | AV67: 1 | AW67: 1 | AY67: 86.66433911 | AZ67: 0.606331999 | BA67: 3.033722349 | BB67: 0.6235490964 | BC67: 1.603722956 | BD67: 3.335816413 | BE67: 0.2997766892 | BF67: 2036.605167 | BH67: 4.500257336 | BI67: 1.024006676 | BJ67: 1.08940039 | BK67: 1.362773538 | BL67: 2.789038277 | BM67: 7.340159649 | BO67: 0.6601505854 | BP67: 1.361302168 | BQ67: 1.06983534 | BR67: 1.481076773 | BS67: 1.637929859 | BY67: 20 | CB67: 1 | CC67: 1 | CF67: 1 | CG67: 1 | CQ67: OlGb | CR67: 1 | CT67: 1 | CU67: 1 | CW67: 1 | CZ67: 1 | DB67: 23.82614125 | DC67: =S67 -> 529.7182126 | DD67: =DB67 -> 23.82614125 | DE67: =LOG(S67) -> 2.724044905 | DF67: =LOG(DB67) -> 1.377053712 | DG67: =DE67-DE$411 -> 1.332723743 | DH67: 1.900481329 | DI67: =AVERAGE(DG67:DH67) -> 1.616602536 | DJ67: =IF(DH67<DI$416,0,IF(DI67<DI$417,1,IF(DI67<DI$418,2,IF(DI67<DI$419,3,IF(DI67<DI$420,4,IF(DI67<DI$421,5,IF(DI67<DI$422,6,IF(DI67<DI$423,7,IF(#REF!<DI187,8,9))))))))) ->  | DK67: 155.414552 | DL67: 3 | DO67: 1.287942831 | DP67: 0.01894590776 | DQ67: 0.1894590776 | DR67: 5000ss | DW67: 2.174323246 | DX67: 1.282715568 | DY67: 1.637929859 | DZ67: 0.004910131901 | EA67: 0.1506925333 | EB67: 4500.257336 | EC67: =(FD67*8301)/AC67 -> 18708.27494 | ED67: 348.1003872 | EE67: 2.45066947 | EF67: 306.9011918 | EG67: 0.2668946622 | EH67: 3.755141652 | EI67: 0.3585465313 | EJ67: 6.596293025 | EK67: 19.93827103 | EL67: 14.22259886 | EM67: 0.2668946622 | EN67: 0.1516002998 | EO67: 0.06186076974 | EP67: 0.9298158667 | EQ67: 22.23264804 | ER67: 1.39949516 | ET67: WU | EU67: 44.98514004 | EV67: 0.4017395177 | EW67: 26.2234363 | EX67: 0.1106062586 | EY67: 5.708024648 | EZ67: 0.06980714934 | FA67: 7.135640133 | FB67: 15.31738191 | FC67: 0.4401496951 | FD67: 0.06281619965 | FE67: 0.06626662333 | FG67: =SUM(EU67:FE67) -> 100.5210085 | FH67: =EY67+FA67 -> 12.84366478 | FI67: =FA67/EY67 -> 1.250106749 | FJ67: =100*(FA67/40.304)/(FA67/40.304+EY67/71.846) -> 69.0253172 | FK67: =FB67/EW67 -> 0.5841104017 | FM67: =FB67/EW67 -> 0.5841104017 | FN67: =EW67/FN$1 -> 0.7284287861 | FO67: =EW67+FB67 -> 41.54081821 | FP67: =FO67/(FH67+EV67) -> 3.136243883 | FQ67: 106 | FR67: 69 | FS67: =EW67*0.5293 -> 13.88006483 | FT67: =FB67*0.7147 -> 10.94733285 | FU67: =(FT67/40.078)/(FS67/26.981) -> 0.5309685882 | FV67: =Q67*(AY67*0.01414)-0.1393 -> 6.913220411 | FW67: =FV67-FA67 -> -0.2224197225 | FX67: =Q67+FV67 -> 12.66834212 | FY67: =(FX67-40.455)/-1.0924 -> 25.43634006 | FZ67: =FY67-EW67 -> -0.7870962443 | GA67: =100*FY67/36 -> 70.65650016 | GB67: =(FV67/40.302)/(FV67/40.302+Q67/71.846) -> 0.6816726351 | GC67: =GB67-FJ67 -> -68.34364457 | GE67: =FN67 -> 0.7284287861 | GF67: =FJ67 -> 69.0253172 | GG67: =AR67 -> 0.4937666287 | GI67: 2.22285456 | GJ67: 0.0452452485 | GK67: 2.22285456 | GL67: 0.0452452485 | GO67: =GL67 -> 0.0452452485
A68: Rabt Sbayta 007 | B68: 0 | D68: atyp felds | F68: 143 | G68: 12.01 | H68: Ð | I68: 398 | J68: NWA LO18-1 | K68: D398 | L68: 0.3390769348 | M68: 0.04316380071 | N68: 15.67504201 | O68: 9.969393863 | P68: 886.902856 | Q68: 5.087629174 | R68: 17.6784298 | S68: 166.5856533 | T68: 3.994522942 | U68: 0.2710572085 | V68: 0.2006910811 | W68: 0.1393307932 | X68: 1.803782315 | Y68: 175.0644675 | Z68: 57.3662272 | AA68: 0 | AB68: 0.008454846721 | AC68: 0.05272890424 | AD68: 461.1554321 | AE68: 3.491233264 | AF68: 7.740599135 | AG68: 5.755284807 | AH68: 1.547163427 | AI68: 0.8267423962 | AJ68: 0.3281651431 | AK68: 1.189462174 | AL68: 0.1707728058 | AM68: 1.095409063 | AN68: 0.1391332823 | AO68: 0 | AP68: 7.023363643 | AQ68: 2.577265784 | AR68: 0.5686837632 | AS68: 0.1923588317 | AT68: 123 | AV68: 1 | AY68: 88.96256564 | AZ68: 0.5437509387 | BA68: 2.720604186 | BB68: 0.7124285837 | BC68: 1.403649464 | BD68: 3.04280002 | BE68: 0.3286446673 | BF68: 1625.950908 | BH68: 3.966754861 | BI68: 0.8626755055 | BJ68: 0.9246043213 | BK68: 1.414302338 | BL68: 2.935136015 | BM68: 6.507646318 | BO68: 0.668173 | BP68: 1.412406999 | BQ68: 1.073447557 | BR68: 1.227732107 | BS68: 1.871397226 | BY68: 2 | CB68: 1 | CC68: 1 | CR68: 0 | CS68: 1 | CT68: 0 | CV68: 1 | CW68: 0 | DB68: 7.023363643 | DC68: =S68 -> 166.5856533 | DD68: =DB68 -> 7.023363643 | DE68: =LOG(S68) -> 2.221637596 | DF68: =LOG(DB68) -> 0.8465451551 | DG68: 0.8303164346 | DH68: 1.369972772 | DI68: =AVERAGE(DG68:DH68) -> 1.100144603 | DJ68: =IF(DH68<DI$416,0,IF(DI68<DI$417,1,IF(DI68<DI$418,2,IF(DI68<DI$419,3,IF(DI68<DI$420,4,IF(DI68<DI$421,5,IF(DI68<DI$422,6,IF(DI68<DI$423,7,IF(#REF!<DI190,8,9))))))))) -> 6 | DK68: 418.8121974 | DL68: 5 | ED68: 0 | ER68: 1.323265758
A69: NWA 06721 | B69: 0 | D69: atyp felds | E69: JS10-5 | F69: 29 | G69: 3 | H69: W | I69: 371 | J69: NWA 06721 | K69: D373 | L69: 0.4574593213 | M69: 0.1340844938 | N69: 15.58476665 | O69: 10.42391576 | P69: 729.2403713 | Q69: 4.961095847 | R69: 17.67298331 | S69: 175.6481621 | T69: 27.60242128 | U69: 0.3044401581 | V69: 0.4079685736 | W69: 1.705758374 | X69: 2.487529796 | Y69: 241.4288358 | Z69: 41.11127838 | AA69: 0 | AB69: 0.01083976289 | AC69: 0.09970928993 | AD69: 1249.000031 | AE69: 3.297815519 | AF69: 9.795057709 | AG69: 4.873491406 | AH69: 1.505582487 | AI69: 0.8569571258 | AJ69: 0.3087985196 | AK69: 1.208636903 | AL69: 0.1691487423 | AM69: 1.05938455 | AN69: 0.1364481245 | AO69: 0.1538671434 | AP69: 7.141406348 | AQ69: 3.03941789 | AR69: 0.5414640886 | AS69: 0.2273341488 | AT69: 318.84 | AV69: 1 | AW69: 1 | AX69: 1 | AY69: 69.95839072 | AZ69: 0.5557373088 | BA69: 2.780576807 | BB69: 0.6688378068 | BC69: 1.495130792 | BD69: 3.96039732 | BE69: 0.2524999184 | BF69: 2254.204426 | BH69: 3.699434926 | BI69: 1.155666165 | BJ69: 1.231279576 | BK69: 1.37284462 | BL69: 2.728541146 | BM69: 8.104218636 | BO69: 0.6800966222 | BP69: 1.421185995 | BQ69: 1.06515462 | BR69: 1.523903025 | BS69: 1.756893596 | BY69: 11 | CB69: 1 | CC69: 1 | CF69: 1 | CG69: 1 | CQ69: Oph | CR69: 1 | CT69: 1 | CU69: 1 | CW69: 1 | CZ69: 1 | DB69: 7.141406348 | DC69: =S69 -> 175.6481621 | DD69: =DB69 -> 7.141406348 | DE69: =LOG(S69) -> 2.24464361 | DF69: =LOG(DB69) -> 0.8537837453 | DG69: 0.8533224482 | DH69: 1.377211362 | DI69: =AVERAGE(DG69:DH69) -> 1.115266905 | DJ69: =IF(DH69<DI$416,0,IF(DI69<DI$417,1,IF(DI69<DI$418,2,IF(DI69<DI$419,3,IF(DI69<DI$420,4,IF(DI69<DI$421,5,IF(DI69<DI$422,6,IF(DI69<DI$423,7,IF(#REF!<DI187,8,9))))))))) -> 6 | DK69: 1207.708794 | DL69: 6 | DO69: 1.161926999 | DP69: 0.01925897846 | DQ69: =10*DP69 -> 0.1925897846 | DW69: =AE69/AH69 -> 2.190391791 | DX69: =AH69/AK69 -> 1.245686346 | DY69: =AH69/AI69 -> 1.756893596 | DZ69: =AH69/(L69*0.7419*1000) -> 0.004436154896 | EA69: =AH69/O69 -> 0.1444354043 | EB69: =Q69*7773/O69 -> 3699.434926 | EC69: =(FD69*8301)/AC69 -> 9403.542279 | ED69: 622.7626396 | EE69: =AR69/AS69 -> 2.381798298 | EF69: =L69*7419/O69 -> 325.5869276 | EG69: =O69/R69 -> 0.5898220788 | EH69: =AK69/AJ69 -> 3.91399837 | EI69: =AK69/AE69 -> 0.3664962141 | EJ69: =AE69/AR69 -> 6.090552612 | EK69: =AE69/AL69 -> 19.49654176 | EL69: =S69/R69 -> 9.93879522 | EM69: =O69/R69 -> 0.5898220788 | EN69: =AR69/AE69 -> 0.1641887139 | EO69: =AS69/AE69 -> 0.06893476833 | EP69: =(AP69/S69)/(595/12300) -> 0.8404817372 | EQ69: =S69/AP69 -> 24.59573836 | ER69: 1.534757243 | ET69: WU | EU69: 44.22453891 | EV69: 0.3046112134 | EW69: 28.53860865 | EX69: 0.1065857727 | EY69: 4.961095847 | EZ69: 0.0912574274 | FA69: 4.613711176 | FB69: 15.5758258 | FC69: 0.595 | FD69: 0.1129527194 | FE69: 0.05213550357 | FG69: =SUM(EU69:FE69) -> 99.17632302 | FH69: =EY69+FA69 -> 9.574807024 | FI69: =FA69/EY69 -> 0.9299782383 | FJ69: =100*(FA69/40.304)/(FA69/40.304+EY69/71.846) -> 62.37463145 | FK69: =FB69/EW69 -> 0.5457808397 | FM69: =FB69/EW69 -> 0.5457808397 | FN69: =EW69/FN$1 -> 0.7927391293 | FO69: =EW69+FB69 -> 44.11443445 | FP69: =FO69/(FH69+EV69) -> 4.465286659 | FQ69: 124 | FR69: 64 | FS69: =EW69*0.5293 -> 15.10548556 | FT69: =FB69*0.7147 -> 11.1320427 | FU69: =(FT69/40.078)/(FS69/26.981) -> 0.4961262136 | FV69: =Q69*(AY69*0.01414)-0.1393 -> 4.768273783 | FW69: =FV69-FA69 -> 0.1545626066 | FX69: =Q69+FV69 -> 9.72936963 | FY69: =(FX69-40.455)/-1.0924 -> 28.12672132 | FZ69: =FY69-EW69 -> -0.4118873345 | GA69: =100*FY69/36 -> 78.12978144 | GB69: =(FV69/40.302)/(FV69/40.302+Q69/71.846) -> 0.6314591145 | GC69: =GB69-FJ69 -> -61.74317234 | GE69: =FN69 -> 0.7927391293 | GF69: =FJ69 -> 62.37463145 | GG69: =AR69 -> 0.5414640886 | GI69: 1.505582487 | GJ69: 0.09970928993 | GK69: =GI69 -> 1.505582487 | GL69: 0.09970928993 | GO69: =GL69 -> 0.09970928993
A70: QUE 93069 | B70: 1 | D70: atyp felds | J70: QUE 93069 | L70: 0.3547906389 | N70: 16.25850863 | O70: 7.749853711 | P70: 603.1355757 | Q70: 4.462460936 | R70: 22.00284392 | S70: 294.5487453 | T70: 17.30302189 | X70: 1.629403809 | Y70: 157.9154654 | Z70: 46.12279765 | AC70: 0.0376379071 | AD70: 41.4900872 | AE70: 3.351136501 | AF70: 8.728120306 | AG70: 5.287232604 | AH70: 1.622786973 | AI70: 0.8295587827 | AJ70: 0.3244985941 | AK70: 1.211795124 | AL70: 0.1693061043 | AM70: 1.169699982 | AN70: 0.1492043068 | AP70: 16.04506496 | AQ70: 4.0185727 | AR70: 0.5228586937 | AS70: 0.1380223527 | AT70: 280.95 | AV70: 1 | AW70: 1 | AX70: 1 | AY70: 77.82541429 | AZ70: 0.6203143626 | BA70: 3.103681726 | BB70: 0.7447143138 | BC70: 1.342796803 | BD70: 3.173002088 | BE70: 0.3151589479 | BF70: 1622.019276 | BH70: 4.475788854 | BI70: 1.013398745 | BJ70: 1.067054005 | BK70: 1.294285807 | BL70: 2.765431578 | BM70: 7.202636927 | BO70: 0.6315641986 | BP70: 1.387353165 | BQ70: 1.049919072 | BR70: 0.9581365425 | BS70: 1.956204921 | CC70: 1 | CG70: 1 | CW70: 1 | DB70: 16.04506496 | DK70: 10 | DL70: 0 | DO70: 1.019387407 | DP70: 0.02032470745 | DQ70: 0.2032470745 | DW70: =AE70/AH70 -> 2.065050162 | DX70: =AH70/AK70 -> 1.339159517 | DY70: 1.956204921 | DZ70: 0.006165154848 | EA70: =AH70/O70 -> 0.20939582 | EB70: =Q70*7773/O70 -> 4475.788854 | ED70: 170.3770917 | EE70: =AR70/AS70 -> 3.788217512 | EF70: =L70*7419/O70 -> 339.6440563 | EG70: =O70/R70 -> 0.3522205465 | EH70: =AK70/AJ70 -> 3.734361707 | EI70: =AK70/AE70 -> 0.3616072109 | EJ70: =AE70/AR70 -> 6.409258451 | EK70: =AE70/AL70 -> 19.79335899 | EL70: =S70/R70 -> 13.38684883 | EM70: =O70/R70 -> 0.3522205465 | EN70: =AR70/AE70 -> 0.1560242901 | EO70: =AS70/AE70 -> 0.04118672954 | EP70: =(AP70/S70)/(595/12300) -> 1.126088305 | EQ70: =S70/AP70 -> 18.35759133 | ER70: 0.9031572476 | ES70: K+ (1996) fusion crust | ET70: my lit mean | EU70: 44.689608 | EV70: 0.2493241626 | EW70: 28.88220002 | EX70: 0.08360059931 | EY70: 4.374105151 | EZ70: 0.0741820605 | FA70: 4.584833773 | FB70: 16.43100971 | FC70: 0.3449074915 | FD70: 0.03330752016 | FE70: 0.03 | FG70: =SUM(EU70:FE70) -> 99.77707849 | FH70: =EY70+FA70 -> 8.958938923 | FI70: =FA70/EY70 -> 1.048176396 | FJ70: =100*(FA70/40.304)/(FA70/40.304+EY70/71.846) -> 65.13835023 | FK70: =FB70/EW70 -> 0.5688974419 | FM70: =FB70/EW70 -> 0.5688974419 | FN70: =EW70/FN$1 -> 0.802283334 | FO70: =EW70+FB70 -> 45.31320973 | FP70: =FO70/(FH70+EV70) -> 4.920929095 | FQ70: 152 | FR70: 38 | FS70: =EW70*0.5293 -> 15.28734847 | FT70: =FB70*0.7147 -> 11.74324264 | FU70: =(FT70/40.078)/(FS70/26.981) -> 0.5171396891 | FV70: =Q70*(AY70*0.01414)-0.1393 -> 4.771421198 | FW70: =FV70-FA70 -> 0.1865874248 | FX70: =Q70+FV70 -> 9.233882134 | FY70: =(FX70-40.455)/-1.0924 -> 28.5802983 | FZ70: =FY70-EW70 -> -0.3019017213 | GA70: =100*FY70/36 -> 79.38971751 | GB70: =(FV70/40.302)/(FV70/40.302+Q70/71.846) -> 0.6558981111 | GC70: =GB70-FJ70 -> -64.48245212 | GI70: 1.622786973 | GJ70: 0.0376379071 | GK70: 1.622786973 | GL70: 0.0376379071 | GM70: =GL70 -> 0.0376379071
A71: Dho 0025 | B71: 2 | D71: atyp felds | J71: Dho 0025 | L71: 0.3452202879 | M71: 0.08512268677 | N71: 15.49899931 | O71: 9.817084304 | P71: 766.059767 | Q71: 4.7643756 | R71: 15.38804798 | S71: 126.8420836 | T71: 16.13953393 | U71: 0.1888622344 | X71: 2.358875942 | Y71: 2091.574366 | Z71: 51.90541467 | AA71: 0 | AB71: 0.03460095956 | AC71: 0.02263879369 | AD71: 109.765867 | AE71: 3.273629883 | AF71: 8.7065634 | AG71: 5.141672378 | AH71: 1.645846196 | AI71: 0.81925634 | AJ71: 0.3365117204 | AK71: 1.279981083 | AL71: 0.1791314599 | AM71: 1.25572584 | AN71: 0.133803427 | AO71: 0 | AP71: 3.701549006 | AQ71: 7.432912954 | AR71: 0.5251209047 | AS71: 0.2040260452 | AT71: 72.95 | AV71: 1 | AW71: 1 | AX71: 1 | AY71: 78.03332876 | AZ71: 0.626418533 | BA71: 3.13422334 | BB71: 0.7647945622 | BC71: 1.307540677 | BD71: 3.126236796 | BE71: 0.3198734021 | BF71: 1556.153498 | BH71: 3.772351381 | BI71: 1.034829849 | BJ71: 1.081476108 | BK71: 1.24663671 | BL71: 2.557561145 | BM71: 6.802103184 | BO71: 0.6588537414 | BP71: 1.310673193 | BQ71: 1.187401745 | BR71: 1.410225669 | BS71: 2.00895143 | BZ71: 3 | CC71: 1 | CG71: 1 | CW71: 1 | DB71: 3.701549006 | DK71: 64.92595827 | DL71: 2 | DO71: 1.139220854 | DP71: 0.0211850594 | DQ71: 0.211850594 | DW71: =AE71/AH71 -> 1.989025397 | DX71: =AH71/AK71 -> 1.285836344 | DY71: 2.00895143 | DZ71: 0.006426101288 | EA71: =AH71/O71 -> 0.1676512236 | EB71: =Q71*7773/O71 -> 3772.351381 | ED71: 192.2293859 | EE71: =AR71/AS71 -> 2.573793479 | EF71: =L71*7419/O71 -> 260.8910381 | EG71: =O71/R71 -> 0.6379681372 | EH71: =AK71/AJ71 -> 3.803674599 | EI71: =AK71/AE71 -> 0.3909974947 | EJ71: =AE71/AR71 -> 6.234049824 | EK71: =AE71/AL71 -> 18.2750137 | EL71: =S71/R71 -> 8.242896292 | EM71: =O71/R71 -> 0.6379681372 | EN71: =AR71/AE71 -> 0.1604093692 | EO71: =AS71/AE71 -> 0.06232410275 | EP71: =(AP71/S71)/(595/12300) -> 0.6032652117 | EQ71: =S71/AP71 -> 34.26729821 | ER71: 7.241167022 | ES71: 2013-12-18 | EU71: 44.3043803 | EV71: 0.2690519644 | EW71: 27.24471502 | EX71: 0.1119672955 | EY71: 4.7643756 | EZ71: 0.05778301354 | FA71: 6.722098173 | FB71: 16.11266134 | FC71: 0.3452202879 | FD71: 0.03811348073 | FE71: 0.05000860318 | FG71: =SUM(EU71:FE71) -> 100.0203751 | FH71: =EY71+FA71 -> 11.48647377 | FI71: =FA71/EY71 -> 1.41090853 | FJ71: =100*(FA71/40.304)/(FA71/40.304+EY71/71.846) -> 71.55121562 | FK71: =FB71/EW71 -> 0.5914050239 | FM71: =FB71/EW71 -> 0.5914050239 | FN71: =EW71/FN$1 -> 0.7567976394 | FO71: =EW71+FB71 -> 43.35737635 | FP71: =FO71/(FH71+EV71) -> 3.688254981 | FQ71: 9 | FR71: 66 | FS71: =EW71*0.5293 -> 14.42062766 | FT71: =FB71*0.7147 -> 11.51571906 | FU71: =(FT71/40.078)/(FS71/26.981) -> 0.5375995525 | FV71: =Q71*(AY71*0.01414)-0.1393 -> 5.117670437 | FW71: =FV71-FA71 -> -1.604427736 | FX71: =Q71+FV71 -> 9.882046037 | FY71: =(FX71-40.455)/-1.0924 -> 27.98695896 | FZ71: =FY71-EW71 -> 0.7422439379 | GA71: =100*FY71/36 -> 77.74155265 | GB71: =(FV71/40.302)/(FV71/40.302+Q71/71.846) -> 0.656933096 | GC71: =GB71-FJ71 -> -70.89428252 | GI71: 1.645846196 | GJ71: 0.02263879369 | GK71: 1.645846196 | GL71: 0.02263879369 | GN71: =GL71 -> 0.02263879369
A72: NWA 06481 | B72: 0 | D72: atyp felds | G72: 2 | H72: T | I72: 371 | J72: NWA 06481 | K72: D372 | L72: 0.4791854835 | M72: 0.02030055 | N72: 15.94688407 | O72: 9.147435364 | P72: 737.0267204 | Q72: 4.741118618 | R72: 17.60001559 | S72: 205.9484215 | T72: 11.06748517 | U72: 0.2064722186 | V72: 0.2483565025 | W72: 0.3589268546 | X72: 0.9505608246 | Y72: 206.4822225 | Z72: 43.35082933 | AA72: 0 | AB72: 0.01076003638 | AC72: 0.04841284483 | AD72: 285.1159759 | AE72: 3.52095102 | AF72: 9.084953012 | AG72: 5.366961154 | AH72: 1.625752068 | AI72: 1.017207787 | AJ72: 0.3436403794 | AK72: 1.316387727 | AL72: 0.1865718765 | AM72: 1.189849942 | AN72: 0.1573151011 | AO72: 0.2862370621 | AP72: 7.342648651 | AQ72: 2.54245377 | AR72: 0.6037427569 | AS72: 0.2293309081 | AT72: 230.91 | AV72: 1 | AW72: 1 | AX72: 1 | AY72: 80.5719517 | AZ72: 0.5381917538 | BA72: 2.692789353 | BB72: 0.6084431322 | BC72: 1.643538972 | BD72: 3.494936973 | BE72: 0.2861281928 | BF72: 2186.727714 | BH72: 4.028748337 | BI72: 1.003955489 | BJ72: 1.067223817 | BK72: 1.357391895 | BL72: 2.67470666 | BM72: 6.901426401 | BO72: 0.6947015432 | BP72: 1.366350505 | BQ72: 0.9976071955 | BR72: 1.378710137 | BS72: 1.598249728 | BY72: 8 | CB72: 1 | CC72: 1 | CF72: 1 | CG72: 1 | CR72: 1 | CT72: 1 | CU72: 1 | CW72: 1 | CZ72: 1 | DB72: 7.342648651 | DC72: =S72 -> 205.9484215 | DD72: =DB72 -> 7.342648651 | DE72: =LOG(S72) -> 2.313758468 | DF72: =LOG(DB72) -> 0.8658527475 | DG72: =DE72-DE$411 -> 0.9224373059 | DH72: 1.389280364 | DI72: =AVERAGE(DG72:DH72) -> 1.155858835 | DJ72: =IF(DH72<DI$416,0,IF(DI72<DI$417,1,IF(DI72<DI$418,2,IF(DI72<DI$419,3,IF(DI72<DI$420,4,IF(DI72<DI$421,5,IF(DI72<DI$422,6,IF(DI72<DI$423,7,IF(#REF!<DI188,8,9))))))))) -> 6 | DK72: 240.7844486 | DL72: 4 | DO72: 1.239133101 | DP72: 0.02146772013 | DQ72: 0.2146772013 | DY72: 1.598249728 | DZ72: 0.004573043062 | ED72: 0 | ER72: 1.248628774
A73: NWA 10404 | B73: 0 | D73: atyp felds | E73: MAC140 | F73: 91 | G73: 7 | H73: h | I73: 386 | J73: NWA 10404 | K73: D388 | L73: 0.3585782071 | M73: 0.05278619084 | N73: 16.62427816 | O73: 6.606241685 | P73: 519.7857724 | Q73: 3.724424387 | R73: 14.27137932 | S73: 147.569018 | T73: 105.3383624 | U73: 0.2356596282 | V73: 0.2464908844 | W73: 0.515561203 | X73: 1.259343305 | Y73: 173.3789036 | Z73: 67.75510604 | AA73: 0.01727768583 | AB73: 0.006129933436 | AC73: 0.05402094881 | AD73: 61.55746308 | AE73: 3.824559243 | AF73: 9.792554045 | AG73: 6.273281543 | AH73: 1.788867136 | AI73: 0.82175519 | AJ73: 0.3530408079 | AK73: 1.318371347 | AL73: 0.1853758984 | AM73: 1.350462708 | AN73: 0.1675142272 | AO73: 0.004014492428 | AP73: 6.264688837 | AQ73: 3.256121232 | AR73: 0.6588602401 | AS73: 0.2232572558 | AT73: 206.19 | AV73: 1 | AW73: 1 | AX73: 1 | AY73: 78.68101066 | AZ73: 0.5426495447 | BA73: 2.71509347 | BB73: 0.8287260376 | BC73: 1.20667139 | BD73: 3.23732877 | BE73: 0.3088966463 | BF73: 1487.137678 | BH73: 4.382211875 | BI73: 0.9962454278 | BJ73: 1.056299123 | BK73: 1.339994112 | BL73: 2.900972667 | BM73: 7.427766134 | BO73: 0.6273090926 | BP73: 1.324632754 | BQ73: 1.030865628 | BR73: 1.229913571 | BS73: 2.176885717 | BY73: 6 | CB73: 1 | CC73: 1 | CF73: 1 | CG73: 1 | CQ73: An Gl | CR73: 1 | CT73: 1 | CU73: 1 | CW73: 1 | CZ73: 1 | DB73: 6.264688837 | DC73: =S73 -> 147.569018 | DD73: =DB73 -> 6.264688837 | DE73: =LOG(S73) -> 2.168995187 | DF73: =LOG(DB73) -> 0.7968995047 | DG73: 0.7776740257 | DH73: 1.320327121 | DI73: =AVERAGE(DG73:DH73) -> 1.049000574 | DJ73: =IF(DH73<DI$416,0,IF(DI73<DI$417,1,IF(DI73<DI$418,2,IF(DI73<DI$419,3,IF(DI73<DI$420,4,IF(DI73<DI$421,5,IF(DI73<DI$422,6,IF(DI73<DI$423,7,IF(#REF!<DI175,8,9))))))))) -> 6 | DK73: 13.09912455 | DL73: 0 | DO73: 0.5739492041 | DP73: 0.02353881668 | DQ73: 0.2353881668 | DW73: =AE73/AH73 -> 2.13797837 | DX73: =AH73/AK73 -> 1.356876528 | DY73: 2.176885717 | DZ73: 0.006724326972 | EA73: =AH73/O73 -> 0.2707843917 | EB73: =Q73*7773/O73 -> 4382.211875 | EC73: =12000*AC73 -> 648.2513857 | ED73: =AVERAGE(ED59:ED61)*AH73 -> 245.5657389 | EE73: =AR73/AS73 -> 2.951125767 | EF73: =L73*7419/O73 -> 402.6936715 | EG73: =O73/R73 -> 0.4629014154 | EH73: =AK73/AJ73 -> 3.734331323 | EI73: =AK73/AE73 -> 0.344711969 | EJ73: =AE73/AR73 -> 5.804811112 | EK73: =AE73/AL73 -> 20.63137266 | EL73: =S73/R73 -> 10.34020712 | EM73: =O73/R73 -> 0.4629014154 | EN73: =AR73/AE73 -> 0.1722708941 | EO73: =AS73/AE73 -> 0.05837463655 | EP73: =(AP73/S73)/(595/12300) -> 0.8775916111 | EQ73: =S73/AP73 -> 23.55568199 | ER73: 1.874278326 | GI73: 1.788867136 | GJ73: 0.05402094881 | GK73: =GI73 -> 1.788867136 | GL73: =GJ73 -> 0.05402094881 | GO73: =GL73 -> 0.05402094881
A74: Rabt Sbayta 007 | B74: 0 | D74: atyp felds | E74: AB#36 | F74: 112 | G74: 12 | H74: Ð | I74: 391 | J74: NWA Rabt Sbayta 007 | K74: D397 | L74: 0.3721324626 | M74: 0.06343288991 | N74: 15.29991731 | O74: 9.402876709 | P74: 750.5599593 | Q74: 4.815497809 | R74: 16.00814984 | S74: 140.7095589 | T74: 11.5867223 | U74: 0.1999531583 | V74: 0.1172530712 | W74: 0.7554342315 | X74: 1.538501562 | Y74: 206.384284 | Z74: 65.31148416 | AA74: 0.01955543703 | AB74: 0.01011944468 | AC74: 0.05372762362 | AD74: 100.6091621 | AE74: 3.859367819 | AF74: 9.613899952 | AG74: 5.899425508 | AH74: 1.807912457 | AI74: 0.8518179046 | AJ74: 0.3736067934 | AK74: 1.380377082 | AL74: 0.1963128002 | AM74: 1.32887466 | AN74: 0.1567526977 | AO74: 0 | AP74: 5.30659337 | AQ74: 3.633871865 | AR74: 0.6241657905 | AS74: 0.331239971 | AT74: 232.79 | AV74: 1 | AW74: 1 | AX74: 1 | AY74: 79.82237591 | AZ74: 0.5789113881 | BA74: 2.896526027 | BB74: 0.8079900024 | BC74: 1.237639076 | BD74: 3.241127857 | BE74: 0.3085345732 | BF74: 1527.093156 | BH74: 3.980788606 | BI74: 0.9692486032 | BJ74: 1.027360479 | BK74: 1.337945296 | BL74: 2.79587938 | BM74: 6.964691084 | BO74: 0.6573211703 | BP74: 1.360483807 | BQ74: 1.113366232 | BR74: 1.92621645 | BS74: 2.122416596 | BY74: 7 | CB74: 1 | CC74: 1 | CF74: 1 | CG74: 1 | CR74: 1 | CT74: 1 | CU74: 1 | CW74: 1 | CZ74: 1 | DB74: 5.30659337 | DC74: =S74 -> 140.7095589 | DD74: =DB74 -> 5.30659337 | DE74: =LOG(S74) -> 2.148323602 | DF74: =LOG(DB74) -> 0.7248158101 | DG74: 0.75700244 | DH74: 1.248243427 | DI74: =AVERAGE(DG74:DH74) -> 1.002622933 | DJ74: =IF(DH74<DI$416,0,IF(DI74<DI$417,1,IF(DI74<DI$418,2,IF(DI74<DI$419,3,IF(DI74<DI$420,4,IF(DI74<DI$421,5,IF(DI74<DI$422,6,IF(DI74<DI$423,7,IF(#REF!<DI191,8,9))))))))) -> 6 | DK74: 51.66897693 | DL74: 2 | DQ74: 0 | DW74: =AE74/AH74 -> 2.134709457 | DX74: =AH74/AK74 -> 1.309723612 | DY74: 2.122416596 | DZ74: 0.006548388984 | EA74: =AH74/O74 -> 0.1922722708 | EB74: =Q74*7773/O74 -> 3980.788606 | ED74: =(FD74*8301)/AH74 -> 0 | EE74: =AR74/AS74 -> 1.884331135 | EF74: =L74*7419/O74 -> 293.6176689 | EG74: =O74/R74 -> 0.5873806031 | EH74: =AK74/AJ74 -> 3.694732285 | EI74: =AK74/AE74 -> 0.357669221 | EJ74: =AE74/AR74 -> 6.1832415 | EK74: =AE74/AL74 -> 19.65927751 | EL74: =S74/R74 -> 8.789870177 | EM74: =O74/R74 -> 0.5873806031 | EN74: =AR74/AE74 -> 0.1617274693 | EO74: =AS74/AE74 -> 0.08582752059 | EP74: =(AP74/S74)/(595/12300) -> 0.7796153011 | EQ74: =S74/AP74 -> 26.51598664 | ER74: 2.469373715
A75: Dho 0025 | B75: 2 | D75: atyp felds | J75: Dho 0301 | L75: 0.3363593468 | M75: 0.05019887887 | N75: 15.52678528 | O75: 8.821493054 | P75: 803.8924202 | Q75: 4.701887399 | R75: 16.56021789 | S75: 125.2797465 | T75: 14.65217158 | U75: 0.6505303437 | V75: 0.6505303437 | W75: 0.6505303437 | X75: 0.4261028516 | Y75: 3737.642213 | Z75: 51.95184012 | AA75: 0.02507628564 | AB75: 0.05009027541 | AC75: 0.04458001462 | AD75: 597.3627102 | AE75: 4.030096515 | AF75: 10.34158762 | AG75: 6.166814526 | AH75: 1.812417109 | AI75: 0.8218341214 | AJ75: 0.3678666342 | AK75: 1.405948038 | AL75: 0.1974176164 | AM75: 1.378350427 | AN75: 0.1578650256 | AO75: 0.2454813551 | AP75: 3.851888862 | AQ75: 3.786780405 | AR75: 0.646607458 | AS75: 0.3922081404 | AT75: 205.15 | AV75: 1 | AW75: 1 | AY75: 91.12883899 | AZ75: 0.5602116055 | BA75: 2.802963509 | BB75: 0.8395553607 | BC75: 1.191106682 | BD75: 3.036439993 | BE75: 0.3293330355 | BF75: 1376.862964 | BH75: 4.143036846 | BI75: 0.9984435727 | BJ75: 1.066976615 | BK75: 1.393660133 | BL75: 2.866461922 | BM75: 7.355597319 | BO75: 0.6593775397 | BP75: 1.314917509 | BQ75: 1.108275929 | BR75: 2.20159893 | BS75: 2.205332028 | BZ75: 8 | CC75: 1 | CW75: 1 | DB75: 3.851888862 | DK75: 548.3085573 | DL75: 5 | DO75: 1.124529211 | DP75: 0.02366025157 | DQ75: 0.2366025157 | DW75: =AE75/AH75 -> 2.223603217 | DX75: =AH75/AK75 -> 1.289106752 | DY75: 2.205332028 | DZ75: 0.007262886909 | EA75: =AH75/O75 -> 0.2054546887 | EB75: =Q75*7773/O75 -> 4143.036846 | ED75: 172.7739038 | EE75: =AR75/AS75 -> 1.648633446 | EF75: =L75*7419/O75 -> 282.8829518 | EG75: =O75/R75 -> 0.532691847 | EH75: =AK75/AJ75 -> 3.821896055 | EI75: =AK75/AE75 -> 0.348862126 | EJ75: =AE75/AR75 -> 6.232678676 | EK75: =AE75/AL75 -> 20.41406734 | EL75: =S75/R75 -> 7.565102547 | EM75: =O75/R75 -> 0.532691847 | EN75: =AR75/AE75 -> 0.1604446582 | EO75: =AS75/AE75 -> 0.09731978848 | EP75: =(AP75/S75)/(595/12300) -> 0.6355958131 | EQ75: =S75/AP75 -> 32.52423707 | ER75: 3.545107383 | ES75: 2013-12-18 | EU75: 44.30211895 | EV75: 0.268135478 | EW75: 27.37641344 | EX75: 0.1174969161 | EY75: 4.701887399 | EZ75: 0.05667681285 | FA75: 6.640938833 | FB75: 16.14115686 | FC75: 0.3363593468 | FD75: 0.03772297065 | FE75: 0.04938693452 | FG75: =SUM(EU75:FE75) -> 100.0282939 | FH75: =EY75+FA75 -> 11.34282623 | FI75: =FA75/EY75 -> 1.412398526 | FJ75: =100*(FA75/40.304)/(FA75/40.304+EY75/71.846) -> 71.57269585 | FK75: =FB75/EW75 -> 0.5896008581 | FM75: =FB75/EW75 -> 0.5896008581 | FN75: =EW75/FN$1 -> 0.760455929 | FO75: =EW75+FB75 -> 43.5175703 | FP75: =FO75/(FH75+EV75) -> 3.74797294 | FQ75: 14 | FR75: 63 | FS75: =EW75*0.5293 -> 14.49033564 | FT75: =FB75*0.7147 -> 11.53608481 | FU75: =(FT75/40.078)/(FS75/26.981) -> 0.5359595281 | FV75: =Q75*(AY75*0.01414)-0.1393 -> 5.919372413 | FW75: =FV75-FA75 -> -0.72156642 | FX75: =Q75+FV75 -> 10.62125981 | FY75: =(FX75-40.455)/-1.0924 -> 27.31027114 | FZ75: =FY75-EW75 -> -0.06614230865 | GA75: =100*FY75/36 -> 75.86186426 | GB75: =(FV75/40.302)/(FV75/40.302+Q75/71.846) -> 0.6917663753 | GC75: =GB75-FJ75 -> -70.88092947 | GI75: 1.812417109 | GJ75: 0.04458001462 | GK75: =GI75 -> 1.812417109 | GL75: =GJ75 -> 0.04458001462 | GN75: =GL75 -> 0.04458001462
A76: NWA 05000 | B76: 0 | D76: atyp felds | G76: 1 | H76: P | J76: NWA 05000 sawdust | K76: D364 | L76: 0.4402630508 | M76: 0.06634197067 | N76: 14.79393356 | O76: 10.26166815 | P76: 771.7432468 | Q76: 5.703904454 | R76: 30.06873581 | S76: 747.9978981 | T76: 97.09411659 | U76: 0.3865890173 | V76: 0 | W76: 0.2819114336 | X76: 1.717498271 | Y76: 189.1894697 | Z76: 74.37148148 | AA76: 108.4664751 | AB76: 0.1155562051 | AC76: 0.04383519013 | AD76: 119.6969194 | AE76: 4.911272078 | AF76: 12.53131286 | AG76: 7.31518999 | AH76: 2.206387764 | AI76: 0.975608878 | AJ76: 0.4369505611 | AK76: 1.565870659 | AL76: 0.2200791011 | AM76: 1.677688319 | AN76: 0.198997975 | AO76: 0.03685199829 | AP76: 18.02616761 | AQ76: 27.89194005 | AR76: 0.708761045 | AS76: 0.2333397326 | AT76: 885.62 | AX76: 1 | AY76: 75.20641239 | AZ76: 0.6221808762 | BA76: 3.113020643 | BB76: 0.8609569791 | BC76: 1.161498222 | BD76: 3.347972377 | BE76: 0.2986882469 | BF76: 1480.388728 | BH76: 4.320588882 | BI76: 0.9927830085 | BJ76: 1.061149767 | BK76: 1.395120554 | BL76: 3.136448116 | BM76: 8.002776469 | BO76: 0.198997975 | BP76: 0.03685199829 | BQ76: 18.02616761 | BR76: 1.194953946 | BS76: 0.708761045 | BT76: 0.2333397326 | BU76: 885.62 | BY76: 26 | ED76: 0
A77: NWA 10678 | B77: 0 | D77: atyp felds | E77: AB15-31 | F77: GF16-1 | G77: 8 | H77: Ç | I77: 389 | J77: NWA 10678 | K77: D391 | L77: 0.3853715124 | M77: 0.1098277069 | N77: 16.16644467 | O77: 7.0487458 | P77: 492.64329 | Q77: 3.763883602 | R77: 13.69452183 | S77: 139.2628425 | T77: 16.87364722 | U77: 0.6625073063 | V77: 0.0656904767 | W77: 1.134978429 | X77: 2.0105171 | Y77: 252.87835 | Z77: 91.77224961 | AA77: 0.01184945655 | AB77: 0.02025194518 | AC77: 0.07708552104 | AD77: 1389.22741 | AE77: 5.357759541 | AF77: 12.90694832 | AG77: 8.789533514 | AH77: 2.371972627 | AI77: 0.8862617911 | AJ77: 0.4598708238 | AK77: 1.567768113 | AL77: 0.2192599794 | AM77: 1.861260229 | AN77: 0.1986597636 | AO77: 0 | AP77: 6.667799459 | AQ77: 2.330562303 | AR77: 0.7839744828 | AS77: 0.2734791506 | AT77: 208.4 | AV77: 1 | AW77: 1 | AX77: 1 | AY77: 69.8909145 | AZ77: 0.6047033901 | BA77: 3.025573765 | BB77: 1.018879915 | BC77: 0.9814699314 | BD77: 3.225989521 | BE77: 0.309982408 | BF77: 1205.355921 | BH77: 4.150620276 | BI77: 0.9373291202 | BJ77: 1.004816447 | BK77: 1.415706182 | BL77: 3.417443878 | BM77: 8.232689652 | BO77: =(AL77/AH77)/(24.3/147.1) -> 0.5595721547 | BP77: =AH77/AM77 -> 1.274390647 | BQ77: =(AH77/AN77)/(147.1/14.2) -> 1.152591547 | BR77: 1.266148388 | BS77: =AH77/AI77 -> 2.676379204 | BY77: 6 | CB77: 1 | CC77: 1 | CF77: 1 | CG77: 1 | CR77: 1 | CT77: 1 | CU77: 1 | CW77: 1 | CZ77: 1 | DB77: =AP77 -> 6.667799459 | DC77: =S77 -> 139.2628425 | DD77: =DB77 -> 6.667799459 | DE77: =LOG(S77) -> 2.143835255 | DF77: =LOG(DB77) -> 0.8239825295 | DG77: =DE77-DE$411 -> 0.7525140939 | DH77: 1.347410146 | DI77: =AVERAGE(DG77:DH77) -> 1.04996212 | DJ77: =IF(DH77<DI$416,0,IF(DI77<DI$417,1,IF(DI77<DI$418,2,IF(DI77<DI$419,3,IF(DI77<DI$420,4,IF(DI77<DI$421,5,IF(DI77<DI$422,6,IF(DI77<DI$423,7,IF(#REF!<#REF!,8,9))))))))) -> 6 | DK77: =MAX(10,AD77-(3.2+25.3*AH77)) -> 1326.016503 | DL77: =IF(DK77<20,0,IF(DK77<40,1,IF(DK77<80,2,IF(DK77<160,3,IF(DK77<320,4,IF(DK77<640,5,IF(DK77<1280,6,IF(DK77<2560,7,IF(DK77<5120,8,9))))))))) -> 7 | DO77: 0.9362317658 | DP77: 0.03099628341 | DQ77: =10*DP77 -> 0.3099628341 | DW77: =AE77/AH77 -> 2.258777981 | DX77: =AH77/AK77 -> 1.512961392 | DY77: =AH77/AI77 -> 2.676379204 | DZ77: =AH77/(L77*0.7419*1000) -> 0.008296304706 | EA77: =AH77/O77 -> 0.3365098834 | EB77: =Q77*7773/O77 -> 4150.620276 | ED77: 0 | EE77: =AR77/AS77 -> 2.866670023 | EF77: =L77*7419/O77 -> 405.6141804 | EG77: =O77/R77 -> 0.514712809 | EH77: =AK77/AJ77 -> 3.409148901 | EI77: =AK77/AE77 -> 0.2926163635 | EJ77: =AE77/AR77 -> 6.834099398 | EK77: =AE77/AL77 -> 24.43564738 | EL77: =S77/R77 -> 10.16923732 | EM77: =O77/R77 -> 0.514712809 | EN77: =AR77/AE77 -> 0.1463250593 | EO77: =AS77/AE77 -> 0.05104356559 | EP77: =(AP77/S77)/(595/12300) -> 0.9897725834 | EQ77: =S77/AP77 -> 20.88587748 | ER77: =(AQ77/AP77)/(165/595) -> 1.26040817 | GI77: 2.903862845 | GJ77: 0 | GK77: =GI77 -> 2.903862845 | GL77: 0 | GO77: =GL77 -> 0
A78: NWA 08641 | B78: 0 | D78: atyp felds | E78: YAE(14)5 | F78: 69 | G78: 6.01 | H78: ¿ | I78: 380 | J78: NWA 08682 | K78: D385 | L78: 0.4755532344 | M78: 0.0908615048 | N78: 15.27462953 | O78: 9.476805238 | P78: 736.8504782 | Q78: 4.904727915 | R78: 17.26235516 | S78: 197.6796228 | T78: 4.532121231 | U78: 0.3838927349 | V78: 0.1298209751 | W78: 0.3587066629 | X78: 1.594311225 | Y78: 254.8965274 | Z78: 71.16457634 | AA78: 0.1392964294 | AB78: 0.01164339899 | AC78: 0.0431653885 | AD78: 1139.578857 | AE78: 5.514933248 | AF78: 13.73532459 | AG78: 8.783355069 | AH78: 2.476694025 | AI78: 1.051991195 | AJ78: 0.4867668432 | AK78: 1.700154958 | AL78: 0.2367491388 | AM78: 1.769486064 | AN78: 0.2127935232 | AO78: 0.02106739666 | AP78: 7.215370868 | AQ78: 5.574514627 | AR78: 0.7973669518 | AS78: 0.2864947933 | AT78: 364.96 | AV78: 1 | AW78: 1 | AY78: 77.75304649 | AZ78: 0.6207958178 | BA78: 3.10609064 | BB78: 0.896263285 | BC78: 1.115743573 | BD78: 3.353763286 | BE78: 0.2981725049 | BF78: 1424.531819 | BH78: 4.02292219 | BI78: 0.9690594555 | BJ78: 1.035866816 | BK78: 1.395620971 | BL78: 3.243782705 | BM78: 8.078866295 | BO78: 0.5786586514 | BP78: 1.399668568 | BQ78: 1.123542805 | BR78: 1.304129784 | BS78: 2.354291593 | BY78: 12 | CB78: 1 | CC78: 1 | CQ78: Bs | CR78: 1 | CT78: 1 | CU78: 1 | CW78: 1 | DB78: 7.215370868 | DC78: 197.6796228 | DD78: 7.215370868 | DE78: 2.295961904 | DF78: 0.8582586586 | DG78: 0.9046407422 | DH78: 1.381686275 | DI78: 1.143163509 | DJ78: =IF(DH78<DI$416,0,IF(DI78<DI$417,1,IF(DI78<DI$418,2,IF(DI78<DI$419,3,IF(DI78<DI$420,4,IF(DI78<DI$421,5,IF(DI78<DI$422,6,IF(DI78<DI$423,7,IF(#REF!<DI194,8,9))))))))) -> 6 | DK78: 1073.718499 | DL78: 6 | DO78: 1.243253131 | DP78: 0.03073318529 | DQ78: 0.3073318529 | DW78: 2.226731761 | DX78: 1.456746054 | DY78: 2.354291593 | DZ78: 0.007019850216 | EA78: 0.2613427166 | EB78: 4022.92219 | ED78: 0 | EE78: 2.783181302 | EF78: 372.2910155 | EG78: 0.5489868068 | EH78: 3.492750137 | EI78: 0.3082820556 | EJ78: 6.916430678 | EK78: 23.29441736 | EL78: 11.45148625 | EM78: 0.5489868068 | EN78: 0.1445832463 | EO78: 0.05194891406 | EP78: 0.7545445742 | EQ78: 27.39701485 | ER78: 2.78600199 | FG78: =SUM(EU78:FE78) -> 0 | FH78: =EY78+FA78 -> 0 | FI78: =FA78/EY78 ->  | FJ78: =100*(FA78/40.304)/(FA78/40.304+EY78/71.846) ->  | FK78: =FB78/EW78 ->  | FM78: =FB78/EW78 ->  | FN78: =EW78/FN$1 -> 0 | FO78: =EW78+FB78 -> 0 | FP78: =FO78/(FH78+EV78) ->  | FV78: =Q78*(AY78*0.01414)-0.1393 -> 5.253095581 | FW78: =FV78-FA78 -> 5.253095581 | FX78: =Q78+FV78 -> 10.1578235 | FY78: =(FX78-40.455)/-1.0924 -> 27.73450797 | FZ78: =FY78-EW78 -> 27.73450797 | GA78: =100*FY78/36 -> 77.04029991 | GB78: =(FV78/40.302)/(FV78/40.302+Q78/71.846) -> 0.6562758507 | GI78: 2.531894622 | GJ78: 0.0382149356 | GK78: 2.531894622 | GL78: 0.0382149356 | GO78: =GL78 -> 0.0382149356
A79: NWA 08641 | B79: 0 | D79: atyp felds | E79: MAC41 | F79: 62 | G79: 6 | H79: ¿ | I79: 380 | J79: NWA 08641 | K79: D381 | L79: 0.4687354462 | M79: 0.02642487734 | N79: 15.649024 | O79: 10.56640101 | P79: 725.8605402 | Q79: 5.034902533 | R79: 15.60981567 | S79: 170.6463776 | T79: 8.400521593 | U79: 0.2976324537 | V79: 0.1477748309 | W79: 0.3404062238 | X79: 1.887579013 | Y79: 216.2222959 | Z79: 69.94885736 | AA79: 0.06986650754 | AB79: 0.008885470539 | AC79: 0.04823281616 | AD79: 290.4775671 | AE79: 5.715839632 | AF79: 14.20693365 | AG79: 9.367484419 | AH79: 2.564463157 | AI79: 1.04911506 | AJ79: 0.5143260399 | AK79: 1.81533298 | AL79: 0.2510949034 | AM79: 2.11298696 | AN79: 0.2433786854 | AO79: 0.05074481722 | AP79: 7.717128586 | AQ79: 3.697299209 | AR79: 0.8326449631 | AS79: 0.3165955002 | AT79: 226.23 | AV79: 1 | AW79: 1 | AX79: 1 | AY79: 68.69515359 | AZ79: 0.6155612353 | BA79: 3.079899922 | BB79: 0.930569249 | BC79: 1.074611052 | BD79: 3.314744406 | BE79: 0.3016823856 | BF79: 1356.053124 | BH79: 3.703843661 | BI79: 0.9671015372 | BJ79: 1.033971824 | BK79: 1.396957374 | BL79: 3.148645288 | BM79: 7.826075883 | BO79: 0.5927176131 | BP79: 1.21366729 | BQ79: 1.017160753 | BR79: 1.380089304 | BS79: 2.444406009 | BY79: 8 | CB79: 1 | CC79: 1 | CF79: 1 | CG79: 1 | CR79: 1 | CT79: 1 | CU79: 1 | CW79: 1 | CZ79: 1 | DB79: 7.717128586 | DC79: 170.6463776 | DD79: 7.717128586 | DE79: 2.232097074 | DF79: 0.8874557367 | DG79: 0.840775912 | DH79: 1.410883353 | DI79: 1.125829633 | DJ79: =IF(DH79<DI$416,0,IF(DI79<DI$417,1,IF(DI79<DI$418,2,IF(DI79<DI$419,3,IF(DI79<DI$420,4,IF(DI79<DI$421,5,IF(DI79<DI$422,6,IF(DI79<DI$423,7,IF(#REF!<DI199,8,9))))))))) -> 6 | DK79: 222.3966492 | DL79: 4 | DO79: 1.274210692 | DP79: 0.03387552411 | DQ79: 0.3387552411 | DS79: 5000bal | DW79: 2.228864009 | DX79: 1.412668191 | DY79: 2.444406009 | DZ79: 0.007374342364 | EA79: 0.2426997759 | EB79: 3703.843661 | ED79: 0 | EE79: 2.629996202 | EF79: 329.1137894 | EG79: 0.6769074811 | EH79: 3.529537373 | EI79: 0.3175969055 | EJ79: 6.864678087 | EK79: 22.76366248 | EL79: 10.93199184 | EM79: 0.6769074811 | EN79: 0.1456732548 | EO79: 0.05538915024 | EP79: 0.9348604968 | EQ79: 22.11267775 | ER79: 1.727674339 | FG79: =SUM(EU79:FE79) -> 0 | FH79: =EY79+FA79 -> 0 | FI79: =FA79/EY79 ->  | FJ79: =100*(FA79/40.304)/(FA79/40.304+EY79/71.846) ->  | FK79: =FB79/EW79 ->  | FM79: =FB79/EW79 ->  | FN79: =EW79/FN$1 -> 0 | FO79: =EW79+FB79 -> 0 | FP79: =FO79/(FH79+EV79) ->  | FV79: =Q79*(AY79*0.01414)-0.1393 -> 4.751349916 | FW79: =FV79-FA79 -> 4.751349916 | FX79: =Q79+FV79 -> 9.786252449 | FY79: =(FX79-40.455)/-1.0924 -> 28.0746499 | FZ79: =FY79-EW79 -> 28.0746499 | GA79: =100*FY79/36 -> 77.98513861 | GB79: =(FV79/40.302)/(FV79/40.302+Q79/71.846) -> 0.6271848156 | GD79: 1 | GI79: 2.564463157 | GJ79: 0.04823281616 | GK79: 2.564463157 | GL79: 0.04823281616 | GO79: =GL79 -> 0.04823281616
A80: NWA 08641 | B80: 0 | C80: A | D80: atyp felds | E80: SVMJ14-2 | F80: 80 | G80: 6.05 | H80: ¿ | I80: 383 | J80: NWA 10133a | K80: D384 | L80: 0.4861912017 | M80: 0.06538585075 | N80: 15.33311212 | O80: 10.14876157 | P80: 794.5279668 | Q80: 5.072623229 | R80: 14.99970225 | S80: 151.1748939 | T80: 5.650129412 | U80: 0.3432568169 | V80: 0.1988304467 | W80: 0.3882984506 | X80: 1.310719266 | Y80: 240.3475052 | Z80: 88.10481013 | AA80: 0.07495667094 | AB80: 0.01512914685 | AC80: 0.03976550901 | AD80: 907.4188995 | AE80: 5.889633225 | AF80: 14.71689563 | AG80: 9.336861638 | AH80: 2.706892799 | AI80: 1.069083154 | AJ80: 0.5237391827 | AK80: 1.822665832 | AL80: 0.255518234 | AM80: 1.876571002 | AN80: 0.2331384321 | AO80: 0 | AP80: 5.183581736 | AQ80: 3.634569199 | AR80: 0.8815809612 | AS80: 0.2784832604 | AY80: 78.28816959 | AZ80: 0.6136821793 | BA80: 3.070498251 | BB80: 0.9639065354 | BC80: 1.037444984 | BD80: 3.373968163 | BE80: 0.2963869105 | BF80: 1332.543544 | BH80: 3.885153878 | BI80: 0.9722539505 | BJ80: 1.034482318 | BK80: 1.363693519 | BL80: 3.231329146 | BM80: 8.0743795 | BO80: 0.571422372 | BP80: 1.442467562 | BQ80: 1.120812219 | BR80: 1.146566382 | BS80: 2.531975917 | BY80: ;3 | DB80: 5.183581736 | DC80: 151.1748939 | DD80: 5.183581736 | DE80: 2.179479672 | DF80: 0.714629951 | DG80: 0.7881585108 | DH80: 1.238057568 | DI80: 1.013108039 | DJ80: =IF(DH80<DI$416,0,IF(DI80<DI$417,1,IF(DI80<DI$418,2,IF(DI80<DI$419,3,IF(DI80<DI$420,4,IF(DI80<DI$421,5,IF(DI80<DI$422,6,IF(DI80<DI$423,7,IF(#REF!<DI120,8,9))))))))) -> 6 | DK80: 835.7345117 | DL80: 6 | DO80: 1.257003715 | DP80: 0.04131855804 | DQ80: 0.4131855804 | DW80: 2.175791087 | DX80: 1.485128405 | DY80: 2.531975917 | DZ80: 0.007504445195 | EA80: 0.2667214892 | EB80: 3885.153878 | ED80: 0 | EE80: 3.165651537 | EF80: 355.4179987 | EG80: 0.6765975351 | EH80: 3.480102104 | EI80: 0.3094701761 | EJ80: 6.680762725 | EK80: 23.04975708 | EL80: 10.07852632 | EM80: 0.6765975351 | EN80: 0.1496835079 | EO80: 0.04728363376 | EP80: 0.708824017 | EQ80: 29.16417674 | ER80: 2.528459562 | GI80: 2.706892799 | GJ80: 0.03976550901 | GK80: 2.706892799 | GL80: 0.03976550901 | GO80: =GL80 -> 0.03976550901
A81: NWA 08641 | B81: 0 | D81: atyp felds | E81: K232 | F81: 74 | G81: 6.03 | H81: ¿ | I81: 383 | J81: NWA 10077 | K81: D383 | L81: 0.4843425124 | M81: 0.1172585663 | N81: 15.42584021 | O81: 10.08592666 | P81: 801.3342599 | Q81: 5.190304372 | R81: 20.8707385 | S81: 262.3995574 | T81: 5.41390042 | U81: 0.4059227773 | V81: 0.1439251057 | W81: 0.5365453394 | X81: 1.632597278 | Y81: 236.1569041 | Z81: 88.4298651 | AA81: 0 | AB81: 0.02907955478 | AC81: 0.031425266 | AD81: 1132.181734 | AE81: 5.827163806 | AF81: 14.54696697 | AG81: 9.284406819 | AH81: 2.668741708 | AI81: 1.063083443 | AJ81: 0.5169493949 | AK81: 1.824301859 | AL81: 0.2515050103 | AM81: 1.86596194 | AN81: 0.2276433972 | AO81: 0.3006763452 | AP81: 10.15103186 | AQ81: 6.563609818 | AR81: 0.8624823569 | AS81: 0.2823386522 | AT81: 111.34 | AV81: 1 | AW81: 1 | AY81: 79.45073234 | AZ81: 0.6184306148 | BA81: 3.09425658 | BB81: 0.955684501 | BC81: 1.046370428 | BD81: 3.380108234 | BE81: 0.2958485146 | BF81: 1346.453682 | BH81: 4.000052472 | BI81: 0.9713304035 | BJ81: 1.034229773 | BK81: 1.368517221 | BL81: 3.194188383 | BM81: 7.973991196 | BO81: 0.5704879786 | BP81: 1.430223013 | BQ81: 1.131689161 | BR81: 1.188180523 | BS81: 2.510378395 | BY81: 4 | CB81: 1 | CC81: 1 | CR81: 1 | CT81: 1 | CU81: 1 | CW81: 1 | DB81: 10.15103186 | DC81: 262.3995574 | DD81: 10.15103186 | DE81: 2.418963098 | DF81: 1.006510191 | DG81: 1.027641937 | DH81: 1.529937808 | DI81: 1.278789872 | DJ81: =IF(DH81<DI$416,0,IF(DI81<DI$417,1,IF(DI81<DI$418,2,IF(DI81<DI$419,3,IF(DI81<DI$420,4,IF(DI81<DI$421,5,IF(DI81<DI$422,6,IF(DI81<DI$423,7,IF(#REF!<DI203,8,9))))))))) -> 7 | DK81: 1061.462569 | DL81: 6 | DO81: 1.295004872 | DP81: 0.03318484399 | DQ81: 0.3318484399 | DW81: 2.183487367 | DX81: 1.462883839 | DY81: 2.510378395 | DZ81: 0.00742691719 | EA81: 0.2646005465 | EB81: 4000.052472 | ED81: 0 | EE81: 3.054779607 | EF81: 356.2723802 | EG81: 0.4832568175 | EH81: 3.528975713 | EI81: 0.3130685733 | EJ81: 6.756270153 | EK81: 23.16917583 | EL81: 12.5726053 | EM81: 0.4832568175 | EN81: 0.1480106593 | EO81: 0.04845215642 | EP81: 0.7997149934 | EQ81: 25.84954525 | ER81: 2.331661955 | GI81: 2.668741708 | GJ81: 0.031425266 | GK81: 2.668741708 | GL81: 0.031425266 | GO81: =GL81 -> 0.031425266
A82: Talhat Lihoudi | B82: 0 | D82: atyp felds | E82: AB#39 | F82: 113 | G82: 13 | H82: ! | I82: 391 | J82: NWA Talhat Lihoudi | K82: D397 | L82: 0.373169978 | M82: 0.1072257804 | N82: 15.09311889 | O82: 10.17488346 | P82: 988.430881 | Q82: 5.316174754 | R82: 13.54011813 | S82: 101.2073048 | T82: 8.760983577 | U82: 0.2921676625 | V82: 0 | W82: 0.660307643 | X82: 2.195335705 | Y82: 279.8585671 | Z82: 98.11228333 | AA82: 0.1735178231 | AB82: 0.02489907927 | AC82: 0.07991500241 | AD82: 3286.647858 | AE82: 5.402390796 | AF82: 13.77116138 | AG82: 8.286547516 | AH82: 2.437539529 | AI82: 0.8760771248 | AJ82: 0.4922319782 | AK82: 1.910164485 | AL82: 0.2702224514 | AM82: 1.951717326 | AN82: 0.2613127391 | AO82: 0.2694659127 | AP82: 2.996982128 | AQ82: 1.394512877 | AR82: 1.083699363 | AS82: 0.3768410392 | AT82: 197.95 | AV82: 1 | AW82: 1 | AX82: 1 | AY82: 97.14419678 | AZ82: 0.4495494874 | BA82: 2.249276517 | BB82: 1.059216362 | BC82: 0.9440941772 | BD82: 3.160164771 | BE82: 0.3164391962 | BF82: 1135.796172 | BH82: 4.061238296 | BI82: 0.9918279157 | BJ82: 1.059212531 | BK82: 1.389101284 | BL82: 2.828233296 | BM82: 7.209411279 | BO82: 0.6710828827 | BP82: 1.248920372 | BQ82: 0.9004648333 | BR82: 1.262152077 | BS82: 2.782334409 | BY82: 2 | CB82: 1 | CC82: 1 | CF82: 1 | CG82: 1 | CR82: 1 | CT82: 1 | CU82: 1 | CW82: 1 | CZ82: 1 | DB82: 2.996982128 | DC82: 101.2073048 | DD82: 2.996982128 | DE82: 2.00521186 | DF82: 0.4766841531 | DG82: 0.6138906979 | DH82: 1.00011177 | DI82: 0.8070012339 | DJ82: =IF(DH82<DI$416,0,IF(DI82<DI$417,1,IF(DI82<DI$418,2,IF(DI82<DI$419,3,IF(DI82<DI$420,4,IF(DI82<DI$421,5,IF(DI82<DI$422,6,IF(DI82<DI$423,7,IF(#REF!<DI202,8,9))))))))) -> 5 | DK82: 3221.778108 | DL82: 8 | DO82: 1.62257406 | DP82: 0.03508528339 | DQ82: 0.3508528339 | DW82: 2.216329513 | DX82: 1.276088813 | DY82: 2.782334409 | DZ82: 0.008804396637 | EA82: 0.2395643684 | EB82: 4061.238296 | ED82: 0 | EE82: 2.875746669 | EF82: 272.0962926 | EG82: 0.7514619417 | EH82: 3.880618427 | EI82: 0.3535776209 | EJ82: 4.985137926 | EK82: 19.99238319 | EL82: 7.474624951 | EM82: 0.7514619417 | EN82: 0.2005962553 | EO82: 0.06975449453 | EP82: 0.6121536443 | EQ82: 33.76973918 | ER82: 1.677920566
A83: NWA 08641 | B83: 0 | D83: atyp felds | E83: AN-1 | G83: 6.02 | H83: ¿ | I83: 385 | J83: NWA 10049 | K83: D387 | L83: 0.4713750637 | M83: 0.06748483515 | N83: 15.78515035 | O83: 10.45888106 | P83: 749.7391584 | Q83: 5.07627856 | R83: 15.32057619 | S83: 188.0939475 | T83: 4.061144877 | U83: 0.4965689981 | V83: 0.01489244534 | W83: 0.3816822263 | X83: 1.647873816 | Y83: 258.47517 | Z83: 109.6917261 | AA83: 7.15674359e-05 | AB83: 0.01621150969 | AC83: 0.06371598721 | AD83: 1136.414618 | AE83: 6.384917937 | AF83: 16.22887795 | AG83: 11.09600801 | AH83: 2.864129134 | AI83: 1.053035199 | AJ83: 0.5630178529 | AK83: 1.913967651 | AL83: 0.2703872188 | AM83: 2.349142546 | AN83: 0.2266245843 | AO83: 0.1375762285 | AP83: 6.609197688 | AQ83: 4.680059667 | AR83: 0.9268944402 | AS83: 0.3353229753 | AT83: 275.67 | AV83: 1 | AW83: 1 | AY83: 71.68445212 | AZ83: 0.6175853361 | BA83: 3.090027311 | BB83: 1.035440293 | BC83: 0.9657727318 | BD83: 3.321001614 | BE83: 0.3011139759 | BF83: 1221.010448 | BH83: 3.772670616 | BI83: 0.9889741293 | BJ83: 1.057395341 | BK83: 1.397212003 | BL83: 3.33595917 | BM83: 8.479180899 | BO83: 0.5714785876 | BP83: 1.219223218 | BQ83: 1.220003976 | BR83: 1.313092574 | BS83: 2.719879769 | BY83: 8 | CB83: 1 | CC83: 1 | CQ83: Gb Aggl ImBr | CR83: 1 | CT83: 1 | CU83: 0 | CW83: 1 | DB83: 6.609197688 | DC83: 188.0939475 | DD83: 6.609197688 | DE83: 2.274374821 | DF83: 0.8201487422 | DG83: 0.8830536593 | DH83: 1.343576359 | DI83: 1.113315009 | DJ83: =IF(DH83<DI$416,0,IF(DI83<DI$417,1,IF(DI83<DI$418,2,IF(DI83<DI$419,3,IF(DI83<DI$420,4,IF(DI83<DI$421,5,IF(DI83<DI$422,6,IF(DI83<DI$423,7,IF(#REF!<DI199,8,9))))))))) -> 6 | DK83: 1060.752151 | DL83: 6 | DO83: 1.287682535 | DP83: 0.03779249496 | DQ83: 0.3779249496 | DW83: 2.229270273 | DX83: 1.496435498 | DY83: 2.719879769 | DZ83: 0.00818993811 | EA83: 0.2738466112 | EB83: 3772.670616 | ED83: 0 | EE83: 2.764184111 | EF83: 334.3695734 | EG83: 0.6826689105 | EH83: 3.399479503 | EI83: 0.2997638607 | EJ83: 6.888506026 | EK83: 23.61397838 | EL83: 12.27721106 | EM83: 0.6826689105 | EN83: 0.1451693584 | EO83: 0.0525179773 | EP83: 0.7263769712 | EQ83: 28.45942221 | ER83: 2.553498866 | GI83: 2.864129134 | GJ83: 0.06371598721 | GK83: =GI83 -> 2.864129134 | GL83: 0.06371598721 | GO83: =GL83 -> 0.06371598721
A84: NWA 08641 | B84: 0 | D84: atyp felds | E84: RC56.2 | F84: 77 | G84: 6.08 | H84: ¿ | I84: 383 | J84: NWA RC56.2 | K84: D383 | L84: 0.5027221968 | M84: 0.1818013517 | N84: 15.28890914 | O84: 10.07437092 | P84: 730.3200689 | Q84: 5.083677253 | R84: 20.49064662 | S84: 234.9747075 | T84: 5.715518901 | U84: 0.2923262684 | V84: 0.3235418565 | W84: 0.3818994798 | X84: 1.706420003 | Y84: 242.3106456 | Z84: 83.14479896 | AA84: 0 | AB84: 0.01033746665 | AC84: 0.03763553129 | AD84: 1181.075728 | AE84: 6.449926692 | AF84: 16.23505213 | AG84: 10.95055229 | AH84: 2.932564443 | AI84: 1.097482734 | AJ84: 0.5716008509 | AK84: 1.968717564 | AL84: 0.2731192923 | AM84: 1.918090556 | AN84: 0.2274234052 | AO84: 0.0238094994 | AP84: 10.07480454 | AQ84: 5.264518585 | AR84: 0.8978622198 | AS84: 0.3124840772 | AT84: 119.54 | AV84: 1 | AY84: 72.49287077 | AZ84: 0.6527885444 | BA84: 3.266163091 | BB84: 1.0172442 | BC84: 0.9830481218 | BD84: 3.398409708 | BE84: 0.29425528 | BF84: 1271.820637 | BH84: 3.922371294 | BI84: 0.979378725 | BJ84: 1.044316224 | BK84: 1.378500085 | BL84: 3.276207217 | BM84: 8.246511551 | BO84: 0.5637820092 | BP84: 1.528897806 | BQ84: 1.244767034 | BR84: 1.263224402 | BS84: 2.672082532 | BY84: 4 | CB84: 1 | CC84: 1 | CR84: 0 | CS84: 1 | CT84: 0 | CV84: 1 | CW84: 0 | DB84: 10.07480454 | DC84: 234.9747075 | DD84: 10.07480454 | DE84: 2.371021118 | DF84: 1.003236629 | DG84: 0.9796999561 | DH84: 1.526664246 | DI84: 1.253182101 | DJ84: =IF(DH84<DI$416,0,IF(DI84<DI$417,1,IF(DI84<DI$418,2,IF(DI84<DI$419,3,IF(DI84<DI$420,4,IF(DI84<DI$421,5,IF(DI84<DI$422,6,IF(DI84<DI$423,7,IF(#REF!<DI203,8,9))))))))) -> 7 | DK84: 1103.681848 | DL84: 6 | DO84: 1.25508392 | DP84: 0.03490444523 | DQ84: 0.3490444523 | DW84: 2.199415159 | DX84: 1.489581084 | DY84: 2.672082532 | DZ84: 0.007862743936 | EA84: 0.2910915696 | EB84: 3922.371294 | ED84: 0 | EE84: 2.873305507 | EF84: 370.2162655 | EG84: 0.4916570524 | EH84: 3.444217343 | EI84: 0.3052309984 | EJ84: 7.183648615 | EK84: 23.61578576 | EL84: 11.46741301 | EM84: 0.4916570524 | EN84: 0.1392050271 | EO84: 0.04844769439 | EP84: 0.8863467512 | EQ84: 23.32300409 | ER84: 1.884321726 | GI84: 2.932564443 | GJ84: 0.03763553129 | GK84: 2.932564443 | GL84: 0.03763553129 | GO84: =GL84 -> 0.03763553129
A85: MIL 090034 | B85: 1 | D85: atyp felds | J85: MIL 090075 | L85: 0.3879097352 | M85: 0.05284570307 | N85: 16.59301691 | O85: 6.897574019 | P85: 519.6097015 | Q85: 3.696157457 | R85: 11.06641027 | S85: 83.10121805 | U85: 0.02231338017 | V85: 0.03891817261 | W85: 0.05943177983 | X85: 1.336986469 | Y85: 162.3034394 | Z85: 94.25207867 | AA85: 0.01076611542 | AB85: 0.002967354954 | AC85: 0.05412459731 | AD85: 77.96421931 | AE85: 6.778949774 | AF85: 17.1703915 | AG85: 10.41292609 | AH85: 3.020259534 | AI85: 0.9408740834 | AJ85: 0.6127333783 | AK85: 2.217650784 | AL85: 0.3046867303 | AM85: 2.306278097 | AN85: 0.2621049919 | AO85: 0.1090786365 | AP85: 3.034023563 | AQ85: 0.2153836713 | AR85: 1.105688 | AS85: 0.3332203541 | AT85: 325.93 | AV85: 1 | AW85: 1 | AY85: 75.33224001 | AZ85: 0.5459417722 | BA85: 2.731565806 | BB85: 1.222047571 | BC85: 0.8182987499 | BD85: 3.058753957 | BE85: 0.3269305129 | BF85: 952.8659021 | BH85: 4.165266199 | BI85: 0.9855292943 | BJ85: 1.055147283 | BK85: 1.406752629 | BL85: 3.056815719 | BM85: 7.742603849 | BO85: 0.610682782 | BP85: 1.309581676 | BQ85: 1.112358156 | BR85: 1.093858728 | BS85: 3.210057103 | CC85: 1 | CW85: 1 | DB85: 3.034023563 | DK85: 10 | DL85: 0 | DO85: 0.6403848859 | DP85: 0.04053506639 | DQ85: 0.4053506639 | DW85: 2.244492467 | DX85: 1.361918457 | DY85: 3.210057103 | DZ85: 0.01049465615 | EA85: 0.4378727254 | EB85: 4165.266199 | ED85: 198.0003558 | EE85: 3.318188661 | EF85: 417.2339895 | EG85: 0.6232892012 | EH85: 3.619275304 | EI85: 0.3271378101 | EJ85: 6.130978876 | EK85: 22.248917 | EL85: 7.509320187 | EM85: 0.6232892012 | EN85: 0.1631060912 | EO85: 0.04915515901 | EP85: 0.7547440632 | EQ85: 27.38977345 | ER85: 0.2559922678 | ET85: WU | EU85: 45.19546163 | EV85: 0.2126363365 | EW85: 29.80045657 | EX85: 0.07535034177 | EY85: 3.696157457 | EZ85: 0.05290038594 | FA85: 3.851526169 | FB85: 16.66966372 | FC85: 0.3879097352 | FD85: 0.07204101461 | FE85: 0.06143027216 | FG85: =SUM(EU85:FE85) -> 100.0755336 | FH85: =EY85+FA85 -> 7.547683626 | FI85: =FA85/EY85 -> 1.042035198 | FJ85: =100*(FA85/40.304)/(FA85/40.304+EY85/71.846) -> 65.00479404 | FK85: =FB85/EW85 -> 0.5593761184 | FM85: =FB85/EW85 -> 0.5593761184 | FN85: =EW85/FN$1 -> 0.8277904602 | FO85: =EW85+FB85 -> 46.47012029 | FP85: =FO85/(FH85+EV85) -> 5.988170657 | FQ85: 71 | FR85: 28 | FS85: =EW85*0.5293 -> 15.77338166 | FT85: =FB85*0.7147 -> 11.91380866 | FU85: =(FT85/40.078)/(FS85/26.981) -> 0.5084846067 | FV85: =Q85*(AY85*0.01414)-0.1393 -> 3.797839064 | FW85: =FV85-FA85 -> -0.05368710465 | FX85: =Q85+FV85 -> 7.493996521 | FY85: =(FX85-40.455)/-1.0924 -> 30.17301673 | FZ85: =FY85-EW85 -> 0.3725601652 | GA85: =100*FY85/36 -> 83.81393537 | GB85: =(FV85/40.302)/(FV85/40.302+Q85/71.846) -> 0.6468593188 | GC85: =GB85-FJ85 -> -64.35793472 | GI85: 3.020259534 | GJ85: 0.05412459731 | GK85: 3.020259534 | GL85: 0.05412459731 | GM85: =GL85 -> 0.05412459731
A86: NWA 10783 | B86: 0 | D86: atyp felds | E86: 8641? | G86: 9 | H86: ¶ | I86: 394 | J86: NWA 10783 | K86: D395 | L86: 0.4919437122 | M86: 0.07404856292 | N86: 14.85023591 | O86: 10.846866 | P86: 726.696021 | Q86: 5.921725945 | R86: 28.8968011 | S86: 395.8013536 | T86: 6.152162839 | U86: 0.7863559474 | V86: 0.09207024578 | W86: 0.7081237593 | X86: 1.004327064 | Y86: 232.6453952 | Z86: 116.4478234 | AA86: 0.2708050815 | AB86: 0.01189146344 | AC86: 0.02354099646 | AD86: 297.7832817 | AE86: 7.362109167 | AF86: 18.72171493 | AG86: 11.11693638 | AH86: 3.407398536 | AI86: 1.132289741 | AJ86: 0.6716680692 | AK86: 2.352565086 | AL86: 0.3268749655 | AM86: 2.365451613 | AN86: 0.2724247761 | AO86: 0.08477659263 | AP86: 16.36094523 | AQ86: 17.33305848 | AR86: 1.017090612 | AS86: 0.498276382 | AT86: 204.77 | AV86: 1 | AW86: 1 | AX86: 1 | AY86: 66.99594343 | AZ86: 0.669573018 | BA86: 3.350142549 | BB86: 1.145620337 | BC86: 0.8728895324 | BD86: 3.22331844 | BE86: 0.3102392824 | BF86: 1071.119319 | BH86: 4.243582964 | BI86: 0.9894529141 | BJ86: 1.051310284 | BK86: 1.354187821 | BL86: 3.129396594 | BM86: 7.958000842 | BO86: 0.5807177852 | BP86: 1.44048541 | BQ86: 1.207402308 | BR86: 1.778168728 | BS86: 3.009299135 | BY86: 6 | CB86: 1 | CC86: 1 | CF86: 1 | CG86: 1 | CR86: 1 | CT86: 1 | CU86: 0 | CW86: 1 | CZ86: 1 | DB86: 16.36094523 | DC86: =S86 -> 395.8013536 | DD86: =DB86 -> 16.36094523 | DE86: =LOG(S86) -> 2.597477275 | DF86: =LOG(DB86) -> 1.213808391 | DG86: =DE86-DE$411 -> 1.206156113 | DH86: 1.737236007 | DI86: =AVERAGE(DG86:DH86) -> 1.47169606 | DJ86: =IF(DH86<DI$416,0,IF(DI86<DI$417,1,IF(DI86<DI$418,2,IF(DI86<DI$419,3,IF(DI86<DI$420,4,IF(DI86<DI$421,5,IF(DI86<DI$422,6,IF(DI86<DI$423,7,IF(#REF!<DI202,8,9))))))))) ->  | DK86: 208.3760987 | DL86: 4 | DO86: 1.257003715 | DP86: 0.04131855804 | DQ86: 0.4131855804 | DW86: 2.16062462 | DX86: 1.448375884 | DY86: 3.009299135 | DZ86: 0.009336028041 | EA86: 0.3141366857 | EB86: 4243.582964 | ED86: 0 | EE86: 2.041217784 | EF86: 336.477873 | EG86: 0.3753656318 | EH86: 3.502570978 | EI86: 0.3195504213 | EJ86: 7.238400472 | EK86: 22.52270728 | EL86: 13.69706468 | EM86: 0.3753656318 | EN86: 0.1381520688 | EO86: 0.06768119987 | EP86: 0.8545141554 | EQ86: 24.19183904 | ER86: 3.820320801
A87: NWA 08001 | B87: 0 | D87: atyp felds | G87: 4 | H87: @ | I87: 378 | J87: NWA 08001 | K87: D379 | L87: 0.3933667436 | M87: 0.03590954069 | N87: 15.88781644 | O87: 9.037476705 | P87: 652.9248784 | Q87: 4.739411643 | R87: 22.24653913 | S87: 281.6056321 | T87: 36.04611198 | U87: 0.2892607405 | V87: 0.2222643688 | W87: 0.9018623732 | X87: 2.259895275 | Y87: 304.4889503 | Z87: 96.81685495 | AA87: 0.01597798301 | AB87: 0.006603900388 | AC87: 0.07301179187 | AD87: 529.3059701 | AE87: 7.579634699 | AF87: 19.66906407 | AG87: 12.29123856 | AH87: 3.536019626 | AI87: 0.9502219015 | AJ87: 0.7129404634 | AK87: 2.555876556 | AL87: 0.3526314422 | AM87: 2.69558547 | AN87: 0.3212379401 | AO87: 0 | AP87: 10.60610621 | AQ87: 2.75395811 | AR87: 1.295278964 | AS87: 0.3783338831 | AT87: 242.54 | AV87: 1 | AW87: 1 | AX87: 1 | AY87: 72.24636917 | AZ87: 0.5456146363 | BA87: 2.729929014 | BB87: 1.41665789 | BC87: 0.7058867259 | BD87: 3.071269844 | BE87: 0.3255982219 | BF87: 825.3313556 | BH87: 4.076297833 | BI87: 1.009687957 | BJ87: 1.071109361 | BK87: 1.343486144 | BL87: 2.96557151 | BM87: 7.695623649 | BO87: 0.6036883095 | BP87: 1.311781676 | BQ87: 1.062584572 | BR87: 1.06016689 | BS87: 3.721256708 | BY87: 8 | CB87: 1 | CC87: 1 | CF87: 1 | CG87: 1 | CR87: 1 | CT87: 1 | CU87: 1 | CW87: 1 | CZ87: 1 | DB87: 10.60610621 | DC87: =S87 -> 281.6056321 | DD87: =DB87 -> 10.60610621 | DE87: =LOG(S87) -> 2.449641336 | DF87: =LOG(DB87) -> 1.025555972 | DG87: 1.058320175 | DH87: 1.548983589 | DI87: =AVERAGE(DG87:DH87) -> 1.303651882 | DJ87: =IF(DH87<DI$416,0,IF(DI87<DI$417,1,IF(DI87<DI$418,2,IF(DI87<DI$419,3,IF(DI87<DI$420,4,IF(DI87<DI$421,5,IF(DI87<DI$422,6,IF(DI87<DI$423,7,IF(#REF!<DI199,8,9))))))))) -> 7 | DK87: 436.6446736 | DL87: 5 | DO87: 1.095196269 | DP87: 0.04702746331 | DQ87: 0.4702746331 | DR87: 4936m | EC87: =(FD87*8301)/AC87 -> 16026.58483 | ED87: 330.9171894 | ER87: 0.9363417314 | EU87: 44.30160424 | EV87: 0.3499781278 | EW87: 28.16923248 | EX87: 0.09543150022 | EY87: 4.739411643 | EZ87: 0.0831529412 | FA87: 4.93509181 | FB87: 16.13864476 | FC87: 0.3933667436 | FD87: 0.1409624956 | FE87: 0.05163277093 | FH87: =EY87+FA87 -> 9.674503454
A88: NWA 08641 | B88: 0 | C88: all | D88: atyp felds | E88: SVMJ14-2 | F88: 80 | G88: 6.04 | H88: ¿ | I88: 383 | J88: NWA 10133 | K88: D384 | L88: 0.4924558654 | M88: 0.1114678102 | N88: 13.71772723 | O88: 10.93135107 | P88: 845.1369451 | Q88: 5.619759809 | R88: 20.58166495 | S88: 237.1887824 | T88: 8.961603709 | U88: 0.4609780674 | V88: 0.2333069138 | W88: 0.466504178 | X88: 1.899602712 | Y88: 259.6098987 | Z88: 120.8451847 | AA88: 0.02713411929 | AB88: 0.01420316756 | AC88: 0.07038635127 | AD88: 871.3556236 | AE88: 8.349378878 | AF88: 20.92057519 | AG88: 13.57180184 | AH88: 3.856016997 | AI88: 1.131224274 | AJ88: 0.7430035569 | AK88: 2.602613742 | AL88: 0.3626664315 | AM88: 3.043529147 | AN88: 0.3447311339 | AO88: 0 | AP88: 7.616527418 | AQ88: 5.413650988 | AR88: 1.283295395 | AS88: 0.4009567185 | AT88: 252.93 | AV88: 1 | AW88: 1 | AY88: 77.31312807 | AZ88: 0.6005469442 | BA88: 3.004777398 | BB88: 1.297673925 | BC88: 0.7706096123 | BD88: 3.229713284 | BE88: 0.3096250076 | BF88: 947.4880604 | BH88: 3.996065328 | BI88: 0.9749250035 | BJ88: 1.036320696 | BK88: 1.357109256 | BL88: 3.208074539 | BM88: 8.038294295 | BO88: 0.5693440923 | BP88: 1.26695583 | BQ88: 1.079777077 | BR88: 1.134052527 | BS88: 3.408711327 | BY88: 9 | CB88: 1 | CC88: 1 | CQ88: Bs | CR88: 1 | CT88: 1 | CU88: 1 | CW88: 1 | DB88: 7.616527418 | DC88: =S88 -> 237.1887824 | DD88: =DB88 -> 7.616527418 | DE88: =LOG(S88) -> 2.375094146 | DF88: =LOG(DB88) -> 0.8817570098 | DG88: 0.9837729841 | DH88: 1.405184627 | DI88: =AVERAGE(DG88:DH88) -> 1.194478805 | DJ88: =IF(DH88<DI$416,0,IF(DI88<DI$417,1,IF(DI88<DI$418,2,IF(DI88<DI$419,3,IF(DI88<DI$420,4,IF(DI88<DI$421,5,IF(DI88<DI$422,6,IF(DI88<DI$423,7,IF(#REF!<DI205,8,9))))))))) -> 7 | DK88: 770.5983935 | DL88: 6 | DO88: 1.355363137 | DP88: 0.05116774086 | DQ88: 0.5116774086 | DW88: =AE88/AH88 -> 2.165285808 | DX88: =AH88/AK88 -> 1.481594036 | DY88: =AH88/AI88 -> 3.408711327 | DZ88: =AH88/(L88*0.7419*1000) -> 0.01055422271 | EA88: =AH88/O88 -> 0.3527484364 | EB88: =Q88*7773/O88 -> 3996.065328 | ED88: 0 | EE88: =AR88/AS88 -> 3.200583343 | EF88: =L88*7419/O88 -> 334.2249318 | EG88: =O88/R88 -> 0.5311208346 | EH88: =AK88/AJ88 -> 3.502828106 | EI88: =AK88/AE88 -> 0.3117134555 | EJ88: =AE88/AR88 -> 6.506201855 | EK88: =AE88/AL88 -> 23.02219933 | EL88: =S88/R88 -> 11.52427575 | EM88: =O88/R88 -> 0.5311208346 | EN88: =AR88/AE88 -> 0.1536995043 | EO88: =AS88/AE88 -> 0.04802234087 | EP88: =(AP88/S88)/(595/12300) -> 0.6638210345 | EQ88: =S88/AP88 -> 31.14132851 | ER88: 2.563104219 | GI88: 3.856016997 | GJ88: 0.07038635127 | GK88: =GI88 -> 3.856016997 | GL88: 0.07038635127 | GO88: =GL88 -> 0.07038635127
A89: NWA 08641 | B89: 0 | C89: D | D89: atyp felds | E89: SVMJ14-2 | F89: 80 | G89: 6.07 | H89: ¿ | I89: 384 | J89: NWA 10133d | K89: D384 | L89: 0.4887003338 | M89: 0.07024959872 | N89: 14.70029338 | O89: 9.997866843 | P89: 755.8959757 | Q89: 5.497863543 | R89: 22.47955519 | S89: 284.1026868 | T89: 5.777143444 | U89: 0.4370226258 | V89: 0 | W89: 0.1871062585 | X89: 1.932711412 | Y89: 240.4854629 | Z89: 103.663903 | AA89: 0 | AB89: 0.01934565827 | AC89: 0.07199848776 | AD89: 820.7304832 | AE89: 9.222989924 | AF89: 22.83589841 | AG89: 14.87804142 | AH89: 4.281774555 | AI89: 1.201788171 | AJ89: 0.813595767 | AK89: 2.787647947 | AL89: 0.3871194605 | AM89: 3.1496873 | AN89: 0.4045562612 | AO89: 0 | AP89: 7.911929578 | AQ89: 5.848194722 | AR89: 1.369272107 | AS89: 0.395744748 | AY89: 75.60572546 | AZ89: 0.6249837036 | BA89: 3.127044313 | BB89: 1.356348297 | BC89: 0.7372737535 | BD89: 3.016894212 | BE89: 0.3314667103 | BF89: 846.7675562 | BH89: 4.274401129 | BI89: 0.9633811064 | BJ89: 1.022981144 | BK89: 1.350042748 | BL89: 3.308520336 | BM89: 8.191815767 | BO89: 0.5473027193 | BP89: 1.35942846 | BQ89: 1.021693291 | BR89: 1.049029521 | BS89: 3.56283633 | BY89: ;2 | DB89: 7.911929578 | DC89: =S89 -> 284.1026868 | DD89: =DB89 -> 7.911929578 | DE89: =LOG(S89) -> 2.453475341 | DF89: =LOG(DB89) -> 0.8982824131 | DG89: 1.062154179 | DH89: 1.42171003 | DI89: =AVERAGE(DG89:DH89) -> 1.241932105 | DJ89: =IF(DH89<DI$416,0,IF(DI89<DI$417,1,IF(DI89<DI$418,2,IF(DI89<DI$419,3,IF(DI89<DI$420,4,IF(DI89<DI$421,5,IF(DI89<DI$422,6,IF(DI89<DI$423,7,IF(#REF!<DI129,8,9))))))))) -> 7 | DK89: 709.2015869 | DL89: 6 | DQ89: 0 | DW89: =AE89/AH89 -> 2.154011101 | DX89: =AH89/AK89 -> 1.535981098 | DY89: =AH89/AI89 -> 3.56283633 | DZ89: =AH89/(L89*0.7419*1000) -> 0.01180961638 | EA89: =AH89/O89 -> 0.428268812 | EB89: =Q89*7773/O89 -> 4274.401129 | ED89: 0 | EE89: =AR89/AS89 -> 3.459988071 | EF89: =L89*7419/O89 -> 362.6441353 | EG89: =O89/R89 -> 0.4447537667 | EH89: =AK89/AJ89 -> 3.426330446 | EI89: =AK89/AE89 -> 0.3022499179 | EJ89: =AE89/AR89 -> 6.735688163 | EK89: =AE89/AL89 -> 23.82466103 | EL89: =S89/R89 -> 12.63826995 | EM89: =O89/R89 -> 0.4447537667 | EN89: =AR89/AE89 -> 0.14846293 | EO89: =AS89/AE89 -> 0.0429085092 | EP89: =(AP89/S89)/(595/12300) -> 0.5756986591 | EQ89: =S89/AP89 -> 35.90814149 | ER89: 2.665461617 | GI89: 4.281774555 | GJ89: 0.07199848776 | GK89: 4.281774555 | GL89: 0.07199848776 | GO89: =GL89 -> 0.07199848776
A90: NWA 08641 | B90: 0 | C90: B | D90: atyp felds | G90: 6.06 | H90: ¿ | I90: 383 | J90: NWA 10133b | K90: D384 | L90: 0.4992903575 | M90: 0.1678404685 | N90: 11.94904695 | O90: 11.99347008 | P90: 926.7782209 | Q90: 6.124187501 | R90: 24.31833747 | S90: 286.8402295 | T90: 13.11240639 | U90: 0.5684908662 | V90: 0.366329132 | W90: 0.6561515828 | X90: 2.368795598 | Y90: 284.0241554 | Z90: 155.4661485 | AA90: 0 | AB90: 0.01113463044 | AC90: 0.09483261876 | AD90: 864.4276316 | AE90: 9.97924899 | AF90: 25.16046249 | AG90: 16.46672302 | AH90: 4.609535703 | AI90: 1.150641254 | AJ90: 0.8915595083 | AK90: 3.160689161 | AL90: 0.4397678461 | AM90: 3.955109209 | AN90: 0.4096145877 | AO90: 0 | AP90: 9.483807305 | AQ90: 6.681037942 | AR90: 1.574918139 | AS90: 0.5039656432 | AY90: 77.27356762 | AZ90: 0.5849703528 | BA90: 2.926841459 | BB90: 1.525079898 | BC90: 0.6557033513 | BD90: 3.219278945 | BE90: 0.3106285653 | BF90: 803.602662 | BH90: 3.969102282 | BI90: 0.9810079298 | BJ90: 1.042750891 | BK90: 1.356876306 | BL90: 3.157301614 | BM90: 7.960435591 | BO90: 0.5775275262 | BP90: 1.165463571 | BQ90: 1.086319161 | BR90: 1.161462673 | BS90: 4.006058089 | BY90: ;4 | DB90: 9.483807305 | DC90: =S90 -> 286.8402295 | DD90: =DB90 -> 9.483807305 | DE90: =LOG(S90) -> 2.457640061 | DF90: =LOG(DB90) -> 0.9769827213 | DG90: 1.0663189 | DH90: 1.500410338 | DI90: =AVERAGE(DG90:DH90) -> 1.283364619 | DJ90: =IF(DH90<DI$416,0,IF(DI90<DI$417,1,IF(DI90<DI$418,2,IF(DI90<DI$419,3,IF(DI90<DI$420,4,IF(DI90<DI$421,5,IF(DI90<DI$422,6,IF(DI90<DI$423,7,IF(#REF!<DI130,8,9))))))))) -> 7 | DK90: 744.6063783 | DL90: 6 | DQ90: 0 | DW90: =AE90/AH90 -> 2.164914133 | DX90: =AH90/AK90 -> 1.45839577 | DY90: =AH90/AI90 -> 4.006058089 | DZ90: =AH90/(L90*0.7419*1000) -> 0.01244396077 | EA90: =AH90/O90 -> 0.3843371163 | EB90: =Q90*7773/O90 -> 3969.102282 | ED90: 0 | EE90: =AR90/AS90 -> 3.125050606 | EF90: =L90*7419/O90 -> 308.8543298 | EG90: =O90/R90 -> 0.493186267 | EH90: =AK90/AJ90 -> 3.545124169 | EI90: =AK90/AE90 -> 0.3167261549 | EJ90: =AE90/AR90 -> 6.33636044 | EK90: =AE90/AL90 -> 22.69208419 | EL90: =S90/R90 -> 11.79522366 | EM90: =O90/R90 -> 0.493186267 | EN90: =AR90/AE90 -> 0.1578193049 | EO90: =AS90/AE90 -> 0.05050135974 | EP90: =(AP90/S90)/(595/12300) -> 0.6834878608 | EQ90: =S90/AP90 -> 30.24526125 | ER90: 2.54035399 | GI90: 4.609535703 | GJ90: 0.09483261876 | GK90: 4.609535703 | GL90: 0.09483261876 | GO90: =GL90 -> 0.09483261876
A93: DEW 12007 | B93: 1 | D93: basaltic | J93: DEW 12007 | L93: 0.4074454203 | M93: 0.06699118348 | N93: 12.23195815 | O93: 25.98569456 | P93: 1672.888206 | Q93: 12.03699336 | R93: 36.8637393 | S93: 195.1576537 | T93: 11.37577945 | U93: 0.1647292172 | X93: 2.962681039 | Y93: 156.218963 | Z93: 125.473167 | AA93: 0.06892169456 | AB93: 0.009748018838 | AC93: 0.08231883151 | AD93: 75.14101554 | AE93: 6.457080005 | AF93: 16.72977624 | AG93: 11.43806335 | AH93: 3.156794877 | AI93: 0.8928686301 | AJ93: 0.6582040979 | AK93: 2.383721259 | AL93: 0.342781378 | AM93: 2.603735194 | AN93: 0.3038542872 | AO93: 0 | AP93: 5.542048455 | AQ93: 5.168333256 | AR93: 1.027231164 | AS93: 0.3575414194 | AT93: 163.48 | AV93: 1 | AW93: 1 | AX93: 1 | AY93: =P93/O93 -> 64.37727505 | AZ93: =(AH93/AR93)/(147.1/29.4) -> 0.614204274 | BA93: =AH93/AR93 -> 3.0731105 | BB93: =(AH93/AI93)/(147.1/56) -> 1.345966196 | BC93: =1/BB93 -> 0.7429607097 | BD93: =L93*7419/1000/AI93 -> 3.385534525 | BE93: =1/BD93 -> 0.2953743324 | BF93: =L93*7419/AH93 -> 957.5654075 | BH93: =Q93*7773/O93/1000 -> 3.600579126 | BI93: =(AF93/603.2)/(AE93/234.7) -> 1.008104891 | BJ93: =(AF93/0.6032)/10^((1*LOG10(AH93/0.1471)+4*LOG10(AE93/0.2347))/5) -> 1.059457645 | BK93: =(AE93/AH93)/(234.7/147.1) -> 1.282004021 | BL93: =AE93/AK93 -> 2.708823433 | BM93: =AF93/AK93 -> 7.018344187 | BO93: =(AL93/AH93)/(24.3/147.1) -> 0.6573206202 | BP93: =AH93/AM93 -> 1.212410111 | BQ93: =(AH93/AN93)/(147.1/14.2) -> 1.002897772 | BR93: =(AS93/AR93)/(8.1/29.4) -> 1.263340692 | BS93: =AH93/AI93 -> 3.535564775 | CC93: 1 | CG93: 1 | CW93: 1 | DB93: =AP93 -> 5.542048455 | DK93: =MAX(10,AD93-(3.2+25.3*AH93)) -> 10 | DL93: =IF(DK93<20,0,IF(DK93<40,1,IF(DK93<80,2,IF(DK93<160,3,IF(DK93<320,4,IF(DK93<640,5,IF(DK93<1280,6,IF(DK93<2560,7,IF(DK93<5120,8,9))))))))) -> 0 | DO93: 4.073186023 | DP93: 0.04213289026 | DQ93: =10*DP93 -> 0.4213289026 | DW93: =AE93/AH93 -> 2.04545441 | DX93: =AH93/AK93 -> 1.324313766 | DY93: =AH93/AI93 -> 3.535564775 | DZ93: =AH93/(L93*0.7419*1000) -> 0.01044315085 | EA93: =AH93/O93 -> 0.1214820281 | EB93: =Q93*7773/O93 -> 3600.579126 | ED93: =(FD93*8301)/AH93 -> 210.3652679 | EE93: =AR93/AS93 -> 2.87304102 | EF93: =L93*7419/O93 -> 116.3269878 | EG93: =O93/R93 -> 0.704912064 | EH93: =AK93/AJ93 -> 3.621553355 | EI93: =AK93/AE93 -> 0.3691639653 | EJ93: =AE93/AR93 -> 6.285907427 | EK93: =AE93/AL93 -> 18.8373127 | EL93: =S93/R93 -> 5.294027612 | EM93: =O93/R93 -> 0.704912064 | EN93: =AR93/AE93 -> 0.1590860209 | EO93: =AS93/AE93 -> 0.05537199773 | EP93: =(AP93/S93)/(595/12300) -> 0.5870470041 | EQ93: =S93/AP93 -> 35.21399268 | ER93: =(AQ93/AP93)/(165/595) -> 3.362894263 | ES93: italians | EU93: 46.3 | EV93: 0.62 | EW93: 18.3 | EX93: 0.24 | EY93: 12.6 | EZ93: 0.163 | FA93: 8.13 | FB93: 12.9 | FC93: 0.4 | FD93: 0.08 | FE93: 0.07 | FG93: =SUM(EU93:FE93) -> 99.803 | FH93: =EY93+FA93 -> 20.73 | FI93: =FA93/EY93 -> 0.6452380952 | FJ93: =100*(FA93/40.304)/(FA93/40.304+EY93/71.846) -> 53.49276028 | FK93: =FB93/EW93 -> 0.7049180328 | FM93: =FB93/EW93 -> 0.7049180328 | FN93: =EW93/FN$1 -> 0.5083333333 | FO93: =EW93+FB93 -> 31.2 | FP93: =FO93/(FH93+EV93) -> 1.461358314 | FS93: =EW93*0.5293 -> 9.68619 | FT93: =FB93*0.7147 -> 9.21963 | FU93: =(FT93/40.078)/(FS93/26.981) -> 0.640785255 | GI93: 3.156794877 | GJ93: 0.08231883151 | GK93: =GI93 -> 3.156794877 | GL93: =GJ93 -> 0.08231883151 | GM93: =GL93 -> 0.08231883151
A94: Dho 1180 | B94: 2 | D94: basaltic | J94: Dho 1180 | L94: 0.3835698013 | M94: 0.02495223987 | N94: 14.76052 | O94: 26.79781683 | P94: 1036.530367 | Q94: 9.219629157 | R94: 18.6135935 | S94: 128.4604383 | T94: 40.68197374 | U94: 0.3532425806 | V94: 0 | W94: 0.5337533841 | X94: 0.9629156663 | Y94: 1581.065025 | Z94: 74.74250396 | AA94: 0 | AB94: 0.01248035961 | AC94: 0.05086070389 | AD94: 536.768606 | AE94: 5.299934106 | AF94: 14.10480053 | AG94: 8.918608571 | AH94: 2.843218573 | AI94: 0.899458344 | AJ94: 0.6435528937 | AK94: 2.435616284 | AL94: 0.3452481994 | AM94: 2.181056852 | AN94: 0.2988666292 | AO94: 0.07746437146 | AP94: 5.335511059 | AQ94: 1.507559892 | AR94: 0.9042965725 | AS94: 0.3202201563 | AT94: 195.77 | AV94: 1 | AW94: 1 | AX94: 1 | AY94: 38.67965715 | AZ94: 0.6283968804 | BA94: 3.144121806 | BB94: 1.20338487 | BC94: 0.8309893411 | BD94: 3.163797829 | BE94: 0.3160758222 | BF94: 1000.874285 | BH94: 2.674254321 | BI94: 1.035495547 | BJ94: 1.06821875 | BK94: 1.168314605 | BL94: 2.176013578 | BM94: 5.791060202 | BO94: 0.7350680967 | BP94: 1.303596726 | BQ94: 0.9183505569 | BR94: 1.285286932 | BS94: 3.161034184 | BZ94: 9 | CC94: 1 | CG94: 1 | CW94: 1 | DB94: 5.335511059 | DK94: 461.6351761 | DL94: 5 | DO94: 2.833308731 | DP94: 0.03729797345 | DQ94: =10*DP94 -> 0.3729797345 | DW94: 1.86406144 | DX94: 1.167350781 | DY94: 3.161034184 | DZ94: 0.009991264788 | EA94: 0.1060988883 | EB94: 2674.254321 | ED94: 184.3786867 | EE94: 2.823983921 | EF94: 106.1916489 | EG94: 1.439690666 | EH94: 3.784640405 | EI94: 0.4595559559 | EJ94: 5.860836221 | EK94: 15.35108399 | EL94: 6.901431379 | EM94: 1.439690666 | EN94: 0.1706241161 | EO94: 0.0604196486 | EP94: 0.8586076838 | EQ94: 24.07650117 | ER94: 1.018900022 | ES94: 2011-08-22 | EU94: 44.7404088 | EV94: 0.7298447486 | EW94: 23.07097637 | EX94: 0.1514992785 | EY94: 9.219629157 | EZ94: 0.1599704565 | FA94: 6.074900438 | FB94: 14.43399052 | FC94: 0.3835698013 | FD94: 0.06315250046 | FE94: 0.07108757679 | FG94: 99.09902965 | FH94: 15.29452959 | FI94: 0.6589094132 | FJ94: 54.01396858 | FK94: 0.6256341424 | FM94: 0.6256341424 | FN94: 0.6408604548 | FO94: 37.50496689 | FP94: 2.340494929 | FQ94: 36 | FR94: 110 | FS94: 12.21146779 | FT94: 10.31597302 | FU94: 0.5687145382 | FV94: =Q94*(AY94*0.01414)-0.1393 -> 4.903195021 | FW94: =FV94-FA94 -> -1.171705417 | FX94: =Q94+FV94 -> 14.12282418 | FY94: =(FX94-40.455)/-1.0924 -> 24.10488449 | FZ94: =FY94-EW94 -> 1.033908121 | GA94: =100*FY94/36 -> 66.95801249 | GB94: =(FV94/40.302)/(FV94/40.302+Q94/71.846) -> 0.4866721746 | GC94: =GB94-FJ94 -> -53.52729641 | GI94: 2.843218573 | GJ94: 0.05086070389 | GK94: 2.843218573 | GL94: 0.05086070389 | GN94: =GL94 -> 0.05086070389
A95: EET87521 | B95: 1 | D95: basaltic | J95: EET87521 | L95: 0.4029128547 | M95: 0.08730042608 | N95: 12.8325964 | O95: 34.19271378 | P95: 1825.970925 | Q95: 16.64031541 | R95: 45.65513573 | S95: 82.165233 | T95: 0 | U95: 0.07702253665 | V95: 0 | W95: 0 | X95: 6.519387947 | Y95: 102.8464239 | Z95: 97.66460326 | AA95: 0.02292788809 | AB95: 0.003133290457 | AC95: 0.06371921644 | AD95: 70.39625372 | AE95: 6.963429536 | AF95: 17.95759573 | AG95: 11.96844602 | AH95: 3.412559155 | AI95: 0.839234558 | AJ95: 0.7178220382 | AK95: 2.554114747 | AL95: 0.3497242276 | AM95: 2.574268296 | AN95: 0.2974486159 | AO95: 0.2238202428 | AP95: 0.9649355522 | AQ95: 1.165487579 | AR95: 1.003690007 | AS95: 0.2822646515 | AT95: 373.17 | AV95: 1 | AW95: 1 | AX95: 1 | AY95: 53.40233995 | AZ95: 0.6795403442 | BA95: 3.400013082 | BB95: 1.548004375 | BC95: 0.6459930063 | BD95: 3.561829575 | BE95: 0.2807545894 | BF95: 875.9439275 | BH95: 3.782828485 | BI95: 1.003406158 | BJ95: 1.054011326 | BK95: 1.278917647 | BL95: 2.726357359 | BM95: 7.030849243 | BO95: 0.6203716318 | BP95: 1.325642382 | BQ95: 1.107500441 | BR95: 1.020749569 | BS95: 4.066275778 | CC95: 1 | CG95: 1 | CW95: 1 | DB95: 0.9649355522 | DK95: 10 | DL95: 0 | DO95: 5.732874127 | DP95: 0.0424491764 | DQ95: =10*DP95 -> 0.424491764 | DW95: 2.040530059 | DX95: 1.336102522 | DY95: 4.066275778 | DZ95: 0.01141625587 | EA95: 0.09980369437 | EB95: 3782.828485 | ED95: 109.6502612 | EE95: 3.555847329 | EF95: 87.42244002 | EG95: 0.7489346649 | EH95: 3.558144792 | EI95: 0.3667897741 | EJ95: 6.937828897 | EK95: 19.91120142 | EL95: 1.799693106 | EM95: 0.7489346649 | EN95: 0.1441373108 | EO95: 0.04053529228 | EP95: 0.2427718694 | EQ95: 85.15100601 | ER95: 4.355543577 | ES95: ? | ET95: WU | EU95: 46.63382271 | EV95: 0.6203650491 | EW95: 14.38526222 | EX95: 0.2668839104 | EY95: 16.64031541 | EZ95: 0.2224477249 | FA95: 8.805530107 | FB95: 11.60742034 | FC95: 0.4029128547 | FD95: 0.04507746087 | FE95: 0.05803547925 | FG95: 99.68807326 | FH95: 25.44584551 | FI95: 0.5291684618 | FJ95: 48.54105864 | FK95: 0.8068966811 | FM95: 0.8068966811 | FN95: 0.3995906172 | FO95: 25.99268256 | FP95: 0.9971791833 | FQ95: 49 | FR95: 137 | FS95: 7.614119292 | FT95: 8.295823318 | FU95: 0.733485982 | FV95: 12.42595337 | FW95: 3.620423264 | FX95: 29.06626878 | FY95: 10.42542221 | FZ95: -3.959840008 | GA95: 28.95950614 | GB95: 0.5710368567 | GC95: -47.97002179 | GI95: 3.412559155 | GJ95: 0.06371921644 | GK95: 3.412559155 | GL95: 0.06371921644 | GM95: =GL95 -> 0.06371921644
A96: EET87521 | B96: 1 | D96: basaltic | J96: EET96008 | L96: 0.3867892375 | M96: 0.1059388403 | N96: 11.90920969 | O96: 37.2193328 | P96: 1949.442335 | Q96: 18.66124643 | R96: 48.8903475 | S96: 61.63328038 | T96: 0 | U96: 0 | V96: 0 | W96: 0 | X96: 8.119459889 | Y96: 96.97311358 | Z96: 104.9576052 | AA96: 0 | AB96: 0 | AC96: 0.05978395552 | AD96: 69.18252581 | AE96: 7.057321485 | AF96: 18.53309968 | AG96: 10.97804011 | AH96: 3.432293864 | AI96: 0.7986381056 | AJ96: 0.7215498411 | AK96: 2.604626132 | AL96: 0.3625702145 | AM96: 2.61552919 | AN96: 0.2965650119 | AO96: 0 | AP96: 0.1362748213 | AQ96: 0.2303375695 | AR96: 0.8980516084 | AS96: 0.21149444 | AT96: 503.6 | AV96: 1 | AW96: 1 | AY96: 52.3771435 | AZ96: 0.7638671376 | BA96: 3.821933876 | BB96: 1.636099795 | BC96: 0.6112096603 | BD96: 3.593103475 | BE96: 0.2783109384 | BF96: 836.0558468 | BH96: 3.897272131 | BI96: 1.021785927 | BJ96: 1.074956576 | BK96: 1.288709472 | BL96: 2.709533395 | BM96: 7.115454865 | BO96: 0.6394609943 | BP96: 1.312275113 | BQ96: 1.117223914 | BR96: 0.8547910597 | BS96: 4.297683569 | CC96: 1 | CW96: 1 | DB96: 0.1362748213 | DK96: 10 | DL96: 0 | DO96: 6.23735007 | DP96: 0.04040719694 | DQ96: =10*DP96 -> 0.4040719694 | DW96: 2.056153046 | DX96: 1.317768344 | DY96: 4.297683569 | DZ96: 0.01196092347 | EA96: 0.09221803847 | EB96: 3897.272131 | ED96: 112.8812834 | EE96: 4.246218521 | EF96: 77.09943024 | EG96: 0.7612818216 | EH96: 3.609766067 | EI96: 0.3690672357 | EJ96: 7.858480982 | EK96: 19.46470285 | EL96: 1.260643124 | EM96: 0.7612818216 | EN96: 0.1272510556 | EO96: 0.02996808924 | EP96: 0.04570760689 | EQ96: 452.271959 | ER96: 6.095118875 | ES96: ? | ET96: WU | EU96: 46.58448965 | EV96: 0.6313865952 | EW96: 12.31585864 | EX96: 0.2668839104 | EY96: 18.66124643 | EZ96: 0.2498053891 | FA96: 9.376795905 | FB96: 10.88914355 | FC96: 0.4029128547 | FD96: 0.04667410388 | FE96: 0.06203164848 | FG96: 99.48722867 | FH96: 28.03804233 | FI96: 0.5024742555 | FJ96: 47.24936356 | FK96: 0.8841562633 | FM96: 0.8841562633 | FN96: 0.3421071845 | FO96: 23.2050022 | FP96: 0.8093988288 | FQ96: 50 | FR96: 140 | FS96: 6.518783978 | FT96: 7.782470899 | FU96: 0.8037165603 | FV96: 13.68145814 | FW96: 4.304662231 | FX96: 32.34270456 | FY96: 7.426121785 | FZ96: -4.889736855 | GA96: 20.62811607 | GB96: 0.5665321864 | GC96: -46.68283137 | GI96: 3.432293864 | GJ96: 0.05978395552 | GK96: 3.432293864 | GL96: 0.05978395552 | GM96: =GL96 -> 0.05978395552
A97: MET 01210 | B97: 1 | D97: basaltic | J97: MET 01210 | L97: 0.3042196036 | M97: 0.03126332445 | N97: 14.66447785 | O97: 53.73508078 | P97: 1620.953281 | Q97: 16.03192164 | R97: 26.6038058 | S97: 179.926549 | T97: 20.66626416 | U97: 0.05682461692 | V97: 0 | W97: 0.1891155896 | X97: 0.5051757162 | Y97: 147.2913058 | Z97: 89.33502665 | AA97: 0 | AB97: 0.007202698201 | AC97: 0.09624042305 | AD97: 79.02877249 | AE97: 5.385833195 | AF97: 14.59097435 | AG97: 9.83964024 | AH97: 3.602405063 | AI97: 1.029471352 | AJ97: 0.8517464191 | AK97: 3.359145986 | AL97: 0.4742173967 | AM97: 2.657183961 | AN97: 0.3658927382 | AO97: 0.2766822119 | AP97: 7.122255996 | AQ97: 1.914519487 | AR97: 0.8542717355 | AS97: 0.2300412225 | AT97: 240.16 | AV97: 1 | AW97: 1 | AX97: 1 | AY97: 30.16564333 | AZ97: 0.8428128812 | BA97: 4.216931116 | BB97: 1.332151545 | BC97: 0.7506653456 | BD97: 2.192392468 | BE97: 0.4561227128 | BF97: 626.5273337 | BH97: 2.31908327 | BI97: 1.054103249 | BJ97: 1.040483361 | BK97: 0.9370438992 | BL97: 1.603334067 | BM97: 4.343655921 | BO97: 0.7968770821 | BP97: 1.355722869 | BQ97: 0.9504175032 | BR97: 0.9773991139 | BS97: 3.499276648 | CC97: 1 | CG97: 1 | CW97: 1 | DB97: 7.122255996 | DK97: 10 | DL97: 0 | DO97: 5.320106864 | DP97: 0.04197903564 | DQ97: =10*DP97 -> 0.4197903564 | DW97: 1.495065963 | DX97: 1.072416941 | DY97: 3.499276648 | DZ97: 0.01596099557 | EA97: 0.06704009766 | EB97: 2319.08327 | ED97: 89.6162832 | EE97: 3.713559362 | EF97: 42.00245364 | EG97: 2.019826832 | EH97: 3.943833412 | EI97: 0.6237003384 | EJ97: 6.30459018 | EK97: 11.35730834 | EL97: 6.763188333 | EM97: 2.019826832 | EN97: 0.1586145921 | EO97: 0.04271228131 | EP97: 0.8182960882 | EQ97: 25.26257819 | ER97: 0.9693379886 | ET97: WU | EU97: 44.98269518 | EV97: 1.408881482 | EW97: 17.04348761 | EX97: 0.2369185316 | EY97: 16.03192164 | EZ97: 0.2085723146 | FA97: 6.224654934 | FB97: 13.27843699 | FC97: 0.3042196036 | FD97: 0.03889099535 | FE97: 0.04764303279 | FG97: 99.80632231 | FH97: 22.25657657 | FI97: 0.3882663024 | FJ97: 40.90268922 | FK97: 0.779091539 | FM97: 0.779091539 | FN97: 0.4734302113 | FO97: 30.3219246 | FP97: 1.281273514 | FQ97: 65 | FR97: 142 | FS97: 9.02111799 | FT97: 9.490098916 | FU97: 0.7082105255 | FV97: 6.698991072 | FW97: 0.4743361373 | FX97: 22.73091271 | FY97: 16.22490598 | FZ97: -0.8185816263 | GA97: 45.06918328 | GB97: 0.4269022909 | GC97: -40.47578693 | GI97: 3.602405063 | GJ97: 0.09624042305 | GK97: 3.602405063 | GL97: 0.09624042305 | GM97: =GL97 -> 0.09624042305
A98: NEA 003 | B98: 0 | C98: RB | D98: basaltic | H98: 3 | I98: 357 | J98: NEA 003 RB | K98: D357 | L98: 0.200569119 | M98: 0.07183454373 | N98: 11.38849384 | O98: 53.19247869 | P98: 3477.717082 | Q98: 24.91616672 | R98: 56.88065677 | S98: 42.08209662 | T98: 3.372971266 | U98: 0.1668992738 | V98: 0 | X98: 7.154089043 | Y98: 118.0113672 | Z98: 61.81686138 | AA98: 0 | AB98: 0.01385664667 | AC98: 0.01794821598 | AD98: 175.730281 | AE98: 5.843622356 | AF98: 15.01735396 | AG98: 12.11913483 | AH98: 3.741636123 | AI98: 0.6656027787 | AJ98: 0.9449005368 | AK98: 3.603574361 | AL98: 0.5115444269 | AM98: 2.563400695 | AN98: 0.3412586044 | AO98: 0.4973539627 | AP98: 0.2996210925 | AQ98: 7.636564572 | AR98: 0.8651847174 | AS98: 0.4504988949 | AT98: 158.35 | AY98: 65.37986513 | AZ98: 0.8643454853 | BA98: 4.324667377 | BB98: 2.140039442 | BC98: 0.4672811073 | BD98: 2.235601085 | BE98: 0.4473069935 | BF98: 397.6929465 | BH98: 3.640991522 | BI98: 0.9999148821 | BJ98: 0.9956508463 | BK98: 0.9788590835 | BL98: 1.621618363 | BM98: 4.167349542 | BO98: 0.827614721 | BP98: 1.459637633 | BQ98: 1.058409212 | BR98: 1.889936454 | BS98: 5.621425034 | BY98: 5 | CB98: 1 | CC98: 1 | CQ98: Ba | DB98: 0.2996210925 | DC98: =S98 -> 42.08209662 | DD98: =DB98 -> 0.2996210925 | DE98: =LOG(S98) -> 1.624097369 | DF98: =LOG(DB98) -> -0.5234276167 | DG98: =DE98-DE$411 -> 0.2327762076 | DH98: =DF98-DF$411 -> 0 | DI98: =AVERAGE(DG98:DH98) -> 0.1163881038 | DJ98: =IF(DH98<DI$416,0,IF(DI98<DI$417,1,IF(DI98<DI$418,2,IF(DI98<DI$419,3,IF(DI98<DI$420,4,IF(DI98<DI$421,5,IF(DI98<DI$422,6,IF(DI98<DI$423,7,IF(#REF!<DI194,8,9))))))))) -> 1 | DK98: 77.86688712 | DL98: 2 | DO98: 8.008154358 | DP98: 0.01941681122 | DQ98: =100*DP98 -> 1.941681122 | DR98: 773ss | DW98: 1.561782644 | DX98: 1.03831245 | DY98: 5.621425034 | DZ98: 0.02514502731 | EA98: 0.0703414508 | EB98: 3640.991522 | ED98: 86.31197266 | EE98: 1.920503529 | EF98: 27.97429883 | EG98: 0.9351593618 | EH98: 3.813707602 | EI98: 0.6166679059 | EJ98: 6.75419045 | EK98: 11.42348943 | EL98: 0.7398314121 | EM98: 0.9351593618 | EN98: 0.1480562337 | EO98: 0.0770924039 | EP98: 0.147184867 | EQ98: 140.4510486 | ER98: 91.90913242 | ET98: WU | EU98: 44.71445622 | EV98: 1.818173496 | EW98: 4.517913218 | EX98: 0.5083031288 | EY98: 24.91616672 | EZ98: 0.3287722144 | FA98: 13.05185856 | FB98: 9.922768272 | FC98: 0.200569119 | FD98: 0.03890470964 | FE98: 0.06893793515 | FG98: 100.0868236 | FH98: 37.96802528 | FI98: 0.5238309212 | FJ98: 48.28786725 | FK98: 2.196316705 | FM98: 2.196316705 | FN98: 0.1254975894 | FO98: 14.44068149 | FP98: 0.3629570538 | FQ98: 74 | FR98: 166 | FS98: 2.391331466 | FT98: 7.091802484 | FU98: 1.996497882 | FV98: 22.89498086 | FW98: 9.843122297 | FX98: 47.81114758 | FY98: -6.733932242 | FZ98: -11.25184546 | GA98: -18.70536734 | GB98: 0.6209364083 | GC98: -47.66693085 | GE98: =FN98 -> 0.1254975894 | GF98: =FJ98 -> 48.28786725 | GG98: =AR98 -> 0.8651847174 | GI98: 3.741636123 | GJ98: 0.01794821598 | GK98: 3.741636123 | GL98: 0.01794821598 | GO98: =GL98 -> 0.01794821598
A99: NWA 03136 | B99: 0 | D99: basaltic | H99: G | I99: 344 | J99: NWA 03136 | K99: D344 | L99: 0.2947279997 | M99: 0.142990309 | N99: 12.41035157 | O99: 46.64280561 | P99: 2863.853809 | Q99: 15.36064665 | R99: 35.62694364 | S99: 155.9146495 | T99: 11.93038112 | U99: 1.053160228 | V99: 0 | W99: 0.5675576898 | X99: 0.6640302464 | Y99: 152.3380123 | Z99: 100.7814523 | AA99: 0 | AB99: 0.03416891921 | AC99: 0.131743514 | AD99: 644.5300508 | AE99: 7.67291252 | AF99: 20.59241232 | AG99: 12.39080874 | AH99: 3.857470775 | AI99: 0.9351621398 | AJ99: 0.8215430881 | AK99: 3.371337187 | AL99: 0.4760338534 | AM99: 2.930149059 | AN99: 0.3425700752 | AO99: 0.2827547695 | AP99: 5.985958889 | AQ99: 3.251462344 | AR99: 1.289924384 | AS99: 0.3716413889 | AT99: 230.11 | AV99: 1 | AW99: 1 | AX99: 1 | AY99: 61.39969008 | AZ99: 0.5976859538 | BA99: 2.990462714 | BB99: 1.570330561 | BC99: 0.6368085963 | BD99: 2.338190284 | BE99: 0.4276811887 | BF99: 566.8447429 | BH99: 2.559844006 | BI99: 1.044236178 | BJ99: 1.091315121 | BK99: 1.246686296 | BL99: 2.275925574 | BM99: 6.108084474 | BO99: 0.7470361074 | BP99: 1.316475953 | BQ99: 1.086998371 | BR99: 1.045736179 | BS99: 4.124921883 | BY99: 8 | CB99: 1 | CC99: 1 | CF99: 1 | CG99: 1 | CQ99: Bs Gb An | CR99: 1 | CT99: 1 | CU99: 1 | CW99: 1 | CZ99: 1 | DB99: 5.985958889 | DC99: 155.9146495 | DD99: 5.985958889 | DE99: 2.192886923 | DF99: 0.7771337298 | DG99: 0.8015657612 | DH99: 1.300561347 | DI99: 1.051063554 | DJ99: =IF(DH99<DI$416,0,IF(DI99<DI$417,1,IF(DI99<DI$418,2,IF(DI99<DI$419,3,IF(DI99<DI$420,4,IF(DI99<DI$421,5,IF(DI99<DI$422,6,IF(DI99<DI$423,7,IF(#REF!<DI195,8,9))))))))) -> 6 | DK99: 543.7360402 | DL99: 5 | DO99: 5.797774146 | DP99: 0.05026236897 | DQ99: =10*DP99 -> 0.5026236897 | DW99: 1.989104511 | DX99: 1.144196075 | DY99: 4.124921883 | DZ99: 0.01764151494 | EA99: 0.08270237444 | EB99: 2559.844006 | ED99: 218.5707634 | EE99: 3.470884628 | EF99: 46.87940617 | EG99: 1.309200309 | EH99: 4.103664477 | EI99: 0.4393816791 | EJ99: 5.948342876 | EK99: 16.11841777 | EL99: 4.376312802 | EM99: 1.309200309 | EN99: 0.168114048 | EO99: 0.0484355045 | EP99: 0.7936608408 | EQ99: 26.04672909 | ER99: 1.958745539 | ET99: WU | EU99: 46.00584242 | EV99: 1.239902349 | EW99: 13.80480772 | EX99: 0.4185808727 | EY99: 15.36064665 | EZ99: 0.2539517607 | FA99: 10.38232817 | FB99: 11.65982561 | FC99: 0.2947279997 | FD99: 0.1015697304 | FE99: 0.06499955299 | FG99: 99.58718283 | FH99: 25.74297482 | FI99: 0.6759043684 | FJ99: 54.64582395 | FK99: 0.8446206461 | FM99: 0.8446206461 | FN99: 0.383466881 | FO99: 25.46463333 | FP99: 0.9437330634 | FQ99: 89 | FR99: 154 | FS99: 7.306884724 | FT99: 8.333277365 | FU99: 0.7677778562 | FV99: 13.19668466 | FW99: 2.814356491 | FX99: 28.55733131 | FY99: 10.89131151 | FZ99: -2.913496208 | GA99: 30.25364308 | GB99: 0.604985174 | GC99: -54.04083878 | GE99: =FN99 -> 0.383466881 | GF99: =FJ99 -> 54.64582395 | GG99: =AR99 -> 1.289924384 | GI99: 3.857470775 | GJ99: 0.131743514 | GK99: 3.857470775 | GL99: 0.131743514 | GO99: =GL99 -> 0.131743514
A100: NWA 04884 | B100: 0 | D100: basaltic | H100: L | I100: 361 | J100: NWA 04884 | K100: D363 | L100: 0.3660866236 | M100: 0.05185557724 | N100: 13.90571611 | O100: 29.86013737 | P100: 2051.642809 | Q100: 13.71615711 | R100: 43.80968323 | S100: 153.4711755 | T100: 14.61065906 | U100: 0.08919831857 | V100: 0.1352236901 | W100: 0.07619689236 | X100: 0.4285017265 | Y100: 115.1808287 | Z100: 87.74208077 | AA100: 0 | AB100: 0.0156688185 | AC100: 0.08672684282 | AD100: 87.77124306 | AE100: 6.29120027 | AF100: 16.35159511 | AG100: 10.14998874 | AH100: 3.068842141 | AI100: 0.7857080018 | AJ100: 0.6377880198 | AK100: 2.346071536 | AL100: 0.3261342891 | AM100: 2.253846269 | AN100: 0.2627518391 | AO100: 0.06633013061 | AP100: 3.15709353 | AQ100: 1.24328179 | AR100: 0.9330603513 | AS100: 0.255621153 | AT100: 266.44 | AV100: 1 | AW100: 1 | AX100: 1 | AY100: 68.70841831 | AZ100: 0.6573542447 | BA100: 3.289007122 | BB100: 1.486923849 | BC100: 0.6725293971 | BD100: 3.456750669 | BE100: 0.2892890161 | BF100: 885.0232551 | BH100: 3.570502302 | BI100: 1.01129619 | BJ100: 1.063285961 | BK100: 1.284868093 | BL100: 2.681589276 | BM100: 6.969776862 | BO100: 0.6433218646 | BP100: 1.361602245 | BQ100: 1.127468602 | BR100: 0.9943730966 | BS100: 3.905830326 | BY100: 9 | CB100: 1 | CC100: 1 | CF100: 1 | CG100: 1 | CQ100: Bs Tr | CR100: 1 | CT100: 1 | CU100: 1 | CW100: 1 | CZ100: 1 | DB100: 3.15709353 | DC100: 153.4711755 | DD100: 3.15709353 | DE100: 2.18602682 | DF100: 0.4992874481 | DG100: 0.7947056579 | DH100: 1.022715065 | DI100: 0.9087103614 | DJ100: =IF(DH100<DI$416,0,IF(DI100<DI$417,1,IF(DI100<DI$418,2,IF(DI100<DI$419,3,IF(DI100<DI$420,4,IF(DI100<DI$421,5,IF(DI100<DI$422,6,IF(DI100<DI$423,7,IF(#REF!<DI195,8,9))))))))) -> 5 | DK100: 10 | DL100: 0 | DO100: 5.115259966 | DP100: 0.038096669 | DQ100: 0.38096669 | DR100: 4884ss | DS100: 2995m | DW100: 2.050024075 | DX100: 1.308076968 | DY100: 3.905830326 | DZ100: 0.01129913812 | EA100: 0.1027738789 | EB100: 3570.502302 | ED100: 210.2683153 | EE100: 3.650168777 | EF100: 90.95727281 | EG100: 0.6815876118 | EH100: 3.678450305 | EI100: 0.3729131859 | EJ100: 6.742543782 | EK100: 19.29021412 | EL100: 3.503133649 | EM100: 0.6815876118 | EN100: 0.1483119772 | EO100: 0.04063153961 | EP100: 0.4252543593 | EQ100: 48.61153908 | ER100: 1.420087635 | ET100: WU | EU100: 46.30586048 | EV100: 0.53429797 | EW100: 16.26420068 | EX100: 0.2998681129 | EY100: 13.71615711 | EZ100: 0.2005285069 | FA100: 9.252910956 | FB100: 12.19231366 | FC100: 0.3660866236 | FD100: 0.07773524478 | FE100: 0.07846940031 | FG100: 99.28842874 | FH100: 22.96906806 | FI100: 0.6745993709 | FJ100: 54.59792156 | FK100: 0.7496411229 | FM100: 0.7496411229 | FN100: 0.4517833522 | FO100: 28.45651434 | FP100: 1.210742082 | FQ100: 102 | FR100: 138 | FS100: 8.608641419 | FT100: 8.713846573 | FU100: 0.6814394805 | FV100: 13.18645461 | FW100: 3.933543651 | FX100: 26.90261172 | FY100: 12.40606764 | FZ100: -3.858133043 | GA100: 34.46129899 | GB100: 0.6315191427 | GC100: -53.96640242 | GE100: =FN100 -> 0.4517833522 | GF100: =FJ100 -> 54.59792156 | GG100: =AR100 -> 0.9330603513 | GI100: 3.068842141 | GJ100: 0.08672684282 | GK100: 3.068842141 | GL100: 0.08672684282 | GO100: =GL100 -> 0.08672684282
A101: NWA 04884 | B101: 0 | D101: basaltic | E101: RC30.1 JP-20 | F101: 44 | H101: L | I101: 376 | J101: NWA 07611 | K101: D383 | L101: 0.3984114688 | M101: 0.0646320854 | N101: 13.78496019 | O101: 26.55291521 | P101: 1755.566199 | Q101: 12.11315793 | R101: 38.86035365 | S101: 172.0371634 | T101: 11.2450674 | U101: 0.2781230176 | V101: 0.295638085 | W101: 0.3481219634 | X101: 2.370448574 | Y101: 159.6329592 | Z101: 83.56113273 | AA101: 0.267105702 | AB101: 0.02010667101 | AC101: 0.07326502216 | AD101: 183.2037316 | AE101: 6.377712334 | AF101: 16.5210891 | AG101: 10.51386687 | AH101: 3.09008832 | AI101: 0.8671370277 | AJ101: 0.6283866262 | AK101: 2.333838306 | AL101: 0.3287025051 | AM101: 2.235582558 | AN101: 0.2671893169 | AO101: 0.01039987504 | AP101: 4.964379352 | AQ101: 3.685664955 | AR101: 0.9656543254 | AS101: 0.4203969445 | AT101: 320.1 | AV101: 1 | AW101: 1 | AX101: 1 | AY101: 66.11576112 | AZ101: 0.6395637791 | BA101: 3.199994282 | BB101: 1.356620937 | BC101: 0.7371255837 | BD101: 3.408705421 | BE101: 0.2933665062 | BF101: 956.5469919 | BH101: 3.545960053 | BI101: 1.007918702 | BJ101: 1.0611682 | BK101: 1.293580968 | BL101: 2.732713881 | BM101: 7.078934758 | BO101: 0.6439297949 | BP101: 1.382229571 | BQ101: 1.116419657 | BR101: 1.580156756 | BS101: 3.563552497 | BY101: 11 | CB101: 1 | CC101: 1 | CF101: 1 | CG101: 1 | CQ101: Gb | CR101: 1 | CT101: 1 | CU101: 1 | CW101: 1 | CZ101: 1 | DB101: 4.964379352 | DC101: 172.0371634 | DD101: 4.964379352 | DE101: 2.235622273 | DF101: 0.6958649606 | DG101: 0.8443011114 | DH101: 1.219292577 | DI101: 1.031796844 | DJ101: =IF(DH101<DI$416,0,IF(DI101<DI$417,1,IF(DI101<DI$418,2,IF(DI101<DI$419,3,IF(DI101<DI$420,4,IF(DI101<DI$421,5,IF(DI101<DI$422,6,IF(DI101<DI$423,7,IF(#REF!<DI196,8,9))))))))) -> 6 | DK101: 101.8244971 | DL101: 3 | DO101: 4.344687356 | DP101: 0.03872067291 | DQ101: 0.3872067291 | DR101: 4884ss | DS101: 2995m | DW101: 2.063925582 | DX101: 1.324037022 | DY101: 3.563552497 | DZ101: 0.01045426946 | EA101: 0.1163747293 | EB101: 3545.960053 | ED101: 211.2464526 | EE101: 2.297006051 | EF101: 111.3178973 | EG101: 0.6832906217 | EH101: 3.714016512 | EI101: 0.3659365903 | EJ101: 6.604550062 | EK101: 19.40268856 | EL101: 4.427061187 | EM101: 0.6832906217 | EN101: 0.1514107684 | EO101: 0.0659165736 | EP101: 0.5965279996 | EQ101: 34.6543145 | ER101: 2.677219096 | ET101: WU | EU101: 46.27456674 | EV101: 0.5024495651 | EW101: 17.94188271 | EX101: 0.2565935556 | EY101: 12.11315793 | EZ101: 0.1764600102 | FA101: 8.945354203 | FB101: 12.6881346 | FC101: 0.3984114688 | FD101: 0.07863753715 | FE101: 0.09957529132 | FG101: 99.47522361 | FH101: 21.05851214 | FI101: 0.7384824215 | FJ101: 56.82994342 | FK101: 0.7071796646 | FM101: 0.7071796646 | FN101: 0.4983856309 | FO101: 30.63001731 | FP101: 1.420623891 | FQ101: 136 | FR101: 124 | FS101: 9.496638519 | FT101: 9.068209798 | FU101: 0.6428411257 | FV101: 11.18501108 | FW101: 2.239656878 | FX101: 23.29816901 | FY101: 15.70563071 | FZ101: -2.236252003 | GA101: 43.62675197 | GB101: 0.622084694 | GC101: -56.20785873 | GE101: =FN101 -> 0.4983856309 | GF101: =FJ101 -> 56.82994342 | GG101: =AR101 -> 0.9656543254 | GI101: 3.09008832 | GJ101: 0.07326502216 | GK101: 3.09008832 | GL101: 0.07326502216 | GO101: =GL101 -> 0.07326502216
A102: NWA 04884 | B102: 0 | D102: basaltic | E102: SH13-2 | F102: 48 | H102: L | I102: 377 | J102: NWA 08277 | K102: D385 | L102: 0.3522812073 | M102: 0.04668459229 | N102: 12.49017683 | O102: 31.82130031 | P102: 2223.752947 | Q102: 14.53914005 | R102: 45.46972907 | S102: 156.3006209 | T102: 14.16324243 | U102: 0.4595893861 | V102: 0.09162033397 | W102: 0.6236352556 | X102: 2.234703074 | Y102: 161.4987567 | Z102: 77.13757524 | AA102: 0.04146944543 | AB102: 0.01762064509 | AC102: 0.06698666405 | AD102: 206.8729115 | AE102: 6.253703237 | AF102: 15.85003256 | AG102: 11.4844061 | AH102: 3.054513558 | AI102: 0.780264745 | AJ102: 0.6520761502 | AK102: 2.278595013 | AL102: 0.3267254724 | AM102: 2.214391882 | AN102: 0.2418158024 | AO102: 0.3495908395 | AP102: 3.940227642 | AQ102: 4.552534926 | AR102: 0.8663823129 | AS102: 0.3800986222 | AT102: 339.72 | AV102: 1 | AW102: 1 | AY102: 69.88252915 | AZ102: 0.7046397473 | BA102: 3.52559547 | BB102: 1.490305921 | BC102: 0.6710031717 | BD102: 3.349599343 | BE102: 0.2985431682 | BF102: 855.6433709 | BH102: 3.551480754 | BI102: 0.9861537873 | BJ102: 1.036581863 | BK102: 1.28320131 | BL102: 2.744543546 | BM102: 6.956055141 | BO102: 0.6475112772 | BP102: 1.379391598 | BQ102: 1.219363107 | BR102: 1.592388488 | BS102: 3.914714304 | BY102: 10 | CB102: 1 | CC102: 1 | CR102: 1 | CT102: 1 | CU102: 0 | CW102: 1 | DB102: 3.940227642 | DC102: 156.3006209 | DD102: 3.940227642 | DE102: 2.193960703 | DF102: 0.5955213134 | DG102: 0.8026395417 | DH102: 1.11894893 | DI102: 0.9607942359 | DJ102: =IF(DH102<DI$416,0,IF(DI102<DI$417,1,IF(DI102<DI$418,2,IF(DI102<DI$419,3,IF(DI102<DI$420,4,IF(DI102<DI$421,5,IF(DI102<DI$422,6,IF(DI102<DI$423,7,IF(#REF!<DI197,8,9))))))))) -> 5 | DK102: 126.3937185 | DL102: 3 | DO102: 5.407202785 | DP102: 0.03716374297 | DQ102: 0.3716374297 | DR102: 4884ss | DS102: 2995m | DW102: 2.047364701 | DX102: 1.34052499 | DY102: 3.914714304 | DZ102: 0.01168711211 | EA102: 0.09598958962 | EB102: 3551.480754 | ED102: 217.968069 | EE102: 2.279361887 | EF102: 82.13285604 | EG102: 0.6998348344 | EH102: 3.494369504 | EI102: 0.3643593127 | EJ102: 7.218179716 | EK102: 19.14054387 | EL102: 3.437465411 | EM102: 0.6998348344 | EN102: 0.1385390832 | EO102: 0.06077976645 | EP102: 0.5211332168 | EQ102: 39.66791646 | ER102: 4.166438679 | ET102: WU | EU102: 46.41303988 | EV102: 0.5668010623 | EW102: 15.33218774 | EX102: 0.3250237307 | EY102: 14.53914005 | EZ102: 0.2068906404 | FA102: 9.462723007 | FB102: 11.91691291 | FC102: 0.3522812073 | FD102: 0.08020556825 | FE102: 0.07168270146 | FF102: 0.1302692403 | FG102: 99.2668885 | FH102: 24.00186306 | FI102: 0.6508447524 | FJ102: 53.70793219 | FK102: 0.7772480423 | FM102: 0.7772480423 | FN102: 0.425894104 | FO102: 27.24910065 | FP102: 1.109099808 | FV102: 14.22739076 | FW102: 4.764667755 | FX102: 28.76653081 | FY102: 10.69980702 | FZ102: -4.632380727 | GA102: 29.72168616 | GB102: 0.6356304059 | GI102: 3.054513558 | GJ102: 0.06698666405 | GK102: 3.054513558 | GL102: 0.06698666405 | GO102: =GL102 -> 0.06698666405
A103: NWA 04884 | B103: 0 | D103: basaltic | H103: L | I103: 390 | J103: NWA 10480 | K103: D390 | L103: 0.3589207181 | M103: 0.09309903734 | N103: 12.96983449 | O103: 31.03689497 | P103: 1843.656262 | Q103: 13.76976939 | R103: 40.16390994 | S103: 143.5817825 | T103: 10.43297456 | U103: 0.3548814679 | V103: 0.1616232425 | W103: 0.2224906637 | X103: 0.5322021746 | Y103: 299.5525501 | Z103: 85.68496765 | AA103: 0.8341533252 | AB103: 0.02924973865 | AC103: 0.007990128393 | AD103: 197.7774952 | AE103: 6.09993624 | AF103: 15.71138436 | AG103: 11.12341387 | AH103: 2.988054639 | AI103: 0.8032488194 | AJ103: 0.6427722682 | AK103: 2.24705464 | AL103: 0.3296908688 | AM103: 2.213814904 | AN103: 0.2180044965 | AO103: 0 | AP103: 2.202110851 | AQ103: 2.998804591 | AR103: 0.8852079838 | AS103: 0.8359709224 | AT103: 96.84 | AV103: 1 | AW103: 1 | AY103: 59.40208463 | AZ103: 0.674648983 | BA103: 3.37553964 | BB103: 1.416164792 | BC103: 0.7061325106 | BD103: 3.315078396 | BE103: 0.3016519915 | BF103: 891.1593426 | BH103: 3.448554295 | BI103: 1.002168884 | BJ103: 1.052805593 | BK103: 1.279488374 | BL103: 2.714636365 | BM103: 6.991990352 | BO103: 0.667920516 | BP103: 1.349731015 | BQ103: 1.32311854 | BR103: 3.427742276 | BS103: 3.719961445 | BY103: 3 | CB103: 1 | CC103: 1 | CR103: 1 | CT103: 1 | CU103: 0 | CW103: 1 | DB103: 2.202110851 | DC103: 143.5817825 | DD103: 2.202110851 | DE103: 2.15709934 | DF103: 0.3428391769 | DG103: 0.7657781788 | DH103: 0.8662667936 | DI103: 0.8160224862 | DJ103: =IF(DH103<DI$416,0,IF(DI103<DI$417,1,IF(DI103<DI$418,2,IF(DI103<DI$419,3,IF(DI103<DI$420,4,IF(DI103<DI$421,5,IF(DI103<DI$422,6,IF(DI103<DI$423,7,IF(#REF!<DI199,8,9))))))))) -> 5 | DK103: 118.9797129 | DL103: 3 | DO103: 4.938064433 | DP103: 0.03704654779 | DQ103: 0.3704654779 | DR103: 4884ss | DS103: 2995m | DW103: 2.041440662 | DX103: 1.329765011 | DY103: 3.719961445 | DZ103: 0.01122133778 | EA103: 0.09627427748 | EB103: 3448.554295 | ED103: 0 | EE103: 1.058898055 | EF103: 85.79572183 | EG103: 0.7727558154 | EH103: 3.49587988 | EI103: 0.3683734635 | EJ103: 6.890963877 | EK103: 18.50198722 | EL103: 3.574895539 | EM103: 0.7727558154 | EN103: 0.1451175798 | EO103: 0.137045846 | EP103: 0.317050164 | EQ103: 65.20188682 | ER103: 4.910684264
A104: NWA 04884 | B104: 0 | D104: basaltic | E104: DGR 027-15 | H104: L | I104: 388 | J104: NWA 10566 | K104: D388 | L104: 0.4138321396 | M104: 0.03429666334 | N104: 11.9419031 | O104: 30.22594327 | P104: 1917.596695 | Q104: 13.85828826 | R104: 42.275305 | S104: 190.504799 | T104: 8.769042379 | U104: 0.5004276284 | V104: 0.08068888767 | W104: 0.2667982001 | X104: 1.526715143 | Y104: 209.6814815 | Z104: 90.16393669 | AA104: 0 | AB104: 0.03004045704 | AC104: 0.01874285382 | AD104: 343.5056583 | AE104: 6.755587824 | AF104: 16.49202919 | AG104: 12.11920471 | AH104: 3.203516386 | AI104: 0.8881118726 | AJ104: 0.6510415455 | AK104: 2.295641548 | AL104: 0.3235020253 | AM104: 2.203741196 | AN104: 0.2969206197 | AO104: 0.1829838121 | AP104: 5.116816658 | AQ104: 3.324722735 | AR104: 0.9259421492 | AS104: 0.2853553376 | AT104: 137.13 | AV104: 1 | AW104: 1 | AY104: 63.44207949 | AZ104: 0.6914770232 | BA104: 3.459737079 | BB104: 1.373202635 | BC104: 0.7282246439 | BD104: 3.457020155 | BE104: 0.2892664651 | BF104: 958.3908035 | BH104: 3.563841621 | BI104: 0.9498667977 | BJ104: 1.004361052 | BK104: 1.321708788 | BL104: 2.942788621 | BM104: 7.184061121 | BO104: 0.611302896 | BP104: 1.45367178 | BQ104: 1.041507168 | BR104: 1.118573325 | BS104: 3.607109065 | BY104: 4 | CB104: 1 | CC104: 1 | CR104: 1 | CT104: 1 | CU104: 1 | CW104: 1 | DB104: 5.116816658 | DC104: 190.504799 | DD104: 5.116816658 | DE104: 2.279905921 | DF104: 0.7089998559 | DG104: 0.8885847589 | DH104: 1.232427473 | DI104: 1.060506116 | DJ104: =IF(DH104<DI$416,0,IF(DI104<DI$417,1,IF(DI104<DI$418,2,IF(DI104<DI$419,3,IF(DI104<DI$420,4,IF(DI104<DI$421,5,IF(DI104<DI$422,6,IF(DI104<DI$423,7,IF(#REF!<DI200,8,9))))))))) -> 6 | DK104: 259.2566938 | DL104: 4 | DO104: 4.911110353 | DP104: 0.03835097072 | DQ104: 0.3835097072 | DR104: 4884ss | DS104: 2995m | DW104: 2.108803892 | DX104: 1.395477613 | DY104: 3.607109065 | DZ104: 0.01043415688 | EA104: 0.1059856547 | EB104: 3563.841621 | ED104: 0 | EE104: 3.244874118 | EF104: 101.5756768 | EG104: 0.7149787154 | EH104: 3.526106074 | EI104: 0.3398137376 | EJ104: 7.295907017 | EK104: 20.88267552 | EL104: 4.506290351 | EM104: 0.7149787154 | EN104: 0.1370631503 | EO104: 0.04223989755 | EP104: 0.5552417074 | EQ104: 37.23111688 | ER104: 2.343087994 | GI104: 3.203516386 | GJ104: 0.01874285382 | GK104: =GI104 -> 3.203516386 | GL104: 0.01874285382 | GO104: =GL104 -> 0.01874285382
A105: NWA 04884 | B105: 0 | D105: basaltic | E105: MA190 | F105: 107 | H105: L | I105: 389 | J105: NWA MA190 | K105: D389 | L105: 0.3375442938 | M105: 0.03639899816 | N105: 11.22443385 | O105: 32.82865682 | P105: 2198.873377 | Q105: 15.38394898 | R105: 46.7587888 | S105: 124.7878153 | T105: 7.802112797 | U105: 0.2706966842 | V105: 0 | W105: 0.2184633029 | X105: 1.431091355 | Y105: 136.1332669 | Z105: 123.7758749 | AA105: 0 | AB105: 0.006205827165 | AC105: 0.02235131665 | AD105: 119.1880094 | AE105: 6.381024269 | AF105: 16.35874578 | AG105: 11.55009751 | AH105: 3.13470317 | AI105: 0.7513750255 | AJ105: 0.6497243144 | AK105: 2.277026726 | AL105: 0.3314362616 | AM105: 2.396232533 | AN105: 0.2555111528 | AO105: 0.2530826145 | AP105: 4.04387509 | AQ105: 1.689187391 | AR105: 0.8775513486 | AS105: 0.5383951257 | AT105: 103.07 | AV105: 1 | AW105: 1 | AY105: 66.9803029 | AZ105: 0.7139347855 | BA105: 3.572102277 | BB105: 1.588235949 | BC105: 0.6296293702 | BD105: 3.332877765 | BE105: 0.3000410067 | BF105: 798.8766335 | BH105: 3.642532075 | BI105: 0.9974964615 | BJ105: 1.04729752 | BK105: 1.275832193 | BL105: 2.802349308 | BM105: 7.184257257 | BO105: 0.6400442461 | BP105: 1.308179873 | BQ105: 1.184301375 | BR105: 2.226849636 | BS105: 4.1719555 | BY105: 3 | CB105: 1 | CC105: 1 | CR105: 0 | CS105: 1 | CT105: 0 | CV105: 1 | CW105: 0 | DB105: 4.04387509 | DC105: 124.7878153 | DD105: 4.04387509 | DE105: 2.096172181 | DF105: 0.6067977323 | DG105: 0.7048510197 | DH105: 1.130225349 | DI105: 0.9175381844 | DJ105: =IF(DH105<DI$416,0,IF(DI105<DI$417,1,IF(DI105<DI$418,2,IF(DI105<DI$419,3,IF(DI105<DI$420,4,IF(DI105<DI$421,5,IF(DI105<DI$422,6,IF(DI105<DI$423,7,IF(#REF!<DI201,8,9))))))))) -> 5 | DK105: 36.68001915 | DL105: 1 | DO105: 5.593066461 | DP105: 0.03869243721 | DQ105: 0.3869243721 | DR105: 4884ss | DS105: 2995m | DW105: 2.035607176 | DX105: 1.376665076 | DY105: 4.1719555 | DZ105: 0.01251757728 | EA105: 0.09548679338 | EB105: 3642.532075 | ED105: 0 | EE105: 1.629939252 | EF105: 76.28216804 | EG105: 0.7020852691 | EH105: 3.504604454 | EI105: 0.3568434518 | EJ105: 7.271397029 | EK105: 19.25264375 | EL105: 2.668756366 | EM105: 0.7020852691 | EN105: 0.1375251545 | EO105: 0.08437440496 | EP105: 0.6699057364 | EQ105: 30.85847423 | ER105: 1.506305702 | GI105: 3.1754061 | GJ105: 0 | GK105: 3.1754061 | GL105: 0 | GO105: =GL105 -> 0
A106: NWA 10447 | B106: 0 | D106: basaltic | F106: 97 | H106: µ | I106: 387 | J106: NWA 10447 | K106: D388 | L106: 0.3041871379 | M106: 0.0234174476 | N106: 11.09715327 | O106: 29.73315373 | P106: 2730.959837 | Q106: 15.15386573 | R106: 53.44519191 | S106: 142.1593273 | T106: 11.45140724 | U106: 0.3209823611 | V106: 0.243644025 | W106: 0.1567545254 | X106: 2.881302463 | Y106: 169.538417 | Z106: 66.77871134 | AA106: 0.03797095965 | AB106: 0.02672286387 | AC106: 0.04063040152 | AD106: 496.6130512 | AE106: 5.267279303 | AF106: 13.82079779 | AG106: 10.27259423 | AH106: 2.593192166 | AI106: 0.671812083 | AJ106: 0.5541792787 | AK106: 1.917282344 | AL106: 0.2810507447 | AM106: 1.882413504 | AN106: 0.2303159278 | AO106: 0.3060084694 | AP106: 2.711649088 | AQ106: 2.901760379 | AR106: 0.7894168551 | AS106: 0.4609863567 | AT106: 169.25 | AV106: 1 | AW106: 1 | AX106: 1 | AY106: 91.84897981 | AZ106: 0.65654268 | BA106: 3.284946539 | BB106: 1.469475144 | BC106: 0.6805150832 | BD106: 3.359219688 | BE106: 0.2976881814 | BF106: 870.2649984 | BH106: 3.961604591 | BI106: 1.020936009 | BJ106: 1.07144225 | BK106: 1.273066911 | BL106: 2.747263239 | BM106: 7.208535474 | BO106: 0.6560794559 | BP106: 1.377589015 | BQ106: 1.086892018 | BR106: 2.119551576 | BS106: 3.859996316 | BY106: 5 | CB106: 1 | CC106: 1 | CF106: 1 | CG106: 1 | CR106: 1 | CT106: 1 | CU106: 1 | CW106: 1 | CZ106: 1 | DB106: 2.711649088 | DC106: 142.1593273 | DD106: 2.711649088 | DE106: 2.15277536 | DF106: 0.4332334871 | DG106: 0.7614541981 | DH106: 0.9566611038 | DI106: 0.859057651 | DJ106: =IF(DH106<DI$416,0,IF(DI106<DI$417,1,IF(DI106<DI$418,2,IF(DI106<DI$419,3,IF(DI106<DI$420,4,IF(DI106<DI$421,5,IF(DI106<DI$422,6,IF(DI106<DI$423,7,IF(#REF!<DI202,8,9))))))))) -> 5 | DK106: 427.8052894 | DL106: 5 | DO106: 6.09825024 | DP106: 0.03228151117 | DQ106: 0.3228151117 | DW106: 2.031195132 | DX106: 1.35253536 | DY106: 3.859996316 | DZ106: 0.01149075284 | EA106: 0.08721550996 | EB106: 3961.604591 | ED106: 0 | EE106: 1.712451667 | EF106: 75.90060564 | EG106: 0.5563298152 | EH106: 3.459678876 | EI106: 0.3639986098 | EJ106: 6.672367419 | EK106: 18.74138177 | EL106: 2.659908632 | EM106: 0.5563298152 | EN106: 0.1498718427 | EO106: 0.08751887458 | EP106: 0.394317701 | EQ106: 52.42541447 | ER106: 3.858878288 | GI106: 2.593192166 | GJ106: 0.04063040152 | GK106: 2.593192166 | GL106: 0.04063040152 | GO106: =GL106 -> 0.04063040152
A107: NWA 12384 not WU | B107: 0 | D107: basaltic | I107: 0 | J107: NWA 12384 | L107: 0.4 | M107: 0.01 | N107: 9.81 | O107: 37.2 | P107: 3266.945632 | Q107: 20.43 | R107: 56.7 | S107: 103 | T107: 16.6 | X107: 1.1 | Y107: 90.7 | Z107: 135.6 | AB107: 0.054 | AC107: 0.053 | AD107: 341.5 | AE107: 8.8932528 | AF107: 25.10028401 | AG107: 17.4173388 | AH107: 5.156096756 | AI107: 0.9796588216 | AJ107: 1.059900379 | AK107: 3.288812648 | AL107: 0.4614439944 | AM107: 3.538337839 | AN107: 0.6026598608 | AO107: 0.4815987424 | AR107: 0.8130053091 | AS107: 0.261414273 | AY107: 87.82111914 | AZ107: 1.26754193 | BA107: 6.342021016 | BB107: 2.003648609 | BC107: 0.4990895088 | BD107: 3.029217861 | BE107: 0.3301182173 | BF107: 575.5516508 | BH107: 4.268881452 | BI107: 1.098170453 | BJ107: 1.115417842 | BK107: 1.081033525 | BL107: 2.704092252 | BM107: 7.632020031 | BO107: 0.5417567595 | BP107: 1.457208721 | BQ107: 0.8258942894 | BR107: 1.167073548 | BS107: 5.263155542 | EB107: 4268.881452 | ED107: 16.09938756 | EF107: 79.77419355 | EG107: 0.6560846561 | EL107: 1.816578483 | EM107: 0.6560846561 | ES107: Carpenter et al (2019) | EU107: 45.25 | EV107: 2 | EW107: 7.51 | EX107: 0.57 | EY107: 20.43 | EZ107: 0.28 | FA107: 13.98 | FB107: 9.81 | FC107: 0.4 | FD107: 0.01 | FE107: 0.13 | FG107: =SUM(EU107:FE107) -> 100.37 | FH107: =EY107+FA107 -> 34.41 | FI107: =FA107/EY107 -> 0.684287812 | FJ107: =100*(FA107/40.304)/(FA107/40.304+EY107/71.846) -> 54.95115979 | FK107: =FB107/EW107 -> 1.306258322 | FM107: =FB107/EW107 -> 1.306258322 | FN107: =EW107/FN$1 -> 0.2086111111 | FO107: =EW107+FB107 -> 17.32 | FP107: =FO107/(FH107+EV107) -> 0.4756934908
A108: NWA ST oriented | B108: 0 | D108: basaltic | E108: Turecki oriented | F108: 4 | H108: t | I108: 357 | J108: NWA ST oriented | K108: D357 | L108: 0.3220045093 | M108: 0 | N108: 13.9013528 | O108: 35.64706893 | P108: 1997.810608 | Q108: 11.48927851 | R108: 20.99549066 | S108: 102.506764 | T108: 11.9184883 | U108: 0.2543461456 | V108: 0.3013528022 | W108: 0.4743461456 | X108: 4.650225467 | Y108: 101.0180374 | Z108: 52.51127335 | AA108: 0.550225467 | AB108: 0.1027474769 | AC108: 0.0849774533 | AD108: 59.52931072 | AE108: 3.755518574 | AF108: 9.451127335 | AG108: 6.052480137 | AH108: 1.693482499 | AI108: 0.6635789135 | AJ108: 0.3786194975 | AK108: 1.915473481 | AL108: 0.2835428387 | AM108: 1.360541121 | AN108: 0.1845428387 | AO108: 0.05022546704 | AP108: 2.950225467 | AQ108: 236.3660511 | AR108: 0.7550676401 | AS108: 0.2000901868 | AT108: 46.57 | AV108: 1 | AY108: 56.04417608 | AZ108: 0.4482595105 | BA108: 2.242822245 | BB108: 0.9715462734 | BC108: 1.029287052 | BD108: 3.60010152 | BE108: 0.2777699447 | BF108: 1410.673837 | BH108: 2.505287658 | BI108: 0.9791865895 | BJ108: 1.045835101 | BK108: 1.389916736 | BL108: 1.960621544 | BM108: 4.934094588 | BO108: 1.013548112 | BP108: 1.24471247 | BQ108: 0.8858479567 | BR108: 0.9618386911 | BS108: 2.552043872 | BY108: 2 | CB108: 1 | CC108: 1 | CF108: 1 | CG108: 1 | CR108: 0 | CS108: 1 | CT108: 0 | CW108: 0 | CY108: 7 | CZ108: 1 | DB108: =AP108 -> 2.950225467 | DC108: =S108 -> 102.506764 | DD108: =DB108 -> 2.950225467 | DE108: =LOG(S108) -> 2.010752524 | DF108: =LOG(DB108) -> 0.4698552076 | DG108: =DE108-DE$411 -> 0.6194313621 | DH108: =DF108-DF$411 -> 0.9932828244 | DI108: =AVERAGE(DG108:DH108) -> 0.8063570932 | DJ108: =IF(DH108<DI$416,0,IF(DI108<DI$417,1,IF(DI108<DI$418,2,IF(DI108<DI$419,3,IF(DI108<DI$420,4,IF(DI108<DI$421,5,IF(DI108<DI$422,6,IF(DI108<DI$423,7,IF(#REF!<DI203,8,9))))))))) -> 5 | DK108: =MAX(10,AD108-(3.2+25.3*AH108)) -> 13.48420348 | DL108: =IF(DK108<20,0,IF(DK108<40,1,IF(DK108<80,2,IF(DK108<160,3,IF(DK108<320,4,IF(DK108<640,5,IF(DK108<1280,6,IF(DK108<2560,7,IF(DK108<5120,8,9))))))))) -> 0 | DO108: 4.083425431 | DP108: 0.02446679245 | DQ108: =10*DP108 -> 0.2446679245 | DW108: =AE108/AH108 -> 2.217630578 | DX108: =AH108/AK108 -> 0.884106471 | DY108: =AH108/AI108 -> 2.552043872 | DZ108: =AH108/(L108*0.7419*1000) -> 0.007088810851 | EA108: =AH108/O108 -> 0.04750692134 | EB108: 2505.287658 | ED108: 418.6980862 | EE108: =AR108/AS108 -> 3.773636539 | EF108: 67.01677099 | EG108: 1.697844052 | EH108: =AK108/AJ108 -> 5.059098893 | EI108: =AK108/AE108 -> 0.5100423398 | EJ108: =AE108/AR108 -> 4.973751191 | EK108: =AE108/AL108 -> 13.24497769 | EL108: 4.88232286 | EM108: 1.697844052 | EN108: =AR108/AE108 -> 0.2010554935 | EO108: =AS108/AE108 -> 0.05327897675 | EP108: =(AP108/S108)/(595/12300) -> 0.5949641936 | EQ108: =S108/AP108 -> 34.74540002 | ER108: =(AQ108/AP108)/(165/595) -> 288.9102257 | ES108: 2013-12-18 | EU108: 47.37340903 | EV108: 0.4909366324 | EW108: 19.02339803 | EX108: 0.2919999984 | EY108: 11.48927851 | EZ108: 0.1895249959 | FA108: 7.552045086 | FB108: 12.97900799 | FC108: 0.3220045093 | FD108: 0.08541836906 | FE108: 0.02641180308 | FG108: =SUM(EU108:FE108) -> 99.82343495 | FH108: =EY108+FA108 -> 19.04132359 | FI108: =FA108/EY108 -> 0.6573123876 | FJ108: =100*(FA108/40.304)/(FA108/40.304+EY108/71.846) -> 53.95368665 | FK108: =FB108/EW108 -> 0.6822654908 | FM108: =FB108/EW108 -> 0.6822654908 | FN108: =EW108/FN$1 -> 0.528427723 | FO108: =EW108+FB108 -> 32.00240602 | FP108: =FO108/(FH108+EV108) -> 1.638438442 | FQ108: 150 | FR108: 139 | FS108: =EW108*0.5293 -> 10.06908458 | FT108: =FB108*0.7147 -> 9.276097011 | FU108: =(FT108/40.078)/(FS108/26.981) -> 0.6201936199 | FV108: =Q108*(AY108*0.01414)-0.1393 -> 8.965547067 | FW108: =FV108-FA108 -> 1.413501981 | FX108: =Q108+FV108 -> 20.45482557 | FY108: =(FX108-40.455)/-1.0924 -> 18.30847165 | FZ108: =FY108-EW108 -> -0.7149263793 | GA108: =100*FY108/36 -> 50.85686569 | GB108: =(FV108/40.302)/(FV108/40.302+Q108/71.846) -> 0.5817833858 | GC108: =GB108-FJ108 -> -53.37190327 | GE108: =FN108 -> 0.528427723 | GF108: =FJ108 -> 53.95368665 | GG108: =AR108 -> 0.7550676401 | GI108: 1.693482499 | GJ108: 0.0849774533 | GK108: =GI108 -> 1.693482499 | GL108: =GJ108 -> 0.0849774533 | GO108: =GL108 -> 0.0849774533
A109: QUE 94281 | B109: 1 | D109: basaltic | J109: QUE 94281 | L109: 0.3958505068 | M109: 0.07087599741 | N109: 12.71641147 | O109: 28.88530904 | P109: 1782.705391 | Q109: 13.29892538 | R109: 45.55188958 | S109: 294.9088204 | T109: 23.03550787 | U109: 0.1185643735 | V109: 0 | W109: 0 | X109: 5.081634678 | Y109: 116.0240889 | Z109: 97.46847099 | AA109: 0.02255337503 | AB109: 0.008168578823 | AC109: 0.07947616994 | AD109: 76.16264826 | AE109: 6.655847315 | AF109: 17.77767738 | AG109: 10.14045504 | AH109: 3.172280569 | AI109: 0.8388478542 | AJ109: 0.6780246711 | AK109: 2.443443821 | AL109: 0.3407205952 | AM109: 2.511140824 | AN109: 0.3214627561 | AO109: 0.2304334699 | AP109: 10.67474876 | AQ109: 2.924088851 | AR109: 1.025472935 | AS109: 0.2630245849 | AT109: 463.7 | AV109: 1 | AW109: 1 | AX109: 1 | AY109: 61.71668059 | AZ109: 0.6182755125 | BA109: 3.09348054 | BB109: 1.439672627 | BC109: 0.6946023568 | BD109: 3.501010219 | BE109: 0.2856318426 | BF109: 925.774012 | BH109: 3.578723941 | BI109: 1.03925812 | BJ109: 1.097765796 | BK109: 1.315016926 | BL109: 2.723961671 | BM109: 7.275664462 | BO109: 0.6501793826 | BP109: 1.263282624 | BQ109: 0.9526132084 | BR109: 0.9309673555 | BS109: 3.781711491 | CC109: 1 | CG109: 1 | CW109: 1 | DB109: =AP109 -> 10.67474876 | DK109: =MAX(10,AD109-(3.2+25.3*AH109)) -> 10 | DL109: =IF(DK109<20,0,IF(DK109<40,1,IF(DK109<80,2,IF(DK109<160,3,IF(DK109<320,4,IF(DK109<640,5,IF(DK109<1280,6,IF(DK109<2560,7,IF(DK109<5120,8,9))))))))) -> 0 | DO109: 4.53067308 | DP109: 0.04195110812 | DQ109: =10*DP109 -> 0.4195110812 | DW109: =AE109/AH109 -> 2.098126937 | DX109: =AH109/AK109 -> 1.298282588 | DY109: =AH109/AI109 -> 3.781711491 | DZ109: =AH109/(L109*0.7419*1000) -> 0.01080177221 | EA109: =AH109/O109 -> 0.1098233211 | EB109: 3578.723941 | ED109: 287.8402399 | EE109: =AR109/AS109 -> 3.898772184 | EF109: 101.6715766 | EG109: 0.6341187885 | EH109: =AK109/AJ109 -> 3.603768307 | EI109: =AK109/AE109 -> 0.3671123609 | EJ109: =AE109/AR109 -> 6.490514852 | EK109: =AE109/AL109 -> 19.53461989 | EL109: 6.474129241 | EM109: 0.6341187885 | EN109: =AR109/AE109 -> 0.1540709825 | EO109: =AS109/AE109 -> 0.03951782131 | EP109: =(AP109/S109)/(595/12300) -> 0.7482695045 | EQ109: =S109/AP109 -> 27.62676921 | ER109: =(AQ109/AP109)/(165/595) -> 0.9877929542 | EU109: 45.6 | EV109: 0.59 | EW109: 17.2 | EX109: 0.26 | EY109: 12.9 | EZ109: 0.18 | FA109: 9.61 | FB109: 12.3 | FC109: 0.3958505068 | FD109: 0.11 | FE109: 0.06 | FG109: =SUM(EU109:FE109) -> 99.20585051 | FH109: =EY109+FA109 -> 22.51 | FI109: =FA109/EY109 -> 0.7449612403 | FJ109: =100*(FA109/40.304)/(FA109/40.304+EY109/71.846) -> 57.04411192 | FK109: =FB109/EW109 -> 0.7151162791 | FM109: =FB109/EW109 -> 0.7151162791 | FN109: =EW109/FN$1 -> 0.4777777778 | FO109: =EW109+FB109 -> 29.5 | FP109: =FO109/(FH109+EV109) -> 1.277056277 | FQ109: 154 | FR109: 131 | FS109: =EW109*0.5293 -> 9.10396 | FT109: =FB109*0.7147 -> 8.79081 | FU109: =(FT109/40.078)/(FS109/26.981) -> 0.6500556744 | FV109: =Q109*(AY109*0.01414)-0.1393 -> 11.46632459 | FW109: =FV109-FA109 -> 1.856324594 | FX109: =Q109+FV109 -> 24.76524998 | FY109: =(FX109-40.455)/-1.0924 -> 14.36264191 | FZ109: =FY109-EW109 -> -2.837358089 | GA109: =100*FY109/36 -> 39.89622753 | GB109: =(FV109/40.302)/(FV109/40.302+Q109/71.846) -> 0.605839056 | GC109: =GB109-FJ109 -> -56.43827287 | GI109: 3.172280569 | GJ109: 0.07947616994 | GK109: =GI109 -> 3.172280569 | GL109: =GJ109 -> 0.07947616994 | GM109: =GL109 -> 0.07947616994
A110: Yamato 793274 | B110: 1 | D110: basaltic | J110: Yamato 793274 | O110: 32.5 | Q110: 14.2 | AH110: 2.8 | AR110: 0.8195090379 | AS110: 0.2118787172 | AT110: 171.5 | BR110: 0.9384170696 | CC110: 1 | CG110: 1 | ED110: 0
A111: Yamato 793274 | B111: 1 | D111: basaltic | J111: Yamato 981031 | L111: 0.4160685053 | M111: 0.1433025812 | N111: 13.04123074 | O111: 24.82190598 | P111: 1915.417902 | Q111: 12.13693199 | R111: 39.60024536 | S111: 151.9565217 | T111: 9.900181568 | U111: 0.06396113456 | V111: 0 | W111: 0.1651045245 | X111: 1.118902738 | Y111: 123.5292963 | Z111: 107.3015016 | AA111: 0 | AB111: 0.008944940622 | AC111: 0.04256403965 | AD111: 84.6196879 | AE111: 7.038143095 | AF111: 19.43475807 | AG111: 11.89355187 | AH111: 3.364716852 | AI111: 0.9073613701 | AJ111: 0.6921287663 | AK111: 2.52832172 | AL111: 0.3525920601 | AM111: 2.626760722 | AN111: 0.3726670533 | AO111: 0.02591029542 | AP111: 3.392648935 | AQ111: 1.69062224 | AR111: 1.112989498 | AS111: 0.2997678869 | AT111: 203.78 | AV111: 1 | AW111: 1 | AX111: 1 | AY111: =P111/O111 -> 77.16643127 | AZ111: =(AH111/AR111)/(147.1/29.4) -> 0.6042158509 | BA111: =AH111/AR111 -> 3.023134411 | BB111: =(AH111/AI111)/(147.1/56) -> 1.411703826 | BC111: =1/BB111 -> 0.7083638802 | BD111: 3.40196568 | BE111: =1/BD111 -> 0.2939477038 | BF111: =L111*7419/AH111 -> 917.4062415 | BH111: =Q111*7773/O111/1000 -> 3.800690101 | BI111: =(AF111/603.2)/(AE111/234.7) -> 1.074416831 | BJ111: =(AF111/0.6032)/10^((1*LOG10(AH111/0.1471)+4*LOG10(AE111/0.2347))/5) -> 1.134213034 | BK111: =(AE111/AH111)/(234.7/147.1) -> 1.311019503 | BL111: 2.783721328 | BM111: 7.686821627 | BO111: =(AL111/AH111)/(24.3/147.1) -> 0.6343521325 | BP111: =AH111/AM111 -> 1.280937705 | BQ111: =(AH111/AN111)/(147.1/14.2) -> 0.8715718511 | BR111: 0.9775891021 | BS111: =AH111/AI111 -> 3.708243443 | CC111: 1 | CG111: 1 | CW111: 1 | DB111: =AP111 -> 3.392648935 | DK111: =MAX(10,AD111-(3.2+25.3*AH111)) -> 10 | DL111: =IF(DK111<20,0,IF(DK111<40,1,IF(DK111<80,2,IF(DK111<160,3,IF(DK111<320,4,IF(DK111<640,5,IF(DK111<1280,6,IF(DK111<2560,7,IF(DK111<5120,8,9))))))))) -> 0 | DO111: 4.591614289 | DP111: 0.04421162025 | DQ111: =10*DP111 -> 0.4421162025 | DW111: =AE111/AH111 -> 2.091748996 | DX111: =AH111/AK111 -> 1.330810405 | DY111: =AH111/AI111 -> 3.708243443 | DZ111: =AH111/(L111*0.7419*1000) -> 0.01090029645 | EA111: =AH111/O111 -> 0.1355543307 | EB111: =Q111*7773/O111 -> 3800.690101 | ED111: 177.1161449 | EE111: =AR111/AS111 -> 3.712837655 | EF111: =L111*7419/O111 -> 124.3583891 | EG111: =O111/R111 -> 0.6268119238 | EH111: =AK111/AJ111 -> 3.652964365 | EI111: =AK111/AE111 -> 0.3592313605 | EJ111: =AE111/AR111 -> 6.323638368 | EK111: =AE111/AL111 -> 19.96115027 | EL111: =S111/R111 -> 3.837262127 | EM111: =O111/R111 -> 0.6268119238 | EN111: =AR111/AE111 -> 0.1581368101 | EO111: =AS111/AE111 -> 0.0425919 | EP111: =(AP111/S111)/(595/12300) -> 0.4615382762 | EQ111: =S111/AP111 -> 44.78993396 | ER111: =(AQ111/AP111)/(165/595) -> 1.796969381 | EU111: 45.90140644 | EV111: 0.5574547255 | EW111: 19.64794583 | EX111: 0.2707727369 | EY111: 11.36134734 | EZ111: 0.1523618648 | FA111: 8.120728744 | FB111: 13.32282702 | FC111: 0.3670589443 | FD111: 0.07179203437 | FE111: 0.05273434154 | FG111: =SUM(EU111:FE111) -> 99.82643003 | FH111: =EY111+FA111 -> 19.48207608 | FI111: =FA111/EY111 -> 0.7147681081 | FJ111: =100*(FA111/40.304)/(FA111/40.304+EY111/71.846) -> 56.02747299 | FK111: =FB111/EW111 -> 0.6780773489 | FM111: =FB111/EW111 -> 0.6780773489 | FN111: =EW111/FN$1 -> 0.5457762731 | FO111: =EW111+FB111 -> 32.97077285 | FP111: =FO111/(FH111+EV111) -> 1.645286667 | FQ111: 170 | FR111: 130 | FS111: =EW111*0.5293 -> 10.39965773 | FT111: =FB111*0.7147 -> 9.521824472 | FU111: =(FT111/40.078)/(FS111/26.981) -> 0.6163865111 | FV111: =Q111*(AY111*0.01414)-0.1393 -> 13.10371111 | FW111: =FV111-FA111 -> 4.982982369 | FX111: =Q111+FV111 -> 25.2406431 | FY111: =(FX111-40.455)/-1.0924 -> 13.92745963 | FZ111: =FY111-EW111 -> -5.720486201 | GA111: =100*FY111/36 -> 38.68738787 | GB111: =(FV111/40.302)/(FV111/40.302+Q111/71.846) -> 0.6580837302 | GC111: =GB111-FJ111 -> -55.36938926 | GI111: 3.364716852 | GJ111: 0.04256403965 | GK111: =GI111 -> 3.364716852 | GL111: =GJ111 -> 0.04256403965 | GM111: =GL111 -> 0.04256403965
A112: Dho 1629 | B112: 2 | D112: mafic | F112: 37 | J112: Dho 1629 | L112: 0.3253326671 | M112: 0.1129724976 | N112: 13.88672849 | O112: 24.39007835 | P112: 1918.042453 | Q112: 9.69459386 | R112: 34.70182283 | S112: 309.5394947 | T112: 15.16301567 | U112: 0.9168292293 | V112: 0.3512791813 | W112: 0.5552302526 | X112: 7.151023345 | Y112: 761.8556124 | Z112: 114.9080588 | AA112: 0 | AB112: 0.04960825072 | AC112: 0.1448073233 | AD112: 572.39063 | AE112: 8.113785577 | AF112: 21.26472657 | AG112: 12.2223377 | AH112: 3.674651423 | AI112: 0.7497449632 | AJ112: 0.781539015 | AK112: 3.177683083 | AL112: 0.4474306844 | AM112: 2.896173649 | AN112: 0.3877870163 | AO112: 0.0684042213 | AP112: 12.19112568 | AQ112: 5.656731692 | AR112: 1.688420211 | AS112: 0.8101151263 | AT112: 125.08 | AV112: 1 | AW112: 1 | AX112: 1 | AY112: 78.64027435 | AZ112: 0.4349809764 | BA112: 2.176384409 | BB112: 1.865855236 | BC112: 0.5359472592 | BD112: 3.219285458 | BE112: 0.3106279369 | BF112: 656.8359224 | BH112: 3.089620172 | BI112: 1.019736661 | BJ112: 1.088201764 | BK112: 1.383907176 | BL112: 2.553365256 | BM112: 6.691896587 | BO112: 0.7370823557 | BP112: 1.268795269 | BQ112: 0.9147418647 | BR112: 1.741520178 | BS112: 4.90120188 | BZ112: 6 | CC112: 1 | CG112: 1 | CW112: 1 | DB112: 12.19112568 | DK112: 476.221949 | DL112: 5 | DO112: 3.831289691 | DP112: 0.05334703005 | DQ112: =10*DP112 -> 0.5334703005 | DW112: 2.208042245 | DX112: 1.156393299 | DY112: 4.90120188 | DZ112: 0.01522450228 | EA112: 0.150661731 | EB112: 3089.620172 | ED112: 271.0974322 | EE112: 2.08417317 | EF112: 98.96003705 | EG112: 0.7028471809 | EH112: 4.065930199 | EI112: 0.3916400122 | EJ112: 4.805548716 | EK112: 18.13417332 | EL112: 8.919977956 | EM112: 0.7028471809 | EN112: 0.2080927817 | EO112: 0.09984428583 | EP112: 0.8141714793 | EQ112: 25.39055891 | ER112: 1.673226726 | ES112: 2014-02-26 | EU112: 45.92552831 | EV112: 0.4674458246 | EW112: 19.77261377 | EX112: 0.2803410849 | EY112: 9.69459386 | EZ112: 0.1805010015 | FA112: 10.00411006 | FB112: 12.58790612 | FC112: 0.3253326671 | FD112: 0.1200082598 | FE112: 0.09133285957 | FG112: 99.44971382 | FH112: =EY112+FA112 -> 19.69870392 | FI112: =FA112/EY112 -> 1.03192668 | FJ112: =100*(FA112/40.304)/(FA112/40.304+EY112/71.846) -> 64.78271563 | FK112: =FB112/EW112 -> 0.6366333896 | FM112: =FB112/EW112 -> 0.6366333896 | FN112: =EW112/FN$1 -> 0.5492392714 | FO112: =EW112+FB112 -> 32.36051989 | FP112: =FO112/(FH112+EV112) -> 1.604695011 | FQ112: 44 | FR112: 129 | FS112: =EW112*0.5293 -> 10.46564447 | FT112: =FB112*0.7147 -> 8.996576507 | FU112: =(FT112/40.078)/(FS112/26.981) -> 0.5787130842 | FV112: =Q112*(AY112*0.01414)-0.1393 -> 10.64083126 | FW112: =FV112-FA112 -> 0.6367212046 | FX112: =Q112+FV112 -> 20.33542512 | FY112: =(FX112-40.455)/-1.0924 -> 18.41777268 | FZ112: =FY112-EW112 -> -1.354841089 | GA112: =100*FY112/36 -> 51.16047967 | GB112: =(FV112/40.302)/(FV112/40.302+Q112/71.846) -> 0.6617839062 | GC112: =GB112-FJ112 -> -64.12093172 | GI112: 3.674651423 | GJ112: 0.1448073233 | GK112: 3.674651423 | GL112: 0.1448073233 | GN112: =GL112 -> 0.1448073233
A113: Kal 008 | B113: 0.5 | D113: mafic | H113: 9 | I113: 359 | J113: Kalahari 009 | K113: D359 | L113: 0.4847288519 | M113: 0.1837333735 | N113: 11.59310826 | O113: 53.19118279 | P113: 2878.293078 | Q113: 16.43002562 | R113: 26.29114888 | S113: 24.62187724 | T113: 0 | U113: 0.8195071404 | V113: 0 | W113: 0.5357473906 | X113: 2.396171672 | Y113: 117.2798523 | Z113: 20.9732846 | AA113: 0 | AB113: 0.01991145107 | AC113: 0.05464486228 | AD113: 39.22905912 | AE113: 0.9486035646 | AF113: 2.430181996 | AG113: 1.467877463 | AH113: 0.6030139417 | AI113: 0.4789362825 | AJ113: 0.2017170956 | AK113: 1.248784807 | AL113: 0.1899031237 | AM113: 0.4034462489 | AN113: 0.02781039225 | AO113: 0.2274313275 | AP113: 0.6200308979 | AQ113: 1.240853084 | AR113: 0.05903349787 | AS113: 0.2732959041 | AT113: 265.39 | AV113: 1 | AW113: 1 | AY113: 54.11222175 | AZ113: 2.041566327 | BA113: 10.21477574 | BB113: 0.4793193576 | BC113: 2.086291705 | BD113: 7.50873025 | BE113: 0.1331783093 | BF113: 5963.715104 | BH113: 2.400972915 | BI113: 0.9967948915 | BJ113: 0.9939789793 | BK113: 0.9859547468 | BL113: 0.7596213207 | BM113: 1.946037445 | BO113: 1.90638738 | BP113: 1.49465745 | BQ113: 2.093128593 | BR113: 16.8033904 | BS113: 1.259069241 | BZ113: 8 | CC113: 1 | CQ113: Ba | CW113: 1 | DB113: 0.6200308979 | DC113: =S113 -> 24.62187724 | DD113: =DB113 -> 0.6200308979 | DE113: =LOG(S113) -> 1.391321162 | DF113: =LOG(DB113) -> -0.2075866678 | DG113: =DE113-DE$411 -> 0 | DH113: =DF113-DF$411 -> 0.3158409489 | DI113: =AVERAGE(DG113:DH113) -> 0.1579204745 | DJ113: =IF(DH113<DI$416,0,IF(DI113<DI$417,1,IF(DI113<DI$418,2,IF(DI113<DI$419,3,IF(DI113<DI$420,4,IF(DI113<DI$421,5,IF(DI113<DI$422,6,IF(DI113<DI$423,7,IF(#REF!<DI206,8,9))))))))) -> 1 | DK113: 20.77280639 | DL113: 1 | DO113: 6.172924843 | DP113: 0.005880974843 | DQ113: =100*DP113 -> 0.5880974843 | DW113: 1.573103869 | DX113: 0.4828805878 | DY113: 1.259069241 | DZ113: 0.001676807129 | EA113: 0.01133672745 | EB113: 2400.972915 | ED113: 2315.010964 | EE113: 0.2160057907 | EF113: 67.60901269 | EG113: 2.023159316 | EH113: 6.190773289 | EI113: 1.316445409 | EJ113: 16.06890323 | EK113: 4.995197267 | EL113: 0.9365082277 | EM113: 2.023159316 | EN113: 0.06223200089 | EO113: 0.2881033915 | EP113: 0.5205714142 | EQ113: 39.71072622 | ER113: 7.216723295 | ET113: WU | EU113: 48.19143615 | EV113: 0.5665123831 | EW113: 14.09389385 | EX113: 0.4206913163 | EY113: 16.43002562 | EZ113: 0.2571320363 | FA113: 8.228998086 | FB113: 11.04826187 | FC113: 0.4847288519 | FD113: 0.1681705682 | FE113: 0.2597822374 | FG113: =SUM(EU113:FE113) -> 100.149633 | FH113: =EY113+FA113 -> 24.65902371 | FI113: =FA113/EY113 -> 0.5008512022 | FJ113: =100*(FA113/40.304)/(FA113/40.304+EY113/71.846) -> 47.16873183 | FK113: =FB113/EW113 -> 0.7839041492 | FM113: =FB113/EW113 -> 0.7839041492 | FN113: =EW113/FN$1 -> 0.3914970513 | FO113: =EW113+FB113 -> 25.14215571 | FP113: =FO113/(FH113+EV113) -> 0.9966946043 | FQ113: 54 | FR113: 160 | FS113: =EW113*0.5293 -> 7.459898014 | FT113: =FB113*0.7147 -> 7.896192755 | FU113: =(FT113/40.078)/(FS113/26.981) -> 0.712585289 | FV113: =Q113*(AY113*0.01414)-0.1393 -> 12.43208178 | FW113: =FV113-FA113 -> 4.203083699 | FX113: =Q113+FV113 -> 28.86210741 | FY113: =(FX113-40.455)/-1.0924 -> 10.61231471 | FZ113: =FY113-EW113 -> -3.481579134 | GA113: =100*FY113/36 -> 29.47865198 | GB113: =(FV113/40.302)/(FV113/40.302+Q113/71.846) -> 0.5742698528 | GC113: =GB113-FJ113 -> -46.59446198 | GI113: 0.6030139417 | GJ113: 0.05464486228 | GK113: 0.6030139417 | GL113: 0.05464486228 | GO113: =GL113 -> 0.05464486228
A114: MIL 13317 | B114: 1 | D114: mafic | J114: MIL 13317 | L114: 0.6027987479 | M114: 0.2812713917 | N114: 12.41014722 | O114: 22.44504514 | P114: 1334.441839 | Q114: 9.905148685 | R114: 16.38706611 | S114: 110.3867249 | T114: 58.11966033 | U114: 0.1448543036 | V114: 0 | W114: 0.1312930277 | X114: 9.61844516 | Y114: 174.218099 | Z114: 345.095512 | AA114: 0.04827888533 | AB114: 0.006312437565 | AC114: 0.3664458621 | AD114: 256.7834515 | AE114: 22.10704524 | AF114: 55.86107704 | AG114: 33.84620485 | AH114: 9.923402641 | AI114: 1.142705886 | AJ114: 1.971464937 | AK114: 7.288404349 | AL114: 0.9906260387 | AM114: 8.140001346 | AN114: 1.033605977 | AO114: 0 | AP114: 3.502992785 | AQ114: 2.038542415 | AR114: 4.649695719 | AS114: 1.452663495 | AT114: 265.58 | AV114: 1 | AW114: 1 | AX114: 1 | AY114: 59.45373827 | AZ114: 0.4265507773 | BA114: 2.13420474 | BB114: 3.305989752 | BC114: 0.3024812764 | BD114: 3.913661394 | BE114: 0.2555152067 | BF114: 450.6683919 | BH114: 3.430276939 | BI114: 0.9831739469 | BJ114: 1.051052224 | BK114: 1.396270846 | BL114: 3.033180403 | BM114: 7.664376778 | BO114: 0.6043040783 | BP114: 1.219091032 | BQ114: 0.9267898586 | BR114: 1.133973228 | BS114: 8.684126652 | CC114: 1 | CG114: 1 | CW114: 1 | DB114: 3.502992785 | DK114: 10 | DL114: 0 | DO114: 2.737963588 | DP114: 0.147022141 | DQ114: =10*DP114 -> 1.47022141 | DW114: 2.227768643 | DX114: 1.361532946 | DY114: 8.684126652 | DZ114: 0.02218926417 | EA114: 0.4421199681 | EB114: 3430.276939 | ED114: 0 | EE114: 3.200807162 | EF114: 199.2494951 | EG114: 1.369680514 | EH114: 3.696948504 | EI114: 0.3296869513 | EJ114: 4.754514398 | EK114: 22.31623678 | EL114: 6.736210385 | EM114: 1.369680514 | EN114: 0.2103264217 | EO114: 0.0657104321 | EP114: 0.6560101214 | EQ114: 31.51211884 | ER114: 2.098522021 | GI114: 9.923402641 | GJ114: 0.3664458621 | GK114: 9.923402641 | GL114: 0.3664458621 | GM114: =GL114 -> 0.3664458621
A115: Asuka 881757 | B115: 1 | D115: MB | J115: Asuka 881757 | L115: 0.2539593991 | M115: 1.526106374 | N115: 11.92441332 | O115: 93.91778725 | P115: 2066.840032 | Q115: 23.02353228 | R115: 24.14516037 | S115: 5.47137637 | T115: 0.03132764921 | U115: 0.015590743 | V115: 0.1169305725 | W115: 0.1587210719 | X115: 3.471701177 | Y115: 167.8099878 | Z115: 133.63581 | AA115: 0 | AB115: 0.0001571416971 | AC115: 0.1659715794 | AD115: 57.59764515 | AE115: 3.312820138 | AF115: 9.115590743 | AG115: 10.74153471 | AH115: 3.000893626 | AI115: 1.023508323 | AJ115: 0.8515736906 | AK115: 3.570339017 | AL115: 0.5338412099 | AM115: 2.528244417 | AN115: 0.3201672757 | AO115: 0.2648112058 | AP115: 2.570686155 | AQ115: 0.9233049127 | AR115: 0.4489252944 | AS115: 0.1504734064 | AT115: 246.3 | AV115: 1 | AW115: 1 | AX115: 1 | AY115: 22.00690724 | AZ115: 1.336014534 | BA115: 6.684616936 | BB115: 1.116180874 | BC115: 0.8959121439 | BD115: 1.840849497 | BE115: 0.5432274619 | BF115: 627.8545717 | BH115: 1.905516746 | BI115: 1.070628298 | BJ115: 0.9945991548 | BK115: 0.6919055904 | BL115: 0.9278727095 | BM115: 2.553144309 | BO115: 1.076881446 | BP115: 1.186947593 | BQ115: 0.9047932086 | BR115: 1.216600493 | BS115: 2.931967975 | CC115: 1 | CG115: 1 | CW115: 1 | DB115: 2.570686155 | DK115: 10 | DL115: 0 | DO115: 7.84208798 | DP115: 0.03493092243 | DQ115: 0.3493092243 | DW115: 1.103944542 | DX115: 0.8405066328 | DY115: 2.931967975 | DZ115: 0.01592725521 | EA115: 0.03195234591 | EB115: 1905.516746 | ED115: 104.5736941 | EE115: 2.983419496 | EF115: 20.06142646 | EG115: 3.889714783 | EH115: 4.192636594 | EI115: 1.077734036 | EJ115: 7.379446379 | EK115: 6.205628334 | EL115: 0.2266034388 | EM115: 3.889714783 | EN115: 0.1355115206 | EO115: 0.04542154423 | EP115: 9.712714293 | EQ115: 2.128371975 | ER115: 1.295176958 | ET115: my lit mean | EU115: 46.18628713 | EV115: 2.41777017 | EW115: 10.22108176 | EX115: 0.2914958 | EY115: 22.52077746 | EZ115: 0.3406987 | FA115: 6.32619328 | FB115: 11.75675708 | FC115: 0.2577138498 | FD115: 0.037804425 | FE115: 0.04427905 | FG115: =SUM(EU115:FE115) -> 100.4008587 | FH115: =EY115+FA115 -> 28.84697074 | FI115: =FA115/EY115 -> 0.2809047464 | FJ115: =100*(FA115/40.304)/(FA115/40.304+EY115/71.846) -> 33.3662693 | FK115: =FB115/EW115 -> 1.15024587 | FM115: =FB115/EW115 -> 1.15024587 | FN115: =EW115/FN$1 -> 0.2839189378 | FO115: =EW115+FB115 -> 21.97783884 | FP115: =FO115/(FH115+EV115) -> 0.7029592507 | FQ115: 2 | FR115: 171 | FS115: =EW115*0.5293 -> 5.410018576 | FT115: =FB115*0.7147 -> 8.402554285 | FU115: =(FT115/40.078)/(FS115/26.981) -> 1.045597585 | FV115: =Q115*(AY115*0.01414)-0.1393 -> 7.025109093 | FW115: =FV115-FA115 -> 0.6989158123 | FX115: =Q115+FV115 -> 30.04864137 | FY115: =(FX115-40.455)/-1.0924 -> 9.526143015 | FZ115: =FY115-EW115 -> -0.6949387458 | GA115: =100*FY115/36 -> 26.46150837 | GB115: =(FV115/40.302)/(FV115/40.302+Q115/71.846) -> 0.3523096508 | GC115: =GB115-FJ115 -> -33.01395965 | GI115: 3.000893626 | GJ115: 0.1659715794 | GK115: 3.000893626 | GL115: 0.1659715794 | GM115: =GL115 -> 0.1659715794
A116: Dho 0287 | B116: 2 | D116: MB | J116: Dho 0287 | L116: 0.489832584 | M116: 0.1073403494 | N116: 10.52378666 | O116: 39.4768826 | P116: 4258.807602 | Q116: 21.12247369 | R116: 53.25605395 | S116: 114.6188822 | T116: 3.620706039 | U116: 0.5161694084 | V116: 0.06357412895 | W116: 0.6553489323 | X116: 0 | Y116: 800.345867 | Z116: 146.6159191 | AA116: 0 | AB116: 0.01817104322 | AC116: 0.0467191172 | AD116: 159.3879636 | AE116: 12.09492081 | AF116: 32.33935833 | AG116: 22.77945233 | AH116: 7.181222029 | AI116: 1.405173189 | AJ116: 1.464821191 | AK116: 4.3398263 | AL116: 0.6044050782 | AM116: 4.146217942 | AN116: 0.7465566568 | AO116: 0.2100848064 | AP116: 0.2165883315 | AQ116: 15.44292429 | AR116: 0.8945596199 | AS116: 0.5999979565 | AT116: 195.74 | AV116: 1 | AW116: 1 | AX116: 1 | AY116: 107.8810514 | AZ116: 1.60444089 | BA116: 8.027661734 | BB116: 1.945556529 | BC116: 0.5139917473 | BD116: 2.586206433 | BE116: 0.3866667359 | BF116: 506.0514668 | BH116: 4.159016041 | BI116: 1.040351568 | BJ116: 1.051673613 | BK116: 1.055611853 | BL116: 2.786959656 | BM116: 7.451763295 | BO116: 0.5094905689 | BP116: 1.73199338 | BQ116: 0.9285627419 | BR116: 2.434460836 | BS116: 5.110560097 | BZ116: 6 | CC116: 1 | CG116: 1 | CW116: 1 | DB116: 0.2165883315 | DK116: 10 | DL116: 0 | DO116: 8.244719112 | DP116: 0.06806974144 | DQ116: 0.6806974144 | DW116: 1.684242705 | DX116: 1.654725681 | DY116: 5.110560097 | DZ116: 0.01976083592 | EA116: 0.181909552 | EB116: 4159.016041 | ED116: 67.57990173 | EE116: 1.490937778 | EF116: 92.05559562 | EG116: 0.7412656341 | EH116: 2.96270038 | EI116: 0.358813949 | EJ116: 13.52053071 | EK116: 20.01128258 | EL116: 2.152222587 | EM116: 0.7412656341 | EN116: 0.07396159377 | EO116: 0.04960743156 | EP116: 0.03906312943 | EQ116: 529.2015568 | ER116: 257.1150557 | EU116: 44.74624686 | EV116: 2.759857163 | EW116: 8.84219456 | EX116: 0.6224673191 | EY116: 21.12247369 | EZ116: 0.2743718308 | FA116: 11.49581783 | FB116: 9.504885406 | FC116: 0.489832584 | FD116: 0.05846359222 | FE116: 0.2573135444 | FG116: 100.1739244 | FH116: 32.61829152 | FI116: 0.5442458114 | FJ116: 49.24305645 | FK116: 1.074946422 | FM116: 1.074946422 | FN116: 0.2456165156 | FO116: 18.34707997 | FP116: 0.5185992102 | FQ116: 13 | FR116: 167 | FS116: =EW116*0.5293 -> 4.680173581 | FT116: =FB116*0.7147 -> 6.793141599 | FU116: =(FT116/40.078)/(FS116/26.981) -> 0.9771488104 | FV116: 32.08172544 | FW116: 20.58590761 | FX116: 53.20419913 | FY116: -11.67081575 | FZ116: -20.51301031 | GA116: -32.41893265 | GB116: 0.7302857506 | GC116: -48.5127707 | GI116: 7.181222029 | GJ116: 0.0467191172 | GK116: 7.181222029 | GL116: 0.0467191172 | GN116: =GL116 -> 0.0467191172
A117: LAP 02205 | B117: 1 | D117: MB | J117: LAP 02205 | L117: 0.39305252 | M117: 0.1676480373 | N117: 12.52665502 | O117: 58.97176065 | P117: 1962.166958 | Q117: 22.34804973 | R117: 36.32764055 | S117: 66.53110446 | Y117: 143.9067698 | Z117: 199.0186294 | AC117: 0.109836161 | AD117: 146.9387059 | AE117: 14.36265053 | AF117: 36.66582252 | AG117: 23.7756986 | AH117: 8.283801564 | AI117: 1.313950017 | AJ117: 1.881955672 | AK117: 6.932826015 | AL117: 0.951287342 | AM117: 5.839017382 | AN117: 0.7378002329 | AP117: 0 | AQ117: 0.4780023287 | AR117: 2.082794827 | AS117: 0.5439441949 | AT117: 240.48 | AV117: 1 | AW117: 1 | AX117: 1 | AY117: 33.27299264 | AZ117: 0.7949098056 | BA117: 3.977252803 | BB117: 2.400082644 | BC117: 0.4166523192 | BD117: 2.219305612 | BE117: 0.4505913898 | BF117: 352.0191332 | BH117: 2.945670753 | BI117: 0.993295791 | BJ117: 1.009949115 | BK117: 1.086687045 | BL117: 2.071687722 | BM117: 5.288726768 | BO117: 0.6951658515 | BP117: 1.418697877 | BQ117: 1.083843483 | BR117: 0.9479166845 | BS117: 6.304502804 | CC117: 1 | CG117: 1 | CW117: 1 | DB117: 0 | DK117: 10 | DL117: 0 | DO117: 7.025870256 | DP117: 0.0966431167 | DQ117: 0.966431167 | DW117: 1.733823586 | DX117: 1.194866501 | DY117: 6.304502804 | DZ117: 0.0284075468 | EA117: 0.1404706502 | EB117: 2945.670753 | ED117: 73.65355931 | EE117: 3.829059757 | EF117: 49.44835653 | EG117: 1.623330328 | EH117: 3.683841292 | EI117: 0.4826982317 | EJ117: 6.895854717 | EK117: 15.09812009 | EL117: 1.831418266 | EM117: 1.623330328 | EN117: 0.1450146561 | EO117: 0.03787213187 | EP117: 0 | ES117: 2016-04-25 | ET117: WU | EU117: 45.11923222 | EV117: 3.248573647 | EW117: 9.960427316 | EX117: 0.2867903225 | EY117: 22.34804973 | EZ117: 0.2998619657 | FA117: 6.207439457 | FB117: 11.14975146 | FC117: 0.39305252 | FD117: 0.0735009601 | FE117: 0.09726745428 | FG117: 99.18394705 | FH117: 28.55548919 | FI117: 0.2777620209 | FJ117: 33.11659525 | FK117: 1.119404931 | FM117: 1.119404931 | FN117: 0.2766785366 | FO117: 21.11017877 | FP117: 0.6637572967 | FQ117: 55 | FR117: 146 | FS117: =EW117*0.5293 -> 5.272054178 | FT117: =FB117*0.7147 -> 7.968727366 | FU117: =(FT117/40.078)/(FS117/26.981) -> 1.017562526 | FV117: 10.37501303 | FW117: 4.167573572 | FX117: 32.72306276 | FY117: 7.077935955 | FZ117: -2.882491361 | GA117: 19.66093321 | GB117: 0.4528369055 | GC117: -32.66375834 | GI117: 8.283801564 | GJ117: 0.109836161 | GK117: 8.283801564 | GL117: 0.109836161 | GM117: =GL117 -> 0.109836161
A118: LAP 02205 | B118: 1 | D118: MB | J118: LAP 02224 | L118: 0.3695797973 | M118: 0.1096279291 | N118: 12.83295862 | O118: 58.56859299 | P118: 2112.786996 | Q118: 22.06314651 | R118: 37.10119802 | S118: 23.33649989 | Y118: 135.2169094 | Z118: 199.8881148 | AC118: 0.06411758497 | AD118: 151.8491661 | AE118: 13.06464271 | AF118: 35.34726092 | AG118: 22.66983323 | AH118: 7.751657695 | AI118: 1.235022166 | AJ118: 1.82342833 | AK118: 6.647390226 | AL118: 0.9208973506 | AM118: 5.701240236 | AN118: 0.7188389276 | AP118: 0.3297973401 | AQ118: 0.6184927169 | AR118: 2.176848744 | AS118: 0.5673295335 | AT118: 189.48 | AV118: 1 | AW118: 1 | AY118: 36.07371952 | AZ118: 0.7117065956 | BA118: 3.560953749 | BB118: 2.389434822 | BC118: 0.4185090093 | BD118: 2.220132231 | BE118: 0.4504236217 | BF118: 353.7195042 | BH118: 2.92813655 | BI118: 1.052712998 | BJ118: 1.064315758 | BK118: 1.056337102 | BL118: 1.965379233 | BM118: 5.317464407 | BO118: 0.7191558808 | BP118: 1.359644108 | BQ118: 1.040971095 | BR118: 0.9459527632 | BS118: 6.276533255 | CC118: 1 | CW118: 1 | DB118: 0.3297973401 | DK118: 10 | DL118: 0 | DO118: 7.115949376 | DP118: 0.09429846261 | DQ118: 0.9429846261 | DW118: 1.685399849 | DX118: 1.166120452 | DY118: 6.276533255 | DZ118: 0.0282709884 | EA118: 0.1323517827 | EB118: 2928.13655 | ED118: 0 | EE118: 3.837009384 | EF118: 46.81540697 | EG118: 1.578617299 | EH118: 3.645545106 | EI118: 0.5088076555 | EJ118: 6.001630909 | EK118: 14.186861 | EL118: 0.6289958584 | EM118: 1.578617299 | EN118: 0.1666213759 | EO118: 0.04342480282 | EP118: 0.2921457515 | EQ118: 70.76012162 | ER118: 6.762705306 | FG118: 0 | FH118: 0 | FN118: 0 | FO118: 0 | FQ118: 56 | FR118: 150 | FV118: 11.11472259 | FW118: 11.11472259 | FX118: 33.17786909 | FY118: 6.661599145 | FZ118: 6.661599145 | GA118: 18.50444207 | GB118: 0.4731473103 | GI118: 7.751657695 | GJ118: 0.06411758497 | GK118: 7.751657695 | GL118: 0.06411758497 | GM118: 0.06411758497
A119: LAP 02205 | B119: 1 | D119: MB | J119: LAP 02226 | L119: 0.3694272054 | M119: 0.1449650607 | N119: 13.1809121 | O119: 59.46386276 | P119: 2063.529449 | Q119: 21.83555404 | R119: 35.68529922 | S119: 22.23191299 | Y119: 126.44302 | Z119: 186.0657805 | AC119: 0.08424158041 | AD119: 148.2129985 | AE119: 12.24499816 | AF119: 33.8246887 | AG119: 22.34723901 | AH119: 7.418323964 | AI119: 1.213117743 | AJ119: 1.74367362 | AK119: 6.43952451 | AL119: 0.8927041454 | AM119: 5.528187359 | AN119: 0.712620186 | AP119: 0.5053958913 | AQ119: 0 | AR119: 2.053584826 | AS119: 0.5266862817 | AT119: 190.33 | AV119: 1 | AW119: 1 | AY119: 34.70224356 | AZ119: 0.7219843875 | BA119: 3.612377667 | BB119: 2.327974372 | BC119: 0.4295579935 | BD119: 2.259286415 | BE119: 0.4426176306 | BF119: 369.4608715 | BH119: 2.854300976 | BI119: 1.074797978 | BJ119: 1.082124782 | BK119: 1.034552446 | BL119: 1.901537628 | BM119: 5.252668679 | BO119: 0.7284641024 | BP119: 1.341908926 | BQ119: 1.004901158 | BR119: 0.9308970874 | BS119: 6.115089823 | CC119: 1 | CW119: 1 | DB119: 0.5053958913 | DK119: 10 | DL119: 0 | DO119: 7.017154628 | DP119: 0.09043920335 | DQ119: 0.9043920335 | DW119: 1.650642142 | DX119: 1.151998715 | DY119: 6.115089823 | DZ119: 0.02706646568 | EA119: 0.1247534825 | EB119: 2854.300976 | ED119: 0 | EE119: 3.89906648 | EF119: 46.09153037 | EG119: 1.666340596 | EH119: 3.693079048 | EI119: 0.5258901982 | EJ119: 5.962742811 | EK119: 13.7167484 | EL119: 0.6229992036 | EM119: 1.666340596 | EN119: 0.1677080551 | EO119: 0.04301236103 | EP119: 0.4699406558 | EQ119: 43.98910512 | ER119: 0 | FG119: 0 | FH119: 0 | FN119: 0 | FO119: 0 | FQ119: 57 | FR119: 149 | FV119: 10.57518198 | FW119: 10.57518198 | FX119: 32.41073602 | FY119: 7.363844726 | FZ119: 7.363844726 | GA119: 20.45512424 | GB119: 0.4633394624 | GI119: 7.418323964 | GJ119: 0.08424158041 | GK119: 7.418323964 | GL119: 0.08424158041 | GM119: 0.08424158041
A120: LAP 02205 | B120: 1 | D120: MB | J120: LAP 02436 | L120: 0.3544685058 | M120: 0.06441076205 | N120: 12.93278964 | O120: 60.6551319 | P120: 2427.670583 | Q120: 21.92327582 | R120: 39.83717418 | S120: 40.49666964 | Y120: 120.7987623 | Z120: 170.1379347 | AC120: 0.02984790476 | AD120: 131.8787434 | AE120: 11.34882782 | AF120: 30.58383595 | AG120: 20.62458698 | AH120: 6.798021713 | AI120: 1.12679079 | AJ120: 1.625575602 | AK120: 5.898007028 | AL120: 0.8212937012 | AM120: 4.897915246 | AN120: 0.610802958 | AP120: 0.4611632664 | AQ120: 0.3513400115 | AR120: 1.825925421 | AS120: 0.4526537998 | AT120: 190.67 | AV120: 1 | AW120: 1 | AY120: 40.024158 | AZ120: 0.7441049097 | BA120: 3.723055518 | BB120: 2.296754696 | BC120: 0.4353969546 | BD120: 2.333886527 | BE120: 0.4284698456 | BF120: 386.848109 | BH120: 2.809484005 | BI120: 1.048558597 | BJ120: 1.058099024 | BK120: 1.046328471 | BL120: 1.924180111 | BM120: 5.185452612 | BO120: 0.7313450795 | BP120: 1.387941884 | BQ120: 1.074377952 | BR120: 0.8997988772 | BS120: 6.033082424 | CC120: 1 | CW120: 1 | DB120: 0.4611632664 | DK120: 10 | DL120: 0 | DO120: 7.42415677 | DP120: 0.08100356394 | DQ120: 0.8100356394 | DW120: 1.669430946 | DX120: 1.152596408 | DY120: 6.033082424 | DZ120: 0.02584993895 | EA120: 0.1120766125 | EB120: 2809.484005 | ED120: 0 | EE120: 4.033823248 | EF120: 43.3566256 | EG120: 1.522576166 | EH120: 3.628257598 | EI120: 0.519701869 | EJ120: 6.215384094 | EK120: 13.81823311 | EL120: 1.016554775 | EM120: 1.522576166 | EN120: 0.1608911026 | EO120: 0.03988551126 | EP120: 0.2354092605 | EQ120: 87.81417036 | ER120: 2.747298988 | FG120: 0 | FH120: 0 | FN120: 0 | FO120: 0 | FQ120: 58 | FR120: 158 | FV120: 12.26799366 | FW120: 12.26799366 | FX120: 34.19126948 | FY120: 5.733916624 | FZ120: 5.733916624 | GA120: 15.92754618 | GB120: 0.4993921699 | GI120: 6.798021713 | GJ120: 0.02984790476 | GK120: 6.798021713 | GL120: 0.02984790476 | GM120: 0.02984790476
A121: LAP 02205 | B121: 1 | D121: MB | J121: LAP 03632 | L121: 0.3793910177 | M121: 0.1331437921 | N121: 13.15462392 | O121: 59.25147965 | P121: 2035.114768 | Q121: 22.23330646 | R121: 36.33780233 | S121: 27.88248127 | Y121: 121.625249 | Z121: 188.2770559 | AC121: 0.07074741535 | AD121: 148.293702 | AE121: 12.76370862 | AF121: 34.66177084 | AG121: 23.36910746 | AH121: 7.631789813 | AI121: 1.244734421 | AJ121: 1.77057384 | AK121: 6.598008157 | AL121: 0.9263797306 | AM121: 5.616037655 | AN121: 0.7068737551 | AP121: 0.9587403965 | AQ121: 0.6838186474 | AR121: 2.104161529 | AS121: 0.5475424452 | AT121: 210.86 | AV121: 1 | AW121: 1 | AY121: 34.34707082 | AZ121: 0.7249064812 | BA121: 3.626998074 | BB121: 2.334130083 | BC121: 0.4284251368 | BD121: 2.261287158 | BE121: 0.4422260113 | BF121: 368.812825 | BH121: 2.916711821 | BI121: 1.056636533 | BJ121: 1.06663452 | BK121: 1.04821426 | BL121: 1.934479061 | BM121: 5.253368898 | BO121: 0.7347998216 | BP121: 1.358927821 | BQ121: 1.042221949 | BR121: 0.9444979652 | BS121: 6.131259556 | CC121: 1 | CW121: 1 | DB121: 0.9587403965 | DK121: 10 | DL121: 0 | DO121: 7.060984405 | DP121: 0.0926940601 | DQ121: 0.926940601 | DW121: 1.672439747 | DX121: 1.15668087 | DY121: 6.131259556 | DZ121: 0.02711402458 | EA121: 0.1288033625 | EB121: 2916.711821 | ED121: 0 | EE121: 3.84291948 | EF121: 47.50433199 | EG121: 1.630574109 | EH121: 3.726480086 | EI121: 0.5169350345 | EJ121: 6.06593574 | EK121: 13.77805256 | EL121: 0.7673133618 | EM121: 1.630574109 | EN121: 0.164855027 | EO121: 0.04289838177 | EP121: 0.710816914 | EQ121: 29.08240997 | ER121: 2.572011668 | FG121: =SUM(EU129:FE129) -> 99.50584804 | FH121: =EY129+FA129 -> 25.46836968 | FI121: =FA129/EY129 -> 0.4830072271 | FJ121: =100*(FA129/40.304)/(FA129/40.304+EY129/71.846) -> 46.2657304 | FK121: =FB129/EW129 -> 0.9184026172 | FM121: =FB129/EW129 -> 0.9184026172 | FN121: =EW129/FN$1 -> 0.344868003 | FO121: =EW129+FB129 -> 23.81744446 | FP121: =FO121/(FH121+EV129) -> 0.8570738787 | FQ121: 59 | FR121: 147 | FV121: 10.65869618 | FW121: =FV121-FA129 -> 2.363789452 | FX121: 32.89200263 | FY121: 6.923285761 | FZ121: =FY121-EW129 -> -5.491962346 | GA121: 19.23134934 | GB121: 0.4608076874 | GC121: -45.80492271 | GI121: 7.631789813 | GJ121: 0.07074741535 | GK121: 7.631789813 | GL121: 0.07074741535 | GM121: 0.07074741535
A122: LAP 02205 | B122: 1 | D122: MB | J122: LAP 04841 | L122: 0.3787088922 | M122: 0.3791808464 | N122: 12.81283581 | O122: 58.48503824 | P122: 2224.932538 | Q122: 21.80140529 | R122: 37.21509789 | S122: 24.38363294 | Y122: 129.5151539 | Z122: 193.8567482 | AC122: 0.07175001001 | AD122: 151.3253793 | AE122: 12.52212115 | AF122: 33.0855467 | AG122: 23.05188774 | AH122: 7.181555831 | AI122: 1.21013052 | AJ122: 1.729033911 | AK122: 6.305078672 | AL122: 0.9074420066 | AM122: 5.42548865 | AN122: 0.6605012612 | AP122: 0.845497858 | AQ122: 0.2887056092 | AR122: 2.047961725 | AS122: 0.5362721704 | AT122: 249.77 | AV122: 1 | AW122: 1 | AY122: 38.04276453 | AZ122: 0.7008601434 | BA122: 3.506684595 | BB122: 2.259236424 | BC122: 0.4426274246 | BD122: 2.321767135 | BE122: 0.4307064153 | BF122: 391.2301648 | BH122: 2.897532915 | BI122: 1.028045108 | BJ122: 1.046463197 | BK122: 1.09284594 | BL122: 1.986037257 | BM122: 5.247443913 | BO122: 0.7649036572 | BP122: 1.323669866 | BQ122: 1.04959212 | BR122: 0.9504422547 | BS122: 5.934529964 | CC122: 1 | CW122: 1 | DB122: 0.845497858 | DK122: 10 | DL122: 0 | DO122: 7.133211647 | DP122: 0.08864468404 | DQ122: 0.8864468404 | DW122: 1.743650185 | DX122: 1.139011296 | DY122: 5.934529964 | DZ122: 0.02556040127 | EA122: 0.1227930433 | EB122: 2897.532915 | ED122: 0 | EE122: 3.818884958 | EF122: 48.04034255 | EG122: 1.571540626 | EH122: 3.646590522 | EI122: 0.5035152269 | EJ122: 6.114431242 | EK122: 13.79936245 | EL122: 0.6552080829 | EM122: 1.571540626 | EN122: 0.1635475092 | EO122: 0.04282598482 | EP122: 0.7168070124 | EQ122: 28.83937873 | ER122: 1.231333603 | FG122: =SUM(EU122:FE122) -> 0 | FH122: =EY122+FA122 -> 0 | FI122: =FA122/EY122 ->  | FJ122: =100*(FA122/40.304)/(FA122/40.304+EY122/71.846) ->  | FK122: =FB122/EW122 ->  | FM122: =FB122/EW122 ->  | FN122: =EW122/FN$1 -> 0 | FO122: =EW122+FB122 -> 0 | FP122: =FO122/(FH122+EV122) ->  | FQ122: 60 | FR122: 152 | FV122: 11.58821419 | FW122: =FV122-FA122 -> 11.58821419 | FX122: 33.38961949 | FY122: 6.467759534 | FZ122: =FY122-EW122 -> 6.467759534 | GA122: 17.9659987 | GB122: 0.4865377487 | GI122: 7.181555831 | GJ122: 0.07175001001 | GK122: 7.181555831 | GL122: 0.07175001001 | GM122: 0.07175001001
A123: MIL 05035 | B123: 1 | D123: MB | J123: MIL 05035 | L123: 0.2954689052 | M123: 0.1998746749 | N123: 13.18288957 | O123: 92.59056515 | P123: 1633.788082 | Q123: 21.0953379 | R123: 22.17368527 | S123: 31.87183731 | T123: 0 | U123: 0.248384961 | X123: 0 | Y123: 143.2511232 | Z123: 86.72097423 | AA123: 0 | AB123: 0.01733530385 | AC123: 0.09166469615 | AD123: 58.32400095 | AE123: 3.130761173 | AF123: 8.216715536 | AG123: 6.53059825 | AH123: 2.79294384 | AI123: 0.992558288 | AJ123: 0.75974131 | AK123: 3.273242611 | AL123: 0.5021380941 | AM123: 2.140962875 | AN123: 0.3016568929 | AO123: 0.1637975881 | AP123: 0.4169543627 | AQ123: 0.3055474107 | AR123: 0.4601388035 | AS123: 0.1400860724 | AT123: 422.9 | AV123: 1 | AW123: 1 | AX123: 1 | AY123: 17.64529766 | AZ123: 1.213131841 | BA123: 6.069785506 | BB123: 1.071227066 | BC123: 0.9335088998 | BD123: 2.20851897 | BE123: 0.4527921262 | BF123: 784.8649787 | BH123: 1.770958642 | BI123: 1.021174754 | BJ123: 0.9515629703 | BK123: 0.7025663081 | BL123: 0.9564708594 | BM123: 2.510267803 | BO123: 1.088346953 | BP123: 1.304526983 | BQ123: 0.8937676295 | BR123: 1.105015606 | BS123: 2.813883954 | CC123: 1 | CG123: 1 | CW123: 1 | DB123: 0.4169543627 | DK123: 10 | DL123: 0 | DO123: 7.207611416 | DP123: 0.03095296995 | DQ123: 0.3095296995 | DW123: 1.120953858 | DX123: 0.8532651479 | DY123: 2.813883954 | DZ123: 0.01274104498 | EA123: 0.03016445397 | EB123: 1770.958642 | ED123: 64.12849105 | EE123: 3.284686306 | EF123: 23.67502352 | EG123: 4.175695832 | EH123: 4.30836466 | EI123: 1.045510159 | EJ123: 6.80394948 | EK123: 6.234860907 | EL123: 1.437372134 | EM123: 4.175695832 | EN123: 0.1469734605 | EO123: 0.04474505228 | EP123: 0.2704391537 | EQ123: 76.43963024 | ER123: 2.642549352 | ES123: 2016-04-25 | ET123: WU | EU123: 46.86715881 | EV123: 1.817006389 | EW123: 10.85684131 | EX123: 0.2387944661 | EY123: 21.0953379 | EZ123: 0.3212630369 | FA123: 6.053888244 | FB123: 11.89903387 | FC123: 0.2954689052 | FD123: 0.02157659005 | FE123: 0.04 | FG123: =SUM(#REF!) ->  | FH123: 27.14922615 | FI123: =#REF!/#REF! ->  | FJ123: =100*(#REF!/40.304)/(#REF!/40.304+#REF!/71.846) ->  | FK123: =#REF!/#REF! ->  | FM123: =#REF!/#REF! ->  | FN123: =#REF!/FN$1 ->  | FO123: =#REF!+#REF! ->  | FP123: =FO123/(FH123+#REF!) ->  | FQ123: 66 | FR123: 168 | FS123: =#REF!*0.5293 ->  | FT123: =#REF!*0.7147 ->  | FU123: =(FT123/40.078)/(FS123/26.981) ->  | FV123: 5.124081924 | FW123: =FV123-#REF! ->  | FX123: 26.21941983 | FY123: 13.03147215 | FZ123: =FY123-#REF! ->  | GA123: 36.19853374 | GB123: 0.3021718766 | GI123: 2.79294384 | GJ123: 0.09166469615 | GK123: 2.79294384 | GL123: 0.09166469615 | GM123: 0.09166469615
A124: NEA 003 | B124: 0 | C124: MB | D124: MB | H124: 3 | I124: 349 | J124: NEA 003 MB | K124: D385 | L124: 0.2877024255 | M124: 0.03972584066 | N124: 10.53574909 | O124: 46.79895728 | P124: 3717.351382 | Q124: 20.58939315 | R124: 51.54409161 | S124: 71.50577854 | T124: 2.907314488 | U124: 0.6360973799 | V124: 0.2864341624 | W124: 0.1770902919 | X124: 2.300086251 | Y124: 147.0421267 | Z124: 32.91987217 | AA124: 0 | AB124: 0.0174269581 | AC124: 0.04821614889 | AD124: 250.9064899 | AE124: 3.181719265 | AF124: 7.310434743 | AG124: 5.08554902 | AH124: 1.615805482 | AI124: 0.6249184874 | AJ124: 0.4270188656 | AK124: 1.904461274 | AL124: 0.2797835914 | AM124: 1.140454345 | AN124: 0.1939257958 | AO124: 0.2871378092 | AP124: 0.1368581994 | AQ124: 1.976052168 | AR124: 0.4640128538 | AS124: 0.3759704173 | AT124: 169.8 | AV124: 1 | AW124: 1 | AX124: 1 | AY124: 79.43235486 | AZ124: 0.6959751345 | BA124: 3.482242935 | BB124: 0.9843307638 | BC124: 1.01591867 | BD124: 3.415588333 | BE124: 0.2927753296 | BF124: 1320.990873 | BH124: 3.419763223 | BI124: 0.8939909118 | BJ124: 0.9324114039 | BK124: 1.234162549 | BL124: 1.670666297 | BM124: 3.838584088 | BO124: 1.048188915 | BP124: 1.416808563 | BQ124: 0.804320553 | BR124: 2.940938717 | BS124: 2.585625989 | BY124: 7 | CB124: 1 | CC124: 1 | CG124: 1 | CQ124: Ba | CR124: 1 | CT124: 1 | CU124: 0 | CW124: 1 | CZ124: 1 | DJ124: 0 | DO124: 8.379343819 | DP124: 0.02899486594 | DQ124: =100*DP124 -> 2.899486594 | DW124: 1.969122708 | DX124: 0.8484317869 | DY124: 2.585625989 | DZ124: 0.00757007501 | EA124: 0.03452652742 | EB124: 3419.763223 | ED124: 410.990065 | EE124: 1.23417384 | EF124: 45.60922761 | EG124: 0.907940286 | EH124: 4.459899614 | EI124: 0.59856358 | EJ124: 6.856963637 | EK124: 11.37207243 | EL124: 1.387274008 | EM124: 0.907940286 | EN124: 0.145837145 | EO124: 0.1181658047 | EP124: 0.03956560657 | EQ124: 522.4807782 | ER124: 52.06676625 | ES124: Haloda et al (2009) | EU124: 44.72 | EV124: 1.34 | EW124: 8.02 | EX124: 0.52 | EY124: 21.83 | EZ124: 0.27 | FA124: 13.59 | FB124: 9.16 | FC124: 0.31 | FD124: 0.08 | FG124: =SUM(EU124:FE124) -> 99.84 | FH124: 35.42 | FI124: =FA124/EY124 -> 0.622537792 | FJ124: =100*(FA124/40.304)/(FA124/40.304+EY124/71.846) -> 52.60073267 | FK124: =FB124/EW124 -> 1.142144638 | FM124: =FB124/EW124 -> 1.142144638 | FN124: =EW124/FN$1 -> 0.2227777778 | FO124: =EW124+FB124 -> 17.18 | FP124: =FO124/(FH124+EV124) -> 0.4673558215 | FQ124: 73 | FR124: 170 | FS124: =EW124*0.5293 -> 4.244986 | FT124: =FB124*0.7147 -> 6.546652 | FU124: =(FT124/40.078)/(FS124/26.981) -> 1.038233396 | FV124: 22.98616072 | FW124: =FV124-FA124 -> 9.396160723 | FX124: 43.57555387 | FY124: -2.856603693 | FZ124: =FY124-EW124 -> -10.87660369 | GA124: -7.935010259 | GB124: 0.6655753192 | GC124: -51.93515735 | GE124: =FN124 -> 0.2227777778 | GF124: =FJ124 -> 52.60073267 | GG124: =AR124 -> 0.4640128538 | GI124: 1.615805482 | GJ124: 0.04821614889 | GK124: 1.615805482 | GL124: 0.04821614889 | GO124: =GL124 -> 0.04821614889
A125: NWA 00032 | B125: 0 | D125: MB | H125: A | I125: 332 | J125: NWA 00032 | K125: D332 | L125: 0.3467073661 | M125: 0 | N125: 12.25414515 | O125: 55.70891547 | P125: 2740.813264 | Q125: 22.12498505 | R125: 41.8188312 | S125: 50.37510193 | T125: 0 | U125: 0 | V125: 0 | W125: 0 | X125: 0 | Y125: 142.0097853 | Z125: 173.8912748 | AA125: 0 | AB125: 0 | AC125: 0 | AD125: 241.8418048 | AE125: 11.23740092 | AF125: 29.70624083 | AG125: 20.66993748 | AH125: 6.60816037 | AI125: 1.097788693 | AJ125: 1.562304431 | AK125: 5.788627888 | AL125: 0.801588312 | AM125: 4.995345474 | AN125: 0.6201418864 | AO125: 0 | AP125: 0 | AQ125: 3.684349008 | AR125: 1.896858385 | AS125: 0.4505430824 | AT125: 183.95 | AV125: 1 | AW125: 1 | AX125: 1 | AY125: 49.19882646 | AZ125: 0.6962742321 | BA125: 3.48373944 | BB125: 2.291591355 | BC125: 0.4363779772 | BD125: =L125*7419/1000/AI125 -> 2.343093864 | BE125: 0.4267861461 | BF125: 389.2493229 | BH125: 3.087073359 | BI125: 1.028569349 | BJ125: 1.041766902 | BK125: 1.065822502 | BL125: 1.941289221 | BM125: 5.13182768 | BO125: 0.7343062102 | BP125: 1.322863534 | BQ125: 1.028644195 | BR125: =(AS125/AR125)/(8.1/29.4) -> 0.8621120763 | BS125: 6.019519434 | BY125: 12 | CB125: 1 | CC125: 1 | CF125: 1 | CG125: 1 | CR125: 1 | CT125: 1 | CU125: 0 | CW125: 1 | CZ125: 1 | DJ125: 0 | DO125: 7.551754999 | DP125: 0.08191167016 | DQ125: =100*DP125 -> 8.191167016 | DW125: 1.70053393 | DX125: 1.141576294 | DY125: 6.019519434 | DZ125: 0.025690475 | EA125: 0.1186194403 | EB125: 3087.073359 | ED125: =(FD125*8301)/AH125 -> 120.1918936 | EE125: 4.210159826 | EF125: 46.1725368 | EG125: 1.332149031 | EH125: 3.705185606 | EI125: 0.515121595 | EJ125: 5.924217122 | EK125: 14.01891813 | EL125: 1.204603297 | EM125: 1.332149031 | EN125: 0.1687986749 | EO125: 0.04009317505 | EP125: 0 | ET125: WU | EU125: 44.84750917 | EV125: 2.998092539 | EW125: 9.403372915 | EX125: 0.39375504 | EY125: 22.17 | EZ125: 0.2811986731 | FA125: 7.874650368 | FB125: 10.69631129 | FC125: 0.3489 | FD125: 0.09568091892 | FE125: 0.0913058666 | FG125: =SUM(EU125:FE125) -> 99.20077678 | FH125: 30.04465037 | FI125: =FA125/EY125 -> 0.3551939724 | FJ125: =100*(FA125/40.304)/(FA125/40.304+EY125/71.846) -> 38.76937083 | FK125: =FB125/EW125 -> 1.137497299 | FM125: =FB125/EW125 -> 1.137497299 | FN125: =EW125/FN$1 -> 0.2612048032 | FO125: =EW125+FB125 -> 20.09968421 | FP125: =FO125/(FH125+EV125) -> 0.6082934539 | FQ125: 76 | FR125: 159 | FS125: =EW125*0.5293 -> 4.977205284 | FT125: =FB125*0.7147 -> 7.644653681 | FU125: =(FT125/40.078)/(FS125/26.981) -> 1.034008867 | FV125: 15.25241946 | FW125: =FV125-FA125 -> 7.377769094 | FX125: 37.37740451 | FY125: 2.817278916 | FZ125: =FY125-EW125 -> -6.586093999 | GA125: 7.825774767 | GB125: 0.5513568594 | GC125: -38.21801397 | GE125: =FN125 -> 0.2612048032 | GF125: =FJ125 -> 38.76937083 | GG125: =AR125 -> 1.896858385 | GI125: 6.60816037 | GJ125: 0 | GK125: 6.60816037 | GL125: 0 | GO125: =GL125 -> 0
A126: NWA 00032 | B126: 0 | D126: MB | H126: A | I126: 357 | J126: NWA 00479 | K126: D357 | L126: 0.335693708 | M126: 0.1317120986 | N126: 12.34443615 | O126: 57.12074309 | P126: 2724.743745 | Q126: 22.41716766 | R126: 43.07571882 | S126: 74.78108663 | T126: 0 | U126: 0.668348581 | V126: 0 | W126: 0.2816980956 | X126: 0 | Y126: 126.6495519 | Z126: 208.2659634 | AA126: 0.5767176998 | AB126: 0.03178724795 | AC126: 0.06705097087 | AD126: 295.9414675 | AE126: 11.53375887 | AF126: 30.34824963 | AG126: 19.67956497 | AH126: 6.625180172 | AI126: 1.128416262 | AJ126: 1.623684186 | AK126: 5.903566561 | AL126: 0.8455653006 | AM126: 5.050943335 | AN126: 0.6384396004 | AO126: 0.3344846901 | AP126: 0.3294902913 | AQ126: 2.674150485 | AR126: 1.878522685 | AS126: 0.5013853622 | AT126: 214.24 | AV126: 1 | AW126: 1 | AY126: 47.70147582 | AZ126: 0.7048811669 | BA126: 3.526803389 | BB126: 2.235134754 | BC126: 0.4474003182 | BD126: 2.207085898 | BE126: 0.4530861263 | BF126: 375.9160589 | BH126: 3.050531817 | BI126: 1.023798613 | BJ126: 1.041811359 | BK126: 1.091120605 | BL126: 1.953693373 | BM126: 5.140663583 | BO126: 0.7726020538 | BP126: 1.311671847 | BQ126: 1.001736614 | BR126: 0.968762944 | BS126: 5.87122004 | BY126: 6 | CB126: 1 | CC126: 1 | CR126: 1 | CT126: 1 | CU126: 0 | CW126: 1 | DJ126: 0 | DO126: 7.693757469 | DP126: 0.0820758211 | DQ126: =100*DP125 -> 8.191167016 | DW126: 1.74089739 | DX126: 1.122233501 | DY126: 5.87122004 | DZ126: 0.02660168344 | EA126: 0.1159855389 | EB126: 3050.531817 | ED126: 132.0915133 | EE126: 3.746664395 | EF126: 43.60082668 | EG126: 1.326054321 | EH126: 3.635908148 | EI126: 0.5118510477 | EJ126: 6.139802815 | EK126: 13.64029349 | EL126: 1.736038044 | EM126: 1.326054321 | EN126: 0.1628716801 | EO126: 0.04347111535 | EP126: 0.09108335022 | EQ126: 226.9599093 | ER126: 29.26686757 | ET126: WU | EU126: 45.44718521 | EV126: 3.039128907 | EW126: 9.082693775 | EX126: 0.3982485458 | EY126: 22.41716766 | EZ126: 0.2923561627 | FA126: 7.960941147 | FB126: 10.45449875 | FC126: 0.335693708 | FD126: 0.1054246566 | FE126: 0.1003774513 | FG126: =SUM(EU126:FE126) -> 99.63371598 | FH126: 30.37810881 | FI126: =FA126/EY126 -> 0.3551269842 | FJ126: =100*(FA126/40.304)/(FA126/40.304+EY126/71.846) -> 38.76489347 | FK126: =FB126/EW126 -> 1.151035035 | FM126: =FB126/EW126 -> 1.151035035 | FN126: =EW126/FN$1 -> 0.2522970493 | FO126: =EW126+FB126 -> 19.53719252 | FP126: =FO126/(FH126+EV126) -> 0.5846441494 | FQ126: 77 | FR126: 162 | FS126: =EW126*0.5293 -> 4.807469815 | FT126: =FB126*0.7147 -> 7.471830254 | FU126: =(FT126/40.078)/(FS126/26.981) -> 1.046314953 | FV126: 14.98105421 | FW126: =FV126-FA126 -> 7.020113067 | FX126: 37.39822188 | FY126: 2.798222376 | FZ126: =FY126-EW126 -> -6.284471399 | GA126: 7.772839934 | GB126: 0.5436593077 | GC126: -38.22123416 | GE126: =FN126 -> 0.2522970493 | GF126: =FJ126 -> 38.76489347 | GG126: =AR126 -> 1.878522685 | GI126: 6.625180172 | GJ126: 0.06705097087 | GK126: 6.625180172 | GL126: 0.06705097087 | GO126: =GL126 -> 0.06705097087
